Workbook

Sheet INFO
B2: FULLY AUTOMATIC SCHOOL FEES MANAGEMENT SOFTWARE में आपका स्वागत है
B3: करणीय कार्य
B4: यह प्रोग्राम विशेषकर विद्यालय कार्यालय एंव कक्षाध्यापक हेतु सरल,सहज,एंव स्मार्ट तरीके से बनाया गया है
B5: 1 | C5: MASTER SHEET
C6: इस sheet में आपको white cell में ही entry करनी है
B7: 2 | C7: STUDENT RECORD BY SD
C8: इस sheet में आपको सबसे पहले शालादार्पण से student DETAIL data download करके COPY करके PASTE करनी है
B9: 3 | C9: RECEIPT SHEET ( छात्र कोष एंव विकास शुल्क )
C10: इस sheet में आपको एक बार रसीद बुक संख्या एंव रसीद संख्या लिखनी है उसके बाद विद्यार्थी का प्रवेशांक नंबर चयन या लिखना है बस आपकी रसीद तैयार-
C11: इसके बाद SAVE data BUTTON को दबाये आपका record school record sheet में AUTO record होता चला जायेगा .......
C12: अब आप NEW रसीद बटन को CLIK करे एंव प्रवेशांक चयन करे और SAVE data बटन को क्लीक करे बस आपका record तैयार होता चला जाये
C13: आप तैयार रसीद का print भी ले सकते है एक रसीद school record एंव एक विद्यालय हेतु रख सकते है विकास शुल्क ऑटो जनरेट है देखे नीचे इस sheet में
B14: 4 | C14: FEES DATA SHEET
C15: इस sheet को लॉक किया गया है फिर भी आप इसका print ले सकते है और रसीद क्रमांक एंव दिनांक मैन्युअल लिख सकते है
B16: 5 | C16: ENROLLMENT SHEET
C17: यह sheet भी लॉक है आपक प्रतिमाह कक्षावार,वर्गवार,जातिवार नामाकन देख सकते है और print भी ले सकते है
B18: 6 | C18: SCHOOL RECORD SHEET
C19: यह sheet भी लॉक है आप इसमें प्रति दिन कितनी फीस आई एंव कितनी आएगी और आज दिनांक तक कितनी आये इत्यादि देख सकते है और print भी ले सकते है
B20: 7 | C20: STUDY CERTIFICATE SHEET
C21: यह sheet भी लॉक है इसमें किसी भी विद्यार्थी का प्रवेशांक चयन करके अध्धयनरत प्रमाण पत्र देख सकते है और print भी ले सकते है
B22: 8 | C22: CHARACTOR CERTIFICATE SHEET
C23: यह sheet भी लॉक है इसमें किसी भी विद्यार्थी का प्रवेशांक चयन करके चरित्र प्रमाण पत्र देख सकते है और print भी ले सकते है
B24: 9 | C24: ADMISSION FORM 1 SHEET
C25: इस sheet में new ADMISSSION पार्ट 1 में जरुरी सूचना cell में entry करकेएंव आप्शन को सेलेक्ट करके print ले सकते है
B26: 10 | C26: ADMISSION FORM 2 SHEET
C27: इस sheet में new ADMISSSION पार्ट 2 में जरुरी सूचना cell में entry करे ज्यादातर cell लॉक है एंव आप्शन को सेलेक्ट करके print ले सकते है
B28: 11 | C28: ENROLLMENT SHEET
C29: यह sheet भी लॉक है इसमें आप कक्षावार जातिवार नामांकन इत्यादि देख सकते है और print भी ले सकते है
B30: 12 | C30: AGEWISE & CLASSWISE ENROLLMENT SHEET
C31: यह sheet भी लॉक है इसमें आप कक्षावार आयुवर छात्र छात्रा का data इत्यादि देख सकते है और print भी ले सकते है
B33: आपकी सुरक्षा ही मेरी उर्जा है अतः कोविड नियमो का पालन करे | F33: आप मेरा youtube चैनल भी देख और SUBSCRIBE और LIKE कर सकते है | L33: =[2]INFO!$Q$15 -> https://youtu.be/3yHQVnwH1W0
D35: दोस्तों यह PROGRAMME आपको कैसा लगा मेरी MAIL ID पर जरुर बताये
D36: आपका विजय कुमार प्रजापत अध्यापक
D37: राजकीय उच्च माध्यमिक विद्यालय आलनियावास तह. रियां बड़ी जिला- नागौर
G38: 9828120697 | I38: कृपया इस नम्बर पर केवल MASSAGE करे CALL नहीं करे
D39: मेरे प्रेरणास्रोत --- अश्विनीकुमारजी,किशन जी सेन,विष्णुजी शर्मा,मोहम्मद शरीफ जी,राजेश जी सामरिया,हीरालाल जी जाट और आप
D40: FOR MORE MY SOFTWARE & EDU. NEWS PLEASE VISIT LINKS | G40: http://www.rajsevak.com/VIJAY-KUMAR-PRAJAPAT-SOFTWARE/ | J40: http://www.ashwinisharma.com/p/vijay-kumar-excel-sheet-expert.html | N40: http://www.shalasugam.com/vijay-kumar-excel-expert/
D43: आपका स्नेह यूहीं मिलता रहे
B45: KEEP YOUR FACE ALWAYS IN SUNSHINE | H45: ANY SUGGESTION AND QUERY PLS CONTACT ME | K45: MAIL ID- gupskalani@gmail.com

Sheet MASTER
B2: fo|ky; dk uke | G2: jktdh; mPp ek/;fed fo|ky; vkyfu;kokl ftyk& ukxkSj | Y2: YES
B3: fo|ky; dk MkbZl dkssM | G3: 8140200308 | J3: 'kkyk niZ.k vkbZMh | N3: 219445 | Y3: NO
B4: iz/kkukpk;Z dk uke | G4: Jh fnus'k dqekj vks>k | J4: eksckby uEcj | N4: 0
B5: dk;kZy; izHkkjh | G5: Jh eksgEen 'kjhQ | J5: eksckby uEcj | N5: 0
B7: Qhl fooj.k l= | K7: 2021-22
E8: uohu izos'k | G8: Nk= 'kqYd | I8: LdkmV | K8: nq?kZVuk chek | M8: SUPW | O8: iz;ksx'kkyk | Q8: fodkl 'kqYd
B9: कक्षा | D9: वर्ग | E9: Nk= | F9: Nk=k | G9: Nk= | H9: Nk=k | I9: Nk= | J9: Nk=k | K9: Nk= | L9: Nk=k | M9: Nk= | N9: Nk=k | O9: Nk= | P9: Nk=k | Q9: Nk= | R9: Nk=k
B10: 9 | E10: 10 | F10: 10 | G10: 200 | H10: =G10/2 -> 100 | I10: 5 | J10: 5 | K10: 10 | L10: 5 | M10: 50 | N10: 50 | Q10: 200 | R10: 200
B11: 10 | E11: 10 | F11: 10 | G11: 200 | H11: =G11/2 -> 100 | I11: 5 | J11: 5 | K11: 10 | L11: 5 | M11: 50 | N11: 50 | Q11: 200 | R11: 200
B12: 11 | D12: ARTS | E12: 10 | F12: 10 | G12: 300 | H12: 300 | I12: 5 | J12: 5 | K12: 10 | L12: 5 | Q12: 300 | R12: 300
B13: 11 | D13: SCIENCE | E13: 10 | F13: 10 | G13: 300 | H13: 300 | I13: 5 | J13: 5 | K13: 10 | L13: 5 | O13: 100 | P13: 100 | Q13: 300 | R13: 300
B14: 11 | D14: COMMERCE | E14: 10 | F14: 10 | G14: 300 | H14: 300 | I14: 5 | J14: 5 | K14: 10 | L14: 5 | O14: 100 | P14: 100 | Q14: 300 | R14: 300
B15: 12 | D15: ARTS | E15: 10 | F15: 10 | G15: 300 | H15: 300 | I15: 5 | J15: 5 | K15: 10 | L15: 5 | O15: 100 | P15: 100 | Q15: 300 | R15: 300
B16: 12 | D16: SCIENCE | E16: 10 | F16: 10 | G16: 300 | H16: 300 | I16: 5 | J16: 5 | K16: 10 | L16: 5 | O16: 100 | P16: 100 | Q16: 300 | R16: 300
B17: 12 | D17: COMMERCE | E17: 10 | F17: 10 | G17: 300 | H17: 300 | I17: 5 | J17: 5 | K17: 10 | L17: 5 | O17: 100 | P17: 100 | Q17: 300 | R17: 300
B18: CLASS TEACHER NAME
B19: 9 | D19: A | E19: Jh fot; dqekj iztkir | J19: छात्र कोष शुल्क | N19: राजकीय शुल्क
B20: 9 | D20: B | E20: Jh jkenso rsrjoky | J20: Nk=fuf/k | L20: =SUM('fees data'!O5:O800) -> 32300 | N20: uohu @ iqu% izos'k | P20: =SUM('fees data'!N5:N408) -> 10
B21: 10 | D21: A | E21: Jh jkefuokl | J21: SUPW | L21: =SUM('fees data'!Q5:Q800) -> 8650 | N21: Vh-lh- 'kqYd | P21: 0
B22: 10 | D22: B | E22: lqJh lqfurk | J22: LdkmV xkbM | L22: =SUM('fees data'!S5:S800) -> 1275 | N22: ;ksx | P22: 0
B23: 11 | D23: ARTS | E23: Jh lokbZ nku pkj.k | J23: izk;ksfxd | L23: =SUM('fees data'!R5:R800) -> 2300 | N23: izk;kSfxd fo"k; fo|ky; esa gS ! | R23: YES
B24: 11 | D24: SCIENCE | E24: Jh efu"k 'kekZ | J24: nq?kVZuk | L24: =SUM('fees data'!P5:P800) -> 1980
B25: 11 | D25: COMMERCE | J25: fodkl 'kqYd | L25: =SUM('fees data'!T5:T800) -> 59200 | N25: विजय कुमार प्रजापत अध्यापक राजकीय उच्च माध्यमिक विद्यालय आलनियावास जिला&नागौर
B26: 12 | D26: ARTS | E26: Jh ykykjke tkafxM | J26: योग | L26: =SUM(L20:M25) -> 105705
B27: 12 | D27: SCIENCE | E27: Jh jked`".k dkyok
B28: 12 | D28: COMMERCE
B29: d{kkokj dqy izkIr jkf'k dk fooj.k | M29: नामांकन कक्षा 9 से 12 | P29: KEEP YOUR FACE ALWAYS IN SUNSHINE कृपया कोविड19 की पालना करे मास्क लगाये,दो गज की दूरी बनाये रखे,बिना वजह न घुमे
B30: कक्षा | D30: नवीन प्रवेश | E30: छात्रकोष | F30: दुर्घटना बीमा | G30: SUPW | H30: प्रोयोगिक | I30: स्काउट | J30: विकास शुल्क | K30: अन्य | L30: योग | M30: छात्र | N30: छात्रा | O30: योग
B31: 9 | D31: =SUMIFS('fees data'!N5:N408,'fees data'!$B$5:$B$408,9) -> 10 | E31: =SUMIFS('fees data'!$O$5:$O$800,'fees data'!$B$5:$B$800,9) -> 7800 | F31: =SUMIFS('fees data'!$P$5:$P$800,'fees data'!$B$5:$B$800,9) -> 535 | G31: =SUMIFS('fees data'!$Q$5:$Q$800,'fees data'!$B$5:$B$800,9) -> 3300 | H31: =SUMIFS('fees data'!$R$5:$R$800,'fees data'!$B$5:$B$800,9) -> 0 | I31: =SUMIFS('fees data'!$S$5:$S$800,'fees data'!$B$5:$B$800,9) -> 330 | J31: =SUMIFS('fees data'!$T$5:$T$800,'fees data'!$B$5:$B$800,9) -> 13200 | K31: =SUMIFS('fees data'!$U$5:$U$408,'fees data'!$B$5:$B$408,9) -> 0 | L31: =SUM(D31:K31) -> 25175 | M31: =COUNTIFS('fees data'!$B$5:$B$800,9,'fees data'!$J$5:$J$800,"M") -> 41 | N31: =COUNTIFS('fees data'!$B$5:$B$800,9,'fees data'!$J$5:$J$800,"f") -> 25 | O31: =M31+N31 -> 66
B32: 10 | D32: =SUMIFS('fees data'!$N$5:$N$408,'fees data'!$B$5:$B$408,10) -> 0 | E32: =SUMIFS('fees data'!$O$5:$O$800,'fees data'!$B$5:$B$800,10) -> 11600 | F32: =SUMIFS('fees data'!$P$5:$P$800,'fees data'!$B$5:$B$800,10) -> 805 | G32: =SUMIFS('fees data'!$Q$5:$Q$800,'fees data'!$B$5:$B$800,10) -> 5350 | H32: =SUMIFS('fees data'!$R$5:$R$800,'fees data'!$B$5:$B$800,10) -> 0 | I32: =SUMIFS('fees data'!$S$5:$S$800,'fees data'!$B$5:$B$800,10) -> 535 | J32: =SUMIFS('fees data'!$T$5:$T$800,'fees data'!$B$5:$B$800,10) -> 21400 | K32: =SUMIFS('fees data'!$U$5:$U$408,'fees data'!$B$5:$B$408,10) -> 0 | L32: =SUM(D32:K32) -> 39690 | M32: =COUNTIFS('fees data'!$B$5:$B$800,10,'fees data'!$J$5:$J$800,"M") -> 54 | N32: =COUNTIFS('fees data'!$B$5:$B$800,10,'fees data'!$J$5:$J$800,"f") -> 53 | O32: =M32+N32 -> 107
B33: 11 | D33: =SUMIFS('fees data'!$N$5:$N$408,'fees data'!$B$5:$B$408,11) -> 0 | E33: =SUMIFS('fees data'!$O$5:$O$800,'fees data'!$B$5:$B$800,11) -> 0 | F33: =SUMIFS('fees data'!$P$5:$P$800,'fees data'!$B$5:$B$800,11) -> 0 | G33: =SUMIFS('fees data'!$Q$5:$Q$800,'fees data'!$B$5:$B$800,11) -> 0 | H33: =SUMIFS('fees data'!$R$5:$R$800,'fees data'!$B$5:$B$800,11) -> 0 | I33: =SUMIFS('fees data'!$S$5:$S$800,'fees data'!$B$5:$B$800,11) -> 0 | J33: =SUMIFS('fees data'!$T$5:$T$800,'fees data'!$B$5:$B$800,11) -> 0 | K33: =SUMIFS('fees data'!$U$5:$U$408,'fees data'!$B$5:$B$408,11) -> 0 | L33: 0 | M33: =COUNTIFS('fees data'!$B$5:$B$800,11,'fees data'!$J$5:$J$800,"M") -> 0 | N33: =COUNTIFS('fees data'!$B$5:$B$800,11,'fees data'!$J$5:$J$800,"f") -> 0 | O33: 0
B34: 12 | D34: =SUMIFS('fees data'!$N$5:$N$408,'fees data'!$B$5:$B$408,12) -> 0 | E34: =SUMIFS('fees data'!$O$5:$O$800,'fees data'!$B$5:$B$800,12) -> 12900 | F34: =SUMIFS('fees data'!$P$5:$P$800,'fees data'!$B$5:$B$800,12) -> 640 | G34: =SUMIFS('fees data'!$Q$5:$Q$800,'fees data'!$B$5:$B$800,12) -> 0 | H34: =SUMIFS('fees data'!$R$5:$R$800,'fees data'!$B$5:$B$800,12) -> 2300 | I34: =SUMIFS('fees data'!$S$5:$S$800,'fees data'!$B$5:$B$800,12) -> 410 | J34: =SUMIFS('fees data'!$T$5:$T$800,'fees data'!$B$5:$B$800,12) -> 24600 | K34: =SUMIFS('fees data'!$U$5:$U$408,'fees data'!$B$5:$B$408,12) -> 0 | L34: 40850 | M34: =COUNTIFS('fees data'!$B$5:$B$800,12,'fees data'!$J$5:$J$800,"M") -> 46 | N34: =COUNTIFS('fees data'!$B$5:$B$800,12,'fees data'!$J$5:$J$800,"f") -> 36 | O34: 82
B35: ;ksx | D35: =SUM(D31:D34) -> 10 | E35: =SUM(E31:E34) -> 32300 | F35: 1980 | G35: 8650 | H35: 2300 | I35: 1275 | J35: 59200 | K35: 0 | L35: 105715 | M35: =SUM(M31:M34) -> 141 | N35: =SUM(N31:N34) -> 114 | O35: 255
U36: =D35+E35+F35+G35+H35+I35 -> 46515

Sheet RECEIPT
B1: RECEPT FOR STUDENT | K1: DUPLICATE RECEPT FOR SCHOOL | S1: जिस विद्यार्थी की रसीद'बनानी है तो सर्वप्रथम उसका प्रवेशांक यहाँ से चयन करे | U1: 3817
B2: fo|ky; dk uke | E2: =MASTER!G2 -> jktdh; mPp ek/;fed fo|ky; vkyfu;kokl ftyk& ukxkSj | K2: fo|ky; dk uke | N2: =E2 -> jktdh; mPp ek/;fed fo|ky; vkyfu;kokl ftyk& ukxkSj
S3: क्या विद्यार्थी से छात्र शुल्क छूट हेतु जाति प्रमाण पत्र ले लिया है | U3: YES
B4: cqd ua- | E4: 1 | G4: jlhn la[;k | I4: 12 | K4: cqd ua- | M4: =E4 -> 1 | P4: jlhn la[;k | R4: =I4 -> 12 | BP4: YES
H5: DATE | I5: =TODAY() -> 2021-07-01 | Q5: =H5 -> DATE | R5: =I5 -> 2021-07-01 | V5: रसीद | W5: =I4 -> 12 | BP5: NO
B6: uke fo|kFkhZ | F6: =PROPER(VLOOKUP($F$9,'fees data'!$E$5:$V$800,3,0)) -> Rani399 | K6: uke fo|kFkhZ | O6: =F6 -> Rani399 | V6: दिनांक | W6: =I5 -> 2021-07-01
B7: firk dk uke | F7: =PROPER(VLOOKUP($F$9,'fees data'!$E$5:$V$800,4,0)) -> King399 | K7: firk dk uke | O7: =F7 -> King399 | V7: नाम | W7: =O6 -> Rani399
B8: d{kk | F8: =VLOOKUP(F9,table4,34,0) -> 10 | G8: oxZ | H8: =VLOOKUP(F9,table4,35,0) -> B | I8: SCIENCE | K8: d{kk | O8: =F8 -> 10 | P8: oxZ | Q8: =H8 -> B | R8: =IF(I8="","",I8) -> SCIENCE | V8: पिता | W8: =O7 -> King399 | AL8: 9 | AM8: A
B9: izos'kkad | F9: =U1 -> 3817 | G9: dSVSxjh | H9: =VLOOKUP($F$9,'fees data'!$E$5:$V$800,8,0) -> OBC | K9: izos'kkad | O9: =F9 -> 3817 | P9: dSVSxjh | Q9: =H9 -> OBC | V9: कक्षा | W9: =O8 -> 10 | AL9: 10 | AM9: B
B10: izos'k dk izdkj | F10: NEW | G10: fyax | H10: =VLOOKUP($F$9,'fees data'!$E$5:$V$800,6,0) -> F | K10: izos'k dk izdkj | O10: =F10 -> NEW | P10: fyax | Q10: =H10 -> F | V10: वर्ग | W10: =Q8 -> B | AL10: 11 | BF10: =SUMIFS('SCHOOL RECORD'!$K$8:$K$449,'SCHOOL RECORD'!$E$8:$E$449,R5) -> 160 | BG10: =SUMIFS('SCHOOL RECORD'!$L$8:$L$475,'SCHOOL RECORD'!$E$8:$E$475,R5) -> 200 | BH10: =SUM('SCHOOL RECORD'!$K$8:$K$475) -> 810 | BI10: =SUM('SCHOOL RECORD'!$L$8:$L$475) -> 1000 | BJ10: =MASTER!U36-BH10 -> 45705 | BM10: =MASTER!J35-BI10 -> 58200
B11: क्र-सं- | C11: फीस विवरण | H11: राशि | I11: योग | K11: =B11 -> क्र-सं- | L11: Qhl fooj.k | Q11: =H11 -> राशि | R11: =I11 -> योग | V11: प्रवेशांक | W11: =O9 -> 3817 | AL11: 12
B12: 1 | C12: =IF(F10="t.c.","टी.सी.शुल्क","नवीन प्रवेश") -> नवीन प्रवेश | H12: =IF(F10="t.c.",5,VLOOKUP($F$9,'fees data'!$E$5:$V$800,10,0)) ->  | I12: =H12 ->  | K12: 1 | L12: uohu izos'k | Q12: =H12 ->  | R12: =Q12 ->  | V12: कटेगरी | W12: =Q9 -> OBC | AM12: NEW
B13: 2 | C13: Nk= 'kqYd | H13: =IF(U3="YES",BO13,BO13*2) -> 100 | I13: 100 | K13: 2 | L13: Nk= 'kqYd | Q13: =H13 -> 100 | R13: 100 | V13: लिंग | W13: =Q10 -> F | AM13: OLD | BO13: =IF(BM9="t.c."," ",VLOOKUP($F$9,'fees data'!$E$5:$V$800,11,0)) -> 100
B14: 3 | C14: nq?kZVuk chek | H14: =IF(F10="t.c."," ",VLOOKUP($F$9,'fees data'!$E$5:$V$800,12,0)) -> 5 | I14: 5 | K14: 3 | L14: nq?kZVuk chek | Q14: 5 | R14: 5 | V14: नवीन | W14: =Q12 ->  | AM14: T.C.
B15: 4 | C15: SUPW | H15: =IF(F12="t.c."," ",VLOOKUP($F$9,'fees data'!$E$5:$V$800,13,0)) -> 50 | I15: 50 | K15: 4 | L15: SUPW | Q15: 50 | R15: 50 | V15: छात्र शुल्क | W15: 100 | AJ15: Qhl fooj.k l= 2020&2021
B16: 5 | C16: iz;ksx'kkyk | H16: =IF(F10="t.c."," ",VLOOKUP($F$9,'fees data'!$E$5:$V$800,14,0)) ->  | K16: 5 | L16: iz;ksx'kkyk | V16: दुर्घटना | W16: 5 | AM16: uohu izos'k | AO16: Nk= 'kqYd | AQ16: LdkmV | AS16: nq?kZVuk chek | AU16: SUPW | AW16: iz;ksx'kkyk | AY16: fodkl 'kqYd
B17: 6 | C17: LdkMV | H17: =IF(F10="t.c."," ",VLOOKUP($F$9,'fees data'!$E$5:$V$800,15,0)) -> 5 | I17: 5 | K17: 6 | L17: LdkMV | Q17: 5 | R17: 5 | V17: supw | W17: 50 | AM17: Nk= | AN17: Nk=k | AO17: Nk= | AP17: Nk=k | AQ17: Nk= | AR17: Nk=k | AS17: Nk= | AT17: Nk=k | AU17: Nk= | AV17: Nk=k | AW17: Nk= | AX17: Nk=k | AY17: Nk= | AZ17: Nk=k
B18: 7 | C18: vU; | K18: 7 | L18: vU; | Q18: 0 | V18: प्रयोगशाला
B19: 8 | C19: vU; | I19: 0 | K19: 8 | L19: vU; | Q19: 0 | R19: 0 | V19: स्काउट | W19: 5 | AJ19: CLASS X | AM19: 10 | AN19: 10 | AO19: 200 | AP19: 200 | AQ19: 5 | AR19: 5 | AS19: 10 | AT19: 5 | AU19: 50 | AV19: 50 | AY19: 300 | AZ19: 300
C20: ;ksx | I20: =SUM(I12:I19) -> 160 | L20: ;ksx | Q20: 0 | R20: =SUM(R12:R19) -> 160 | V20: अन्य | W20: 0 | AJ20: CLASS XI | AL20: ARTS | AM20: 10 | AN20: 10 | AO20: 200 | AP20: 200 | AQ20: 5 | AR20: 5 | AS20: 10 | AT20: 5 | AU20: 50 | AV20: 50 | AY20: 300 | AZ20: 300
B21: IN WORDS | E21: =SpellNumber(I20) -> one hundred sixty | K21: IN WORDS | N21: =E21 -> one hundred sixty | V21: अन्य | W21: 0 | AJ21: CLASS XI | AL21: SCIENCE | AM21: 10 | AN21: 10 | AO21: 200 | AP21: 200 | AQ21: 5 | AR21: 5 | AS21: 10 | AT21: 5 | AU21: 50 | AV21: 50 | AW21: 100 | AX21: 100 | AY21: 300 | AZ21: 300
V22: योग | W22: =R20 -> 160 | AJ22: CLASS XI | AL22: COMMERCE | AM22: 10 | AN22: 10 | AO22: 200 | AP22: 200 | AQ22: 5 | AR22: 5 | AS22: 10 | AT22: 5 | AU22: 50 | AV22: 50 | AY22: 300 | AZ22: 300
V23: विकास | W23: =L39 -> 200 | AJ23: CLASS XII | AL23: ARTS | AM23: 10 | AN23: 10 | AO23: 200 | AP23: 200 | AQ23: 5 | AR23: 5 | AS23: 10 | AT23: 5 | AU23: 50 | AV23: 50 | AY23: 300 | AZ23: 300
B24: gLrk{kj d{kk/;kid | G24: gLrk{kj dk;kZy; izHkkjh | K24: gLrk{kj d{kk/;kid | P24: gLrk{kj dk;kZy; izHkkjh | AJ24: CLASS XII | AL24: SCIENCE | AM24: 10 | AN24: 10 | AO24: 200 | AP24: 200 | AQ24: 5 | AR24: 5 | AS24: 10 | AT24: 5 | AU24: 50 | AV24: 50 | AW24: 100 | AX24: 100 | AY24: 300 | AZ24: 300
B25: =INDEX(AX28:AX37,MATCH(F8,AS28:AS37,0)) -> Jh jkefuokl | G25: =MASTER!G5 -> Jh eksgEen 'kjhQ | K25: =B25 -> Jh jkefuokl | P25: =G25 -> Jh eksgEen 'kjhQ | AJ25: CLASS XII | AL25: COMMERCE | AM25: 10 | AN25: 10 | AO25: 200 | AP25: 200 | AQ25: 5 | AR25: 5 | AS25: 10 | AT25: 5 | AU25: 50 | AV25: 50 | AY25: 300 | AZ25: 300
B26: laLFkk iz/kku dk uke | G26: =MASTER!G4 -> Jh fnus'k dqekj vks>k | K26: =B26 -> laLFkk iz/kku dk uke | P26: =G26 -> Jh fnus'k dqekj vks>k | AJ26: CLASS TEACHER NAME
AJ27: CLASS IX | AL27: A | AM27: VIJAY KUMAR PRAJAPAT | AU27: M | AV27: F
B28: =MASTER!G2 -> jktdh; mPp ek/;fed fo|ky; vkyfu;kokl ftyk& ukxkSj | K28: =B28 -> jktdh; mPp ek/;fed fo|ky; vkyfu;kokl ftyk& ukxkSj | AJ28: CLASS IX | AL28: B | AM28: VIJAY KUMAR PRAJAPAT | AS28: 9 | AT28: A | AU28: 200 | AV28: 100 | AW28: A | AX28: =[3]MASTER!E19 -> Jh fot; dqekj iztkir
AJ29: CLASS X | AL29: A | AM29: VIJAY KUMAR PRAJAPAT | AS29: 9 | AT29: B | AU29: 200 | AV29: 100 | AW29: A | AX29: =[3]MASTER!E20 -> Jh jkenso rsrjoky
B30: cqd ua- | E30: 1 | G30: jlhn la[;k | I30: 96 | K30: cqd ua- | N30: 1 | P30: jlhn la[;k | R30: =I30 -> 96 | AJ30: CLASS X | AL30: B | AM30: VIJAY KUMAR PRAJAPAT | AS30: 10 | AT30: A | AU30: 200 | AV30: 100 | AW30: A | AX30: =[3]MASTER!E21 -> Jh jkefuokl
H31: DATE | I31: =TODAY() -> 2021-07-01 | Q31: DATE | R31: =TODAY() -> 2021-07-01 | AJ31: CLASS XI | AL31: ARTS | AM31: VIJAY KUMAR PRAJAPAT | AS31: 10 | AT31: B | AU31: 200 | AV31: 100 | AW31: A | AX31: SUNITA
E32: fodkl 'kqYd | N32: fodkl 'kqYd | AJ32: CLASS XI | AL32: SCIENCE | AM32: VIJAY KUMAR PRAJAPAT | AS32: 11 | AT32: A | AU32: 300 | AV32: 150 | AW32: B | AX32: =[3]MASTER!E23 -> Jh lokbZ nku pkj.k | AY32: Arts | BC32: Arts
B33: Nk= @ Nk=k | E33: =F6 -> Rani399 | H33: izos'kkad | I33: =F9 -> 3817 | K33: Nk= @ Nk=k | M33: =E33 -> Rani399 | Q33: izos'kkad | R33: =I33 -> 3817 | AJ33: CLASS XI | AL33: COMMERCE | AM33: VIJAY KUMAR PRAJAPAT | AS33: 11 | AT33: B | AU33: 300 | AV33: 150 | AW33: B | AX33: =[3]MASTER!E24 -> Jh efu"k 'kekZ | AY33: Science | BC33: Science
B34: firk Jh | D34: =F7 -> King399 | H34: d{kk | I34: =F8 -> 10 | K34: firk Jh | M34: =D34 -> King399 | Q34: d{kk | R34: =I34 -> 10 | AJ34: CLASS XII | AL34: ARTS | AM34: VIJAY KUMAR PRAJAPAT | AS34: 11 | AT34: C | AU34: 300 | AV34: 150 | AW34: B | AX34: =[3]MASTER!E25 -> 0 | AY34: commerce | BC34: commerce
B35: oxZ | C35: =H8 -> B | D35: ls fo|ky; fodkl jkf'k ds #i;s | K35: oxZ | L35: =H8 -> B | M35: ls fo|ky; fodkl jkf'k ds #i;s | AJ35: CLASS XII | AL35: SCIENCE | AM35: VIJAY KUMAR PRAJAPAT | AS35: 12 | AT35: A | AU35: 300 | AV35: 150 | AW35: B | AX35: =[3]MASTER!E26 -> Jh ykykjke tkafxM | AY35: Arts | BC35: Arts
B36: =SpellNumber(C39) -> two hundred | I36: l/kU;okn | K36: =B36 -> two hundred | R36: l/kU;okn | AJ36: CLASS XII | AL36: COMMERCE | AM36: VIJAY KUMAR PRAJAPAT | AS36: 12 | AT36: B | AU36: 300 | AV36: 150 | AW36: B | AX36: =[3]MASTER!E27 -> Jh jked`".k dkyok | AY36: Science | BC36: Science
B37: izkIr fd;s A | K37: izkIr fd;s A | AS37: 12 | AT37: C | AU37: 300 | AV37: 150 | AW37: B | AX37: =[3]MASTER!E28 -> 0 | AY37: commerce | BC37: commerce
C39: =IF(A35="t.c."," ",VLOOKUP($F$9,'fees data'!$E$5:$V$800,16,0)) -> 200 | G39: gLrk{kj dk;kZy; izHkkjh | L39: =C39 -> 200 | P39: gLrk{kj dk;kZy; izHkkjh
G40: =G25 -> Jh eksgEen 'kjhQ | P40: =G40 -> Jh eksgEen 'kjhQ

Sheet STUDENT RECORD BY SD
A1: Class | B1: Section | C1: SRNO | D1: DOA | E1: Name | F1: Late Status | G1: FatherName | H1: MotherName | I1: Gender | J1: Dob | K1: ClassRollNo | L1: ExamRollNumber | M1: School Total Working Days | N1: Student Total Attendence | O1: Category | P1: Religion | Q1: Previous Year Marks | R1: Name Of School | S1: School UDise Code | T1: Aadhar No of Student | U1: Bhamashash Card | V1: Mobile No Student(Father/Mother/Guardian | W1: Student Permanent Address | X1: Annual Parental Income | Y1: CWSN Status | Z1: BPL Status | AA1: Minority Status | AB1: Age On Present(In Years) | AC1: Co-Curricular Activity | AD1: Distance From School
A2: 2 | B2: A | C2: 4858 | E2: RANI1 | G2: king1 | H2: queen1 | I2: F | J2: 2015-05-18 | O2: OBC | R2: GOVT. SENIOR SECONDARY SCHOOL ALNIYAWAS (219445) | S2: 8140200308 | V2: 9828120697 | W2: VP-ALNIYAWAS | Y2: N | Z2: Y | AB2: 6 | AD2: 1
A3: 2 | B3: A | C3: 4863 | E3: RANI2 | G3: king2 | H3: queen2 | I3: F | J3: 2015-04-05 | O3: OBC | R3: GOVT. SENIOR SECONDARY SCHOOL ALNIYAWAS (219445) | S3: 8140200308 | V3: 9828120698 | W3: VP-ALNIYAWAS | Y3: N | Z3: Y | AB3: 6 | AD3: 0
A4: 2 | B4: A | C4: 4860 | E4: RANI3 | G4: king3 | H4: queen3 | I4: M | J4: 2014-08-25 | O4: GEN | R4: GOVT. SENIOR SECONDARY SCHOOL ALNIYAWAS (219445) | S4: 8140200308 | V4: 9828120699 | W4: VP-ALNIYAWAS | Y4: N | Z4: Y | AB4: 7 | AD4: 1
A5: 2 | B5: A | C5: 4791 | D5: 2020-07-04 | E5: RANI4 | G5: king4 | H5: queen4 | I5: F | J5: 2015-04-09 | O5: SC | P5: Hindu | R5: GOVT. SENIOR SECONDARY SCHOOL ALNIYAWAS (219445) | S5: 8140200308 | V5: 9828120700 | W5: VP-ALNIYAWAS | X5: 25000 | Y5: N | Z5: N | AA5: No | AB5: 6 | AC5: None | AD5: 1
A6: 2 | B6: A | C6: 4864 | E6: RANI5 | G6: king5 | H6: queen5 | I6: M | J6: 2014-02-05 | O6: OBC | R6: GOVT. SENIOR SECONDARY SCHOOL ALNIYAWAS (219445) | S6: 8140200308 | V6: 9828120701 | W6: VP-ALNIYAWAS | Y6: N | Z6: Y | AB6: 7 | AD6: 0
A7: 2 | B7: A | C7: 4865 | E7: RANI6 | G7: king6 | H7: queen6 | I7: F | J7: 2015-06-16 | O7: OBC | R7: GOVT. SENIOR SECONDARY SCHOOL ALNIYAWAS (219445) | S7: 8140200308 | V7: 9828120702 | W7: VP-ALNIYAWAS | Y7: N | Z7: Y | AB7: 6 | AD7: 0
A8: 2 | B8: A | C8: 4795 | E8: RANI7 | G8: king7 | H8: queen7 | I8: F | J8: 2012-08-15 | O8: SBC | R8: GOVT. SENIOR SECONDARY SCHOOL ALNIYAWAS (219445) | S8: 8140200308 | V8: 9828120703 | W8: VP-ALNIYAWAS | Y8: N | Z8: Y | AB8: 9 | AD8: 1
A9: 2 | B9: A | C9: 4793 | D9: 2020-07-14 | E9: RANI8 | G9: king8 | H9: queen8 | I9: M | J9: 2013-11-26 | O9: OBC | P9: Muslim | R9: GOVT. SENIOR SECONDARY SCHOOL ALNIYAWAS (219445) | S9: 8140200308 | V9: 9828120704 | W9: VP-ALNIYAWAS | X9: 40000 | Y9: N | Z9: N | AA9: Yes | AB9: 8 | AC9: None | AD9: 0
A10: 2 | B10: A | C10: 4805 | E10: RANI9 | G10: king9 | H10: queen9 | I10: M | J10: 2014-06-07 | O10: OBC | R10: GOVT. SENIOR SECONDARY SCHOOL ALNIYAWAS (219445) | S10: 8140200308 | V10: 9828120705 | W10: VP-ALNIYAWAS | Y10: N | Z10: Y | AB10: 7 | AD10: 0
A11: 2 | B11: A | C11: 4790 | D11: 2020-07-04 | E11: RANI10 | G11: king10 | H11: queen10 | I11: M | J11: 2015-07-07 | O11: SC | P11: Hindu | R11: GOVT. SENIOR SECONDARY SCHOOL ALNIYAWAS (219445) | S11: 8140200308 | V11: 9828120706 | W11: VP-ALNIYAWAS | X11: 25000 | Y11: N | Z11: N | AA11: No | AB11: 6 | AC11: None | AD11: 1
A12: 2 | B12: A | C12: 4788 | D12: 2020-07-04 | E12: RANI11 | G12: king11 | H12: queen11 | I12: M | J12: 2014-07-26 | O12: SC | P12: Hindu | R12: GOVT. SENIOR SECONDARY SCHOOL ALNIYAWAS (219445) | S12: 8140200308 | T12: XXXX8724 | V12: 9828120707 | W12: VP-ALNIYAWAS | X12: 25000 | Y12: N | Z12: N | AA12: No | AB12: 7 | AC12: None | AD12: 1
A13: 2 | B13: A | C13: 4789 | D13: 2020-07-04 | E13: RANI12 | G13: king12 | H13: queen12 | I13: M | J13: 2015-05-02 | O13: OBC | P13: Hindu | R13: GOVT. SENIOR SECONDARY SCHOOL ALNIYAWAS (219445) | S13: 8140200308 | V13: 9828120708 | W13: VP-ALNIYAWAS | X13: 30000 | Y13: N | Z13: N | AA13: No | AB13: 6 | AC13: None | AD13: 1
A14: 2 | B14: A | C14: 4859 | E14: RANI13 | G14: king13 | H14: queen13 | I14: F | J14: 2015-01-30 | O14: OBC | R14: GOVT. SENIOR SECONDARY SCHOOL ALNIYAWAS (219445) | S14: 8140200308 | V14: 9828120709 | W14: VP-ALNIYAWAS | Y14: N | Z14: Y | AB14: 6 | AD14: 1
A15: 2 | B15: A | C15: 4794 | E15: RANI14 | G15: king14 | H15: queen14 | I15: M | J15: 2014-08-30 | O15: GEN | R15: GOVT. SENIOR SECONDARY SCHOOL ALNIYAWAS (219445) | S15: 8140200308 | V15: 9828120710 | W15: VP-ALNIYAWAS | Y15: N | Z15: Y | AB15: 7 | AD15: 1
A16: 2 | B16: A | C16: 4874 | E16: RANI15 | G16: king15 | H16: queen15 | I16: F | J16: 2015-10-08 | O16: OBC | R16: GOVT. SENIOR SECONDARY SCHOOL ALNIYAWAS (219445) | S16: 8140200308 | V16: 9828120711 | W16: VP-ALNIYAWAS | Y16: N | Z16: Y | AB16: 6 | AD16: 0
A17: 2 | B17: A | C17: 4862 | E17: RANI16 | G17: king16 | H17: queen16 | I17: F | J17: 2015-01-02 | O17: OBC | R17: GOVT. SENIOR SECONDARY SCHOOL ALNIYAWAS (219445) | S17: 8140200308 | V17: 9828120712 | W17: VP-ALNIYAWAS | Y17: N | Z17: Y | AB17: 6 | AD17: 0
A18: 2 | B18: A | C18: 4867 | E18: RANI17 | G18: king17 | H18: queen17 | I18: F | J18: 2015-09-15 | O18: OBC | R18: GOVT. SENIOR SECONDARY SCHOOL ALNIYAWAS (219445) | S18: 8140200308 | V18: 9828120713 | W18: VP-ALNIYAWAS | Y18: N | Z18: Y | AB18: 6 | AD18: 0
A19: 2 | B19: A | C19: 4869 | E19: RANI18 | G19: king18 | H19: queen18 | I19: F | J19: 2014-03-21 | O19: OBC | R19: GOVT. SENIOR SECONDARY SCHOOL ALNIYAWAS (219445) | S19: 8140200308 | V19: 9828120714 | W19: VP-ALNIYAWAS | Y19: N | Z19: Y | AB19: 7 | AD19: 0
A20: 2 | B20: A | C20: 4868 | E20: RANI19 | G20: king19 | H20: queen19 | I20: F | J20: 2012-12-07 | O20: OBC | R20: GOVT. SENIOR SECONDARY SCHOOL ALNIYAWAS (219445) | S20: 8140200308 | V20: 9828120715 | W20: VP-ALNIYAWAS | Y20: N | Z20: Y | AB20: 9 | AD20: 0
A21: 2 | B21: A | C21: 4803 | E21: RANI20 | G21: king20 | H21: queen20 | I21: M | J21: 2014-12-04 | O21: OBC | R21: GOVT. SENIOR SECONDARY SCHOOL ALNIYAWAS (219445) | S21: 8140200308 | V21: 9828120716 | W21: VP-ALNIYAWAS | Y21: N | Z21: Y | AB21: 7 | AD21: 1
A22: 2 | B22: A | C22: 4807 | E22: RANI21 | G22: king21 | H22: queen21 | I22: F | J22: 2013-07-02 | O22: OBC | R22: GOVT. SENIOR SECONDARY SCHOOL ALNIYAWAS (219445) | S22: 8140200308 | V22: 9828120717 | W22: VP-ALNIYAWAS | Y22: N | Z22: Y | AB22: 8 | AD22: 1
A23: 2 | B23: A | C23: 4870 | E23: RANI22 | G23: king22 | H23: queen22 | I23: F | J23: 2015-04-07 | O23: OBC | R23: GOVT. SENIOR SECONDARY SCHOOL ALNIYAWAS (219445) | S23: 8140200308 | V23: 9828120718 | W23: VP-ALNIYAWAS | Y23: N | Z23: Y | AB23: 6 | AD23: 0
A24: 2 | B24: A | C24: 4804 | E24: RANI23 | G24: king23 | H24: queen23 | I24: F | J24: 2015-01-30 | O24: OBC | R24: GOVT. SENIOR SECONDARY SCHOOL ALNIYAWAS (219445) | S24: 8140200308 | V24: 9828120719 | W24: VP-ALNIYAWAS | Y24: N | Z24: Y | AB24: 6 | AD24: 1
A25: 2 | B25: A | C25: 4806 | E25: RANI24 | G25: king24 | H25: queen24 | I25: M | J25: 2014-02-17 | O25: OBC | R25: GOVT. SENIOR SECONDARY SCHOOL ALNIYAWAS (219445) | S25: 8140200308 | V25: 9828120720 | W25: VP-ALNIYAWAS | Y25: N | Z25: Y | AB25: 7 | AD25: 0
A26: 2 | B26: A | C26: 4872 | E26: RANI25 | G26: king25 | H26: queen25 | I26: M | J26: 2014-11-29 | O26: OBC | R26: GOVT. SENIOR SECONDARY SCHOOL ALNIYAWAS (219445) | S26: 8140200308 | V26: 9828120721 | W26: VP-ALNIYAWAS | Y26: N | Z26: Y | AB26: 7 | AD26: 0
A27: 2 | B27: A | C27: 4861 | E27: RANI26 | G27: king26 | H27: queen26 | I27: F | J27: 2015-03-21 | O27: OBC | R27: GOVT. SENIOR SECONDARY SCHOOL ALNIYAWAS (219445) | S27: 8140200308 | V27: 9828120722 | W27: VP-ALNIYAWAS | Y27: N | Z27: Y | AB27: 6 | AD27: 1
A28: 3 | B28: A | C28: 4718 | D28: 2019-07-12 | E28: RANI27 | G28: king27 | H28: queen27 | I28: F | J28: 2014-02-07 | O28: OBC | P28: Muslim | R28: GOVT. SENIOR SECONDARY SCHOOL ALNIYAWAS (219445) | S28: 8140200308 | T28: XXXX0872 | U28: yswuiqb | V28: 9828120723 | W28: VP-ALNIYAWAS | X28: 50000 | Y28: N | Z28: N | AA28: Yes | AB28: 7 | AC28: None | AD28: 0
A29: 3 | B29: A | C29: 4729 | D29: 2019-07-13 | E29: RANI28 | G29: king28 | H29: queen28 | I29: M | J29: 2014-02-14 | O29: OBC | P29: Muslim | R29: GOVT. SENIOR SECONDARY SCHOOL ALNIYAWAS (219445) | S29: 8140200308 | T29: XXXX1543 | U29: vxozzoh | V29: 9828120724 | W29: VP-ALNIYAWAS | X29: 50000 | Y29: N | Z29: N | AA29: Yes | AB29: 7 | AC29: None | AD29: 0
A30: 3 | B30: A | C30: 4630 | D30: 2019-07-02 | E30: RANI29 | G30: king29 | H30: queen29 | I30: F | J30: 2014-04-22 | O30: OBC | P30: Muslim | R30: GOVT. SENIOR SECONDARY SCHOOL ALNIYAWAS (219445) | S30: 8140200308 | T30: XXXX2071 | V30: 9828120725 | W30: VP-ALNIYAWAS | X30: 60000 | Y30: N | Z30: N | AA30: Yes | AB30: 7 | AC30: None | AD30: 0
A31: 3 | B31: A | C31: 4676 | D31: 2019-07-08 | E31: RANI30 | G31: king30 | H31: queen30 | I31: F | J31: 2014-11-05 | O31: OBC | P31: Muslim | R31: GOVT. SENIOR SECONDARY SCHOOL ALNIYAWAS (219445) | S31: 8140200308 | V31: 9828120726 | W31: VP-ALNIYAWAS | X31: 60000 | Y31: N | Z31: N | AA31: Yes | AB31: 7 | AC31: None | AD31: 0
A32: 3 | B32: A | C32: 4710 | D32: 2019-07-11 | E32: RANI31 | G32: king31 | H32: queen31 | I32: F | J32: 2013-05-14 | O32: SC | P32: Hindu | R32: GOVT. SENIOR SECONDARY SCHOOL ALNIYAWAS (219445) | S32: 8140200308 | V32: 9828120727 | W32: VP-ALNIYAWAS | X32: 50000 | Y32: N | Z32: N | AA32: No | AB32: 8 | AC32: None | AD32: 1
A33: 3 | B33: A | C33: 4628 | D33: 2019-05-08 | E33: RANI32 | G33: king32 | H33: queen32 | I33: F | J33: 2014-04-26 | O33: OBC | P33: Hindu | R33: GOVT. SENIOR SECONDARY SCHOOL ALNIYAWAS (219445) | S33: 8140200308 | U33: vxkbntn | V33: 9828120728 | W33: VP-ALNIYAWAS | X33: 50000 | Y33: N | Z33: N | AA33: No | AB33: 7 | AC33: None | AD33: 0
A34: 3 | B34: A | C34: 4771 | D34: 2019-07-25 | E34: RANI33 | G34: king33 | H34: queen33 | I34: F | J34: 2013-10-15 | O34: OBC | P34: Hindu | R34: GOVT. SENIOR SECONDARY SCHOOL ALNIYAWAS (219445) | S34: 8140200308 | U34: vpxbpxh | V34: 9828120729 | W34: VP-ALNIYAWAS | X34: 60000 | Y34: N | Z34: N | AA34: No | AB34: 8 | AC34: None | AD34: 5
A35: 3 | B35: A | C35: 4728 | D35: 2019-07-13 | E35: RANI34 | G35: king34 | H35: queen34 | I35: M | J35: 2014-02-08 | O35: OBC | P35: Hindu | R35: GOVT. SENIOR SECONDARY SCHOOL ALNIYAWAS (219445) | S35: 8140200308 | T35: XXXX1233 | U35: ymuicow | V35: 9828120730 | W35: VP-ALNIYAWAS | X35: 50000 | Y35: N | Z35: N | AA35: No | AB35: 7 | AC35: None | AD35: 0
A36: 3 | B36: A | C36: 4695 | D36: 2019-07-10 | E36: RANI35 | G36: king35 | H36: queen35 | I36: M | J36: 2014-04-16 | O36: OBC | P36: Muslim | R36: GOVT. SENIOR SECONDARY SCHOOL ALNIYAWAS (219445) | S36: 8140200308 | V36: 9828120731 | W36: VP-ALNIYAWAS | X36: 60000 | Y36: N | Z36: N | AA36: Yes | AB36: 7 | AC36: None | AD36: 0
A37: 3 | B37: A | C37: 4627 | D37: 2019-05-08 | E37: RANI36 | G37: king36 | H37: queen36 | I37: F | J37: 2014-03-09 | O37: OBC | P37: Hindu | R37: GOVT. SENIOR SECONDARY SCHOOL ALNIYAWAS (219445) | S37: 8140200308 | V37: 9828120732 | W37: VP-ALNIYAWAS | X37: 60000 | Y37: N | Z37: N | AA37: No | AB37: 7 | AC37: None | AD37: 0
A38: 3 | B38: A | C38: 4711 | D38: 2019-07-11 | E38: RANI37 | G38: king37 | H38: queen37 | I38: F | J38: 2012-05-14 | O38: SC | P38: Hindu | R38: GOVT. SENIOR SECONDARY SCHOOL ALNIYAWAS (219445) | S38: 8140200308 | V38: 9828120733 | W38: VP-ALNIYAWAS | X38: 200000 | Y38: N | Z38: N | AA38: No | AB38: 9 | AC38: None | AD38: 1
A39: 3 | B39: A | C39: 4787 | E39: RANI38 | G39: king38 | H39: queen38 | I39: F | J39: 2012-12-03 | O39: SC | R39: GOVT. SENIOR SECONDARY SCHOOL ALNIYAWAS (219445) | S39: 8140200308 | V39: 9828120734 | W39: VP-ALNIYAWAS | Y39: N | Z39: Y | AB39: 9 | AD39: 1
A40: 3 | B40: A | C40: 4642 | D40: 2019-07-04 | E40: RANI39 | G40: king39 | H40: queen39 | I40: F | J40: 2015-01-01 | O40: OBC | P40: Muslim | R40: GOVT. SENIOR SECONDARY SCHOOL ALNIYAWAS (219445) | S40: 8140200308 | U40: vvxsxhr | V40: 9828120735 | W40: VP-ALNIYAWAS | X40: 60000 | Y40: N | Z40: N | AA40: Yes | AB40: 6 | AC40: None | AD40: 0
A41: 3 | B41: A | C41: 4738 | D41: 2019-07-15 | E41: RANI40 | G41: king40 | H41: queen40 | I41: F | J41: 2013-05-05 | O41: SC | P41: Hindu | R41: GOVT. SENIOR SECONDARY SCHOOL ALNIYAWAS (219445) | S41: 8140200308 | U41: yobayib | V41: 9828120736 | W41: VP-ALNIYAWAS | X41: 50000 | Y41: N | Z41: N | AA41: No | AB41: 8 | AC41: None | AD41: 0
A42: 3 | B42: A | C42: 4690 | D42: 2019-07-09 | E42: RANI41 | G42: king41 | H42: queen41 | I42: M | J42: 2014-01-21 | O42: SC | P42: Hindu | R42: GOVT. SENIOR SECONDARY SCHOOL ALNIYAWAS (219445) | S42: 8140200308 | V42: 9828120737 | W42: VP-ALNIYAWAS | X42: 60000 | Y42: N | Z42: N | AA42: No | AB42: 7 | AC42: None | AD42: 0
A43: 3 | B43: A | C43: 4873 | E43: RANI42 | G43: king42 | H43: queen42 | I43: M | J43: 2014-09-25 | O43: OBC | R43: GOVT. SENIOR SECONDARY SCHOOL ALNIYAWAS (219445) | S43: 8140200308 | V43: 9828120738 | W43: VP-ALNIYAWAS | Y43: N | Z43: Y | AB43: 7 | AD43: 1
A44: 3 | B44: A | C44: 4626 | D44: 2019-05-08 | E44: RANI43 | G44: king43 | H44: queen43 | I44: F | J44: 2014-02-01 | O44: OBC | P44: Muslim | R44: GOVT. SENIOR SECONDARY SCHOOL ALNIYAWAS (219445) | S44: 8140200308 | T44: XXXX4865 | V44: 9828120739 | W44: VP-ALNIYAWAS | X44: 60000 | Y44: N | Z44: N | AA44: Yes | AB44: 7 | AC44: None | AD44: 0
A45: 3 | B45: A | C45: 4698 | D45: 2019-07-10 | E45: RANI44 | G45: king44 | H45: queen44 | I45: M | J45: 2012-07-09 | O45: OBC | P45: Muslim | R45: GOVT. SENIOR SECONDARY SCHOOL ALNIYAWAS (219445) | S45: 8140200308 | V45: 9828120740 | W45: VP-ALNIYAWAS | X45: 50000 | Y45: N | Z45: N | AA45: Yes | AB45: 9 | AC45: None | AD45: 1
A46: 3 | B46: A | C46: 4633 | D46: 2019-07-03 | E46: RANI45 | G46: king45 | H46: queen45 | I46: F | J46: 2012-11-02 | O46: GEN | P46: Muslim | R46: GOVT. SENIOR SECONDARY SCHOOL ALNIYAWAS (219445) | S46: 8140200308 | T46: XXXX0826 | U46: tmsuucc | V46: 9828120741 | W46: VP-ALNIYAWAS | X46: 60000 | Y46: N | Z46: N | AA46: Yes | AB46: 9 | AC46: None | AD46: 0
A47: 3 | B47: A | C47: 4780 | D47: 2019-08-03 | E47: RANI46 | G47: king46 | H47: queen46 | I47: F | J47: 2014-06-23 | O47: OBC | P47: Muslim | R47: GOVT. SENIOR SECONDARY SCHOOL ALNIYAWAS (219445) | S47: 8140200308 | U47: ysqcywo | V47: 9828120742 | W47: VP-ALNIYAWAS | X47: 60000 | Y47: N | Z47: N | AA47: Yes | AB47: 7 | AC47: None | AD47: 0
A48: 4 | B48: A | C48: 4522 | D48: 2018-07-07 | E48: RANI47 | G48: king47 | H48: queen47 | I48: F | J48: 2012-12-31 | O48: OBC | P48: Muslim | R48: GOVT. SENIOR SECONDARY SCHOOL ALNIYAWAS (219445) | S48: 8140200308 | T48: XXXX8462 | U48: VXKBNTN | V48: 9828120743 | W48: VP-ALNIYAWAS | X48: 40000 | Y48: N | Z48: N | AA48: Yes | AB48: 9 | AC48: None | AD48: 1
A49: 4 | B49: A | C49: 4582 | D49: 2018-07-18 | E49: RANI48 | G49: king48 | H49: queen48 | I49: F | J49: 2012-12-07 | O49: OBC | P49: Muslim | R49: GOVT. SENIOR SECONDARY SCHOOL ALNIYAWAS (219445) | S49: 8140200308 | V49: 9828120744 | W49: VP-ALNIYAWAS | X49: 40000 | Y49: N | Z49: N | AA49: Yes | AB49: 9 | AC49: None | AD49: 0
A50: 4 | B50: A | C50: 4620 | D50: 2018-09-24 | E50: RANI49 | G50: king49 | H50: queen49 | I50: M | J50: 2012-02-04 | O50: OBC | P50: Muslim | R50: GOVT. SENIOR SECONDARY SCHOOL ALNIYAWAS (219445) | S50: 8140200308 | T50: XXXX0705 | U50: YQQGUEG | V50: 9828120745 | W50: VP-ALNIYAWAS | X50: 40000 | Y50: N | Z50: N | AA50: Yes | AB50: 9 | AC50: None | AD50: 0
A51: 4 | B51: A | C51: 4581 | D51: 2018-07-18 | E51: RANI50 | G51: king50 | H51: queen50 | I51: M | J51: 2012-04-15 | O51: OBC | P51: Hindu | R51: GOVT. SENIOR SECONDARY SCHOOL ALNIYAWAS (219445) | S51: 8140200308 | T51: XXXX0449 | U51: VPWJVGR | V51: 9828120746 | W51: VP-ALNIYAWAS | X51: 36000 | Y51: N | Z51: N | AA51: No | AB51: 9 | AC51: None | AD51: 1
A52: 4 | B52: A | C52: 4855 | E52: RANI51 | G52: king51 | H52: queen51 | I52: F | J52: 2012-10-10 | O52: SBC | R52: GOVT. SENIOR SECONDARY SCHOOL ALNIYAWAS (219445) | S52: 8140200308 | V52: 9828120747 | W52: VP-ALNIYAWAS | Y52: N | Z52: Y | AB52: 9 | AD52: 1
A53: 4 | B53: A | C53: 4526 | D53: 2018-07-07 | E53: RANI52 | G53: king52 | H53: queen52 | I53: F | J53: 2012-12-11 | O53: OBC | P53: Muslim | R53: GOVT. SENIOR SECONDARY SCHOOL ALNIYAWAS (219445) | S53: 8140200308 | T53: XXXX8261 | V53: 9828120748 | W53: VP-ALNIYAWAS | X53: 40000 | Y53: N | Z53: N | AA53: Yes | AB53: 9 | AC53: None | AD53: 0
A54: 4 | B54: A | C54: 4610 | D54: 2018-08-02 | E54: RANI53 | G54: king53 | H54: queen53 | I54: F | J54: 2013-06-28 | O54: OBC | P54: Muslim | R54: GOVT. SENIOR SECONDARY SCHOOL ALNIYAWAS (219445) | S54: 8140200308 | T54: XXXX7614 | V54: 9828120749 | W54: VP-ALNIYAWAS | X54: 40000 | Y54: N | Z54: N | AA54: Yes | AB54: 8 | AC54: None | AD54: 0
A55: 4 | B55: A | C55: 4591 | D55: 2018-07-21 | E55: RANI54 | G55: king54 | H55: queen54 | I55: F | J55: 2013-02-21 | O55: OBC | P55: Muslim | R55: GOVT. SENIOR SECONDARY SCHOOL ALNIYAWAS (219445) | S55: 8140200308 | V55: 9828120750 | W55: VP-ALNIYAWAS | X55: 40000 | Y55: N | Z55: N | AA55: Yes | AB55: 8 | AC55: None | AD55: 0
A56: 4 | B56: A | C56: 4520 | D56: 2018-07-07 | E56: RANI55 | G56: king55 | H56: queen55 | I56: F | J56: 2013-10-01 | O56: OBC | P56: Muslim | R56: GOVT. SENIOR SECONDARY SCHOOL ALNIYAWAS (219445) | S56: 8140200308 | T56: XXXX9420 | U56: VONSWJT | V56: 9828120751 | W56: VP-ALNIYAWAS | X56: 40000 | Y56: N | Z56: N | AA56: Yes | AB56: 8 | AC56: None | AD56: 0
A57: 4 | B57: A | C57: 4480 | D57: 2018-07-04 | E57: RANI56 | G57: king56 | H57: queen56 | I57: F | J57: 2012-11-03 | O57: SC | P57: Hindu | R57: GOVT. SENIOR SECONDARY SCHOOL ALNIYAWAS (219445) | S57: 8140200308 | V57: 9828120752 | W57: VP-ALNIYAWAS | X57: 40000 | Y57: N | Z57: N | AA57: No | AB57: 9 | AC57: None | AD57: 1
A58: 4 | B58: A | C58: 4856 | E58: RANI57 | G58: king57 | H58: queen57 | I58: M | J58: 2010-07-03 | O58: GEN | R58: GOVT. SENIOR SECONDARY SCHOOL ALNIYAWAS (219445) | S58: 8140200308 | V58: 9828120753 | W58: VP-ALNIYAWAS | Y58: N | Z58: Y | AB58: 11 | AD58: 1
A59: 4 | B59: A | C59: 4499 | D59: 2018-07-05 | E59: RANI58 | G59: king58 | H59: queen58 | I59: M | J59: 2010-12-11 | O59: OBC | P59: Muslim | R59: GOVT. SENIOR SECONDARY SCHOOL ALNIYAWAS (219445) | S59: 8140200308 | T59: XXXX0260 | V59: 9828120754 | W59: VP-ALNIYAWAS | X59: 40000 | Y59: N | Z59: N | AA59: Yes | AB59: 11 | AC59: None | AD59: 1
A60: 4 | B60: A | C60: 4622 | D60: 2018-09-24 | E60: RANI59 | G60: king59 | H60: queen59 | I60: M | J60: 2012-01-07 | O60: OBC | P60: Muslim | R60: GOVT. SENIOR SECONDARY SCHOOL ALNIYAWAS (219445) | S60: 8140200308 | T60: XXXX9555 | U60: yqqmbcw | V60: 9828120755 | W60: VP-ALNIYAWAS | X60: 36000 | Y60: N | Z60: N | AA60: Yes | AB60: 9 | AC60: None | AD60: 0
A61: 4 | B61: A | C61: 4537 | D61: 2018-07-10 | E61: RANI60 | G61: king60 | H61: queen60 | I61: M | J61: 2013-06-14 | O61: OBC | P61: Hindu | R61: GOVT. SENIOR SECONDARY SCHOOL ALNIYAWAS (219445) | S61: 8140200308 | T61: XXXX6106 | V61: 9828120756 | W61: VP-ALNIYAWAS | X61: 36000 | Y61: N | Z61: N | AA61: No | AB61: 8 | AC61: None | AD61: 1
A62: 4 | B62: A | C62: 4565 | D62: 2018-07-14 | E62: RANI61 | G62: king61 | H62: queen61 | I62: M | J62: 2012-09-28 | O62: SC | P62: Hindu | R62: GOVT. SENIOR SECONDARY SCHOOL ALNIYAWAS (219445) | S62: 8140200308 | V62: 9828120757 | W62: VP-ALNIYAWAS | X62: 36000 | Y62: N | Z62: N | AA62: No | AB62: 9 | AC62: None | AD62: 1
A63: 4 | B63: A | C63: 4474 | D63: 2018-07-04 | E63: RANI62 | G63: king62 | H63: queen62 | I63: F | J63: 2013-04-26 | O63: OBC | P63: Muslim | R63: GOVT. SENIOR SECONDARY SCHOOL ALNIYAWAS (219445) | S63: 8140200308 | T63: XXXX2246 | V63: 9828120758 | W63: VP-ALNIYAWAS | X63: 30000 | Y63: N | Z63: N | AA63: Yes | AB63: 8 | AC63: None | AD63: 0
A64: 4 | B64: A | C64: 4478 | D64: 2018-07-04 | E64: RANI63 | G64: king63 | H64: queen63 | I64: F | J64: 2012-09-06 | O64: OBC | P64: Hindu | R64: GOVT. SENIOR SECONDARY SCHOOL ALNIYAWAS (219445) | S64: 8140200308 | T64: XXXX0646 | U64: vxkbntn | V64: 9828120759 | W64: VP-ALNIYAWAS | X64: 50000 | Y64: N | Z64: N | AA64: No | AB64: 9 | AC64: None | AD64: 0
A65: 4 | B65: A | C65: 4727 | D65: 2019-07-13 | E65: RANI64 | G65: king64 | H65: queen64 | I65: F | J65: 2013-01-07 | O65: OBC | P65: Hindu | R65: GOVT. SENIOR SECONDARY SCHOOL ALNIYAWAS (219445) | S65: 8140200308 | V65: 9828120760 | W65: VP-ALNIYAWAS | X65: 60000 | Y65: N | Z65: N | AA65: No | AB65: 8 | AC65: None | AD65: 0
A66: 4 | B66: A | C66: 4601 | D66: 2018-07-26 | E66: RANI65 | G66: king65 | H66: queen65 | I66: F | J66: 2012-06-05 | O66: OBC | P66: Hindu | R66: GOVT. SENIOR SECONDARY SCHOOL ALNIYAWAS (219445) | S66: 8140200308 | V66: 9828120761 | W66: VP-ALNIYAWAS | X66: 36000 | Y66: N | Z66: N | AA66: No | AB66: 9 | AC66: None | AD66: 0
A67: 4 | B67: A | C67: 4521 | D67: 2018-07-07 | E67: RANI66 | G67: king66 | H67: queen66 | I67: M | J67: 2013-05-29 | O67: OBC | P67: Muslim | R67: GOVT. SENIOR SECONDARY SCHOOL ALNIYAWAS (219445) | S67: 8140200308 | T67: XXXX1195 | U67: YQGYEBS | V67: 9828120762 | W67: VP-ALNIYAWAS | X67: 40000 | Y67: N | Z67: N | AA67: Yes | AB67: 8 | AC67: None | AD67: 0
A68: 4 | B68: A | C68: 4473 | D68: 2018-07-04 | E68: RANI67 | G68: king67 | H68: queen67 | I68: M | J68: 2012-01-01 | O68: OBC | P68: Muslim | R68: GOVT. SENIOR SECONDARY SCHOOL ALNIYAWAS (219445) | S68: 8140200308 | U68: VWSPONV | V68: 9828120763 | W68: VP-ALNIYAWAS | X68: 40000 | Y68: N | Z68: N | AA68: Yes | AB68: 9 | AC68: None | AD68: 1
A69: 4 | B69: A | C69: 4475 | D69: 2018-07-04 | E69: RANI68 | G69: king68 | H69: queen68 | I69: F | J69: 2012-11-10 | O69: OBC | P69: Muslim | R69: GOVT. SENIOR SECONDARY SCHOOL ALNIYAWAS (219445) | S69: 8140200308 | V69: 9828120764 | W69: VP-ALNIYAWAS | X69: 40000 | Y69: N | Z69: N | AA69: Yes | AB69: 9 | AC69: None | AD69: 0
A70: 4 | B70: A | C70: 4611 | D70: 2018-08-07 | E70: RANI69 | G70: king69 | H70: queen69 | I70: F | J70: 2012-07-07 | O70: OBC | P70: Muslim | R70: GOVT. SENIOR SECONDARY SCHOOL ALNIYAWAS (219445) | S70: 8140200308 | T70: XXXX3442 | U70: YMKQMYO | V70: 9828120765 | W70: VP-ALNIYAWAS | X70: 40000 | Y70: N | Z70: N | AA70: Yes | AB70: 9 | AC70: None | AD70: 0
A71: 4 | B71: A | C71: 4694 | D71: 2019-07-10 | E71: RANI70 | G71: king70 | H71: queen70 | I71: M | J71: 2010-06-07 | O71: OBC | P71: Muslim | R71: GOVT. SENIOR SECONDARY SCHOOL ALNIYAWAS (219445) | S71: 8140200308 | V71: 9828120766 | W71: VP-ALNIYAWAS | X71: 60000 | Y71: N | Z71: N | AA71: Yes | AB71: 11 | AC71: None | AD71: 0
A72: 4 | B72: A | C72: 4527 | D72: 2018-07-07 | E72: RANI71 | G72: king71 | H72: queen71 | I72: M | J72: 2013-06-28 | O72: OBC | P72: Muslim | R72: GOVT. SENIOR SECONDARY SCHOOL ALNIYAWAS (219445) | S72: 8140200308 | U72: VPGZNOJ | V72: 9828120767 | W72: VP-ALNIYAWAS | X72: 40000 | Y72: N | Z72: N | AA72: Yes | AB72: 8 | AC72: None | AD72: 0
A73: 4 | B73: A | C73: 4538 | D73: 2018-07-10 | E73: RANI72 | G73: king72 | H73: queen72 | I73: M | J73: 2013-01-01 | O73: OBC | P73: Hindu | R73: GOVT. SENIOR SECONDARY SCHOOL ALNIYAWAS (219445) | S73: 8140200308 | T73: XXXX4404 | V73: 9828120768 | W73: VP-ALNIYAWAS | X73: 40000 | Y73: N | Z73: N | AA73: No | AB73: 8 | AC73: None | AD73: 2
A74: 4 | B74: A | C74: 4497 | D74: 2018-07-05 | E74: RANI73 | G74: king73 | H74: queen73 | I74: F | J74: 2012-05-07 | O74: SC | P74: Muslim | R74: GOVT. SENIOR SECONDARY SCHOOL ALNIYAWAS (219445) | S74: 8140200308 | T74: XXXX3195 | U74: VBGRPSH | V74: 9828120769 | W74: VP-ALNIYAWAS | X74: 36000 | Y74: N | Z74: N | AA74: Yes | AB74: 9 | AC74: None | AD74: 1
A75: 4 | B75: A | C75: 4700 | D75: 2019-07-10 | E75: RANI74 | G75: king74 | H75: queen74 | I75: M | J75: 2012-05-08 | O75: SC | P75: Hindu | R75: GOVT. SENIOR SECONDARY SCHOOL ALNIYAWAS (219445) | S75: 8140200308 | V75: 9828120770 | W75: VP-ALNIYAWAS | X75: 60000 | Y75: N | Z75: N | AA75: No | AB75: 9 | AC75: None | AD75: 0
A76: 4 | B76: A | C76: 4691 | D76: 2019-07-09 | E76: RANI75 | G76: king75 | H76: queen75 | I76: F | J76: 2013-01-21 | O76: SC | P76: Hindu | R76: GOVT. SENIOR SECONDARY SCHOOL ALNIYAWAS (219445) | S76: 8140200308 | V76: 9828120771 | W76: VP-ALNIYAWAS | X76: 60000 | Y76: N | Z76: N | AA76: No | AB76: 8 | AC76: None | AD76: 1
A77: 4 | B77: A | C77: 4621 | D77: 2018-09-24 | E77: RANI76 | G77: king76 | H77: queen76 | I77: F | J77: 2012-03-02 | O77: OBC | P77: Muslim | R77: GOVT. SENIOR SECONDARY SCHOOL ALNIYAWAS (219445) | S77: 8140200308 | U77: YIEUBQF | V77: 9828120772 | W77: VP-ALNIYAWAS | X77: 40000 | Y77: N | Z77: N | AA77: Yes | AB77: 9 | AC77: None | AD77: 0
A78: 4 | B78: A | C78: 4750 | D78: 2019-07-17 | E78: RANI77 | G78: king77 | H78: queen77 | I78: M | J78: 2011-11-07 | O78: SC | P78: Hindu | R78: GOVT. SENIOR SECONDARY SCHOOL ALNIYAWAS (219445) | S78: 8140200308 | T78: XXXX9540 | V78: 9828120773 | W78: VP-ALNIYAWAS | X78: 60000 | Y78: N | Z78: N | AA78: No | AB78: 10 | AC78: None | AD78: 0
A79: 4 | B79: A | C79: 4477 | D79: 2018-07-04 | E79: RANI78 | G79: king78 | H79: queen78 | I79: M | J79: 2012-11-15 | O79: SC | P79: Hindu | R79: GOVT. SENIOR SECONDARY SCHOOL ALNIYAWAS (219445) | S79: 8140200308 | T79: XXXX5557 | U79: YBCQKQK | V79: 9828120774 | W79: VP-ALNIYAWAS | X79: 40000 | Y79: N | Z79: N | AA79: No | AB79: 9 | AC79: None | AD79: 1
A80: 5 | B80: A | C80: 4367 | D80: 2017-07-10 | E80: RANI79 | G80: king79 | H80: queen79 | I80: F | J80: 2012-04-09 | O80: OBC | P80: Muslim | R80: GOVT. SENIOR SECONDARY SCHOOL ALNIYAWAS (219445) | S80: 8140200308 | T80: XXXX4827 | V80: 9828120775 | W80: VP-ALNIYAWAS | X80: 35000 | Y80: N | Z80: N | AA80: Yes | AB80: 9 | AC80: None | AD80: 1
A81: 5 | B81: A | C81: 4277 | D81: 2017-06-29 | E81: RANI80 | G81: king80 | H81: queen80 | I81: F | J81: 2010-12-08 | O81: OBC | R81: GOVT. SENIOR SECONDARY SCHOOL ALNIYAWAS (219445) | S81: 8140200308 | T81: XXXX3992 | V81: 9828120776 | W81: VP-ALNIYAWAS | X81: 48000 | Y81: N | Z81: N | AB81: 11 | AC81: None | AD81: 1
A82: 5 | B82: A | C82: 4370 | D82: 2017-07-10 | E82: RANI81 | G82: king81 | H82: queen81 | I82: M | J82: 2011-06-03 | O82: OBC | P82: Muslim | R82: GOVT. SENIOR SECONDARY SCHOOL ALNIYAWAS (219445) | S82: 8140200308 | T82: XXXX8044 | V82: 9828120777 | W82: VP-ALNIYAWAS | X82: 40000 | Y82: N | Z82: N | AA82: Yes | AB82: 10 | AC82: None | AD82: 1
A83: 5 | B83: A | C83: 4673 | D83: 2019-07-08 | E83: RANI82 | G83: king82 | H83: queen82 | I83: M | J83: 2010-05-06 | O83: OBC | P83: Muslim | R83: GOVT. SENIOR SECONDARY SCHOOL ALNIYAWAS (219445) | S83: 8140200308 | T83: XXXX7051 | U83: ymwegoc | V83: 9828120778 | W83: VP-ALNIYAWAS | X83: 60000 | Y83: Y | Z83: N | AA83: Yes | AB83: 11 | AC83: None | AD83: 0
A84: 5 | B84: A | C84: 4431 | D84: 2017-08-25 | E84: RANI83 | G84: king83 | H84: queen83 | I84: F | J84: 2012-08-03 | O84: OBC | P84: Muslim | R84: GOVT. SENIOR SECONDARY SCHOOL ALNIYAWAS (219445) | S84: 8140200308 | T84: XXXX1922 | V84: 9828120779 | W84: VP-ALNIYAWAS | X84: 30000 | Y84: N | Z84: N | AA84: Yes | AB84: 9 | AC84: None | AD84: 1
A85: 5 | B85: A | C85: 4433 | D85: 2017-08-25 | E85: RANI84 | G85: king84 | H85: queen84 | I85: M | J85: 2012-03-04 | O85: OBC | P85: Hindu | R85: GOVT. SENIOR SECONDARY SCHOOL ALNIYAWAS (219445) | S85: 8140200308 | V85: 9828120780 | W85: VP-ALNIYAWAS | X85: 50000 | Y85: N | Z85: N | AA85: No | AB85: 9 | AC85: None | AD85: 1
A86: 5 | B86: A | C86: 4337 | D86: 2017-07-04 | E86: RANI85 | G86: king85 | H86: queen85 | I86: F | J86: 2010-07-10 | O86: OBC | P86: Muslim | R86: GOVT. SENIOR SECONDARY SCHOOL ALNIYAWAS (219445) | S86: 8140200308 | T86: XXXX5784 | V86: 9828120781 | W86: VP-ALNIYAWAS | X86: 0 | Y86: N | Z86: N | AA86: Yes | AB86: 11 | AC86: None | AD86: 1
A87: 5 | B87: A | C87: 4438 | D87: 2017-09-05 | E87: RANI86 | G87: king86 | H87: queen86 | I87: M | J87: 2007-01-01 | O87: SC | P87: Hindu | R87: GOVT. SENIOR SECONDARY SCHOOL ALNIYAWAS (219445) | S87: 8140200308 | T87: XXXX1370 | V87: 9828120782 | W87: VP-ALNIYAWAS | X87: 0 | Y87: N | Z87: N | AA87: No | AB87: 14 | AC87: None | AD87: 1
A88: 5 | B88: A | C88: 4500 | D88: 2018-07-05 | E88: RANI87 | G88: king87 | H88: queen87 | I88: F | J88: 2011-04-04 | O88: OBC | P88: Hindu | R88: GOVT. SENIOR SECONDARY SCHOOL ALNIYAWAS (219445) | S88: 8140200308 | T88: XXXX5702 | V88: 9828120783 | W88: VP-ALNIYAWAS | X88: 40000 | Y88: N | Z88: N | AA88: No | AB88: 10 | AC88: None | AD88: 3
A89: 5 | B89: A | C89: 4439 | D89: 2017-11-28 | E89: RANI88 | G89: king88 | H89: queen88 | I89: F | J89: 2011-07-07 | O89: SC | P89: Hindu | R89: GOVT. SENIOR SECONDARY SCHOOL ALNIYAWAS (219445) | S89: 8140200308 | T89: XXXX4151 | V89: 9828120784 | W89: VP-ALNIYAWAS | X89: 400000 | Y89: N | Z89: N | AA89: No | AB89: 10 | AC89: None | AD89: 1
A90: 5 | B90: A | C90: 4368 | D90: 2017-07-10 | E90: RANI89 | G90: king89 | H90: queen89 | I90: F | J90: 2012-05-03 | O90: OBC | P90: Muslim | R90: GOVT. SENIOR SECONDARY SCHOOL ALNIYAWAS (219445) | S90: 8140200308 | T90: XXXX4896 | V90: 9828120785 | W90: VP-ALNIYAWAS | X90: 35000 | Y90: Y | Z90: N | AA90: Yes | AB90: 9 | AC90: None | AD90: 1
A91: 5 | B91: A | C91: 4335 | D91: 2017-07-04 | E91: RANI90 | G91: king90 | H91: queen90 | I91: F | J91: 2008-01-15 | O91: OBC | P91: Muslim | R91: GOVT. SENIOR SECONDARY SCHOOL ALNIYAWAS (219445) | S91: 8140200308 | V91: 9828120786 | W91: VP-ALNIYAWAS | X91: 0 | Y91: N | Z91: N | AA91: Yes | AB91: 13 | AC91: None | AD91: 1
A92: 5 | B92: A | C92: 4333 | D92: 2017-07-04 | E92: RANI91 | G92: king91 | H92: queen91 | I92: F | J92: 2012-05-15 | O92: OBC | P92: Hindu | R92: GOVT. SENIOR SECONDARY SCHOOL ALNIYAWAS (219445) | S92: 8140200308 | V92: 9828120787 | W92: VP-ALNIYAWAS | X92: 0 | Y92: N | Z92: N | AA92: No | AB92: 9 | AC92: None | AD92: 1
A93: 5 | B93: A | C93: 4371 | D93: 2017-07-10 | E93: RANI92 | G93: king92 | H93: queen92 | I93: F | J93: 2011-05-02 | O93: OBC | P93: Hindu | R93: GOVT. SENIOR SECONDARY SCHOOL ALNIYAWAS (219445) | S93: 8140200308 | T93: XXXX3157 | V93: 9828120788 | W93: VP-ALNIYAWAS | X93: 35000 | Y93: N | Z93: N | AA93: No | AB93: 10 | AC93: None | AD93: 1
A94: 5 | B94: A | C94: 4857 | E94: RANI93 | G94: king93 | H94: queen93 | I94: F | J94: 2013-01-01 | O94: OBC | R94: GOVT. SENIOR SECONDARY SCHOOL ALNIYAWAS (219445) | S94: 8140200308 | V94: 9828120789 | W94: VP-ALNIYAWAS | Y94: N | Z94: Y | AB94: 8 | AD94: 1
A95: 5 | B95: A | C95: 4283 | D95: 2017-06-29 | E95: RANI94 | G95: king94 | H95: queen94 | I95: F | J95: 2012-07-09 | O95: OBC | P95: Hindu | R95: GOVT. SENIOR SECONDARY SCHOOL ALNIYAWAS (219445) | S95: 8140200308 | T95: XXXX9015 | V95: 9828120790 | W95: VP-ALNIYAWAS | X95: 48000 | Y95: N | Z95: N | AA95: No | AB95: 9 | AC95: None | AD95: 1
A96: 5 | B96: A | C96: 4326 | D96: 2017-07-04 | E96: RANI95 | G96: king95 | H96: queen95 | I96: M | J96: 2012-06-10 | O96: OBC | R96: GOVT. SENIOR SECONDARY SCHOOL ALNIYAWAS (219445) | S96: 8140200308 | T96: XXXX7339 | V96: 9828120791 | W96: VP-ALNIYAWAS | X96: 0 | Y96: N | Z96: N | AB96: 9 | AC96: None | AD96: 1
A97: 5 | B97: A | C97: 4699 | D97: 2019-07-10 | E97: RANI96 | G97: king96 | H97: queen96 | I97: M | J97: 2010-07-07 | O97: SC | P97: Hindu | R97: GOVT. SENIOR SECONDARY SCHOOL ALNIYAWAS (219445) | S97: 8140200308 | V97: 9828120792 | W97: VP-ALNIYAWAS | X97: 60000 | Y97: N | Z97: N | AA97: No | AB97: 11 | AC97: None | AD97: 0
A98: 5 | B98: A | C98: 4336 | D98: 2017-07-04 | E98: RANI97 | G98: king97 | H98: queen97 | I98: F | J98: 2009-03-10 | O98: OBC | P98: Muslim | R98: GOVT. SENIOR SECONDARY SCHOOL ALNIYAWAS (219445) | S98: 8140200308 | T98: XXXX0687 | V98: 9828120793 | W98: VP-ALNIYAWAS | X98: 0 | Y98: N | Z98: N | AA98: Yes | AB98: 12 | AC98: None | AD98: 1
A99: 5 | B99: A | C99: 4276 | D99: 1900-05-29 | E99: RANI98 | G99: king98 | H99: queen98 | I99: M | J99: 2012-02-15 | O99: SC | P99: Hindu | R99: GOVT. SENIOR SECONDARY SCHOOL ALNIYAWAS (219445) | S99: 8140200308 | T99: XXXX3171 | V99: 9828120794 | W99: VP-ALNIYAWAS | X99: 35000 | Y99: N | Z99: N | AA99: No | AB99: 9 | AC99: None | AD99: 1
A100: 5 | B100: A | C100: 4324 | D100: 2017-07-04 | E100: RANI99 | G100: king99 | H100: queen99 | I100: F | J100: 2011-06-02 | O100: OBC | P100: Muslim | R100: GOVT. SENIOR SECONDARY SCHOOL ALNIYAWAS (219445) | S100: 8140200308 | T100: XXXX7296 | V100: 9828120795 | W100: VP-ALNIYAWAS | X100: 0 | Y100: N | Z100: N | AA100: Yes | AB100: 10 | AC100: None | AD100: 1
A101: 5 | B101: A | C101: 4339 | D101: 2017-07-04 | E101: RANI100 | G101: king100 | H101: queen100 | I101: M | J101: 2010-07-15 | O101: OBC | P101: Muslim | R101: GOVT. SENIOR SECONDARY SCHOOL ALNIYAWAS (219445) | S101: 8140200308 | T101: XXXX0709 | V101: 9828120796 | W101: VP-ALNIYAWAS | X101: 35000 | Y101: N | Z101: N | AA101: Yes | AB101: 11 | AC101: None | AD101: 1
A102: 5 | B102: A | C102: 4325 | D102: 2017-07-04 | E102: RANI101 | G102: king101 | H102: queen101 | I102: F | J102: 2011-06-15 | O102: OBC | P102: Hindu | R102: GOVT. SENIOR SECONDARY SCHOOL ALNIYAWAS (219445) | S102: 8140200308 | T102: XXXX5554 | V102: 9828120797 | W102: VP-ALNIYAWAS | X102: 0 | Y102: N | Z102: N | AA102: No | AB102: 10 | AC102: None | AD102: 1
A103: 5 | B103: A | C103: 4435 | D103: 2017-08-25 | E103: RANI102 | G103: king102 | H103: queen102 | I103: F | J103: 2011-01-03 | O103: OBC | P103: Muslim | R103: GOVT. SENIOR SECONDARY SCHOOL ALNIYAWAS (219445) | S103: 8140200308 | T103: XXXX3683 | V103: 9828120798 | W103: VP-ALNIYAWAS | X103: 0 | Y103: N | Z103: N | AA103: Yes | AB103: 10 | AC103: None | AD103: 1
A104: 5 | B104: A | C104: 4419 | D104: 2017-07-18 | E104: RANI103 | G104: king103 | H104: queen103 | I104: M | J104: 2011-05-07 | O104: OBC | P104: Muslim | R104: GOVT. SENIOR SECONDARY SCHOOL ALNIYAWAS (219445) | S104: 8140200308 | V104: 9828120799 | W104: VP-ALNIYAWAS | X104: 35000 | Y104: N | Z104: N | AA104: Yes | AB104: 10 | AC104: None | AD104: 1
A105: 5 | B105: A | C105: 4437 | D105: 2017-08-29 | E105: RANI104 | G105: king104 | H105: queen104 | I105: M | J105: 2012-04-09 | O105: OBC | P105: Muslim | R105: GOVT. SENIOR SECONDARY SCHOOL ALNIYAWAS (219445) | S105: 8140200308 | T105: XXXX3496 | V105: 9828120800 | W105: VP-ALNIYAWAS | X105: 35000 | Y105: N | Z105: N | AA105: Yes | AB105: 9 | AC105: None | AD105: 1
A106: 5 | B106: A | C106: 4369 | D106: 2017-07-10 | E106: RANI105 | G106: king105 | H106: queen105 | I106: M | J106: 2012-03-05 | O106: OBC | P106: Muslim | R106: GOVT. SENIOR SECONDARY SCHOOL ALNIYAWAS (219445) | S106: 8140200308 | T106: XXXX5376 | V106: 9828120801 | W106: VP-ALNIYAWAS | X106: 50000 | Y106: N | Z106: N | AA106: Yes | AB106: 9 | AC106: None | AD106: 1
A107: 5 | B107: A | C107: 4275 | D107: 1900-05-29 | E107: RANI106 | G107: king106 | H107: queen106 | I107: M | J107: 2011-12-04 | O107: OBC | P107: Hindu | R107: GOVT. SENIOR SECONDARY SCHOOL ALNIYAWAS (219445) | S107: 8140200308 | T107: XXXX3171 | V107: 9828120802 | W107: VP-ALNIYAWAS | X107: 48000 | Y107: N | Z107: N | AA107: No | AB107: 10 | AC107: None | AD107: 1
A108: 5 | B108: A | C108: 4434 | D108: 2017-08-25 | E108: RANI107 | G108: king107 | H108: queen107 | I108: F | J108: 2012-07-05 | O108: OBC | P108: Muslim | R108: GOVT. SENIOR SECONDARY SCHOOL ALNIYAWAS (219445) | S108: 8140200308 | T108: XXXX7810 | V108: 9828120803 | W108: VP-ALNIYAWAS | X108: 42000 | Y108: N | Z108: N | AA108: Yes | AB108: 9 | AC108: None | AD108: 0
A109: 5 | B109: A | C109: 4436 | D109: 2017-08-29 | E109: RANI108 | G109: king108 | H109: queen108 | I109: F | J109: 2012-04-09 | O109: OBC | P109: Muslim | R109: GOVT. SENIOR SECONDARY SCHOOL ALNIYAWAS (219445) | S109: 8140200308 | T109: XXXX4652 | V109: 9828120804 | W109: VP-ALNIYAWAS | X109: 35000 | Y109: N | Z109: N | AA109: Yes | AB109: 9 | AC109: None | AD109: 1
A110: 5 | B110: A | C110: 4432 | D110: 2017-08-25 | E110: RANI109 | G110: king109 | H110: queen109 | I110: F | J110: 2012-08-03 | O110: OBC | P110: Muslim | R110: GOVT. SENIOR SECONDARY SCHOOL ALNIYAWAS (219445) | S110: 8140200308 | T110: XXXX8434 | V110: 9828120805 | W110: VP-ALNIYAWAS | X110: 48000 | Y110: N | Z110: N | AA110: Yes | AB110: 9 | AC110: None | AD110: 0
A111: 5 | B111: A | C111: 4307 | D111: 2017-07-01 | E111: RANI110 | G111: king110 | H111: queen110 | I111: F | J111: 2012-01-01 | O111: OBC | P111: Muslim | R111: GOVT. SENIOR SECONDARY SCHOOL ALNIYAWAS (219445) | S111: 8140200308 | T111: XXXX6069 | V111: 9828120806 | W111: VP-ALNIYAWAS | X111: 0 | Y111: N | Z111: N | AA111: Yes | AB111: 9 | AC111: None | AD111: 1
A112: 5 | B112: A | C112: 4323 | D112: 2017-07-04 | E112: RANI111 | F112: Late | G112: king111 | H112: queen111 | I112: M | J112: 2009-01-01 | O112: SC | P112: Hindu | R112: GOVT. SENIOR SECONDARY SCHOOL ALNIYAWAS (219445) | S112: 8140200308 | T112: XXXX8740 | V112: 9828120807 | W112: VP-ALNIYAWAS | X112: 20000 | Y112: N | Z112: N | AA112: No | AB112: 12 | AC112: None | AD112: 1
A113: 5 | B113: A | C113: 4338 | D113: 2017-07-04 | E113: RANI112 | G113: king112 | H113: queen112 | I113: M | J113: 2011-07-13 | O113: OBC | R113: GOVT. SENIOR SECONDARY SCHOOL ALNIYAWAS (219445) | S113: 8140200308 | V113: 9828120808 | W113: VP-ALNIYAWAS | X113: 0 | Y113: N | Z113: N | AB113: 10 | AC113: None | AD113: 1
A114: 6 | B114: A | C114: 4290 | D114: 2017-06-30 | E114: RANI113 | G114: king113 | H114: queen113 | I114: F | J114: 2010-01-01 | O114: OBC | P114: Muslim | R114: GOVT. SENIOR SECONDARY SCHOOL ALNIYAWAS (219445) | S114: 8140200308 | T114: XXXX5164 | V114: 9828120809 | W114: VP-ALNIYAWAS | X114: 35000 | Y114: N | Z114: N | AA114: Yes | AB114: 11 | AC114: None | AD114: 1
A115: 6 | B115: A | C115: 4304 | D115: 2017-07-01 | E115: RANI114 | G115: king114 | H115: queen114 | I115: M | J115: 2005-06-10 | O115: GEN | P115: Hindu | R115: GOVT. SENIOR SECONDARY SCHOOL ALNIYAWAS (219445) | S115: 8140200308 | T115: XXXX3283 | V115: 9828120810 | W115: VP-ALNIYAWAS | X115: 40000 | Y115: N | Z115: N | AA115: No | AB115: 16 | AC115: None | AD115: 1
A116: 6 | B116: A | C116: 4246 | D116: 2016-08-05 | E116: RANI115 | G116: king115 | H116: queen115 | I116: M | J116: 2010-07-05 | O116: OBC | P116: Muslim | R116: GOVT. SENIOR SECONDARY SCHOOL ALNIYAWAS (219445) | S116: 8140200308 | V116: 9828120811 | W116: VP-ALNIYAWAS | X116: 0 | Y116: N | Z116: N | AA116: Yes | AB116: 11 | AC116: None | AD116: 1
A117: 6 | B117: A | C117: 4740 | D117: 2019-07-15 | E117: RANI116 | G117: king116 | H117: queen116 | I117: M | J117: 2009-07-05 | O117: SC | P117: Hindu | R117: GOVT. SENIOR SECONDARY SCHOOL ALNIYAWAS (219445) | S117: 8140200308 | V117: 9828120812 | W117: VP-ALNIYAWAS | X117: 50000 | Y117: N | Z117: N | AA117: No | AB117: 12 | AC117: None | AD117: 1
A118: 6 | B118: A | C118: 4193 | D118: 2016-07-11 | E118: RANI117 | G118: king117 | H118: queen117 | I118: M | J118: 2010-05-07 | O118: OBC | R118: GOVT. SENIOR SECONDARY SCHOOL ALNIYAWAS (219445) | S118: 8140200308 | T118: XXXX5083 | V118: 9828120813 | W118: VP-ALNIYAWAS | X118: 0 | Y118: N | Z118: N | AB118: 11 | AC118: None | AD118: 0
A119: 6 | B119: A | C119: 4109 | D119: 2016-06-28 | E119: RANI118 | G119: king118 | H119: queen118 | I119: F | J119: 2010-06-25 | O119: OBC | P119: Muslim | R119: GOVT. SENIOR SECONDARY SCHOOL ALNIYAWAS (219445) | S119: 8140200308 | V119: 9828120814 | W119: VP-ALNIYAWAS | X119: 45000 | Y119: N | Z119: N | AA119: Yes | AB119: 11 | AC119: None | AD119: 1
A120: 6 | B120: A | C120: 4248 | D120: 2016-08-11 | E120: RANI119 | G120: king119 | H120: queen119 | I120: M | J120: 2010-07-05 | O120: OBC | P120: Muslim | R120: GOVT. SENIOR SECONDARY SCHOOL ALNIYAWAS (219445) | S120: 8140200308 | T120: XXXX7100 | V120: 9828120815 | W120: VP-ALNIYAWAS | X120: 0 | Y120: N | Z120: N | AA120: Yes | AB120: 11 | AC120: None | AD120: 1
A121: 6 | B121: A | C121: 4167 | D121: 2016-07-04 | E121: RANI120 | G121: king120 | H121: queen120 | I121: F | J121: 2011-05-07 | O121: OBC | P121: Hindu | R121: GOVT. SENIOR SECONDARY SCHOOL ALNIYAWAS (219445) | S121: 8140200308 | T121: XXXX4049 | V121: 9828120816 | W121: VP-ALNIYAWAS | X121: 0 | Y121: N | Z121: N | AA121: No | AB121: 10 | AC121: None | AD121: 1
A122: 6 | B122: A | C122: 4589 | D122: 2018-07-21 | E122: RANI121 | G122: king121 | H122: queen121 | I122: M | J122: 2011-03-01 | O122: OBC | P122: Hindu | R122: GOVT. SENIOR SECONDARY SCHOOL ALNIYAWAS (219445) | S122: 8140200308 | T122: XXXX2976 | V122: 9828120817 | W122: VP-ALNIYAWAS | X122: 40000 | Y122: N | Z122: N | AA122: No | AB122: 10 | AC122: None | AD122: 0
A123: 6 | B123: A | C123: 4257 | D123: 2016-11-24 | E123: RANI122 | G123: king122 | H123: queen122 | I123: M | J123: 2011-04-05 | O123: OBC | P123: Muslim | R123: GOVT. SENIOR SECONDARY SCHOOL ALNIYAWAS (219445) | S123: 8140200308 | T123: XXXX8178 | V123: 9828120818 | W123: VP-ALNIYAWAS | X123: 0 | Y123: N | Z123: N | AA123: Yes | AB123: 10 | AC123: None | AD123: 1
A124: 6 | B124: A | C124: 4122 | D124: 2016-06-30 | E124: RANI123 | G124: king123 | H124: queen123 | I124: F | J124: 2008-06-11 | O124: OBC | R124: GOVT. SENIOR SECONDARY SCHOOL ALNIYAWAS (219445) | S124: 8140200308 | T124: XXXX0920 | V124: 9828120819 | W124: VP-ALNIYAWAS | X124: 0 | Y124: N | Z124: N | AB124: 13 | AC124: None | AD124: 1
A125: 6 | B125: A | C125: 4903 | E125: RANI124 | G125: king124 | H125: queen124 | I125: M | J125: 2010-06-15 | O125: OBC | R125: GOVT. SENIOR SECONDARY SCHOOL ALNIYAWAS (219445) | S125: 8140200308 | V125: 9828120820 | W125: VP-ALNIYAWAS | Y125: N | Z125: Y | AB125: 11 | AD125: 1
A126: 6 | B126: A | C126: 4110 | D126: 2016-06-28 | E126: RANI125 | G126: king125 | H126: queen125 | I126: M | J126: 2011-05-15 | O126: OBC | P126: Muslim | R126: GOVT. SENIOR SECONDARY SCHOOL ALNIYAWAS (219445) | S126: 8140200308 | T126: XXXX6056 | V126: 9828120821 | W126: VP-ALNIYAWAS | X126: 45000 | Y126: N | Z126: N | AA126: Yes | AB126: 10 | AC126: None | AD126: 1
A127: 6 | B127: A | C127: 4250 | D127: 2016-08-16 | E127: RANI126 | G127: king126 | H127: queen126 | I127: M | J127: 2009-05-07 | O127: OBC | P127: Muslim | R127: GOVT. SENIOR SECONDARY SCHOOL ALNIYAWAS (219445) | S127: 8140200308 | T127: XXXX9983 | V127: 9828120822 | W127: VP-ALNIYAWAS | X127: 0 | Y127: N | Z127: N | AA127: Yes | AB127: 12 | AC127: None | AD127: 1
A128: 6 | B128: A | C128: 4674 | D128: 2019-07-08 | E128: RANI127 | G128: king127 | H128: queen127 | I128: M | J128: 2007-09-04 | O128: OBC | P128: Muslim | R128: GOVT. SENIOR SECONDARY SCHOOL ALNIYAWAS (219445) | S128: 8140200308 | T128: XXXX0503 | V128: 9828120823 | W128: VP-ALNIYAWAS | X128: 60000 | Y128: N | Z128: N | AA128: Yes | AB128: 14 | AC128: None | AD128: 0
A129: 6 | B129: A | C129: 4672 | D129: 2019-07-08 | E129: RANI128 | G129: king128 | H129: queen128 | I129: M | J129: 2007-12-05 | O129: OBC | P129: Muslim | R129: GOVT. SENIOR SECONDARY SCHOOL ALNIYAWAS (219445) | S129: 8140200308 | U129: vpsncvp | V129: 9828120824 | W129: VP-ALNIYAWAS | X129: 50000 | Y129: N | Z129: N | AA129: Yes | AB129: 14 | AC129: None | AD129: 0
A130: 6 | B130: A | C130: 4117 | D130: 2016-06-28 | E130: RANI129 | G130: king129 | H130: queen129 | I130: F | J130: 2010-07-21 | O130: OBC | R130: GOVT. SENIOR SECONDARY SCHOOL ALNIYAWAS (219445) | S130: 8140200308 | T130: XXXX5444 | V130: 9828120825 | W130: VP-ALNIYAWAS | X130: 0 | Y130: N | Z130: N | AB130: 11 | AC130: None | AD130: 1
A131: 6 | B131: A | C131: 4802 | E131: RANI130 | G131: king130 | H131: queen130 | I131: F | J131: 2011-01-14 | O131: OBC | R131: GOVT. SENIOR SECONDARY SCHOOL ALNIYAWAS (219445) | S131: 8140200308 | V131: 9828120826 | W131: VP-ALNIYAWAS | Y131: N | Z131: Y | AB131: 10 | AD131: 1
A132: 6 | B132: A | C132: 4131 | D132: 2016-07-01 | E132: RANI131 | G132: king131 | H132: queen131 | I132: F | J132: 2008-03-05 | O132: OBC | P132: Hindu | R132: GOVT. SENIOR SECONDARY SCHOOL ALNIYAWAS (219445) | S132: 8140200308 | T132: XXXX4024 | V132: 9828120827 | W132: VP-ALNIYAWAS | X132: 40000 | Y132: N | Z132: N | AA132: No | AB132: 13 | AC132: None | AD132: 1
A133: 6 | B133: A | C133: 4652 | D133: 2019-07-05 | E133: RANI132 | G133: king132 | H133: queen132 | I133: M | J133: 2007-12-10 | O133: OBC | P133: Hindu | R133: GOVT. SENIOR SECONDARY SCHOOL ALNIYAWAS (219445) | S133: 8140200308 | T133: XXXX4312 | V133: 9828120828 | W133: VP-ALNIYAWAS | X133: 60000 | Y133: N | Z133: N | AA133: No | AB133: 14 | AC133: None | AD133: 7
A134: 6 | B134: A | C134: 4722 | D134: 2019-07-12 | E134: RANI133 | G134: king133 | H134: queen133 | I134: M | J134: 2009-01-01 | O134: SBC | P134: Hindu | R134: GOVT. SENIOR SECONDARY SCHOOL ALNIYAWAS (219445) | S134: 8140200308 | T134: XXXX1833 | U134: vpsgoov | V134: 9828120829 | W134: VP-ALNIYAWAS | X134: 60000 | Y134: N | Z134: N | AA134: No | AB134: 12 | AC134: None | AD134: 1
A135: 6 | B135: A | C135: 4692 | D135: 2019-07-09 | E135: RANI134 | G135: king134 | H135: queen134 | I135: M | J135: 2008-07-07 | O135: SC | P135: Hindu | R135: GOVT. SENIOR SECONDARY SCHOOL ALNIYAWAS (219445) | S135: 8140200308 | T135: XXXX8939 | U135: vpjwnct | V135: 9828120830 | W135: VP-ALNIYAWAS | X135: 60000 | Y135: N | Z135: N | AA135: No | AB135: 13 | AC135: None | AD135: 1
A136: 6 | B136: A | C136: 4749 | D136: 2019-07-17 | E136: RANI135 | G136: king135 | H136: queen135 | I136: M | J136: 2010-05-06 | O136: SC | P136: Hindu | R136: GOVT. SENIOR SECONDARY SCHOOL ALNIYAWAS (219445) | S136: 8140200308 | T136: XXXX1516 | V136: 9828120831 | W136: VP-ALNIYAWAS | X136: 50000 | Y136: N | Z136: N | AA136: No | AB136: 11 | AC136: None | AD136: 2
A137: 6 | B137: A | C137: 4742 | D137: 2019-07-16 | E137: RANI136 | G137: king136 | H137: queen136 | I137: F | J137: 2010-01-01 | O137: OBC | P137: Hindu | R137: GOVT. SENIOR SECONDARY SCHOOL ALNIYAWAS (219445) | S137: 8140200308 | T137: XXXX9240 | U137: ymukugo | V137: 9828120832 | W137: VP-ALNIYAWAS | X137: 50000 | Y137: N | Z137: N | AA137: No | AB137: 11 | AC137: None | AD137: 2
A138: 6 | B138: A | C138: 4878 | E138: RANI137 | G138: king137 | H138: queen137 | I138: M | J138: 2008-07-04 | O138: OBC | R138: GOVT. SENIOR SECONDARY SCHOOL ALNIYAWAS (219445) | S138: 8140200308 | V138: 9828120833 | W138: VP-ALNIYAWAS | Y138: N | Z138: Y | AB138: 13 | AD138: 1
A139: 6 | B139: A | C139: 4255 | D139: 2016-11-24 | E139: RANI138 | G139: king138 | H139: queen138 | I139: M | J139: 2010-03-07 | O139: OBC | P139: Muslim | R139: GOVT. SENIOR SECONDARY SCHOOL ALNIYAWAS (219445) | S139: 8140200308 | T139: XXXX7818 | V139: 9828120834 | W139: VP-ALNIYAWAS | X139: 0 | Y139: N | Z139: N | AA139: Yes | AB139: 11 | AC139: None | AD139: 1
A140: 6 | B140: A | C140: 4258 | D140: 2016-11-26 | E140: RANI139 | G140: king139 | H140: queen139 | I140: M | J140: 2010-07-07 | O140: OBC | P140: Muslim | R140: GOVT. SENIOR SECONDARY SCHOOL ALNIYAWAS (219445) | S140: 8140200308 | T140: XXXX0810 | V140: 9828120835 | W140: VP-ALNIYAWAS | X140: 0 | Y140: N | Z140: N | AA140: Yes | AB140: 11 | AC140: None | AD140: 1
A141: 6 | B141: A | C141: 4100 | D141: 2016-05-09 | E141: RANI140 | G141: king140 | H141: queen140 | I141: F | J141: 2010-11-05 | O141: OBC | P141: Muslim | R141: GOVT. SENIOR SECONDARY SCHOOL ALNIYAWAS (219445) | S141: 8140200308 | T141: XXXX4370 | V141: 9828120836 | W141: VP-ALNIYAWAS | X141: 0 | Y141: N | Z141: N | AA141: Yes | AB141: 11 | AC141: None | AD141: 1
A142: 6 | B142: A | C142: 4245 | D142: 2016-08-05 | E142: RANI141 | G142: king141 | H142: queen141 | I142: M | J142: 2010-05-02 | O142: OBC | P142: Muslim | R142: GOVT. SENIOR SECONDARY SCHOOL ALNIYAWAS (219445) | S142: 8140200308 | T142: XXXX3401 | V142: 9828120837 | W142: VP-ALNIYAWAS | X142: 0 | Y142: N | Z142: N | AA142: Yes | AB142: 11 | AC142: None | AD142: 1
A143: 6 | B143: A | C143: 4206 | D143: 2016-07-15 | E143: RANI142 | G143: king142 | H143: queen142 | I143: F | J143: 2010-07-02 | O143: OBC | P143: Muslim | R143: GOVT. SENIOR SECONDARY SCHOOL ALNIYAWAS (219445) | S143: 8140200308 | V143: 9828120838 | W143: VP-ALNIYAWAS | X143: 0 | Y143: N | Z143: N | AA143: Yes | AB143: 11 | AC143: None | AD143: 1
A144: 6 | B144: A | C144: 4602 | D144: 2018-07-26 | E144: RANI143 | G144: king143 | H144: queen143 | I144: M | J144: 2009-06-14 | O144: OBC | P144: Hindu | R144: GOVT. SENIOR SECONDARY SCHOOL ALNIYAWAS (219445) | S144: 8140200308 | T144: XXXX1553 | U144: VPWJVGR | V144: 9828120839 | W144: VP-ALNIYAWAS | X144: 40000 | Y144: N | Z144: N | AA144: No | AB144: 12 | AC144: None | AD144: 0
A145: 6 | B145: A | C145: 4132 | D145: 2016-07-01 | E145: RANI144 | G145: king144 | H145: queen144 | I145: F | J145: 2009-06-05 | O145: OBC | P145: Hindu | R145: GOVT. SENIOR SECONDARY SCHOOL ALNIYAWAS (219445) | S145: 8140200308 | T145: XXXX9502 | V145: 9828120840 | W145: VP-ALNIYAWAS | X145: 45000 | Y145: N | Z145: N | AA145: No | AB145: 12 | AC145: None | AD145: 1
A146: 6 | B146: A | C146: 4130 | D146: 2016-07-01 | E146: RANI145 | G146: king145 | H146: queen145 | I146: F | J146: 2010-06-07 | O146: OBC | P146: Hindu | R146: GOVT. SENIOR SECONDARY SCHOOL ALNIYAWAS (219445) | S146: 8140200308 | T146: XXXX5336 | V146: 9828120841 | W146: VP-ALNIYAWAS | X146: 0 | Y146: N | Z146: N | AA146: No | AB146: 11 | AC146: None | AD146: 1
A147: 6 | B147: A | C147: 4244 | D147: 2016-08-05 | E147: RANI146 | G147: king146 | H147: queen146 | I147: M | J147: 2008-07-05 | O147: OBC | P147: Muslim | R147: GOVT. SENIOR SECONDARY SCHOOL ALNIYAWAS (219445) | S147: 8140200308 | T147: XXXX1035 | V147: 9828120842 | W147: VP-ALNIYAWAS | X147: 0 | Y147: N | Z147: N | AA147: Yes | AB147: 13 | AC147: None | AD147: 1
A148: 6 | B148: A | C148: 4254 | D148: 2016-11-24 | E148: RANI147 | G148: king147 | H148: queen147 | I148: F | J148: 2010-09-04 | O148: OBC | P148: Muslim | R148: GOVT. SENIOR SECONDARY SCHOOL ALNIYAWAS (219445) | S148: 8140200308 | T148: XXXX6313 | V148: 9828120843 | W148: VP-ALNIYAWAS | X148: 0 | Y148: N | Z148: N | AA148: Yes | AB148: 11 | AC148: None | AD148: 1
A149: 6 | B149: A | C149: 4101 | D149: 2016-05-09 | E149: RANI148 | G149: king148 | H149: queen148 | I149: M | J149: 2011-02-28 | O149: OBC | P149: Muslim | R149: GOVT. SENIOR SECONDARY SCHOOL ALNIYAWAS (219445) | S149: 8140200308 | T149: XXXX8546 | V149: 9828120844 | W149: VP-ALNIYAWAS | X149: 45000 | Y149: N | Z149: N | AA149: Yes | AB149: 10 | AC149: None | AD149: 0
A150: 6 | B150: A | C150: 4129 | D150: 2016-07-01 | E150: RANI149 | G150: king149 | H150: queen149 | I150: F | J150: 2011-04-02 | O150: OBC | P150: Hindu | R150: GOVT. SENIOR SECONDARY SCHOOL ALNIYAWAS (219445) | S150: 8140200308 | T150: XXXX7714 | V150: 9828120845 | W150: VP-ALNIYAWAS | X150: 0 | Y150: N | Z150: N | AA150: No | AB150: 10 | AC150: None | AD150: 1
A151: 6 | B151: A | C151: 4256 | D151: 2016-11-24 | E151: RANI150 | G151: king150 | H151: queen150 | I151: F | J151: 2010-10-11 | O151: OBC | P151: Muslim | R151: GOVT. SENIOR SECONDARY SCHOOL ALNIYAWAS (219445) | S151: 8140200308 | T151: XXXX5194 | V151: 9828120846 | W151: VP-ALNIYAWAS | X151: 0 | Y151: N | Z151: N | AA151: Yes | AB151: 11 | AC151: None | AD151: 1
A152: 6 | B152: A | C152: 4118 | D152: 2016-06-29 | E152: RANI151 | G152: king151 | H152: queen151 | I152: M | J152: 2010-09-04 | O152: OBC | P152: Muslim | R152: GOVT. SENIOR SECONDARY SCHOOL ALNIYAWAS (219445) | S152: 8140200308 | V152: 9828120847 | W152: VP-ALNIYAWAS | X152: 0 | Y152: N | Z152: N | AA152: Yes | AB152: 11 | AC152: None | AD152: 1
A153: 6 | B153: A | C153: 4102 | D153: 2016-05-09 | E153: RANI152 | G153: king152 | H153: queen152 | I153: M | J153: 2009-05-05 | O153: OBC | P153: Muslim | R153: GOVT. SENIOR SECONDARY SCHOOL ALNIYAWAS (219445) | S153: 8140200308 | T153: XXXX3042 | V153: 9828120848 | W153: VP-ALNIYAWAS | X153: 0 | Y153: N | Z153: N | AA153: Yes | AB153: 12 | AC153: None | AD153: 1
A154: 6 | B154: A | C154: 4099 | D154: 2016-05-09 | E154: RANI153 | G154: king153 | H154: queen153 | I154: F | J154: 2011-02-07 | O154: SC | P154: Hindu | R154: GOVT. SENIOR SECONDARY SCHOOL ALNIYAWAS (219445) | S154: 8140200308 | T154: XXXX1761 | V154: 9828120849 | W154: VP-ALNIYAWAS | X154: 48000 | Y154: N | Z154: N | AA154: No | AB154: 10 | AC154: None | AD154: 1
A155: 6 | B155: A | C155: 4224 | D155: 2016-07-19 | E155: RANI154 | G155: king154 | H155: queen154 | I155: M | J155: 2010-07-15 | O155: OBC | P155: Hindu | R155: GOVT. SENIOR SECONDARY SCHOOL ALNIYAWAS (219445) | S155: 8140200308 | V155: 9828120850 | W155: VP-ALNIYAWAS | X155: 0 | Y155: N | Z155: N | AA155: No | AB155: 11 | AC155: None | AD155: 0
A156: 6 | B156: A | C156: 4501 | D156: 2018-07-05 | E156: RANI155 | G156: king155 | H156: queen155 | I156: F | J156: 2010-06-15 | O156: SC | P156: Hindu | R156: GOVT. SENIOR SECONDARY SCHOOL ALNIYAWAS (219445) | S156: 8140200308 | T156: XXXX4383 | U156: VBJRPSH | V156: 9828120851 | W156: VP-ALNIYAWAS | X156: 36000 | Y156: N | Z156: Y | AA156: No | AB156: 11 | AC156: None | AD156: 1
A157: 7 | B157: A | C157: 4714 | D157: 2015-08-19 | E157: RANI156 | G157: king156 | H157: queen156 | I157: F | J157: 2009-07-30 | O157: OBC | P157: Hindu | R157: GOVT. SENIOR SECONDARY SCHOOL ALNIYAWAS (219445) | S157: 8140200308 | T157: XXXX3631 | V157: 9828120852 | W157: VP-ALNIYAWAS | X157: 40000 | Y157: N | Z157: N | AA157: No | AB157: 12 | AC157: None | AD157: 2
A158: 7 | B158: A | C158: 4015 | D158: 2015-07-08 | E158: RANI157 | G158: king157 | H158: queen157 | I158: M | J158: 2010-07-10 | O158: OBC | P158: Muslim | R158: GOVT. SENIOR SECONDARY SCHOOL ALNIYAWAS (219445) | S158: 8140200308 | T158: XXXX5363 | V158: 9828120853 | W158: VP-ALNIYAWAS | X158: 100000 | Y158: N | Z158: N | AA158: Yes | AB158: 11 | AC158: None | AD158: 1
A159: 7 | B159: A | C159: 3956 | D159: 2015-06-30 | E159: RANI158 | G159: king158 | H159: queen158 | I159: F | J159: 2010-05-05 | O159: OBC | P159: Muslim | R159: GOVT. SENIOR SECONDARY SCHOOL ALNIYAWAS (219445) | S159: 8140200308 | V159: 9828120854 | W159: VP-ALNIYAWAS | X159: 0 | Y159: N | Z159: N | AA159: Yes | AB159: 11 | AC159: None | AD159: 1
A160: 7 | B160: A | C160: 4088 | D160: 2015-08-01 | E160: RANI159 | G160: king159 | H160: queen159 | I160: F | J160: 2009-07-05 | O160: OBC | P160: Muslim | R160: GOVT. SENIOR SECONDARY SCHOOL ALNIYAWAS (219445) | S160: 8140200308 | T160: XXXX3649 | V160: 9828120855 | W160: VP-ALNIYAWAS | X160: 0 | Y160: N | Z160: N | AA160: Yes | AB160: 12 | AC160: None | AD160: 1
A161: 7 | B161: A | C161: 4909 | D161: 2014-07-21 | E161: RANI160 | G161: king160 | H161: queen160 | I161: F | J161: 2010-06-11 | O161: OBC | P161: Hindu | R161: GOVT. SENIOR SECONDARY SCHOOL ALNIYAWAS (219445) | S161: 8140200308 | T161: XXXX1402 | V161: 9828120856 | W161: VP-ALNIYAWAS | X161: 40000 | Y161: N | Z161: N | AA161: No | AB161: 11 | AC161: None | AD161: 5
A162: 7 | B162: A | C162: 4049 | D162: 2015-07-10 | E162: RANI161 | G162: king161 | H162: queen161 | I162: M | J162: 2009-02-05 | O162: OBC | P162: Muslim | R162: GOVT. SENIOR SECONDARY SCHOOL ALNIYAWAS (219445) | S162: 8140200308 | T162: XXXX7740 | V162: 9828120857 | W162: VP-ALNIYAWAS | X162: 100000 | Y162: N | Z162: N | AA162: Yes | AB162: 12 | AC162: None | AD162: 1
A163: 7 | B163: A | C163: 4876 | D163: 2018-07-02 | E163: RANI162 | G163: king162 | H163: queen162 | I163: F | J163: 2009-06-22 | O163: GEN | P163: Hindu | R163: GOVT. SENIOR SECONDARY SCHOOL ALNIYAWAS (219445) | S163: 8140200308 | T163: XXXX4846 | U163: YACYBEG | V163: 9828120858 | W163: VP-ALNIYAWAS | X163: 50000 | Y163: N | Z163: N | AA163: No | AB163: 12 | AC163: None | AD163: 1
A164: 7 | B164: A | C164: 3995 | D164: 2015-07-06 | E164: RANI163 | G164: king163 | H164: queen163 | I164: M | J164: 2010-04-09 | O164: OBC | P164: Muslim | R164: GOVT. SENIOR SECONDARY SCHOOL ALNIYAWAS (219445) | S164: 8140200308 | T164: XXXX7960 | V164: 9828120859 | W164: VP-ALNIYAWAS | X164: 0 | Y164: N | Z164: N | AA164: Yes | AB164: 11 | AC164: None | AD164: 1
A165: 7 | B165: A | C165: 4046 | D165: 2015-07-10 | E165: RANI164 | G165: king164 | H165: queen164 | I165: M | J165: 2010-02-01 | O165: OBC | P165: Hindu | R165: GOVT. SENIOR SECONDARY SCHOOL ALNIYAWAS (219445) | S165: 8140200308 | V165: 9828120860 | W165: VP-ALNIYAWAS | X165: 0 | Y165: N | Z165: N | AA165: No | AB165: 11 | AC165: None | AD165: 2
A166: 7 | B166: A | C166: 4440 | D166: 2018-05-05 | E166: RANI165 | G166: king165 | H166: queen165 | I166: M | J166: 2009-05-10 | O166: SC | P166: Hindu | R166: GOVT. SENIOR SECONDARY SCHOOL ALNIYAWAS (219445) | S166: 8140200308 | T166: XXXX1311 | U166: YBCOKQK | V166: 9828120861 | W166: VP-ALNIYAWAS | X166: 60000 | Y166: N | Z166: N | AA166: No | AB166: 12 | AC166: None | AD166: 2
A167: 7 | B167: A | C167: 4905 | D167: 2014-07-04 | E167: RANI166 | G167: king166 | H167: queen166 | I167: M | J167: 2008-04-07 | O167: SC | P167: Hindu | R167: GOVT. SENIOR SECONDARY SCHOOL ALNIYAWAS (219445) | S167: 8140200308 | T167: XXXX1560 | V167: 9828120862 | W167: VP-ALNIYAWAS | X167: 40000 | Y167: N | Z167: N | AA167: No | AB167: 13 | AC167: None | AD167: 1
A168: 7 | B168: A | C168: 4519 | D168: 2018-07-07 | E168: RANI167 | G168: king167 | H168: queen167 | I168: M | J168: 2008-08-09 | O168: OBC | P168: Muslim | R168: GOVT. SENIOR SECONDARY SCHOOL ALNIYAWAS (219445) | S168: 8140200308 | T168: XXXX0428 | V168: 9828120863 | W168: VP-ALNIYAWAS | X168: 45000 | Y168: N | Z168: N | AA168: Yes | AB168: 13 | AC168: None | AD168: 0
A169: 7 | B169: A | C169: 4739 | D169: 2019-07-15 | E169: RANI168 | G169: king168 | H169: queen168 | I169: M | J169: 2007-07-05 | O169: SC | P169: Hindu | R169: GOVT. SENIOR SECONDARY SCHOOL ALNIYAWAS (219445) | S169: 8140200308 | T169: XXXX2216 | V169: 9828120864 | W169: VP-ALNIYAWAS | X169: 50000 | Y169: N | Z169: N | AA169: No | AB169: 14 | AC169: None | AD169: 1
A170: 7 | B170: A | C170: 4567 | D170: 2018-07-14 | E170: RANI169 | G170: king169 | H170: queen169 | I170: M | J170: 2009-03-05 | O170: OBC | P170: Hindu | R170: GOVT. SENIOR SECONDARY SCHOOL ALNIYAWAS (219445) | S170: 8140200308 | T170: XXXX8778 | V170: 9828120865 | W170: VP-ALNIYAWAS | X170: 40000 | Y170: N | Z170: N | AA170: No | AB170: 12 | AC170: None | AD170: 1
A171: 7 | B171: A | C171: 3938 | D171: 2015-05-12 | E171: RANI170 | G171: king170 | H171: queen170 | I171: F | J171: 2010-03-02 | O171: SC | P171: Hindu | R171: GOVT. SENIOR SECONDARY SCHOOL ALNIYAWAS (219445) | S171: 8140200308 | T171: XXXX8675 | V171: 9828120866 | W171: VP-ALNIYAWAS | X171: 0 | Y171: N | Z171: N | AA171: No | AB171: 11 | AC171: None | AD171: 1
A172: 7 | B172: A | C172: 4819 | D172: 2014-07-02 | E172: RANI171 | G172: king171 | H172: queen171 | I172: F | J172: 2008-12-10 | O172: OBC | P172: Hindu | R172: GOVT. SENIOR SECONDARY SCHOOL ALNIYAWAS (219445) | S172: 8140200308 | T172: XXXX1703 | V172: 9828120867 | W172: VP-ALNIYAWAS | X172: 80000 | Y172: N | Z172: N | AA172: No | AB172: 13 | AC172: None | AD172: 1
A173: 7 | B173: A | C173: 4514 | D173: 2018-07-07 | E173: RANI172 | G173: king172 | H173: queen172 | I173: F | J173: 2010-07-05 | O173: OBC | P173: Hindu | R173: GOVT. SENIOR SECONDARY SCHOOL ALNIYAWAS (219445) | S173: 8140200308 | T173: XXXX5969 | U173: VHTZJWT | V173: 9828120868 | W173: VP-ALNIYAWAS | X173: 40000 | Y173: N | Z173: N | AA173: No | AB173: 11 | AC173: None | AD173: 4
A174: 7 | B174: A | C174: 4875 | D174: 2015-07-01 | E174: RANI173 | G174: king173 | H174: queen173 | I174: F | J174: 2009-07-18 | O174: OBC | P174: Hindu | R174: GOVT. SENIOR SECONDARY SCHOOL ALNIYAWAS (219445) | S174: 8140200308 | T174: XXXX0506 | U174: BHXCWCP | V174: 9828120869 | W174: VP-ALNIYAWAS | X174: 45000 | Y174: N | Z174: N | AA174: No | AB174: 12 | AC174: None | AD174: 0
A175: 7 | B175: A | C175: 4443 | D175: 2018-06-30 | E175: RANI174 | G175: king174 | H175: queen174 | I175: M | J175: 2007-09-09 | O175: OBC | P175: Muslim | R175: GOVT. SENIOR SECONDARY SCHOOL ALNIYAWAS (219445) | S175: 8140200308 | T175: XXXX8946 | U175: VHHNBHR | V175: 9828120870 | W175: VP-ALNIYAWAS | X175: 45000 | Y175: N | Z175: N | AA175: Yes | AB175: 14 | AC175: None | AD175: 2
A176: 7 | B176: A | C176: 4087 | D176: 2015-08-01 | E176: RANI175 | G176: king175 | H176: queen175 | I176: F | J176: 2009-07-15 | O176: SC | P176: Hindu | R176: GOVT. SENIOR SECONDARY SCHOOL ALNIYAWAS (219445) | S176: 8140200308 | T176: XXXX4126 | V176: 9828120871 | W176: VP-ALNIYAWAS | X176: 0 | Y176: N | Z176: N | AA176: No | AB176: 12 | AC176: None | AD176: 1
A177: 7 | B177: A | C177: 3972 | D177: 2015-07-02 | E177: RANI176 | G177: king176 | H177: queen176 | I177: F | J177: 2008-06-07 | O177: OBC | P177: Muslim | R177: GOVT. SENIOR SECONDARY SCHOOL ALNIYAWAS (219445) | S177: 8140200308 | T177: XXXX7051 | V177: 9828120872 | W177: VP-ALNIYAWAS | X177: 0 | Y177: N | Z177: N | AA177: Yes | AB177: 13 | AC177: None | AD177: 1
A178: 7 | B178: A | C178: 4014 | D178: 2015-07-08 | E178: RANI177 | G178: king177 | H178: queen177 | I178: F | J178: 2008-07-05 | O178: OBC | P178: Muslim | R178: GOVT. SENIOR SECONDARY SCHOOL ALNIYAWAS (219445) | S178: 8140200308 | T178: XXXX9582 | V178: 9828120873 | W178: VP-ALNIYAWAS | X178: 100000 | Y178: N | Z178: N | AA178: Yes | AB178: 13 | AC178: None | AD178: 1
A179: 7 | B179: A | C179: 3998 | D179: 2015-07-06 | E179: RANI178 | G179: king178 | H179: queen178 | I179: F | J179: 2008-08-20 | O179: OBC | P179: Muslim | R179: GOVT. SENIOR SECONDARY SCHOOL ALNIYAWAS (219445) | S179: 8140200308 | T179: XXXX1629 | V179: 9828120874 | W179: VP-ALNIYAWAS | X179: 0 | Y179: N | Z179: N | AA179: Yes | AB179: 13 | AC179: None | AD179: 1
A180: 7 | B180: A | C180: 4515 | D180: 2018-07-07 | E180: RANI179 | G180: king179 | H180: queen179 | I180: F | J180: 2009-07-01 | O180: OBC | P180: Hindu | R180: GOVT. SENIOR SECONDARY SCHOOL ALNIYAWAS (219445) | S180: 8140200308 | T180: XXXX9569 | U180: VHTZJWJ | V180: 9828120875 | W180: VP-ALNIYAWAS | X180: 40000 | Y180: N | Z180: N | AA180: No | AB180: 12 | AC180: None | AD180: 4
A181: 7 | B181: A | C181: 4907 | E181: RANI180 | G181: king180 | H181: queen180 | I181: M | J181: 2010-03-06 | O181: OBC | R181: GOVT. SENIOR SECONDARY SCHOOL ALNIYAWAS (219445) | S181: 8140200308 | V181: 9828120876 | W181: VP-ALNIYAWAS | Y181: N | Z181: Y | AB181: 11 | AD181: 1
A182: 7 | B182: A | C182: 4018 | D182: 2015-07-09 | E182: RANI181 | G182: king181 | H182: queen181 | I182: M | J182: 2008-07-15 | O182: SC | R182: GOVT. SENIOR SECONDARY SCHOOL ALNIYAWAS (219445) | S182: 8140200308 | T182: XXXX7167 | V182: 9828120877 | W182: VP-ALNIYAWAS | X182: 0 | Y182: N | Z182: N | AB182: 13 | AC182: None | AD182: 1
A183: 7 | B183: A | C183: 4697 | D183: 2019-07-10 | E183: RANI182 | G183: king182 | H183: queen182 | I183: M | J183: 2010-11-03 | O183: OBC | P183: Hindu | R183: GOVT. SENIOR SECONDARY SCHOOL ALNIYAWAS (219445) | S183: 8140200308 | T183: XXXX5823 | U183: yoesuys | V183: 9828120878 | W183: VP-ALNIYAWAS | X183: 500000 | Y183: N | Z183: N | AA183: No | AB183: 11 | AC183: None | AD183: 5
A184: 7 | B184: A | C184: 4894 | D184: 2017-06-30 | E184: RANI183 | G184: king183 | H184: queen183 | I184: M | J184: 2011-07-01 | O184: OBC | R184: GOVT. SENIOR SECONDARY SCHOOL ALNIYAWAS (219445) | S184: 8140200308 | V184: 9828120879 | W184: VP-ALNIYAWAS | X184: 100000 | Y184: N | Z184: N | AB184: 10 | AC184: None | AD184: 0
A185: 7 | B185: A | C185: 4892 | D185: 2015-07-17 | E185: RANI184 | G185: king184 | H185: queen184 | I185: F | J185: 2010-06-10 | O185: OBC | R185: GOVT. SENIOR SECONDARY SCHOOL ALNIYAWAS (219445) | S185: 8140200308 | V185: 9828120880 | W185: VP-ALNIYAWAS | X185: 60000 | Y185: N | Z185: N | AB185: 11 | AC185: None | AD185: 0
A186: 7 | B186: A | C186: 4792 | D186: 2015-05-11 | E186: RANI185 | G186: king185 | H186: queen185 | I186: M | J186: 2008-04-30 | O186: SC | R186: GOVT. SENIOR SECONDARY SCHOOL ALNIYAWAS (219445) | S186: 8140200308 | T186: XXXX1475 | V186: 9828120881 | W186: VP-ALNIYAWAS | X186: 0 | Y186: N | Z186: N | AB186: 13 | AC186: None | AD186: 0
A187: 7 | B187: A | C187: 4579 | D187: 2018-07-18 | E187: RANI186 | G187: king186 | H187: queen186 | I187: M | J187: 2011-07-10 | O187: SC | P187: Hindu | R187: GOVT. SENIOR SECONDARY SCHOOL ALNIYAWAS (219445) | S187: 8140200308 | T187: XXXX3266 | U187: YOHXTSP | V187: 9828120882 | W187: VP-ALNIYAWAS | X187: 36000 | Y187: N | Z187: N | AA187: No | AB187: 10 | AC187: None | AD187: 0
A188: 7 | B188: A | C188: 4696 | D188: 2019-07-10 | E188: RANI187 | G188: king187 | H188: queen187 | I188: M | J188: 2009-07-02 | O188: OBC | P188: Muslim | R188: GOVT. SENIOR SECONDARY SCHOOL ALNIYAWAS (219445) | S188: 8140200308 | U188: vwwrnvh | V188: 9828120883 | W188: VP-ALNIYAWAS | X188: 60000 | Y188: N | Z188: N | AA188: Yes | AB188: 12 | AC188: None | AD188: 1
A189: 7 | B189: A | C189: 3975 | D189: 2015-07-03 | E189: RANI188 | G189: king188 | H189: queen188 | I189: M | J189: 2009-07-15 | O189: OBC | P189: Muslim | R189: GOVT. SENIOR SECONDARY SCHOOL ALNIYAWAS (219445) | S189: 8140200308 | T189: XXXX1743 | V189: 9828120884 | W189: VP-ALNIYAWAS | X189: 0 | Y189: N | Z189: N | AA189: Yes | AB189: 12 | AC189: None | AD189: 1
A190: 7 | B190: A | C190: 4012 | D190: 2015-07-07 | E190: RANI189 | G190: king189 | H190: queen189 | I190: F | J190: 2008-10-05 | O190: OBC | P190: Muslim | R190: GOVT. SENIOR SECONDARY SCHOOL ALNIYAWAS (219445) | S190: 8140200308 | T190: XXXX2886 | V190: 9828120885 | W190: VP-ALNIYAWAS | X190: 100000 | Y190: Y | Z190: N | AA190: Yes | AB190: 13 | AC190: None | AD190: 1
A191: 7 | B191: A | C191: 3944 | D191: 2015-05-16 | E191: RANI190 | G191: king190 | H191: queen190 | I191: M | J191: 2010-05-21 | O191: OBC | P191: Muslim | R191: GOVT. SENIOR SECONDARY SCHOOL ALNIYAWAS (219445) | S191: 8140200308 | T191: XXXX3820 | V191: 9828120886 | W191: VP-ALNIYAWAS | X191: 100000 | Y191: N | Z191: N | AA191: Yes | AB191: 11 | AC191: None | AD191: 1
A192: 7 | B192: A | C192: 4064 | D192: 2015-07-15 | E192: RANI191 | G192: king191 | H192: queen191 | I192: F | J192: 2009-12-05 | O192: OBC | P192: Muslim | R192: GOVT. SENIOR SECONDARY SCHOOL ALNIYAWAS (219445) | S192: 8140200308 | T192: XXXX7397 | V192: 9828120887 | W192: VP-ALNIYAWAS | X192: 0 | Y192: N | Z192: N | AA192: Yes | AB192: 12 | AC192: None | AD192: 1
A193: 7 | B193: A | C193: 3985 | D193: 2015-07-04 | E193: RANI192 | G193: king192 | H193: queen192 | I193: F | J193: 2009-06-05 | O193: OBC | P193: Muslim | R193: GOVT. SENIOR SECONDARY SCHOOL ALNIYAWAS (219445) | S193: 8140200308 | T193: XXXX5696 | V193: 9828120888 | W193: VP-ALNIYAWAS | X193: 0 | Y193: N | Z193: N | AA193: Yes | AB193: 12 | AC193: None | AD193: 1
A194: 7 | B194: A | C194: 3866 | D194: 2015-05-11 | E194: RANI193 | G194: king193 | H194: queen193 | I194: M | J194: 2007-05-07 | O194: OBC | P194: Muslim | R194: GOVT. SENIOR SECONDARY SCHOOL ALNIYAWAS (219445) | S194: 8140200308 | T194: XXXX4575 | V194: 9828120889 | W194: VP-ALNIYAWAS | X194: 0 | Y194: N | Z194: N | AA194: Yes | AB194: 14 | AC194: None | AD194: 0
A195: 7 | B195: A | C195: 4013 | D195: 2015-07-08 | E195: RANI194 | G195: king194 | H195: queen194 | I195: M | J195: 2009-07-15 | O195: OBC | P195: Muslim | R195: GOVT. SENIOR SECONDARY SCHOOL ALNIYAWAS (219445) | S195: 8140200308 | T195: XXXX8999 | V195: 9828120890 | W195: VP-ALNIYAWAS | X195: 60000 | Y195: N | Z195: N | AA195: Yes | AB195: 12 | AC195: None | AD195: 1
A196: 7 | B196: A | C196: 3973 | D196: 2015-07-02 | E196: RANI195 | G196: king195 | H196: queen195 | I196: M | J196: 2010-05-05 | O196: OBC | P196: Muslim | R196: GOVT. SENIOR SECONDARY SCHOOL ALNIYAWAS (219445) | S196: 8140200308 | T196: XXXX6735 | V196: 9828120891 | W196: VP-ALNIYAWAS | X196: 0 | Y196: N | Z196: N | AA196: Yes | AB196: 11 | AC196: None | AD196: 1
A197: 7 | B197: A | C197: 4516 | D197: 2018-07-07 | E197: RANI196 | G197: king196 | H197: queen196 | I197: F | J197: 2010-05-05 | O197: OBC | P197: Muslim | R197: GOVT. SENIOR SECONDARY SCHOOL ALNIYAWAS (219445) | S197: 8140200308 | T197: XXXX7140 | V197: 9828120892 | W197: VP-ALNIYAWAS | X197: 36000 | Y197: N | Z197: N | AA197: Yes | AB197: 11 | AC197: None | AD197: 0
A198: 7 | B198: A | C198: 3997 | D198: 2015-07-06 | E198: RANI197 | G198: king197 | H198: queen197 | I198: F | J198: 2009-07-05 | O198: OBC | P198: Muslim | R198: GOVT. SENIOR SECONDARY SCHOOL ALNIYAWAS (219445) | S198: 8140200308 | T198: XXXX4946 | V198: 9828120893 | W198: VP-ALNIYAWAS | X198: 0 | Y198: N | Z198: N | AA198: Yes | AB198: 12 | AC198: None | AD198: 1
A199: 8 | B199: A | C199: 4897 | E199: RANI198 | G199: king198 | H199: queen198 | I199: M | J199: 2008-02-21 | O199: OBC | R199: GOVT. SENIOR SECONDARY SCHOOL ALNIYAWAS (219445) | S199: 8140200308 | V199: 9828120894 | W199: VP-ALNIYAWAS | Y199: N | Z199: Y | AB199: 13 | AD199: 1
A200: 8 | B200: A | C200: 4609 | D200: 2018-08-01 | E200: RANI199 | G200: king199 | H200: queen199 | I200: F | J200: 2008-12-10 | O200: OBC | P200: Muslim | R200: GOVT. SENIOR SECONDARY SCHOOL ALNIYAWAS (219445) | S200: 8140200308 | T200: XXXX9364 | U200: WXVJHNV | V200: 9828120895 | W200: VP-ALNIYAWAS | X200: 40000 | Y200: N | Z200: N | AA200: Yes | AB200: 13 | AC200: None | AD200: 0
... 600 more rows

Sheet fees data
A1: विद्यालयवार/कक्षावार फीस का विवरण | AU1: 1 | AV1: 2 | AW1: 3 | AX1: 4 | AY1: 5 | AZ1: 6 | BA1: 7 | BB1: 8 | BC1: 9 | BD1: 10 | BE1: 11 | BF1: 12 | BG1: 13 | BH1: 14 | BI1: 15 | BJ1: 16 | BK1: 17 | BL1: 18 | BM1: 19 | BN1: 20 | BO1: 21 | BP1: 22 | BQ1: 23 | BR1: 24 | BS1: 25 | BT1: 26 | BU1: 27 | BV1: 28 | BW1: 29 | BX1: 30
A2: =COLUMN() -> 1 | B2: =COLUMN() -> 2 | C2: =COLUMN() -> 3 | D2: =COLUMN() -> 4 | E2: =COLUMN() -> 5 | F2: =COLUMN() -> 6 | G2: =COLUMN() -> 7 | H2: =COLUMN() -> 8 | I2: =COLUMN() -> 9 | J2: =COLUMN() -> 10 | K2: =COLUMN() -> 11 | L2: =COLUMN() -> 12 | M2: =COLUMN() -> 13 | N2: =COLUMN() -> 14 | O2: =COLUMN() -> 15 | P2: =COLUMN() -> 16 | Q2: =COLUMN() -> 17 | R2: =COLUMN() -> 18 | S2: =COLUMN() -> 19 | T2: =COLUMN() -> 20 | U2: =COLUMN() -> 21 | V2: =COLUMN() -> 22 | W2: =COLUMN() -> 23 | X2: =COLUMN() -> 24 | Y2: =COLUMN() -> 25
A3: S. NO. | B3: Class | C3: Section | E3: SRNO | F3: DOA | G3: Name Of Students | H3: FatherName | I3: MotherName | J3: Gender | K3: Dob | L3: Category | M3: NEW | N3: uohu izos'k | O3: Nk= dks"k | P3: nq?kZVuk chek | Q3: SUPW | R3: izk;ksfxd | S3: LdkmV | T3: fodkl 'kqYd | U3: vU; | V3: ;ksx | W3: jlhn la[;k | X3: fnukad | AS3: =Table3[[#Headers],[Class]] -> Class | AT3: =Table3[[#Headers],[Section]] -> Section | AU3: =Table3[[#Headers],[SRNO]] -> SRNO | AV3: =Table3[[#Headers],[DOA]] -> DOA | AW3: =Table3[[#Headers],[Name]] -> Name | AX3: =Table3[[#Headers],[Late Status]] -> Late Status | AY3: =Table3[[#Headers],[FatherName]] -> FatherName | AZ3: =Table3[[#Headers],[MotherName]] -> MotherName | BA3: =Table3[[#Headers],[Gender]] -> Gender | BB3: =Table3[[#Headers],[Dob]] -> Dob | BC3: =Table3[[#Headers],[ClassRollNo]] -> ClassRollNo | BD3: =Table3[[#Headers],[ExamRollNumber]] -> ExamRollNumber | BE3: =Table3[[#Headers],[School Total Working Days]] -> School Total Working Days | BF3: =Table3[[#Headers],[Student Total Attendence]] -> Student Total Attendence | BG3: =Table3[[#Headers],[Category]] -> Category | BH3: =Table3[[#Headers],[Religion]] -> Religion | BI3: =Table3[[#Headers],[Previous Year Marks]] -> Previous Year Marks | BJ3: =Table3[[#Headers],[Name Of School]] -> Name Of School | BK3: =Table3[[#Headers],[School UDise Code]] -> School UDise Code | BL3: =Table3[[#Headers],[Aadhar No of Student]] -> Aadhar No of Student | BM3: =Table3[[#Headers],[Bhamashash Card]] -> Bhamashash Card | BN3: =Table3[[#Headers],[Mobile No Student(Father/Mother/Guardian]] -> Mobile No Student(Father/Mother/Guardian | BO3: =Table3[[#Headers],[Student Permanent Address]] -> Student Permanent Address | BP3: =Table3[[#Headers],[Annual Parental Income]] -> Annual Parental Income | BQ3: =Table3[[#Headers],[CWSN Status]] -> CWSN Status | BR3: =Table3[[#Headers],[BPL Status]] -> BPL Status | BS3: =Table3[[#Headers],[Minority Status]] -> Minority Status | BT3: =Table3[[#Headers],[Age On Present(In Years)]] -> Age On Present(In Years) | BU3: =Table3[[#Headers],[Co-Curricular Activity]] -> Co-Curricular Activity | BV3: =Table3[[#Headers],[Distance From School]] -> Distance From School
A4: 1 | B4: 2 | C4: 3 | D4: 4 | E4: 5 | F4: 6 | G4: 7 | H4: 8 | I4: 9 | J4: 10 | K4: 11 | L4: 12 | M4: 13 | N4: 14 | O4: 15 | P4: 16 | Q4: 17 | R4: 18 | S4: 19 | T4: 20 | U4: 21 | V4: 22 | W4: 23 | X4: 24 | Y4: 25 | AB4: 11 | AC4: A | AD4: B | AS4: ='STUDENT RECORD BY SD'!A2 -> 2 | AT4: ='STUDENT RECORD BY SD'!B2 -> A | AU4: ='STUDENT RECORD BY SD'!C2 -> 4858 | AV4: ='STUDENT RECORD BY SD'!D2 -> 00:00:00 | AW4: ='STUDENT RECORD BY SD'!E2 -> RANI1 | AX4: ='STUDENT RECORD BY SD'!F2 -> 0 | AY4: ='STUDENT RECORD BY SD'!G2 -> king1 | AZ4: ='STUDENT RECORD BY SD'!H2 -> queen1 | BA4: ='STUDENT RECORD BY SD'!I2 -> F | BB4: ='STUDENT RECORD BY SD'!J2 -> 2015-05-18 | BC4: ='STUDENT RECORD BY SD'!K2 -> 0 | BD4: ='STUDENT RECORD BY SD'!L2 -> 0 | BE4: ='STUDENT RECORD BY SD'!M2 -> 0 | BF4: ='STUDENT RECORD BY SD'!N2 -> 0 | BG4: ='STUDENT RECORD BY SD'!O2 -> OBC | BH4: ='STUDENT RECORD BY SD'!P2 -> 0 | BI4: ='STUDENT RECORD BY SD'!Q2 -> 0 | BJ4: ='STUDENT RECORD BY SD'!R2 -> GOVT. SENIOR SECONDARY SCHOOL ALNIYAWAS (219445) | BK4: ='STUDENT RECORD BY SD'!S2 -> 8140200308 | BL4: ='STUDENT RECORD BY SD'!T2 -> 0 | BM4: ='STUDENT RECORD BY SD'!U2 -> 0 | BN4: ='STUDENT RECORD BY SD'!V2 -> 9828120697 | BO4: ='STUDENT RECORD BY SD'!W2 -> VP-ALNIYAWAS | BP4: ='STUDENT RECORD BY SD'!X2 -> 0 | BQ4: ='STUDENT RECORD BY SD'!Y2 -> N | BR4: ='STUDENT RECORD BY SD'!Z2 -> Y | BS4: ='STUDENT RECORD BY SD'!AA2 -> 0 | BT4: ='STUDENT RECORD BY SD'!AB2 -> 6 | BU4: ='STUDENT RECORD BY SD'!AC2 -> 0 | BV4: ='STUDENT RECORD BY SD'!AD2 -> 1 | BW4: =AS4 -> 2 | BX4: =AT4 -> A
A5: =IF(B5="","",ROWS($A$5:A5)) -> 1 | B5: ='STUDENT RECORD BY SD'!A2 -> 2 | C5: ='STUDENT RECORD BY SD'!B2 -> A | E5: ='STUDENT RECORD BY SD'!C2 -> 4858 | F5: ='STUDENT RECORD BY SD'!D2 -> 00:00:00 | G5: ='STUDENT RECORD BY SD'!E2 -> RANI1 | H5: ='STUDENT RECORD BY SD'!G2 -> king1 | I5: ='STUDENT RECORD BY SD'!H2 -> queen1 | J5: ='STUDENT RECORD BY SD'!I2 -> F | K5: ='STUDENT RECORD BY SD'!J2 -> 2015-05-18 | L5: ='STUDENT RECORD BY SD'!O2 -> OBC | M5: Y | N5: =IF(AB5>=2021,10,"") ->  | O5: =IF(L5="GEN",AG5,AH5) ->  | P5: =IF(B5>8,IF(J5="M",10,IF(J5="F",5))," ") ->  | Q5: =IF(B5=9,50,IF(B5=10,50,"")) ->  | R5: =AF5 ->  | S5: =IF(B5>8,IF(J5="m",10,IF(J5="F",5)),"") ->  | T5: =IF(B5<9,"",VLOOKUP(B5,MASTER!$B$10:$R$17,16,0)) ->  | V5: =SUM(N5:T5) -> 0 | AA5: =F5 -> 00:00:00 | AB5: =YEAR(AA5) -> 1900 | AC5: A | AD5: B | AE5: =IF(B4<9,"",IF(MASTER!$R$23="YES",100)) ->  | AF5: =IF(AND(B5>=11,C5="b"),AE5," ") ->  | AG5: =IF(B5=9,200,IF(B5=10,200,IF(B5=11,300,IF(B5=12,300,"")))) ->  | AH5: =IF(AG5="","",AG5/2) ->  | AK5: =VLOOKUP(B5:B800,MASTER!$B$10:$R$17,16,0) ->  | AL5: =B5 -> 2 | AM5: =C5 -> A | AS5: ='STUDENT RECORD BY SD'!A3 -> 2 | AT5: ='STUDENT RECORD BY SD'!B3 -> A | AU5: ='STUDENT RECORD BY SD'!C3 -> 4863 | AV5: ='STUDENT RECORD BY SD'!D3 -> 00:00:00 | AW5: ='STUDENT RECORD BY SD'!E3 -> RANI2 | AX5: ='STUDENT RECORD BY SD'!F3 -> 0 | AY5: ='STUDENT RECORD BY SD'!G3 -> king2 | AZ5: ='STUDENT RECORD BY SD'!H3 -> queen2 | BA5: ='STUDENT RECORD BY SD'!I3 -> F | BB5: ='STUDENT RECORD BY SD'!J3 -> 2015-04-05 | BC5: ='STUDENT RECORD BY SD'!K3 -> 0 | BD5: ='STUDENT RECORD BY SD'!L3 -> 0 | BE5: ='STUDENT RECORD BY SD'!M3 -> 0 | BF5: ='STUDENT RECORD BY SD'!N3 -> 0 | BG5: ='STUDENT RECORD BY SD'!O3 -> OBC | BH5: ='STUDENT RECORD BY SD'!P3 -> 0 | BI5: ='STUDENT RECORD BY SD'!Q3 -> 0 | BJ5: ='STUDENT RECORD BY SD'!R3 -> GOVT. SENIOR SECONDARY SCHOOL ALNIYAWAS (219445) | BK5: ='STUDENT RECORD BY SD'!S3 -> 8140200308 | BL5: ='STUDENT RECORD BY SD'!T3 -> 0 | BM5: ='STUDENT RECORD BY SD'!U3 -> 0 | BN5: ='STUDENT RECORD BY SD'!V3 -> 9828120698 | BO5: ='STUDENT RECORD BY SD'!W3 -> VP-ALNIYAWAS | BP5: ='STUDENT RECORD BY SD'!X3 -> 0 | BQ5: ='STUDENT RECORD BY SD'!Y3 -> N | BR5: ='STUDENT RECORD BY SD'!Z3 -> Y | BS5: ='STUDENT RECORD BY SD'!AA3 -> 0 | BT5: ='STUDENT RECORD BY SD'!AB3 -> 6 | BU5: ='STUDENT RECORD BY SD'!AC3 -> 0 | BV5: ='STUDENT RECORD BY SD'!AD3 -> 0 | BW5: =AS5 -> 2 | BX5: =AT5 -> A
A6: =IF(B6="","",ROWS($A$5:A6)) -> 2 | B6: ='STUDENT RECORD BY SD'!A3 -> 2 | C6: ='STUDENT RECORD BY SD'!B3 -> A | E6: ='STUDENT RECORD BY SD'!C3 -> 4863 | F6: ='STUDENT RECORD BY SD'!D3 -> 00:00:00 | G6: ='STUDENT RECORD BY SD'!E3 -> RANI2 | H6: ='STUDENT RECORD BY SD'!G3 -> king2 | I6: ='STUDENT RECORD BY SD'!H3 -> queen2 | J6: ='STUDENT RECORD BY SD'!I3 -> F | K6: ='STUDENT RECORD BY SD'!J3 -> 2015-04-05 | L6: ='STUDENT RECORD BY SD'!O3 -> OBC | M6: N | N6: =IF(AB6>=2021,10,"") ->  | O6: =IF(L6="GEN",AG6,AH6) ->  | P6: =IF(B6>8,IF(J6="M",10,IF(J6="F",5))," ") ->  | Q6: =IF(B6=9,50,IF(B6=10,50,"")) ->  | R6: =AF6 ->  | S6: =IF(B6>8,IF(J6="m",10,IF(J6="F",5)),"") ->  | T6: =IF(B6<9,"",VLOOKUP(B6,MASTER!$B$10:$R$17,16,0)) ->  | V6: 0 | AA6: 00:00:00 | AB6: =YEAR(AA6) -> 1900 | AE6: =IF(B5<9,"",IF(MASTER!$R$23="YES",100)) ->  | AG6: =IF(B6=9,200,IF(B6=10,200,IF(B6=11,300,IF(B6=12,300,"")))) ->  | AH6: =IF(AG6="","",AG6/2) ->  | AK6: =VLOOKUP(B6:B801,MASTER!$B$10:$R$17,16,0) ->  | AL6: =B6 -> 2 | AM6: =C6 -> A | AS6: ='STUDENT RECORD BY SD'!A4 -> 2 | AT6: ='STUDENT RECORD BY SD'!B4 -> A | AU6: ='STUDENT RECORD BY SD'!C4 -> 4860 | AV6: ='STUDENT RECORD BY SD'!D4 -> 00:00:00 | AW6: ='STUDENT RECORD BY SD'!E4 -> RANI3 | AX6: ='STUDENT RECORD BY SD'!F4 -> 0 | AY6: ='STUDENT RECORD BY SD'!G4 -> king3 | AZ6: ='STUDENT RECORD BY SD'!H4 -> queen3 | BA6: ='STUDENT RECORD BY SD'!I4 -> M | BB6: ='STUDENT RECORD BY SD'!J4 -> 2014-08-25 | BC6: ='STUDENT RECORD BY SD'!K4 -> 0 | BD6: ='STUDENT RECORD BY SD'!L4 -> 0 | BE6: ='STUDENT RECORD BY SD'!M4 -> 0 | BF6: ='STUDENT RECORD BY SD'!N4 -> 0 | BG6: ='STUDENT RECORD BY SD'!O4 -> GEN | BH6: ='STUDENT RECORD BY SD'!P4 -> 0 | BI6: ='STUDENT RECORD BY SD'!Q4 -> 0 | BJ6: ='STUDENT RECORD BY SD'!R4 -> GOVT. SENIOR SECONDARY SCHOOL ALNIYAWAS (219445) | BK6: ='STUDENT RECORD BY SD'!S4 -> 8140200308 | BL6: ='STUDENT RECORD BY SD'!T4 -> 0 | BM6: ='STUDENT RECORD BY SD'!U4 -> 0 | BN6: ='STUDENT RECORD BY SD'!V4 -> 9828120699 | BO6: ='STUDENT RECORD BY SD'!W4 -> VP-ALNIYAWAS | BP6: ='STUDENT RECORD BY SD'!X4 -> 0 | BQ6: ='STUDENT RECORD BY SD'!Y4 -> N | BR6: ='STUDENT RECORD BY SD'!Z4 -> Y | BS6: ='STUDENT RECORD BY SD'!AA4 -> 0 | BT6: ='STUDENT RECORD BY SD'!AB4 -> 7 | BU6: ='STUDENT RECORD BY SD'!AC4 -> 0 | BV6: ='STUDENT RECORD BY SD'!AD4 -> 1 | BW6: 2 | BX6: A
A7: =IF(B7="","",ROWS($A$5:A7)) -> 3 | B7: ='STUDENT RECORD BY SD'!A4 -> 2 | C7: ='STUDENT RECORD BY SD'!B4 -> A | E7: ='STUDENT RECORD BY SD'!C4 -> 4860 | F7: ='STUDENT RECORD BY SD'!D4 -> 00:00:00 | G7: ='STUDENT RECORD BY SD'!E4 -> RANI3 | H7: ='STUDENT RECORD BY SD'!G4 -> king3 | I7: ='STUDENT RECORD BY SD'!H4 -> queen3 | J7: ='STUDENT RECORD BY SD'!I4 -> M | K7: ='STUDENT RECORD BY SD'!J4 -> 2014-08-25 | L7: ='STUDENT RECORD BY SD'!O4 -> GEN | M7: =IF(F7<1-7-2020,"Y","N") -> N | T7: =IF(B7<9,"",VLOOKUP(B7,MASTER!$B$10:$R$17,16,0)) ->  | V7: 0 | AA7: 00:00:00 | AB7: 1900 | AE7: =IF(B6<9,"",IF(MASTER!$R$23="YES",100)) ->  | AK7: =VLOOKUP(B7:B802,MASTER!$B$10:$R$17,16,0) ->  | AL7: 2 | AM7: A | AS7: ='STUDENT RECORD BY SD'!A5 -> 2 | AT7: ='STUDENT RECORD BY SD'!B5 -> A | AU7: ='STUDENT RECORD BY SD'!C5 -> 4791 | AV7: ='STUDENT RECORD BY SD'!D5 -> 2020-07-04 | AW7: ='STUDENT RECORD BY SD'!E5 -> RANI4 | AX7: ='STUDENT RECORD BY SD'!F5 -> 0 | AY7: ='STUDENT RECORD BY SD'!G5 -> king4 | AZ7: ='STUDENT RECORD BY SD'!H5 -> queen4 | BA7: ='STUDENT RECORD BY SD'!I5 -> F | BB7: ='STUDENT RECORD BY SD'!J5 -> 2015-04-09 | BC7: ='STUDENT RECORD BY SD'!K5 -> 0 | BD7: ='STUDENT RECORD BY SD'!L5 -> 0 | BE7: ='STUDENT RECORD BY SD'!M5 -> 0 | BF7: ='STUDENT RECORD BY SD'!N5 -> 0 | BG7: ='STUDENT RECORD BY SD'!O5 -> SC | BH7: ='STUDENT RECORD BY SD'!P5 -> Hindu | BI7: ='STUDENT RECORD BY SD'!Q5 -> 0 | BJ7: ='STUDENT RECORD BY SD'!R5 -> GOVT. SENIOR SECONDARY SCHOOL ALNIYAWAS (219445) | BK7: ='STUDENT RECORD BY SD'!S5 -> 8140200308 | BL7: ='STUDENT RECORD BY SD'!T5 -> 0 | BM7: ='STUDENT RECORD BY SD'!U5 -> 0 | BN7: ='STUDENT RECORD BY SD'!V5 -> 9828120700 | BO7: ='STUDENT RECORD BY SD'!W5 -> VP-ALNIYAWAS | BP7: ='STUDENT RECORD BY SD'!X5 -> 25000 | BQ7: ='STUDENT RECORD BY SD'!Y5 -> N | BR7: ='STUDENT RECORD BY SD'!Z5 -> N | BS7: ='STUDENT RECORD BY SD'!AA5 -> No | BT7: ='STUDENT RECORD BY SD'!AB5 -> 6 | BU7: ='STUDENT RECORD BY SD'!AC5 -> None | BV7: ='STUDENT RECORD BY SD'!AD5 -> 1 | BW7: 2 | BX7: A
A8: =IF(B8="","",ROWS($A$5:A8)) -> 4 | B8: ='STUDENT RECORD BY SD'!A5 -> 2 | C8: ='STUDENT RECORD BY SD'!B5 -> A | E8: ='STUDENT RECORD BY SD'!C5 -> 4791 | F8: ='STUDENT RECORD BY SD'!D5 -> 2020-07-04 | G8: ='STUDENT RECORD BY SD'!E5 -> RANI4 | H8: ='STUDENT RECORD BY SD'!G5 -> king4 | I8: ='STUDENT RECORD BY SD'!H5 -> queen4 | J8: ='STUDENT RECORD BY SD'!I5 -> F | K8: ='STUDENT RECORD BY SD'!J5 -> 2015-04-09 | L8: ='STUDENT RECORD BY SD'!O5 -> SC | M8: N | T8: =IF(B8<9,"",VLOOKUP(B8,MASTER!$B$10:$R$17,16,0)) ->  | V8: 0 | AA8: 2020-07-04 | AB8: 2020 | AE8: =IF(B7<9,"",IF(MASTER!$R$23="YES",100)) ->  | AK8: =VLOOKUP(B8:B803,MASTER!$B$10:$R$17,16,0) ->  | AL8: 2 | AM8: A | AS8: ='STUDENT RECORD BY SD'!A6 -> 2 | AT8: ='STUDENT RECORD BY SD'!B6 -> A | AU8: ='STUDENT RECORD BY SD'!C6 -> 4864 | AV8: ='STUDENT RECORD BY SD'!D6 -> 00:00:00 | AW8: ='STUDENT RECORD BY SD'!E6 -> RANI5 | AX8: ='STUDENT RECORD BY SD'!F6 -> 0 | AY8: ='STUDENT RECORD BY SD'!G6 -> king5 | AZ8: ='STUDENT RECORD BY SD'!H6 -> queen5 | BA8: ='STUDENT RECORD BY SD'!I6 -> M | BB8: ='STUDENT RECORD BY SD'!J6 -> 2014-02-05 | BC8: ='STUDENT RECORD BY SD'!K6 -> 0 | BD8: ='STUDENT RECORD BY SD'!L6 -> 0 | BE8: ='STUDENT RECORD BY SD'!M6 -> 0 | BF8: ='STUDENT RECORD BY SD'!N6 -> 0 | BG8: ='STUDENT RECORD BY SD'!O6 -> OBC | BH8: ='STUDENT RECORD BY SD'!P6 -> 0 | BI8: ='STUDENT RECORD BY SD'!Q6 -> 0 | BJ8: ='STUDENT RECORD BY SD'!R6 -> GOVT. SENIOR SECONDARY SCHOOL ALNIYAWAS (219445) | BK8: ='STUDENT RECORD BY SD'!S6 -> 8140200308 | BL8: ='STUDENT RECORD BY SD'!T6 -> 0 | BM8: ='STUDENT RECORD BY SD'!U6 -> 0 | BN8: ='STUDENT RECORD BY SD'!V6 -> 9828120701 | BO8: ='STUDENT RECORD BY SD'!W6 -> VP-ALNIYAWAS | BP8: ='STUDENT RECORD BY SD'!X6 -> 0 | BQ8: ='STUDENT RECORD BY SD'!Y6 -> N | BR8: ='STUDENT RECORD BY SD'!Z6 -> Y | BS8: ='STUDENT RECORD BY SD'!AA6 -> 0 | BT8: ='STUDENT RECORD BY SD'!AB6 -> 7 | BU8: ='STUDENT RECORD BY SD'!AC6 -> 0 | BV8: ='STUDENT RECORD BY SD'!AD6 -> 0 | BW8: 2 | BX8: A
A9: =IF(B9="","",ROWS($A$5:A9)) -> 5 | B9: ='STUDENT RECORD BY SD'!A6 -> 2 | C9: ='STUDENT RECORD BY SD'!B6 -> A | E9: ='STUDENT RECORD BY SD'!C6 -> 4864 | F9: ='STUDENT RECORD BY SD'!D6 -> 00:00:00 | G9: ='STUDENT RECORD BY SD'!E6 -> RANI5 | H9: ='STUDENT RECORD BY SD'!G6 -> king5 | I9: ='STUDENT RECORD BY SD'!H6 -> queen5 | J9: ='STUDENT RECORD BY SD'!I6 -> M | K9: ='STUDENT RECORD BY SD'!J6 -> 2014-02-05 | L9: ='STUDENT RECORD BY SD'!O6 -> OBC | M9: N | T9: =IF(B9<9,"",VLOOKUP(B9,MASTER!$B$10:$R$17,16,0)) ->  | V9: 0 | AA9: 00:00:00 | AB9: 1900 | AE9: =IF(B8<9,"",IF(MASTER!$R$23="YES",100)) ->  | AK9: =VLOOKUP(B9:B804,MASTER!$B$10:$R$17,16,0) ->  | AL9: 2 | AM9: A | AS9: ='STUDENT RECORD BY SD'!A7 -> 2 | AT9: ='STUDENT RECORD BY SD'!B7 -> A | AU9: ='STUDENT RECORD BY SD'!C7 -> 4865 | AV9: ='STUDENT RECORD BY SD'!D7 -> 00:00:00 | AW9: ='STUDENT RECORD BY SD'!E7 -> RANI6 | AX9: ='STUDENT RECORD BY SD'!F7 -> 0 | AY9: ='STUDENT RECORD BY SD'!G7 -> king6 | AZ9: ='STUDENT RECORD BY SD'!H7 -> queen6 | BA9: ='STUDENT RECORD BY SD'!I7 -> F | BB9: ='STUDENT RECORD BY SD'!J7 -> 2015-06-16 | BC9: ='STUDENT RECORD BY SD'!K7 -> 0 | BD9: ='STUDENT RECORD BY SD'!L7 -> 0 | BE9: ='STUDENT RECORD BY SD'!M7 -> 0 | BF9: ='STUDENT RECORD BY SD'!N7 -> 0 | BG9: ='STUDENT RECORD BY SD'!O7 -> OBC | BH9: ='STUDENT RECORD BY SD'!P7 -> 0 | BI9: ='STUDENT RECORD BY SD'!Q7 -> 0 | BJ9: ='STUDENT RECORD BY SD'!R7 -> GOVT. SENIOR SECONDARY SCHOOL ALNIYAWAS (219445) | BK9: ='STUDENT RECORD BY SD'!S7 -> 8140200308 | BL9: ='STUDENT RECORD BY SD'!T7 -> 0 | BM9: ='STUDENT RECORD BY SD'!U7 -> 0 | BN9: ='STUDENT RECORD BY SD'!V7 -> 9828120702 | BO9: ='STUDENT RECORD BY SD'!W7 -> VP-ALNIYAWAS | BP9: ='STUDENT RECORD BY SD'!X7 -> 0 | BQ9: ='STUDENT RECORD BY SD'!Y7 -> N | BR9: ='STUDENT RECORD BY SD'!Z7 -> Y | BS9: ='STUDENT RECORD BY SD'!AA7 -> 0 | BT9: ='STUDENT RECORD BY SD'!AB7 -> 6 | BU9: ='STUDENT RECORD BY SD'!AC7 -> 0 | BV9: ='STUDENT RECORD BY SD'!AD7 -> 0 | BW9: 2 | BX9: A
A10: =IF(B10="","",ROWS($A$5:A10)) -> 6 | B10: ='STUDENT RECORD BY SD'!A7 -> 2 | C10: ='STUDENT RECORD BY SD'!B7 -> A | E10: ='STUDENT RECORD BY SD'!C7 -> 4865 | F10: ='STUDENT RECORD BY SD'!D7 -> 00:00:00 | G10: ='STUDENT RECORD BY SD'!E7 -> RANI6 | H10: ='STUDENT RECORD BY SD'!G7 -> king6 | I10: ='STUDENT RECORD BY SD'!H7 -> queen6 | J10: ='STUDENT RECORD BY SD'!I7 -> F | K10: ='STUDENT RECORD BY SD'!J7 -> 2015-06-16 | L10: ='STUDENT RECORD BY SD'!O7 -> OBC | M10: N | T10: =IF(B10<9,"",VLOOKUP(B10,MASTER!$B$10:$R$17,16,0)) ->  | V10: 0 | AA10: 00:00:00 | AB10: 1900 | AE10: =IF(B9<9,"",IF(MASTER!$R$23="YES",100)) ->  | AK10: =VLOOKUP(B10:B805,MASTER!$B$10:$R$17,16,0) ->  | AL10: 2 | AM10: A | AS10: ='STUDENT RECORD BY SD'!A8 -> 2 | AT10: ='STUDENT RECORD BY SD'!B8 -> A | AU10: ='STUDENT RECORD BY SD'!C8 -> 4795 | AV10: ='STUDENT RECORD BY SD'!D8 -> 00:00:00 | AW10: ='STUDENT RECORD BY SD'!E8 -> RANI7 | AX10: ='STUDENT RECORD BY SD'!F8 -> 0 | AY10: ='STUDENT RECORD BY SD'!G8 -> king7 | AZ10: ='STUDENT RECORD BY SD'!H8 -> queen7 | BA10: ='STUDENT RECORD BY SD'!I8 -> F | BB10: ='STUDENT RECORD BY SD'!J8 -> 2012-08-15 | BC10: ='STUDENT RECORD BY SD'!K8 -> 0 | BD10: ='STUDENT RECORD BY SD'!L8 -> 0 | BE10: ='STUDENT RECORD BY SD'!M8 -> 0 | BF10: ='STUDENT RECORD BY SD'!N8 -> 0 | BG10: ='STUDENT RECORD BY SD'!O8 -> SBC | BH10: ='STUDENT RECORD BY SD'!P8 -> 0 | BI10: ='STUDENT RECORD BY SD'!Q8 -> 0 | BJ10: ='STUDENT RECORD BY SD'!R8 -> GOVT. SENIOR SECONDARY SCHOOL ALNIYAWAS (219445) | BK10: ='STUDENT RECORD BY SD'!S8 -> 8140200308 | BL10: ='STUDENT RECORD BY SD'!T8 -> 0 | BM10: ='STUDENT RECORD BY SD'!U8 -> 0 | BN10: ='STUDENT RECORD BY SD'!V8 -> 9828120703 | BO10: ='STUDENT RECORD BY SD'!W8 -> VP-ALNIYAWAS | BP10: ='STUDENT RECORD BY SD'!X8 -> 0 | BQ10: ='STUDENT RECORD BY SD'!Y8 -> N | BR10: ='STUDENT RECORD BY SD'!Z8 -> Y | BS10: ='STUDENT RECORD BY SD'!AA8 -> 0 | BT10: ='STUDENT RECORD BY SD'!AB8 -> 9 | BU10: ='STUDENT RECORD BY SD'!AC8 -> 0 | BV10: ='STUDENT RECORD BY SD'!AD8 -> 1 | BW10: 2 | BX10: A
A11: =IF(B11="","",ROWS($A$5:A11)) -> 7 | B11: ='STUDENT RECORD BY SD'!A8 -> 2 | C11: ='STUDENT RECORD BY SD'!B8 -> A | E11: ='STUDENT RECORD BY SD'!C8 -> 4795 | F11: ='STUDENT RECORD BY SD'!D8 -> 00:00:00 | G11: ='STUDENT RECORD BY SD'!E8 -> RANI7 | H11: ='STUDENT RECORD BY SD'!G8 -> king7 | I11: ='STUDENT RECORD BY SD'!H8 -> queen7 | J11: ='STUDENT RECORD BY SD'!I8 -> F | K11: ='STUDENT RECORD BY SD'!J8 -> 2012-08-15 | L11: ='STUDENT RECORD BY SD'!O8 -> SBC | M11: N | T11: =IF(B11<9,"",VLOOKUP(B11,MASTER!$B$10:$R$17,16,0)) ->  | V11: 0 | AA11: 00:00:00 | AB11: 1900 | AE11: =IF(B10<9,"",IF(MASTER!$R$23="YES",100)) ->  | AK11: =VLOOKUP(B11:B806,MASTER!$B$10:$R$17,16,0) ->  | AL11: 2 | AM11: A | AS11: ='STUDENT RECORD BY SD'!A9 -> 2 | AT11: ='STUDENT RECORD BY SD'!B9 -> A | AU11: ='STUDENT RECORD BY SD'!C9 -> 4793 | AV11: ='STUDENT RECORD BY SD'!D9 -> 2020-07-14 | AW11: ='STUDENT RECORD BY SD'!E9 -> RANI8 | AX11: ='STUDENT RECORD BY SD'!F9 -> 0 | AY11: ='STUDENT RECORD BY SD'!G9 -> king8 | AZ11: ='STUDENT RECORD BY SD'!H9 -> queen8 | BA11: ='STUDENT RECORD BY SD'!I9 -> M | BB11: ='STUDENT RECORD BY SD'!J9 -> 2013-11-26 | BC11: ='STUDENT RECORD BY SD'!K9 -> 0 | BD11: ='STUDENT RECORD BY SD'!L9 -> 0 | BE11: ='STUDENT RECORD BY SD'!M9 -> 0 | BF11: ='STUDENT RECORD BY SD'!N9 -> 0 | BG11: ='STUDENT RECORD BY SD'!O9 -> OBC | BH11: ='STUDENT RECORD BY SD'!P9 -> Muslim | BI11: ='STUDENT RECORD BY SD'!Q9 -> 0 | BJ11: ='STUDENT RECORD BY SD'!R9 -> GOVT. SENIOR SECONDARY SCHOOL ALNIYAWAS (219445) | BK11: ='STUDENT RECORD BY SD'!S9 -> 8140200308 | BL11: ='STUDENT RECORD BY SD'!T9 -> 0 | BM11: ='STUDENT RECORD BY SD'!U9 -> 0 | BN11: ='STUDENT RECORD BY SD'!V9 -> 9828120704 | BO11: ='STUDENT RECORD BY SD'!W9 -> VP-ALNIYAWAS | BP11: ='STUDENT RECORD BY SD'!X9 -> 40000 | BQ11: ='STUDENT RECORD BY SD'!Y9 -> N | BR11: ='STUDENT RECORD BY SD'!Z9 -> N | BS11: ='STUDENT RECORD BY SD'!AA9 -> Yes | BT11: ='STUDENT RECORD BY SD'!AB9 -> 8 | BU11: ='STUDENT RECORD BY SD'!AC9 -> None | BV11: ='STUDENT RECORD BY SD'!AD9 -> 0 | BW11: 2 | BX11: A
A12: =IF(B12="","",ROWS($A$5:A12)) -> 8 | B12: ='STUDENT RECORD BY SD'!A9 -> 2 | C12: ='STUDENT RECORD BY SD'!B9 -> A | E12: ='STUDENT RECORD BY SD'!C9 -> 4793 | F12: ='STUDENT RECORD BY SD'!D9 -> 2020-07-14 | G12: ='STUDENT RECORD BY SD'!E9 -> RANI8 | H12: ='STUDENT RECORD BY SD'!G9 -> king8 | I12: ='STUDENT RECORD BY SD'!H9 -> queen8 | J12: ='STUDENT RECORD BY SD'!I9 -> M | K12: ='STUDENT RECORD BY SD'!J9 -> 2013-11-26 | L12: ='STUDENT RECORD BY SD'!O9 -> OBC | M12: N | T12: =IF(B12<9,"",VLOOKUP(B12,MASTER!$B$10:$R$17,16,0)) ->  | V12: 0 | AA12: 2020-07-14 | AB12: 2020 | AE12: =IF(B11<9,"",IF(MASTER!$R$23="YES",100)) ->  | AK12: =VLOOKUP(B12:B807,MASTER!$B$10:$R$17,16,0) ->  | AL12: 2 | AM12: A | AS12: ='STUDENT RECORD BY SD'!A10 -> 2 | AT12: ='STUDENT RECORD BY SD'!B10 -> A | AU12: ='STUDENT RECORD BY SD'!C10 -> 4805 | AV12: ='STUDENT RECORD BY SD'!D10 -> 00:00:00 | AW12: ='STUDENT RECORD BY SD'!E10 -> RANI9 | AX12: ='STUDENT RECORD BY SD'!F10 -> 0 | AY12: ='STUDENT RECORD BY SD'!G10 -> king9 | AZ12: ='STUDENT RECORD BY SD'!H10 -> queen9 | BA12: ='STUDENT RECORD BY SD'!I10 -> M | BB12: ='STUDENT RECORD BY SD'!J10 -> 2014-06-07 | BC12: ='STUDENT RECORD BY SD'!K10 -> 0 | BD12: ='STUDENT RECORD BY SD'!L10 -> 0 | BE12: ='STUDENT RECORD BY SD'!M10 -> 0 | BF12: ='STUDENT RECORD BY SD'!N10 -> 0 | BG12: ='STUDENT RECORD BY SD'!O10 -> OBC | BH12: ='STUDENT RECORD BY SD'!P10 -> 0 | BI12: ='STUDENT RECORD BY SD'!Q10 -> 0 | BJ12: ='STUDENT RECORD BY SD'!R10 -> GOVT. SENIOR SECONDARY SCHOOL ALNIYAWAS (219445) | BK12: ='STUDENT RECORD BY SD'!S10 -> 8140200308 | BL12: ='STUDENT RECORD BY SD'!T10 -> 0 | BM12: ='STUDENT RECORD BY SD'!U10 -> 0 | BN12: ='STUDENT RECORD BY SD'!V10 -> 9828120705 | BO12: ='STUDENT RECORD BY SD'!W10 -> VP-ALNIYAWAS | BP12: ='STUDENT RECORD BY SD'!X10 -> 0 | BQ12: ='STUDENT RECORD BY SD'!Y10 -> N | BR12: ='STUDENT RECORD BY SD'!Z10 -> Y | BS12: ='STUDENT RECORD BY SD'!AA10 -> 0 | BT12: ='STUDENT RECORD BY SD'!AB10 -> 7 | BU12: ='STUDENT RECORD BY SD'!AC10 -> 0 | BV12: ='STUDENT RECORD BY SD'!AD10 -> 0 | BW12: 2 | BX12: A
A13: =IF(B13="","",ROWS($A$5:A13)) -> 9 | B13: ='STUDENT RECORD BY SD'!A10 -> 2 | C13: ='STUDENT RECORD BY SD'!B10 -> A | E13: ='STUDENT RECORD BY SD'!C10 -> 4805 | F13: ='STUDENT RECORD BY SD'!D10 -> 00:00:00 | G13: ='STUDENT RECORD BY SD'!E10 -> RANI9 | H13: ='STUDENT RECORD BY SD'!G10 -> king9 | I13: ='STUDENT RECORD BY SD'!H10 -> queen9 | J13: ='STUDENT RECORD BY SD'!I10 -> M | K13: ='STUDENT RECORD BY SD'!J10 -> 2014-06-07 | L13: ='STUDENT RECORD BY SD'!O10 -> OBC | M13: N | T13: =IF(B13<9,"",VLOOKUP(B13,MASTER!$B$10:$R$17,16,0)) ->  | V13: 0 | AA13: 00:00:00 | AB13: 1900 | AE13: =IF(B12<9,"",IF(MASTER!$R$23="YES",100)) ->  | AK13: =VLOOKUP(B13:B808,MASTER!$B$10:$R$17,16,0) ->  | AL13: 2 | AM13: A | AS13: ='STUDENT RECORD BY SD'!A11 -> 2 | AT13: ='STUDENT RECORD BY SD'!B11 -> A | AU13: ='STUDENT RECORD BY SD'!C11 -> 4790 | AV13: ='STUDENT RECORD BY SD'!D11 -> 2020-07-04 | AW13: ='STUDENT RECORD BY SD'!E11 -> RANI10 | AX13: ='STUDENT RECORD BY SD'!F11 -> 0 | AY13: ='STUDENT RECORD BY SD'!G11 -> king10 | AZ13: ='STUDENT RECORD BY SD'!H11 -> queen10 | BA13: ='STUDENT RECORD BY SD'!I11 -> M | BB13: ='STUDENT RECORD BY SD'!J11 -> 2015-07-07 | BC13: ='STUDENT RECORD BY SD'!K11 -> 0 | BD13: ='STUDENT RECORD BY SD'!L11 -> 0 | BE13: ='STUDENT RECORD BY SD'!M11 -> 0 | BF13: ='STUDENT RECORD BY SD'!N11 -> 0 | BG13: ='STUDENT RECORD BY SD'!O11 -> SC | BH13: ='STUDENT RECORD BY SD'!P11 -> Hindu | BI13: ='STUDENT RECORD BY SD'!Q11 -> 0 | BJ13: ='STUDENT RECORD BY SD'!R11 -> GOVT. SENIOR SECONDARY SCHOOL ALNIYAWAS (219445) | BK13: ='STUDENT RECORD BY SD'!S11 -> 8140200308 | BL13: ='STUDENT RECORD BY SD'!T11 -> 0 | BM13: ='STUDENT RECORD BY SD'!U11 -> 0 | BN13: ='STUDENT RECORD BY SD'!V11 -> 9828120706 | BO13: ='STUDENT RECORD BY SD'!W11 -> VP-ALNIYAWAS | BP13: ='STUDENT RECORD BY SD'!X11 -> 25000 | BQ13: ='STUDENT RECORD BY SD'!Y11 -> N | BR13: ='STUDENT RECORD BY SD'!Z11 -> N | BS13: ='STUDENT RECORD BY SD'!AA11 -> No | BT13: ='STUDENT RECORD BY SD'!AB11 -> 6 | BU13: ='STUDENT RECORD BY SD'!AC11 -> None | BV13: ='STUDENT RECORD BY SD'!AD11 -> 1 | BW13: 2 | BX13: A
A14: =IF(B14="","",ROWS($A$5:A14)) -> 10 | B14: ='STUDENT RECORD BY SD'!A11 -> 2 | C14: ='STUDENT RECORD BY SD'!B11 -> A | E14: ='STUDENT RECORD BY SD'!C11 -> 4790 | F14: ='STUDENT RECORD BY SD'!D11 -> 2020-07-04 | G14: ='STUDENT RECORD BY SD'!E11 -> RANI10 | H14: ='STUDENT RECORD BY SD'!G11 -> king10 | I14: ='STUDENT RECORD BY SD'!H11 -> queen10 | J14: ='STUDENT RECORD BY SD'!I11 -> M | K14: ='STUDENT RECORD BY SD'!J11 -> 2015-07-07 | L14: ='STUDENT RECORD BY SD'!O11 -> SC | M14: N | T14: =IF(B14<9,"",VLOOKUP(B14,MASTER!$B$10:$R$17,16,0)) ->  | V14: 0 | AA14: 2020-07-04 | AB14: 2020 | AE14: =IF(B13<9,"",IF(MASTER!$R$23="YES",100)) ->  | AK14: =VLOOKUP(B14:B809,MASTER!$B$10:$R$17,16,0) ->  | AL14: 2 | AM14: A | AS14: ='STUDENT RECORD BY SD'!A12 -> 2 | AT14: ='STUDENT RECORD BY SD'!B12 -> A | AU14: ='STUDENT RECORD BY SD'!C12 -> 4788 | AV14: ='STUDENT RECORD BY SD'!D12 -> 2020-07-04 | AW14: ='STUDENT RECORD BY SD'!E12 -> RANI11 | AX14: ='STUDENT RECORD BY SD'!F12 -> 0 | AY14: ='STUDENT RECORD BY SD'!G12 -> king11 | AZ14: ='STUDENT RECORD BY SD'!H12 -> queen11 | BA14: ='STUDENT RECORD BY SD'!I12 -> M | BB14: ='STUDENT RECORD BY SD'!J12 -> 2014-07-26 | BC14: ='STUDENT RECORD BY SD'!K12 -> 0 | BD14: ='STUDENT RECORD BY SD'!L12 -> 0 | BE14: ='STUDENT RECORD BY SD'!M12 -> 0 | BF14: ='STUDENT RECORD BY SD'!N12 -> 0 | BG14: ='STUDENT RECORD BY SD'!O12 -> SC | BH14: ='STUDENT RECORD BY SD'!P12 -> Hindu | BI14: ='STUDENT RECORD BY SD'!Q12 -> 0 | BJ14: ='STUDENT RECORD BY SD'!R12 -> GOVT. SENIOR SECONDARY SCHOOL ALNIYAWAS (219445) | BK14: ='STUDENT RECORD BY SD'!S12 -> 8140200308 | BL14: ='STUDENT RECORD BY SD'!T12 -> XXXX8724 | BM14: ='STUDENT RECORD BY SD'!U12 -> 0 | BN14: ='STUDENT RECORD BY SD'!V12 -> 9828120707 | BO14: ='STUDENT RECORD BY SD'!W12 -> VP-ALNIYAWAS | BP14: ='STUDENT RECORD BY SD'!X12 -> 25000 | BQ14: ='STUDENT RECORD BY SD'!Y12 -> N | BR14: ='STUDENT RECORD BY SD'!Z12 -> N | BS14: ='STUDENT RECORD BY SD'!AA12 -> No | BT14: ='STUDENT RECORD BY SD'!AB12 -> 7 | BU14: ='STUDENT RECORD BY SD'!AC12 -> None | BV14: ='STUDENT RECORD BY SD'!AD12 -> 1 | BW14: 2 | BX14: A
A15: =IF(B15="","",ROWS($A$5:A15)) -> 11 | B15: ='STUDENT RECORD BY SD'!A12 -> 2 | C15: ='STUDENT RECORD BY SD'!B12 -> A | E15: ='STUDENT RECORD BY SD'!C12 -> 4788 | F15: ='STUDENT RECORD BY SD'!D12 -> 2020-07-04 | G15: ='STUDENT RECORD BY SD'!E12 -> RANI11 | H15: ='STUDENT RECORD BY SD'!G12 -> king11 | I15: ='STUDENT RECORD BY SD'!H12 -> queen11 | J15: ='STUDENT RECORD BY SD'!I12 -> M | K15: ='STUDENT RECORD BY SD'!J12 -> 2014-07-26 | L15: ='STUDENT RECORD BY SD'!O12 -> SC | M15: N | T15: =IF(B15<9,"",VLOOKUP(B15,MASTER!$B$10:$R$17,16,0)) ->  | V15: 0 | AA15: 2020-07-04 | AB15: 2020 | AE15: =IF(B14<9,"",IF(MASTER!$R$23="YES",100)) ->  | AK15: =VLOOKUP(B15:B810,MASTER!$B$10:$R$17,16,0) ->  | AL15: 2 | AM15: A | AS15: ='STUDENT RECORD BY SD'!A13 -> 2 | AT15: ='STUDENT RECORD BY SD'!B13 -> A | AU15: ='STUDENT RECORD BY SD'!C13 -> 4789 | AV15: ='STUDENT RECORD BY SD'!D13 -> 2020-07-04 | AW15: ='STUDENT RECORD BY SD'!E13 -> RANI12 | AX15: ='STUDENT RECORD BY SD'!F13 -> 0 | AY15: ='STUDENT RECORD BY SD'!G13 -> king12 | AZ15: ='STUDENT RECORD BY SD'!H13 -> queen12 | BA15: ='STUDENT RECORD BY SD'!I13 -> M | BB15: ='STUDENT RECORD BY SD'!J13 -> 2015-05-02 | BC15: ='STUDENT RECORD BY SD'!K13 -> 0 | BD15: ='STUDENT RECORD BY SD'!L13 -> 0 | BE15: ='STUDENT RECORD BY SD'!M13 -> 0 | BF15: ='STUDENT RECORD BY SD'!N13 -> 0 | BG15: ='STUDENT RECORD BY SD'!O13 -> OBC | BH15: ='STUDENT RECORD BY SD'!P13 -> Hindu | BI15: ='STUDENT RECORD BY SD'!Q13 -> 0 | BJ15: ='STUDENT RECORD BY SD'!R13 -> GOVT. SENIOR SECONDARY SCHOOL ALNIYAWAS (219445) | BK15: ='STUDENT RECORD BY SD'!S13 -> 8140200308 | BL15: ='STUDENT RECORD BY SD'!T13 -> 0 | BM15: ='STUDENT RECORD BY SD'!U13 -> 0 | BN15: ='STUDENT RECORD BY SD'!V13 -> 9828120708 | BO15: ='STUDENT RECORD BY SD'!W13 -> VP-ALNIYAWAS | BP15: ='STUDENT RECORD BY SD'!X13 -> 30000 | BQ15: ='STUDENT RECORD BY SD'!Y13 -> N | BR15: ='STUDENT RECORD BY SD'!Z13 -> N | BS15: ='STUDENT RECORD BY SD'!AA13 -> No | BT15: ='STUDENT RECORD BY SD'!AB13 -> 6 | BU15: ='STUDENT RECORD BY SD'!AC13 -> None | BV15: ='STUDENT RECORD BY SD'!AD13 -> 1 | BW15: 2 | BX15: A
A16: =IF(B16="","",ROWS($A$5:A16)) -> 12 | B16: ='STUDENT RECORD BY SD'!A13 -> 2 | C16: ='STUDENT RECORD BY SD'!B13 -> A | E16: ='STUDENT RECORD BY SD'!C13 -> 4789 | F16: ='STUDENT RECORD BY SD'!D13 -> 2020-07-04 | G16: ='STUDENT RECORD BY SD'!E13 -> RANI12 | H16: ='STUDENT RECORD BY SD'!G13 -> king12 | I16: ='STUDENT RECORD BY SD'!H13 -> queen12 | J16: ='STUDENT RECORD BY SD'!I13 -> M | K16: ='STUDENT RECORD BY SD'!J13 -> 2015-05-02 | L16: ='STUDENT RECORD BY SD'!O13 -> OBC | M16: N | T16: =IF(B16<9,"",VLOOKUP(B16,MASTER!$B$10:$R$17,16,0)) ->  | V16: 0 | AA16: 2020-07-04 | AB16: 2020 | AE16: =IF(B15<9,"",IF(MASTER!$R$23="YES",100)) ->  | AK16: =VLOOKUP(B16:B811,MASTER!$B$10:$R$17,16,0) ->  | AL16: 2 | AM16: A | AS16: ='STUDENT RECORD BY SD'!A14 -> 2 | AT16: ='STUDENT RECORD BY SD'!B14 -> A | AU16: ='STUDENT RECORD BY SD'!C14 -> 4859 | AV16: ='STUDENT RECORD BY SD'!D14 -> 00:00:00 | AW16: ='STUDENT RECORD BY SD'!E14 -> RANI13 | AX16: ='STUDENT RECORD BY SD'!F14 -> 0 | AY16: ='STUDENT RECORD BY SD'!G14 -> king13 | AZ16: ='STUDENT RECORD BY SD'!H14 -> queen13 | BA16: ='STUDENT RECORD BY SD'!I14 -> F | BB16: ='STUDENT RECORD BY SD'!J14 -> 2015-01-30 | BC16: ='STUDENT RECORD BY SD'!K14 -> 0 | BD16: ='STUDENT RECORD BY SD'!L14 -> 0 | BE16: ='STUDENT RECORD BY SD'!M14 -> 0 | BF16: ='STUDENT RECORD BY SD'!N14 -> 0 | BG16: ='STUDENT RECORD BY SD'!O14 -> OBC | BH16: ='STUDENT RECORD BY SD'!P14 -> 0 | BI16: ='STUDENT RECORD BY SD'!Q14 -> 0 | BJ16: ='STUDENT RECORD BY SD'!R14 -> GOVT. SENIOR SECONDARY SCHOOL ALNIYAWAS (219445) | BK16: ='STUDENT RECORD BY SD'!S14 -> 8140200308 | BL16: ='STUDENT RECORD BY SD'!T14 -> 0 | BM16: ='STUDENT RECORD BY SD'!U14 -> 0 | BN16: ='STUDENT RECORD BY SD'!V14 -> 9828120709 | BO16: ='STUDENT RECORD BY SD'!W14 -> VP-ALNIYAWAS | BP16: ='STUDENT RECORD BY SD'!X14 -> 0 | BQ16: ='STUDENT RECORD BY SD'!Y14 -> N | BR16: ='STUDENT RECORD BY SD'!Z14 -> Y | BS16: ='STUDENT RECORD BY SD'!AA14 -> 0 | BT16: ='STUDENT RECORD BY SD'!AB14 -> 6 | BU16: ='STUDENT RECORD BY SD'!AC14 -> 0 | BV16: ='STUDENT RECORD BY SD'!AD14 -> 1 | BW16: 2 | BX16: A
A17: =IF(B17="","",ROWS($A$5:A17)) -> 13 | B17: ='STUDENT RECORD BY SD'!A14 -> 2 | C17: ='STUDENT RECORD BY SD'!B14 -> A | E17: ='STUDENT RECORD BY SD'!C14 -> 4859 | F17: ='STUDENT RECORD BY SD'!D14 -> 00:00:00 | G17: ='STUDENT RECORD BY SD'!E14 -> RANI13 | H17: ='STUDENT RECORD BY SD'!G14 -> king13 | I17: ='STUDENT RECORD BY SD'!H14 -> queen13 | J17: ='STUDENT RECORD BY SD'!I14 -> F | K17: ='STUDENT RECORD BY SD'!J14 -> 2015-01-30 | L17: ='STUDENT RECORD BY SD'!O14 -> OBC | M17: N | T17: =IF(B17<9,"",VLOOKUP(B17,MASTER!$B$10:$R$17,16,0)) ->  | V17: 0 | AA17: 00:00:00 | AB17: 1900 | AE17: =IF(B16<9,"",IF(MASTER!$R$23="YES",100)) ->  | AK17: =VLOOKUP(B17:B812,MASTER!$B$10:$R$17,16,0) ->  | AL17: 2 | AM17: A | AS17: ='STUDENT RECORD BY SD'!A15 -> 2 | AT17: ='STUDENT RECORD BY SD'!B15 -> A | AU17: ='STUDENT RECORD BY SD'!C15 -> 4794 | AV17: ='STUDENT RECORD BY SD'!D15 -> 00:00:00 | AW17: ='STUDENT RECORD BY SD'!E15 -> RANI14 | AX17: ='STUDENT RECORD BY SD'!F15 -> 0 | AY17: ='STUDENT RECORD BY SD'!G15 -> king14 | AZ17: ='STUDENT RECORD BY SD'!H15 -> queen14 | BA17: ='STUDENT RECORD BY SD'!I15 -> M | BB17: ='STUDENT RECORD BY SD'!J15 -> 2014-08-30 | BC17: ='STUDENT RECORD BY SD'!K15 -> 0 | BD17: ='STUDENT RECORD BY SD'!L15 -> 0 | BE17: ='STUDENT RECORD BY SD'!M15 -> 0 | BF17: ='STUDENT RECORD BY SD'!N15 -> 0 | BG17: ='STUDENT RECORD BY SD'!O15 -> GEN | BH17: ='STUDENT RECORD BY SD'!P15 -> 0 | BI17: ='STUDENT RECORD BY SD'!Q15 -> 0 | BJ17: ='STUDENT RECORD BY SD'!R15 -> GOVT. SENIOR SECONDARY SCHOOL ALNIYAWAS (219445) | BK17: ='STUDENT RECORD BY SD'!S15 -> 8140200308 | BL17: ='STUDENT RECORD BY SD'!T15 -> 0 | BM17: ='STUDENT RECORD BY SD'!U15 -> 0 | BN17: ='STUDENT RECORD BY SD'!V15 -> 9828120710 | BO17: ='STUDENT RECORD BY SD'!W15 -> VP-ALNIYAWAS | BP17: ='STUDENT RECORD BY SD'!X15 -> 0 | BQ17: ='STUDENT RECORD BY SD'!Y15 -> N | BR17: ='STUDENT RECORD BY SD'!Z15 -> Y | BS17: ='STUDENT RECORD BY SD'!AA15 -> 0 | BT17: ='STUDENT RECORD BY SD'!AB15 -> 7 | BU17: ='STUDENT RECORD BY SD'!AC15 -> 0 | BV17: ='STUDENT RECORD BY SD'!AD15 -> 1 | BW17: 2 | BX17: A
A18: =IF(B18="","",ROWS($A$5:A18)) -> 14 | B18: ='STUDENT RECORD BY SD'!A15 -> 2 | C18: ='STUDENT RECORD BY SD'!B15 -> A | E18: ='STUDENT RECORD BY SD'!C15 -> 4794 | F18: ='STUDENT RECORD BY SD'!D15 -> 00:00:00 | G18: ='STUDENT RECORD BY SD'!E15 -> RANI14 | H18: ='STUDENT RECORD BY SD'!G15 -> king14 | I18: ='STUDENT RECORD BY SD'!H15 -> queen14 | J18: ='STUDENT RECORD BY SD'!I15 -> M | K18: ='STUDENT RECORD BY SD'!J15 -> 2014-08-30 | L18: ='STUDENT RECORD BY SD'!O15 -> GEN | M18: N | T18: =IF(B18<9,"",VLOOKUP(B18,MASTER!$B$10:$R$17,16,0)) ->  | V18: 0 | AA18: 00:00:00 | AB18: 1900 | AE18: =IF(B17<9,"",IF(MASTER!$R$23="YES",100)) ->  | AK18: =VLOOKUP(B18:B813,MASTER!$B$10:$R$17,16,0) ->  | AL18: 2 | AM18: A | AS18: ='STUDENT RECORD BY SD'!A16 -> 2 | AT18: ='STUDENT RECORD BY SD'!B16 -> A | AU18: ='STUDENT RECORD BY SD'!C16 -> 4874 | AV18: ='STUDENT RECORD BY SD'!D16 -> 00:00:00 | AW18: ='STUDENT RECORD BY SD'!E16 -> RANI15 | AX18: ='STUDENT RECORD BY SD'!F16 -> 0 | AY18: ='STUDENT RECORD BY SD'!G16 -> king15 | AZ18: ='STUDENT RECORD BY SD'!H16 -> queen15 | BA18: ='STUDENT RECORD BY SD'!I16 -> F | BB18: ='STUDENT RECORD BY SD'!J16 -> 2015-10-08 | BC18: ='STUDENT RECORD BY SD'!K16 -> 0 | BD18: ='STUDENT RECORD BY SD'!L16 -> 0 | BE18: ='STUDENT RECORD BY SD'!M16 -> 0 | BF18: ='STUDENT RECORD BY SD'!N16 -> 0 | BG18: ='STUDENT RECORD BY SD'!O16 -> OBC | BH18: ='STUDENT RECORD BY SD'!P16 -> 0 | BI18: ='STUDENT RECORD BY SD'!Q16 -> 0 | BJ18: ='STUDENT RECORD BY SD'!R16 -> GOVT. SENIOR SECONDARY SCHOOL ALNIYAWAS (219445) | BK18: ='STUDENT RECORD BY SD'!S16 -> 8140200308 | BL18: ='STUDENT RECORD BY SD'!T16 -> 0 | BM18: ='STUDENT RECORD BY SD'!U16 -> 0 | BN18: ='STUDENT RECORD BY SD'!V16 -> 9828120711 | BO18: ='STUDENT RECORD BY SD'!W16 -> VP-ALNIYAWAS | BP18: ='STUDENT RECORD BY SD'!X16 -> 0 | BQ18: ='STUDENT RECORD BY SD'!Y16 -> N | BR18: ='STUDENT RECORD BY SD'!Z16 -> Y | BS18: ='STUDENT RECORD BY SD'!AA16 -> 0 | BT18: ='STUDENT RECORD BY SD'!AB16 -> 6 | BU18: ='STUDENT RECORD BY SD'!AC16 -> 0 | BV18: ='STUDENT RECORD BY SD'!AD16 -> 0 | BW18: 2 | BX18: A
A19: =IF(B19="","",ROWS($A$5:A19)) -> 15 | B19: ='STUDENT RECORD BY SD'!A16 -> 2 | C19: ='STUDENT RECORD BY SD'!B16 -> A | E19: ='STUDENT RECORD BY SD'!C16 -> 4874 | F19: ='STUDENT RECORD BY SD'!D16 -> 00:00:00 | G19: ='STUDENT RECORD BY SD'!E16 -> RANI15 | H19: ='STUDENT RECORD BY SD'!G16 -> king15 | I19: ='STUDENT RECORD BY SD'!H16 -> queen15 | J19: ='STUDENT RECORD BY SD'!I16 -> F | K19: ='STUDENT RECORD BY SD'!J16 -> 2015-10-08 | L19: ='STUDENT RECORD BY SD'!O16 -> OBC | M19: N | T19: =IF(B19<9,"",VLOOKUP(B19,MASTER!$B$10:$R$17,16,0)) ->  | V19: 0 | AA19: 00:00:00 | AB19: 1900 | AE19: =IF(B18<9,"",IF(MASTER!$R$23="YES",100)) ->  | AK19: =VLOOKUP(B19:B814,MASTER!$B$10:$R$17,16,0) ->  | AL19: 2 | AM19: A | AS19: ='STUDENT RECORD BY SD'!A17 -> 2 | AT19: ='STUDENT RECORD BY SD'!B17 -> A | AU19: ='STUDENT RECORD BY SD'!C17 -> 4862 | AV19: ='STUDENT RECORD BY SD'!D17 -> 00:00:00 | AW19: ='STUDENT RECORD BY SD'!E17 -> RANI16 | AX19: ='STUDENT RECORD BY SD'!F17 -> 0 | AY19: ='STUDENT RECORD BY SD'!G17 -> king16 | AZ19: ='STUDENT RECORD BY SD'!H17 -> queen16 | BA19: ='STUDENT RECORD BY SD'!I17 -> F | BB19: ='STUDENT RECORD BY SD'!J17 -> 2015-01-02 | BC19: ='STUDENT RECORD BY SD'!K17 -> 0 | BD19: ='STUDENT RECORD BY SD'!L17 -> 0 | BE19: ='STUDENT RECORD BY SD'!M17 -> 0 | BF19: ='STUDENT RECORD BY SD'!N17 -> 0 | BG19: ='STUDENT RECORD BY SD'!O17 -> OBC | BH19: ='STUDENT RECORD BY SD'!P17 -> 0 | BI19: ='STUDENT RECORD BY SD'!Q17 -> 0 | BJ19: ='STUDENT RECORD BY SD'!R17 -> GOVT. SENIOR SECONDARY SCHOOL ALNIYAWAS (219445) | BK19: ='STUDENT RECORD BY SD'!S17 -> 8140200308 | BL19: ='STUDENT RECORD BY SD'!T17 -> 0 | BM19: ='STUDENT RECORD BY SD'!U17 -> 0 | BN19: ='STUDENT RECORD BY SD'!V17 -> 9828120712 | BO19: ='STUDENT RECORD BY SD'!W17 -> VP-ALNIYAWAS | BP19: ='STUDENT RECORD BY SD'!X17 -> 0 | BQ19: ='STUDENT RECORD BY SD'!Y17 -> N | BR19: ='STUDENT RECORD BY SD'!Z17 -> Y | BS19: ='STUDENT RECORD BY SD'!AA17 -> 0 | BT19: ='STUDENT RECORD BY SD'!AB17 -> 6 | BU19: ='STUDENT RECORD BY SD'!AC17 -> 0 | BV19: ='STUDENT RECORD BY SD'!AD17 -> 0 | BW19: 2 | BX19: A
A20: =IF(B20="","",ROWS($A$5:A20)) -> 16 | B20: ='STUDENT RECORD BY SD'!A17 -> 2 | C20: ='STUDENT RECORD BY SD'!B17 -> A | E20: ='STUDENT RECORD BY SD'!C17 -> 4862 | F20: ='STUDENT RECORD BY SD'!D17 -> 00:00:00 | G20: ='STUDENT RECORD BY SD'!E17 -> RANI16 | H20: ='STUDENT RECORD BY SD'!G17 -> king16 | I20: ='STUDENT RECORD BY SD'!H17 -> queen16 | J20: ='STUDENT RECORD BY SD'!I17 -> F | K20: ='STUDENT RECORD BY SD'!J17 -> 2015-01-02 | L20: ='STUDENT RECORD BY SD'!O17 -> OBC | M20: N | T20: =IF(B20<9,"",VLOOKUP(B20,MASTER!$B$10:$R$17,16,0)) ->  | V20: 0 | AA20: 00:00:00 | AB20: 1900 | AE20: =IF(B19<9,"",IF(MASTER!$R$23="YES",100)) ->  | AK20: =VLOOKUP(B20:B815,MASTER!$B$10:$R$17,16,0) ->  | AL20: 2 | AM20: A | AS20: ='STUDENT RECORD BY SD'!A18 -> 2 | AT20: ='STUDENT RECORD BY SD'!B18 -> A | AU20: ='STUDENT RECORD BY SD'!C18 -> 4867 | AV20: ='STUDENT RECORD BY SD'!D18 -> 00:00:00 | AW20: ='STUDENT RECORD BY SD'!E18 -> RANI17 | AX20: ='STUDENT RECORD BY SD'!F18 -> 0 | AY20: ='STUDENT RECORD BY SD'!G18 -> king17 | AZ20: ='STUDENT RECORD BY SD'!H18 -> queen17 | BA20: ='STUDENT RECORD BY SD'!I18 -> F | BB20: ='STUDENT RECORD BY SD'!J18 -> 2015-09-15 | BC20: ='STUDENT RECORD BY SD'!K18 -> 0 | BD20: ='STUDENT RECORD BY SD'!L18 -> 0 | BE20: ='STUDENT RECORD BY SD'!M18 -> 0 | BF20: ='STUDENT RECORD BY SD'!N18 -> 0 | BG20: ='STUDENT RECORD BY SD'!O18 -> OBC | BH20: ='STUDENT RECORD BY SD'!P18 -> 0 | BI20: ='STUDENT RECORD BY SD'!Q18 -> 0 | BJ20: ='STUDENT RECORD BY SD'!R18 -> GOVT. SENIOR SECONDARY SCHOOL ALNIYAWAS (219445) | BK20: ='STUDENT RECORD BY SD'!S18 -> 8140200308 | BL20: ='STUDENT RECORD BY SD'!T18 -> 0 | BM20: ='STUDENT RECORD BY SD'!U18 -> 0 | BN20: ='STUDENT RECORD BY SD'!V18 -> 9828120713 | BO20: ='STUDENT RECORD BY SD'!W18 -> VP-ALNIYAWAS | BP20: ='STUDENT RECORD BY SD'!X18 -> 0 | BQ20: ='STUDENT RECORD BY SD'!Y18 -> N | BR20: ='STUDENT RECORD BY SD'!Z18 -> Y | BS20: ='STUDENT RECORD BY SD'!AA18 -> 0 | BT20: ='STUDENT RECORD BY SD'!AB18 -> 6 | BU20: ='STUDENT RECORD BY SD'!AC18 -> 0 | BV20: ='STUDENT RECORD BY SD'!AD18 -> 0 | BW20: 2 | BX20: A
A21: =IF(B21="","",ROWS($A$5:A21)) -> 17 | B21: ='STUDENT RECORD BY SD'!A18 -> 2 | C21: ='STUDENT RECORD BY SD'!B18 -> A | E21: ='STUDENT RECORD BY SD'!C18 -> 4867 | F21: ='STUDENT RECORD BY SD'!D18 -> 00:00:00 | G21: ='STUDENT RECORD BY SD'!E18 -> RANI17 | H21: ='STUDENT RECORD BY SD'!G18 -> king17 | I21: ='STUDENT RECORD BY SD'!H18 -> queen17 | J21: ='STUDENT RECORD BY SD'!I18 -> F | K21: ='STUDENT RECORD BY SD'!J18 -> 2015-09-15 | L21: ='STUDENT RECORD BY SD'!O18 -> OBC | M21: N | T21: =IF(B21<9,"",VLOOKUP(B21,MASTER!$B$10:$R$17,16,0)) ->  | V21: 0 | AA21: 00:00:00 | AB21: 1900 | AE21: =IF(B20<9,"",IF(MASTER!$R$23="YES",100)) ->  | AK21: =VLOOKUP(B21:B816,MASTER!$B$10:$R$17,16,0) ->  | AL21: 2 | AM21: A | AS21: ='STUDENT RECORD BY SD'!A19 -> 2 | AT21: ='STUDENT RECORD BY SD'!B19 -> A | AU21: ='STUDENT RECORD BY SD'!C19 -> 4869 | AV21: ='STUDENT RECORD BY SD'!D19 -> 00:00:00 | AW21: ='STUDENT RECORD BY SD'!E19 -> RANI18 | AX21: ='STUDENT RECORD BY SD'!F19 -> 0 | AY21: ='STUDENT RECORD BY SD'!G19 -> king18 | AZ21: ='STUDENT RECORD BY SD'!H19 -> queen18 | BA21: ='STUDENT RECORD BY SD'!I19 -> F | BB21: ='STUDENT RECORD BY SD'!J19 -> 2014-03-21 | BC21: ='STUDENT RECORD BY SD'!K19 -> 0 | BD21: ='STUDENT RECORD BY SD'!L19 -> 0 | BE21: ='STUDENT RECORD BY SD'!M19 -> 0 | BF21: ='STUDENT RECORD BY SD'!N19 -> 0 | BG21: ='STUDENT RECORD BY SD'!O19 -> OBC | BH21: ='STUDENT RECORD BY SD'!P19 -> 0 | BI21: ='STUDENT RECORD BY SD'!Q19 -> 0 | BJ21: ='STUDENT RECORD BY SD'!R19 -> GOVT. SENIOR SECONDARY SCHOOL ALNIYAWAS (219445) | BK21: ='STUDENT RECORD BY SD'!S19 -> 8140200308 | BL21: ='STUDENT RECORD BY SD'!T19 -> 0 | BM21: ='STUDENT RECORD BY SD'!U19 -> 0 | BN21: ='STUDENT RECORD BY SD'!V19 -> 9828120714 | BO21: ='STUDENT RECORD BY SD'!W19 -> VP-ALNIYAWAS | BP21: ='STUDENT RECORD BY SD'!X19 -> 0 | BQ21: ='STUDENT RECORD BY SD'!Y19 -> N | BR21: ='STUDENT RECORD BY SD'!Z19 -> Y | BS21: ='STUDENT RECORD BY SD'!AA19 -> 0 | BT21: ='STUDENT RECORD BY SD'!AB19 -> 7 | BU21: ='STUDENT RECORD BY SD'!AC19 -> 0 | BV21: ='STUDENT RECORD BY SD'!AD19 -> 0 | BW21: 2 | BX21: A
A22: =IF(B22="","",ROWS($A$5:A22)) -> 18 | B22: ='STUDENT RECORD BY SD'!A19 -> 2 | C22: ='STUDENT RECORD BY SD'!B19 -> A | E22: ='STUDENT RECORD BY SD'!C19 -> 4869 | F22: ='STUDENT RECORD BY SD'!D19 -> 00:00:00 | G22: ='STUDENT RECORD BY SD'!E19 -> RANI18 | H22: ='STUDENT RECORD BY SD'!G19 -> king18 | I22: ='STUDENT RECORD BY SD'!H19 -> queen18 | J22: ='STUDENT RECORD BY SD'!I19 -> F | K22: ='STUDENT RECORD BY SD'!J19 -> 2014-03-21 | L22: ='STUDENT RECORD BY SD'!O19 -> OBC | M22: N | T22: =IF(B22<9,"",VLOOKUP(B22,MASTER!$B$10:$R$17,16,0)) ->  | V22: 0 | AA22: 00:00:00 | AB22: 1900 | AE22: =IF(B21<9,"",IF(MASTER!$R$23="YES",100)) ->  | AK22: =VLOOKUP(B22:B817,MASTER!$B$10:$R$17,16,0) ->  | AL22: 2 | AM22: A | AS22: ='STUDENT RECORD BY SD'!A20 -> 2 | AT22: ='STUDENT RECORD BY SD'!B20 -> A | AU22: ='STUDENT RECORD BY SD'!C20 -> 4868 | AV22: ='STUDENT RECORD BY SD'!D20 -> 00:00:00 | AW22: ='STUDENT RECORD BY SD'!E20 -> RANI19 | AX22: ='STUDENT RECORD BY SD'!F20 -> 0 | AY22: ='STUDENT RECORD BY SD'!G20 -> king19 | AZ22: ='STUDENT RECORD BY SD'!H20 -> queen19 | BA22: ='STUDENT RECORD BY SD'!I20 -> F | BB22: ='STUDENT RECORD BY SD'!J20 -> 2012-12-07 | BC22: ='STUDENT RECORD BY SD'!K20 -> 0 | BD22: ='STUDENT RECORD BY SD'!L20 -> 0 | BE22: ='STUDENT RECORD BY SD'!M20 -> 0 | BF22: ='STUDENT RECORD BY SD'!N20 -> 0 | BG22: ='STUDENT RECORD BY SD'!O20 -> OBC | BH22: ='STUDENT RECORD BY SD'!P20 -> 0 | BI22: ='STUDENT RECORD BY SD'!Q20 -> 0 | BJ22: ='STUDENT RECORD BY SD'!R20 -> GOVT. SENIOR SECONDARY SCHOOL ALNIYAWAS (219445) | BK22: ='STUDENT RECORD BY SD'!S20 -> 8140200308 | BL22: ='STUDENT RECORD BY SD'!T20 -> 0 | BM22: ='STUDENT RECORD BY SD'!U20 -> 0 | BN22: ='STUDENT RECORD BY SD'!V20 -> 9828120715 | BO22: ='STUDENT RECORD BY SD'!W20 -> VP-ALNIYAWAS | BP22: ='STUDENT RECORD BY SD'!X20 -> 0 | BQ22: ='STUDENT RECORD BY SD'!Y20 -> N | BR22: ='STUDENT RECORD BY SD'!Z20 -> Y | BS22: ='STUDENT RECORD BY SD'!AA20 -> 0 | BT22: ='STUDENT RECORD BY SD'!AB20 -> 9 | BU22: ='STUDENT RECORD BY SD'!AC20 -> 0 | BV22: ='STUDENT RECORD BY SD'!AD20 -> 0 | BW22: 2 | BX22: A
A23: =IF(B23="","",ROWS($A$5:A23)) -> 19 | B23: ='STUDENT RECORD BY SD'!A20 -> 2 | C23: ='STUDENT RECORD BY SD'!B20 -> A | E23: ='STUDENT RECORD BY SD'!C20 -> 4868 | F23: ='STUDENT RECORD BY SD'!D20 -> 00:00:00 | G23: ='STUDENT RECORD BY SD'!E20 -> RANI19 | H23: ='STUDENT RECORD BY SD'!G20 -> king19 | I23: ='STUDENT RECORD BY SD'!H20 -> queen19 | J23: ='STUDENT RECORD BY SD'!I20 -> F | K23: ='STUDENT RECORD BY SD'!J20 -> 2012-12-07 | L23: ='STUDENT RECORD BY SD'!O20 -> OBC | M23: N | T23: =IF(B23<9,"",VLOOKUP(B23,MASTER!$B$10:$R$17,16,0)) ->  | V23: 0 | AA23: 00:00:00 | AB23: 1900 | AE23: =IF(B22<9,"",IF(MASTER!$R$23="YES",100)) ->  | AK23: =VLOOKUP(B23:B818,MASTER!$B$10:$R$17,16,0) ->  | AL23: 2 | AM23: A | AS23: ='STUDENT RECORD BY SD'!A21 -> 2 | AT23: ='STUDENT RECORD BY SD'!B21 -> A | AU23: ='STUDENT RECORD BY SD'!C21 -> 4803 | AV23: ='STUDENT RECORD BY SD'!D21 -> 00:00:00 | AW23: ='STUDENT RECORD BY SD'!E21 -> RANI20 | AX23: ='STUDENT RECORD BY SD'!F21 -> 0 | AY23: ='STUDENT RECORD BY SD'!G21 -> king20 | AZ23: ='STUDENT RECORD BY SD'!H21 -> queen20 | BA23: ='STUDENT RECORD BY SD'!I21 -> M | BB23: ='STUDENT RECORD BY SD'!J21 -> 2014-12-04 | BC23: ='STUDENT RECORD BY SD'!K21 -> 0 | BD23: ='STUDENT RECORD BY SD'!L21 -> 0 | BE23: ='STUDENT RECORD BY SD'!M21 -> 0 | BF23: ='STUDENT RECORD BY SD'!N21 -> 0 | BG23: ='STUDENT RECORD BY SD'!O21 -> OBC | BH23: ='STUDENT RECORD BY SD'!P21 -> 0 | BI23: ='STUDENT RECORD BY SD'!Q21 -> 0 | BJ23: ='STUDENT RECORD BY SD'!R21 -> GOVT. SENIOR SECONDARY SCHOOL ALNIYAWAS (219445) | BK23: ='STUDENT RECORD BY SD'!S21 -> 8140200308 | BL23: ='STUDENT RECORD BY SD'!T21 -> 0 | BM23: ='STUDENT RECORD BY SD'!U21 -> 0 | BN23: ='STUDENT RECORD BY SD'!V21 -> 9828120716 | BO23: ='STUDENT RECORD BY SD'!W21 -> VP-ALNIYAWAS | BP23: ='STUDENT RECORD BY SD'!X21 -> 0 | BQ23: ='STUDENT RECORD BY SD'!Y21 -> N | BR23: ='STUDENT RECORD BY SD'!Z21 -> Y | BS23: ='STUDENT RECORD BY SD'!AA21 -> 0 | BT23: ='STUDENT RECORD BY SD'!AB21 -> 7 | BU23: ='STUDENT RECORD BY SD'!AC21 -> 0 | BV23: ='STUDENT RECORD BY SD'!AD21 -> 1 | BW23: 2 | BX23: A
A24: =IF(B24="","",ROWS($A$5:A24)) -> 20 | B24: ='STUDENT RECORD BY SD'!A21 -> 2 | C24: ='STUDENT RECORD BY SD'!B21 -> A | E24: ='STUDENT RECORD BY SD'!C21 -> 4803 | F24: ='STUDENT RECORD BY SD'!D21 -> 00:00:00 | G24: ='STUDENT RECORD BY SD'!E21 -> RANI20 | H24: ='STUDENT RECORD BY SD'!G21 -> king20 | I24: ='STUDENT RECORD BY SD'!H21 -> queen20 | J24: ='STUDENT RECORD BY SD'!I21 -> M | K24: ='STUDENT RECORD BY SD'!J21 -> 2014-12-04 | L24: ='STUDENT RECORD BY SD'!O21 -> OBC | M24: N | T24: =IF(B24<9,"",VLOOKUP(B24,MASTER!$B$10:$R$17,16,0)) ->  | V24: 0 | AA24: 00:00:00 | AB24: 1900 | AE24: =IF(B23<9,"",IF(MASTER!$R$23="YES",100)) ->  | AK24: =VLOOKUP(B24:B819,MASTER!$B$10:$R$17,16,0) ->  | AL24: 2 | AM24: A | AS24: ='STUDENT RECORD BY SD'!A22 -> 2 | AT24: ='STUDENT RECORD BY SD'!B22 -> A | AU24: ='STUDENT RECORD BY SD'!C22 -> 4807 | AV24: ='STUDENT RECORD BY SD'!D22 -> 00:00:00 | AW24: ='STUDENT RECORD BY SD'!E22 -> RANI21 | AX24: ='STUDENT RECORD BY SD'!F22 -> 0 | AY24: ='STUDENT RECORD BY SD'!G22 -> king21 | AZ24: ='STUDENT RECORD BY SD'!H22 -> queen21 | BA24: ='STUDENT RECORD BY SD'!I22 -> F | BB24: ='STUDENT RECORD BY SD'!J22 -> 2013-07-02 | BC24: ='STUDENT RECORD BY SD'!K22 -> 0 | BD24: ='STUDENT RECORD BY SD'!L22 -> 0 | BE24: ='STUDENT RECORD BY SD'!M22 -> 0 | BF24: ='STUDENT RECORD BY SD'!N22 -> 0 | BG24: ='STUDENT RECORD BY SD'!O22 -> OBC | BH24: ='STUDENT RECORD BY SD'!P22 -> 0 | BI24: ='STUDENT RECORD BY SD'!Q22 -> 0 | BJ24: ='STUDENT RECORD BY SD'!R22 -> GOVT. SENIOR SECONDARY SCHOOL ALNIYAWAS (219445) | BK24: ='STUDENT RECORD BY SD'!S22 -> 8140200308 | BL24: ='STUDENT RECORD BY SD'!T22 -> 0 | BM24: ='STUDENT RECORD BY SD'!U22 -> 0 | BN24: ='STUDENT RECORD BY SD'!V22 -> 9828120717 | BO24: ='STUDENT RECORD BY SD'!W22 -> VP-ALNIYAWAS | BP24: ='STUDENT RECORD BY SD'!X22 -> 0 | BQ24: ='STUDENT RECORD BY SD'!Y22 -> N | BR24: ='STUDENT RECORD BY SD'!Z22 -> Y | BS24: ='STUDENT RECORD BY SD'!AA22 -> 0 | BT24: ='STUDENT RECORD BY SD'!AB22 -> 8 | BU24: ='STUDENT RECORD BY SD'!AC22 -> 0 | BV24: ='STUDENT RECORD BY SD'!AD22 -> 1 | BW24: 2 | BX24: A
A25: =IF(B25="","",ROWS($A$5:A25)) -> 21 | B25: ='STUDENT RECORD BY SD'!A22 -> 2 | C25: ='STUDENT RECORD BY SD'!B22 -> A | E25: ='STUDENT RECORD BY SD'!C22 -> 4807 | F25: ='STUDENT RECORD BY SD'!D22 -> 00:00:00 | G25: ='STUDENT RECORD BY SD'!E22 -> RANI21 | H25: ='STUDENT RECORD BY SD'!G22 -> king21 | I25: ='STUDENT RECORD BY SD'!H22 -> queen21 | J25: ='STUDENT RECORD BY SD'!I22 -> F | K25: ='STUDENT RECORD BY SD'!J22 -> 2013-07-02 | L25: ='STUDENT RECORD BY SD'!O22 -> OBC | M25: N | T25: =IF(B25<9,"",VLOOKUP(B25,MASTER!$B$10:$R$17,16,0)) ->  | V25: 0 | AA25: 00:00:00 | AB25: 1900 | AE25: =IF(B24<9,"",IF(MASTER!$R$23="YES",100)) ->  | AK25: =VLOOKUP(B25:B820,MASTER!$B$10:$R$17,16,0) ->  | AL25: 2 | AM25: A | AS25: ='STUDENT RECORD BY SD'!A23 -> 2 | AT25: ='STUDENT RECORD BY SD'!B23 -> A | AU25: ='STUDENT RECORD BY SD'!C23 -> 4870 | AV25: ='STUDENT RECORD BY SD'!D23 -> 00:00:00 | AW25: ='STUDENT RECORD BY SD'!E23 -> RANI22 | AX25: ='STUDENT RECORD BY SD'!F23 -> 0 | AY25: ='STUDENT RECORD BY SD'!G23 -> king22 | AZ25: ='STUDENT RECORD BY SD'!H23 -> queen22 | BA25: ='STUDENT RECORD BY SD'!I23 -> F | BB25: ='STUDENT RECORD BY SD'!J23 -> 2015-04-07 | BC25: ='STUDENT RECORD BY SD'!K23 -> 0 | BD25: ='STUDENT RECORD BY SD'!L23 -> 0 | BE25: ='STUDENT RECORD BY SD'!M23 -> 0 | BF25: ='STUDENT RECORD BY SD'!N23 -> 0 | BG25: ='STUDENT RECORD BY SD'!O23 -> OBC | BH25: ='STUDENT RECORD BY SD'!P23 -> 0 | BI25: ='STUDENT RECORD BY SD'!Q23 -> 0 | BJ25: ='STUDENT RECORD BY SD'!R23 -> GOVT. SENIOR SECONDARY SCHOOL ALNIYAWAS (219445) | BK25: ='STUDENT RECORD BY SD'!S23 -> 8140200308 | BL25: ='STUDENT RECORD BY SD'!T23 -> 0 | BM25: ='STUDENT RECORD BY SD'!U23 -> 0 | BN25: ='STUDENT RECORD BY SD'!V23 -> 9828120718 | BO25: ='STUDENT RECORD BY SD'!W23 -> VP-ALNIYAWAS | BP25: ='STUDENT RECORD BY SD'!X23 -> 0 | BQ25: ='STUDENT RECORD BY SD'!Y23 -> N | BR25: ='STUDENT RECORD BY SD'!Z23 -> Y | BS25: ='STUDENT RECORD BY SD'!AA23 -> 0 | BT25: ='STUDENT RECORD BY SD'!AB23 -> 6 | BU25: ='STUDENT RECORD BY SD'!AC23 -> 0 | BV25: ='STUDENT RECORD BY SD'!AD23 -> 0 | BW25: 2 | BX25: A
A26: =IF(B26="","",ROWS($A$5:A26)) -> 22 | B26: ='STUDENT RECORD BY SD'!A23 -> 2 | C26: ='STUDENT RECORD BY SD'!B23 -> A | E26: ='STUDENT RECORD BY SD'!C23 -> 4870 | F26: ='STUDENT RECORD BY SD'!D23 -> 00:00:00 | G26: ='STUDENT RECORD BY SD'!E23 -> RANI22 | H26: ='STUDENT RECORD BY SD'!G23 -> king22 | I26: ='STUDENT RECORD BY SD'!H23 -> queen22 | J26: ='STUDENT RECORD BY SD'!I23 -> F | K26: ='STUDENT RECORD BY SD'!J23 -> 2015-04-07 | L26: ='STUDENT RECORD BY SD'!O23 -> OBC | M26: N | T26: =IF(B26<9,"",VLOOKUP(B26,MASTER!$B$10:$R$17,16,0)) ->  | V26: 0 | AA26: 00:00:00 | AB26: 1900 | AE26: =IF(B25<9,"",IF(MASTER!$R$23="YES",100)) ->  | AK26: =VLOOKUP(B26:B821,MASTER!$B$10:$R$17,16,0) ->  | AL26: 2 | AM26: A | AS26: ='STUDENT RECORD BY SD'!A24 -> 2 | AT26: ='STUDENT RECORD BY SD'!B24 -> A | AU26: ='STUDENT RECORD BY SD'!C24 -> 4804 | AV26: ='STUDENT RECORD BY SD'!D24 -> 00:00:00 | AW26: ='STUDENT RECORD BY SD'!E24 -> RANI23 | AX26: ='STUDENT RECORD BY SD'!F24 -> 0 | AY26: ='STUDENT RECORD BY SD'!G24 -> king23 | AZ26: ='STUDENT RECORD BY SD'!H24 -> queen23 | BA26: ='STUDENT RECORD BY SD'!I24 -> F | BB26: ='STUDENT RECORD BY SD'!J24 -> 2015-01-30 | BC26: ='STUDENT RECORD BY SD'!K24 -> 0 | BD26: ='STUDENT RECORD BY SD'!L24 -> 0 | BE26: ='STUDENT RECORD BY SD'!M24 -> 0 | BF26: ='STUDENT RECORD BY SD'!N24 -> 0 | BG26: ='STUDENT RECORD BY SD'!O24 -> OBC | BH26: ='STUDENT RECORD BY SD'!P24 -> 0 | BI26: ='STUDENT RECORD BY SD'!Q24 -> 0 | BJ26: ='STUDENT RECORD BY SD'!R24 -> GOVT. SENIOR SECONDARY SCHOOL ALNIYAWAS (219445) | BK26: ='STUDENT RECORD BY SD'!S24 -> 8140200308 | BL26: ='STUDENT RECORD BY SD'!T24 -> 0 | BM26: ='STUDENT RECORD BY SD'!U24 -> 0 | BN26: ='STUDENT RECORD BY SD'!V24 -> 9828120719 | BO26: ='STUDENT RECORD BY SD'!W24 -> VP-ALNIYAWAS | BP26: ='STUDENT RECORD BY SD'!X24 -> 0 | BQ26: ='STUDENT RECORD BY SD'!Y24 -> N | BR26: ='STUDENT RECORD BY SD'!Z24 -> Y | BS26: ='STUDENT RECORD BY SD'!AA24 -> 0 | BT26: ='STUDENT RECORD BY SD'!AB24 -> 6 | BU26: ='STUDENT RECORD BY SD'!AC24 -> 0 | BV26: ='STUDENT RECORD BY SD'!AD24 -> 1 | BW26: 2 | BX26: A
A27: =IF(B27="","",ROWS($A$5:A27)) -> 23 | B27: ='STUDENT RECORD BY SD'!A24 -> 2 | C27: ='STUDENT RECORD BY SD'!B24 -> A | E27: ='STUDENT RECORD BY SD'!C24 -> 4804 | F27: ='STUDENT RECORD BY SD'!D24 -> 00:00:00 | G27: ='STUDENT RECORD BY SD'!E24 -> RANI23 | H27: ='STUDENT RECORD BY SD'!G24 -> king23 | I27: ='STUDENT RECORD BY SD'!H24 -> queen23 | J27: ='STUDENT RECORD BY SD'!I24 -> F | K27: ='STUDENT RECORD BY SD'!J24 -> 2015-01-30 | L27: ='STUDENT RECORD BY SD'!O24 -> OBC | M27: N | T27: =IF(B27<9,"",VLOOKUP(B27,MASTER!$B$10:$R$17,16,0)) ->  | V27: 0 | AA27: 00:00:00 | AB27: 1900 | AE27: =IF(B26<9,"",IF(MASTER!$R$23="YES",100)) ->  | AK27: =VLOOKUP(B27:B822,MASTER!$B$10:$R$17,16,0) ->  | AL27: 2 | AM27: A | AS27: ='STUDENT RECORD BY SD'!A25 -> 2 | AT27: ='STUDENT RECORD BY SD'!B25 -> A | AU27: ='STUDENT RECORD BY SD'!C25 -> 4806 | AV27: ='STUDENT RECORD BY SD'!D25 -> 00:00:00 | AW27: ='STUDENT RECORD BY SD'!E25 -> RANI24 | AX27: ='STUDENT RECORD BY SD'!F25 -> 0 | AY27: ='STUDENT RECORD BY SD'!G25 -> king24 | AZ27: ='STUDENT RECORD BY SD'!H25 -> queen24 | BA27: ='STUDENT RECORD BY SD'!I25 -> M | BB27: ='STUDENT RECORD BY SD'!J25 -> 2014-02-17 | BC27: ='STUDENT RECORD BY SD'!K25 -> 0 | BD27: ='STUDENT RECORD BY SD'!L25 -> 0 | BE27: ='STUDENT RECORD BY SD'!M25 -> 0 | BF27: ='STUDENT RECORD BY SD'!N25 -> 0 | BG27: ='STUDENT RECORD BY SD'!O25 -> OBC | BH27: ='STUDENT RECORD BY SD'!P25 -> 0 | BI27: ='STUDENT RECORD BY SD'!Q25 -> 0 | BJ27: ='STUDENT RECORD BY SD'!R25 -> GOVT. SENIOR SECONDARY SCHOOL ALNIYAWAS (219445) | BK27: ='STUDENT RECORD BY SD'!S25 -> 8140200308 | BL27: ='STUDENT RECORD BY SD'!T25 -> 0 | BM27: ='STUDENT RECORD BY SD'!U25 -> 0 | BN27: ='STUDENT RECORD BY SD'!V25 -> 9828120720 | BO27: ='STUDENT RECORD BY SD'!W25 -> VP-ALNIYAWAS | BP27: ='STUDENT RECORD BY SD'!X25 -> 0 | BQ27: ='STUDENT RECORD BY SD'!Y25 -> N | BR27: ='STUDENT RECORD BY SD'!Z25 -> Y | BS27: ='STUDENT RECORD BY SD'!AA25 -> 0 | BT27: ='STUDENT RECORD BY SD'!AB25 -> 7 | BU27: ='STUDENT RECORD BY SD'!AC25 -> 0 | BV27: ='STUDENT RECORD BY SD'!AD25 -> 0 | BW27: 2 | BX27: A
A28: =IF(B28="","",ROWS($A$5:A28)) -> 24 | B28: ='STUDENT RECORD BY SD'!A25 -> 2 | C28: ='STUDENT RECORD BY SD'!B25 -> A | E28: ='STUDENT RECORD BY SD'!C25 -> 4806 | F28: ='STUDENT RECORD BY SD'!D25 -> 00:00:00 | G28: ='STUDENT RECORD BY SD'!E25 -> RANI24 | H28: ='STUDENT RECORD BY SD'!G25 -> king24 | I28: ='STUDENT RECORD BY SD'!H25 -> queen24 | J28: ='STUDENT RECORD BY SD'!I25 -> M | K28: ='STUDENT RECORD BY SD'!J25 -> 2014-02-17 | L28: ='STUDENT RECORD BY SD'!O25 -> OBC | M28: N | T28: =IF(B28<9,"",VLOOKUP(B28,MASTER!$B$10:$R$17,16,0)) ->  | V28: 0 | AA28: 00:00:00 | AB28: 1900 | AE28: =IF(B27<9,"",IF(MASTER!$R$23="YES",100)) ->  | AK28: =VLOOKUP(B28:B823,MASTER!$B$10:$R$17,16,0) ->  | AL28: 2 | AM28: A | AS28: ='STUDENT RECORD BY SD'!A26 -> 2 | AT28: ='STUDENT RECORD BY SD'!B26 -> A | AU28: ='STUDENT RECORD BY SD'!C26 -> 4872 | AV28: ='STUDENT RECORD BY SD'!D26 -> 00:00:00 | AW28: ='STUDENT RECORD BY SD'!E26 -> RANI25 | AX28: ='STUDENT RECORD BY SD'!F26 -> 0 | AY28: ='STUDENT RECORD BY SD'!G26 -> king25 | AZ28: ='STUDENT RECORD BY SD'!H26 -> queen25 | BA28: ='STUDENT RECORD BY SD'!I26 -> M | BB28: ='STUDENT RECORD BY SD'!J26 -> 2014-11-29 | BC28: ='STUDENT RECORD BY SD'!K26 -> 0 | BD28: ='STUDENT RECORD BY SD'!L26 -> 0 | BE28: ='STUDENT RECORD BY SD'!M26 -> 0 | BF28: ='STUDENT RECORD BY SD'!N26 -> 0 | BG28: ='STUDENT RECORD BY SD'!O26 -> OBC | BH28: ='STUDENT RECORD BY SD'!P26 -> 0 | BI28: ='STUDENT RECORD BY SD'!Q26 -> 0 | BJ28: ='STUDENT RECORD BY SD'!R26 -> GOVT. SENIOR SECONDARY SCHOOL ALNIYAWAS (219445) | BK28: ='STUDENT RECORD BY SD'!S26 -> 8140200308 | BL28: ='STUDENT RECORD BY SD'!T26 -> 0 | BM28: ='STUDENT RECORD BY SD'!U26 -> 0 | BN28: ='STUDENT RECORD BY SD'!V26 -> 9828120721 | BO28: ='STUDENT RECORD BY SD'!W26 -> VP-ALNIYAWAS | BP28: ='STUDENT RECORD BY SD'!X26 -> 0 | BQ28: ='STUDENT RECORD BY SD'!Y26 -> N | BR28: ='STUDENT RECORD BY SD'!Z26 -> Y | BS28: ='STUDENT RECORD BY SD'!AA26 -> 0 | BT28: ='STUDENT RECORD BY SD'!AB26 -> 7 | BU28: ='STUDENT RECORD BY SD'!AC26 -> 0 | BV28: ='STUDENT RECORD BY SD'!AD26 -> 0 | BW28: 2 | BX28: A
A29: =IF(B29="","",ROWS($A$5:A29)) -> 25 | B29: ='STUDENT RECORD BY SD'!A26 -> 2 | C29: ='STUDENT RECORD BY SD'!B26 -> A | E29: ='STUDENT RECORD BY SD'!C26 -> 4872 | F29: ='STUDENT RECORD BY SD'!D26 -> 00:00:00 | G29: ='STUDENT RECORD BY SD'!E26 -> RANI25 | H29: ='STUDENT RECORD BY SD'!G26 -> king25 | I29: ='STUDENT RECORD BY SD'!H26 -> queen25 | J29: ='STUDENT RECORD BY SD'!I26 -> M | K29: ='STUDENT RECORD BY SD'!J26 -> 2014-11-29 | L29: ='STUDENT RECORD BY SD'!O26 -> OBC | M29: N | T29: =IF(B29<9,"",VLOOKUP(B29,MASTER!$B$10:$R$17,16,0)) ->  | V29: 0 | AA29: 00:00:00 | AB29: 1900 | AE29: =IF(B28<9,"",IF(MASTER!$R$23="YES",100)) ->  | AK29: =VLOOKUP(B29:B824,MASTER!$B$10:$R$17,16,0) ->  | AL29: 2 | AM29: A | AS29: ='STUDENT RECORD BY SD'!A27 -> 2 | AT29: ='STUDENT RECORD BY SD'!B27 -> A | AU29: ='STUDENT RECORD BY SD'!C27 -> 4861 | AV29: ='STUDENT RECORD BY SD'!D27 -> 00:00:00 | AW29: ='STUDENT RECORD BY SD'!E27 -> RANI26 | AX29: ='STUDENT RECORD BY SD'!F27 -> 0 | AY29: ='STUDENT RECORD BY SD'!G27 -> king26 | AZ29: ='STUDENT RECORD BY SD'!H27 -> queen26 | BA29: ='STUDENT RECORD BY SD'!I27 -> F | BB29: ='STUDENT RECORD BY SD'!J27 -> 2015-03-21 | BC29: ='STUDENT RECORD BY SD'!K27 -> 0 | BD29: ='STUDENT RECORD BY SD'!L27 -> 0 | BE29: ='STUDENT RECORD BY SD'!M27 -> 0 | BF29: ='STUDENT RECORD BY SD'!N27 -> 0 | BG29: ='STUDENT RECORD BY SD'!O27 -> OBC | BH29: ='STUDENT RECORD BY SD'!P27 -> 0 | BI29: ='STUDENT RECORD BY SD'!Q27 -> 0 | BJ29: ='STUDENT RECORD BY SD'!R27 -> GOVT. SENIOR SECONDARY SCHOOL ALNIYAWAS (219445) | BK29: ='STUDENT RECORD BY SD'!S27 -> 8140200308 | BL29: ='STUDENT RECORD BY SD'!T27 -> 0 | BM29: ='STUDENT RECORD BY SD'!U27 -> 0 | BN29: ='STUDENT RECORD BY SD'!V27 -> 9828120722 | BO29: ='STUDENT RECORD BY SD'!W27 -> VP-ALNIYAWAS | BP29: ='STUDENT RECORD BY SD'!X27 -> 0 | BQ29: ='STUDENT RECORD BY SD'!Y27 -> N | BR29: ='STUDENT RECORD BY SD'!Z27 -> Y | BS29: ='STUDENT RECORD BY SD'!AA27 -> 0 | BT29: ='STUDENT RECORD BY SD'!AB27 -> 6 | BU29: ='STUDENT RECORD BY SD'!AC27 -> 0 | BV29: ='STUDENT RECORD BY SD'!AD27 -> 1 | BW29: 2 | BX29: A
A30: =IF(B30="","",ROWS($A$5:A30)) -> 26 | B30: ='STUDENT RECORD BY SD'!A27 -> 2 | C30: ='STUDENT RECORD BY SD'!B27 -> A | E30: ='STUDENT RECORD BY SD'!C27 -> 4861 | F30: ='STUDENT RECORD BY SD'!D27 -> 00:00:00 | G30: ='STUDENT RECORD BY SD'!E27 -> RANI26 | H30: ='STUDENT RECORD BY SD'!G27 -> king26 | I30: ='STUDENT RECORD BY SD'!H27 -> queen26 | J30: ='STUDENT RECORD BY SD'!I27 -> F | K30: ='STUDENT RECORD BY SD'!J27 -> 2015-03-21 | L30: ='STUDENT RECORD BY SD'!O27 -> OBC | M30: N | T30: =IF(B30<9,"",VLOOKUP(B30,MASTER!$B$10:$R$17,16,0)) ->  | V30: 0 | AA30: 00:00:00 | AB30: 1900 | AE30: =IF(B29<9,"",IF(MASTER!$R$23="YES",100)) ->  | AK30: =VLOOKUP(B30:B825,MASTER!$B$10:$R$17,16,0) ->  | AL30: 2 | AM30: A | AS30: ='STUDENT RECORD BY SD'!A28 -> 3 | AT30: ='STUDENT RECORD BY SD'!B28 -> A | AU30: ='STUDENT RECORD BY SD'!C28 -> 4718 | AV30: ='STUDENT RECORD BY SD'!D28 -> 2019-07-12 | AW30: ='STUDENT RECORD BY SD'!E28 -> RANI27 | AX30: ='STUDENT RECORD BY SD'!F28 -> 0 | AY30: ='STUDENT RECORD BY SD'!G28 -> king27 | AZ30: ='STUDENT RECORD BY SD'!H28 -> queen27 | BA30: ='STUDENT RECORD BY SD'!I28 -> F | BB30: ='STUDENT RECORD BY SD'!J28 -> 2014-02-07 | BC30: ='STUDENT RECORD BY SD'!K28 -> 0 | BD30: ='STUDENT RECORD BY SD'!L28 -> 0 | BE30: ='STUDENT RECORD BY SD'!M28 -> 0 | BF30: ='STUDENT RECORD BY SD'!N28 -> 0 | BG30: ='STUDENT RECORD BY SD'!O28 -> OBC | BH30: ='STUDENT RECORD BY SD'!P28 -> Muslim | BI30: ='STUDENT RECORD BY SD'!Q28 -> 0 | BJ30: ='STUDENT RECORD BY SD'!R28 -> GOVT. SENIOR SECONDARY SCHOOL ALNIYAWAS (219445) | BK30: ='STUDENT RECORD BY SD'!S28 -> 8140200308 | BL30: ='STUDENT RECORD BY SD'!T28 -> XXXX0872 | BM30: ='STUDENT RECORD BY SD'!U28 -> yswuiqb | BN30: ='STUDENT RECORD BY SD'!V28 -> 9828120723 | BO30: ='STUDENT RECORD BY SD'!W28 -> VP-ALNIYAWAS | BP30: ='STUDENT RECORD BY SD'!X28 -> 50000 | BQ30: ='STUDENT RECORD BY SD'!Y28 -> N | BR30: ='STUDENT RECORD BY SD'!Z28 -> N | BS30: ='STUDENT RECORD BY SD'!AA28 -> Yes | BT30: ='STUDENT RECORD BY SD'!AB28 -> 7 | BU30: ='STUDENT RECORD BY SD'!AC28 -> None | BV30: ='STUDENT RECORD BY SD'!AD28 -> 0 | BW30: 3 | BX30: A
A31: =IF(B31="","",ROWS($A$5:A31)) -> 27 | B31: ='STUDENT RECORD BY SD'!A28 -> 3 | C31: ='STUDENT RECORD BY SD'!B28 -> A | E31: ='STUDENT RECORD BY SD'!C28 -> 4718 | F31: ='STUDENT RECORD BY SD'!D28 -> 2019-07-12 | G31: ='STUDENT RECORD BY SD'!E28 -> RANI27 | H31: ='STUDENT RECORD BY SD'!G28 -> king27 | I31: ='STUDENT RECORD BY SD'!H28 -> queen27 | J31: ='STUDENT RECORD BY SD'!I28 -> F | K31: ='STUDENT RECORD BY SD'!J28 -> 2014-02-07 | L31: ='STUDENT RECORD BY SD'!O28 -> OBC | M31: N | T31: =IF(B31<9,"",VLOOKUP(B31,MASTER!$B$10:$R$17,16,0)) ->  | V31: 0 | AA31: 2019-07-12 | AB31: 2019 | AE31: =IF(B30<9,"",IF(MASTER!$R$23="YES",100)) ->  | AK31: =VLOOKUP(B31:B826,MASTER!$B$10:$R$17,16,0) ->  | AL31: 3 | AM31: A | AS31: ='STUDENT RECORD BY SD'!A29 -> 3 | AT31: ='STUDENT RECORD BY SD'!B29 -> A | AU31: ='STUDENT RECORD BY SD'!C29 -> 4729 | AV31: ='STUDENT RECORD BY SD'!D29 -> 2019-07-13 | AW31: ='STUDENT RECORD BY SD'!E29 -> RANI28 | AX31: ='STUDENT RECORD BY SD'!F29 -> 0 | AY31: ='STUDENT RECORD BY SD'!G29 -> king28 | AZ31: ='STUDENT RECORD BY SD'!H29 -> queen28 | BA31: ='STUDENT RECORD BY SD'!I29 -> M | BB31: ='STUDENT RECORD BY SD'!J29 -> 2014-02-14 | BC31: ='STUDENT RECORD BY SD'!K29 -> 0 | BD31: ='STUDENT RECORD BY SD'!L29 -> 0 | BE31: ='STUDENT RECORD BY SD'!M29 -> 0 | BF31: ='STUDENT RECORD BY SD'!N29 -> 0 | BG31: ='STUDENT RECORD BY SD'!O29 -> OBC | BH31: ='STUDENT RECORD BY SD'!P29 -> Muslim | BI31: ='STUDENT RECORD BY SD'!Q29 -> 0 | BJ31: ='STUDENT RECORD BY SD'!R29 -> GOVT. SENIOR SECONDARY SCHOOL ALNIYAWAS (219445) | BK31: ='STUDENT RECORD BY SD'!S29 -> 8140200308 | BL31: ='STUDENT RECORD BY SD'!T29 -> XXXX1543 | BM31: ='STUDENT RECORD BY SD'!U29 -> vxozzoh | BN31: ='STUDENT RECORD BY SD'!V29 -> 9828120724 | BO31: ='STUDENT RECORD BY SD'!W29 -> VP-ALNIYAWAS | BP31: ='STUDENT RECORD BY SD'!X29 -> 50000 | BQ31: ='STUDENT RECORD BY SD'!Y29 -> N | BR31: ='STUDENT RECORD BY SD'!Z29 -> N | BS31: ='STUDENT RECORD BY SD'!AA29 -> Yes | BT31: ='STUDENT RECORD BY SD'!AB29 -> 7 | BU31: ='STUDENT RECORD BY SD'!AC29 -> None | BV31: ='STUDENT RECORD BY SD'!AD29 -> 0 | BW31: 3 | BX31: A
A32: =IF(B32="","",ROWS($A$5:A32)) -> 28 | B32: ='STUDENT RECORD BY SD'!A29 -> 3 | C32: ='STUDENT RECORD BY SD'!B29 -> A | E32: ='STUDENT RECORD BY SD'!C29 -> 4729 | F32: ='STUDENT RECORD BY SD'!D29 -> 2019-07-13 | G32: ='STUDENT RECORD BY SD'!E29 -> RANI28 | H32: ='STUDENT RECORD BY SD'!G29 -> king28 | I32: ='STUDENT RECORD BY SD'!H29 -> queen28 | J32: ='STUDENT RECORD BY SD'!I29 -> M | K32: ='STUDENT RECORD BY SD'!J29 -> 2014-02-14 | L32: ='STUDENT RECORD BY SD'!O29 -> OBC | M32: N | T32: =IF(B32<9,"",VLOOKUP(B32,MASTER!$B$10:$R$17,16,0)) ->  | V32: 0 | AA32: 2019-07-13 | AB32: 2019 | AE32: =IF(B31<9,"",IF(MASTER!$R$23="YES",100)) ->  | AK32: =VLOOKUP(B32:B827,MASTER!$B$10:$R$17,16,0) ->  | AL32: 3 | AM32: A | AS32: ='STUDENT RECORD BY SD'!A30 -> 3 | AT32: ='STUDENT RECORD BY SD'!B30 -> A | AU32: ='STUDENT RECORD BY SD'!C30 -> 4630 | AV32: ='STUDENT RECORD BY SD'!D30 -> 2019-07-02 | AW32: ='STUDENT RECORD BY SD'!E30 -> RANI29 | AX32: ='STUDENT RECORD BY SD'!F30 -> 0 | AY32: ='STUDENT RECORD BY SD'!G30 -> king29 | AZ32: ='STUDENT RECORD BY SD'!H30 -> queen29 | BA32: ='STUDENT RECORD BY SD'!I30 -> F | BB32: ='STUDENT RECORD BY SD'!J30 -> 2014-04-22 | BC32: ='STUDENT RECORD BY SD'!K30 -> 0 | BD32: ='STUDENT RECORD BY SD'!L30 -> 0 | BE32: ='STUDENT RECORD BY SD'!M30 -> 0 | BF32: ='STUDENT RECORD BY SD'!N30 -> 0 | BG32: ='STUDENT RECORD BY SD'!O30 -> OBC | BH32: ='STUDENT RECORD BY SD'!P30 -> Muslim | BI32: ='STUDENT RECORD BY SD'!Q30 -> 0 | BJ32: ='STUDENT RECORD BY SD'!R30 -> GOVT. SENIOR SECONDARY SCHOOL ALNIYAWAS (219445) | BK32: ='STUDENT RECORD BY SD'!S30 -> 8140200308 | BL32: ='STUDENT RECORD BY SD'!T30 -> XXXX2071 | BM32: ='STUDENT RECORD BY SD'!U30 -> 0 | BN32: ='STUDENT RECORD BY SD'!V30 -> 9828120725 | BO32: ='STUDENT RECORD BY SD'!W30 -> VP-ALNIYAWAS | BP32: ='STUDENT RECORD BY SD'!X30 -> 60000 | BQ32: ='STUDENT RECORD BY SD'!Y30 -> N | BR32: ='STUDENT RECORD BY SD'!Z30 -> N | BS32: ='STUDENT RECORD BY SD'!AA30 -> Yes | BT32: ='STUDENT RECORD BY SD'!AB30 -> 7 | BU32: ='STUDENT RECORD BY SD'!AC30 -> None | BV32: ='STUDENT RECORD BY SD'!AD30 -> 0 | BW32: 3 | BX32: A
A33: =IF(B33="","",ROWS($A$5:A33)) -> 29 | B33: ='STUDENT RECORD BY SD'!A30 -> 3 | C33: ='STUDENT RECORD BY SD'!B30 -> A | E33: ='STUDENT RECORD BY SD'!C30 -> 4630 | F33: ='STUDENT RECORD BY SD'!D30 -> 2019-07-02 | G33: ='STUDENT RECORD BY SD'!E30 -> RANI29 | H33: ='STUDENT RECORD BY SD'!G30 -> king29 | I33: ='STUDENT RECORD BY SD'!H30 -> queen29 | J33: ='STUDENT RECORD BY SD'!I30 -> F | K33: ='STUDENT RECORD BY SD'!J30 -> 2014-04-22 | L33: ='STUDENT RECORD BY SD'!O30 -> OBC | M33: N | T33: =IF(B33<9,"",VLOOKUP(B33,MASTER!$B$10:$R$17,16,0)) ->  | V33: 0 | AA33: 2019-07-02 | AB33: 2019 | AE33: =IF(B32<9,"",IF(MASTER!$R$23="YES",100)) ->  | AK33: =VLOOKUP(B33:B828,MASTER!$B$10:$R$17,16,0) ->  | AL33: 3 | AM33: A | AS33: ='STUDENT RECORD BY SD'!A31 -> 3 | AT33: ='STUDENT RECORD BY SD'!B31 -> A | AU33: ='STUDENT RECORD BY SD'!C31 -> 4676 | AV33: ='STUDENT RECORD BY SD'!D31 -> 2019-07-08 | AW33: ='STUDENT RECORD BY SD'!E31 -> RANI30 | AX33: ='STUDENT RECORD BY SD'!F31 -> 0 | AY33: ='STUDENT RECORD BY SD'!G31 -> king30 | AZ33: ='STUDENT RECORD BY SD'!H31 -> queen30 | BA33: ='STUDENT RECORD BY SD'!I31 -> F | BB33: ='STUDENT RECORD BY SD'!J31 -> 2014-11-05 | BC33: ='STUDENT RECORD BY SD'!K31 -> 0 | BD33: ='STUDENT RECORD BY SD'!L31 -> 0 | BE33: ='STUDENT RECORD BY SD'!M31 -> 0 | BF33: ='STUDENT RECORD BY SD'!N31 -> 0 | BG33: ='STUDENT RECORD BY SD'!O31 -> OBC | BH33: ='STUDENT RECORD BY SD'!P31 -> Muslim | BI33: ='STUDENT RECORD BY SD'!Q31 -> 0 | BJ33: ='STUDENT RECORD BY SD'!R31 -> GOVT. SENIOR SECONDARY SCHOOL ALNIYAWAS (219445) | BK33: ='STUDENT RECORD BY SD'!S31 -> 8140200308 | BL33: ='STUDENT RECORD BY SD'!T31 -> 0 | BM33: ='STUDENT RECORD BY SD'!U31 -> 0 | BN33: ='STUDENT RECORD BY SD'!V31 -> 9828120726 | BO33: ='STUDENT RECORD BY SD'!W31 -> VP-ALNIYAWAS | BP33: ='STUDENT RECORD BY SD'!X31 -> 60000 | BQ33: ='STUDENT RECORD BY SD'!Y31 -> N | BR33: ='STUDENT RECORD BY SD'!Z31 -> N | BS33: ='STUDENT RECORD BY SD'!AA31 -> Yes | BT33: ='STUDENT RECORD BY SD'!AB31 -> 7 | BU33: ='STUDENT RECORD BY SD'!AC31 -> None | BV33: ='STUDENT RECORD BY SD'!AD31 -> 0 | BW33: 3 | BX33: A
A34: =IF(B34="","",ROWS($A$5:A34)) -> 30 | B34: ='STUDENT RECORD BY SD'!A31 -> 3 | C34: ='STUDENT RECORD BY SD'!B31 -> A | E34: ='STUDENT RECORD BY SD'!C31 -> 4676 | F34: ='STUDENT RECORD BY SD'!D31 -> 2019-07-08 | G34: ='STUDENT RECORD BY SD'!E31 -> RANI30 | H34: ='STUDENT RECORD BY SD'!G31 -> king30 | I34: ='STUDENT RECORD BY SD'!H31 -> queen30 | J34: ='STUDENT RECORD BY SD'!I31 -> F | K34: ='STUDENT RECORD BY SD'!J31 -> 2014-11-05 | L34: ='STUDENT RECORD BY SD'!O31 -> OBC | M34: N | T34: =IF(B34<9,"",VLOOKUP(B34,MASTER!$B$10:$R$17,16,0)) ->  | V34: 0 | AA34: 2019-07-08 | AB34: 2019 | AE34: =IF(B33<9,"",IF(MASTER!$R$23="YES",100)) ->  | AK34: =VLOOKUP(B34:B829,MASTER!$B$10:$R$17,16,0) ->  | AL34: 3 | AM34: A | AS34: ='STUDENT RECORD BY SD'!A32 -> 3 | AT34: ='STUDENT RECORD BY SD'!B32 -> A | AU34: ='STUDENT RECORD BY SD'!C32 -> 4710 | AV34: ='STUDENT RECORD BY SD'!D32 -> 2019-07-11 | AW34: ='STUDENT RECORD BY SD'!E32 -> RANI31 | AX34: ='STUDENT RECORD BY SD'!F32 -> 0 | AY34: ='STUDENT RECORD BY SD'!G32 -> king31 | AZ34: ='STUDENT RECORD BY SD'!H32 -> queen31 | BA34: ='STUDENT RECORD BY SD'!I32 -> F | BB34: ='STUDENT RECORD BY SD'!J32 -> 2013-05-14 | BC34: ='STUDENT RECORD BY SD'!K32 -> 0 | BD34: ='STUDENT RECORD BY SD'!L32 -> 0 | BE34: ='STUDENT RECORD BY SD'!M32 -> 0 | BF34: ='STUDENT RECORD BY SD'!N32 -> 0 | BG34: ='STUDENT RECORD BY SD'!O32 -> SC | BH34: ='STUDENT RECORD BY SD'!P32 -> Hindu | BI34: ='STUDENT RECORD BY SD'!Q32 -> 0 | BJ34: ='STUDENT RECORD BY SD'!R32 -> GOVT. SENIOR SECONDARY SCHOOL ALNIYAWAS (219445) | BK34: ='STUDENT RECORD BY SD'!S32 -> 8140200308 | BL34: ='STUDENT RECORD BY SD'!T32 -> 0 | BM34: ='STUDENT RECORD BY SD'!U32 -> 0 | BN34: ='STUDENT RECORD BY SD'!V32 -> 9828120727 | BO34: ='STUDENT RECORD BY SD'!W32 -> VP-ALNIYAWAS | BP34: ='STUDENT RECORD BY SD'!X32 -> 50000 | BQ34: ='STUDENT RECORD BY SD'!Y32 -> N | BR34: ='STUDENT RECORD BY SD'!Z32 -> N | BS34: ='STUDENT RECORD BY SD'!AA32 -> No | BT34: ='STUDENT RECORD BY SD'!AB32 -> 8 | BU34: ='STUDENT RECORD BY SD'!AC32 -> None | BV34: ='STUDENT RECORD BY SD'!AD32 -> 1 | BW34: 3 | BX34: A
A35: =IF(B35="","",ROWS($A$5:A35)) -> 31 | B35: ='STUDENT RECORD BY SD'!A32 -> 3 | C35: ='STUDENT RECORD BY SD'!B32 -> A | E35: ='STUDENT RECORD BY SD'!C32 -> 4710 | F35: ='STUDENT RECORD BY SD'!D32 -> 2019-07-11 | G35: ='STUDENT RECORD BY SD'!E32 -> RANI31 | H35: ='STUDENT RECORD BY SD'!G32 -> king31 | I35: ='STUDENT RECORD BY SD'!H32 -> queen31 | J35: ='STUDENT RECORD BY SD'!I32 -> F | K35: ='STUDENT RECORD BY SD'!J32 -> 2013-05-14 | L35: ='STUDENT RECORD BY SD'!O32 -> SC | M35: N | T35: =IF(B35<9,"",VLOOKUP(B35,MASTER!$B$10:$R$17,16,0)) ->  | V35: 0 | AA35: 2019-07-11 | AB35: 2019 | AE35: =IF(B34<9,"",IF(MASTER!$R$23="YES",100)) ->  | AK35: =VLOOKUP(B35:B830,MASTER!$B$10:$R$17,16,0) ->  | AL35: 3 | AM35: A | AS35: ='STUDENT RECORD BY SD'!A33 -> 3 | AT35: ='STUDENT RECORD BY SD'!B33 -> A | AU35: ='STUDENT RECORD BY SD'!C33 -> 4628 | AV35: ='STUDENT RECORD BY SD'!D33 -> 2019-05-08 | AW35: ='STUDENT RECORD BY SD'!E33 -> RANI32 | AX35: ='STUDENT RECORD BY SD'!F33 -> 0 | AY35: ='STUDENT RECORD BY SD'!G33 -> king32 | AZ35: ='STUDENT RECORD BY SD'!H33 -> queen32 | BA35: ='STUDENT RECORD BY SD'!I33 -> F | BB35: ='STUDENT RECORD BY SD'!J33 -> 2014-04-26 | BC35: ='STUDENT RECORD BY SD'!K33 -> 0 | BD35: ='STUDENT RECORD BY SD'!L33 -> 0 | BE35: ='STUDENT RECORD BY SD'!M33 -> 0 | BF35: ='STUDENT RECORD BY SD'!N33 -> 0 | BG35: ='STUDENT RECORD BY SD'!O33 -> OBC | BH35: ='STUDENT RECORD BY SD'!P33 -> Hindu | BI35: ='STUDENT RECORD BY SD'!Q33 -> 0 | BJ35: ='STUDENT RECORD BY SD'!R33 -> GOVT. SENIOR SECONDARY SCHOOL ALNIYAWAS (219445) | BK35: ='STUDENT RECORD BY SD'!S33 -> 8140200308 | BL35: ='STUDENT RECORD BY SD'!T33 -> 0 | BM35: ='STUDENT RECORD BY SD'!U33 -> vxkbntn | BN35: ='STUDENT RECORD BY SD'!V33 -> 9828120728 | BO35: ='STUDENT RECORD BY SD'!W33 -> VP-ALNIYAWAS | BP35: ='STUDENT RECORD BY SD'!X33 -> 50000 | BQ35: ='STUDENT RECORD BY SD'!Y33 -> N | BR35: ='STUDENT RECORD BY SD'!Z33 -> N | BS35: ='STUDENT RECORD BY SD'!AA33 -> No | BT35: ='STUDENT RECORD BY SD'!AB33 -> 7 | BU35: ='STUDENT RECORD BY SD'!AC33 -> None | BV35: ='STUDENT RECORD BY SD'!AD33 -> 0 | BW35: 3 | BX35: A
A36: =IF(B36="","",ROWS($A$5:A36)) -> 32 | B36: ='STUDENT RECORD BY SD'!A33 -> 3 | C36: ='STUDENT RECORD BY SD'!B33 -> A | E36: ='STUDENT RECORD BY SD'!C33 -> 4628 | F36: ='STUDENT RECORD BY SD'!D33 -> 2019-05-08 | G36: ='STUDENT RECORD BY SD'!E33 -> RANI32 | H36: ='STUDENT RECORD BY SD'!G33 -> king32 | I36: ='STUDENT RECORD BY SD'!H33 -> queen32 | J36: ='STUDENT RECORD BY SD'!I33 -> F | K36: ='STUDENT RECORD BY SD'!J33 -> 2014-04-26 | L36: ='STUDENT RECORD BY SD'!O33 -> OBC | M36: N | T36: =IF(B36<9,"",VLOOKUP(B36,MASTER!$B$10:$R$17,16,0)) ->  | V36: 0 | AA36: 2019-05-08 | AB36: 2019 | AE36: =IF(B35<9,"",IF(MASTER!$R$23="YES",100)) ->  | AK36: =VLOOKUP(B36:B831,MASTER!$B$10:$R$17,16,0) ->  | AL36: 3 | AM36: A | AS36: ='STUDENT RECORD BY SD'!A34 -> 3 | AT36: ='STUDENT RECORD BY SD'!B34 -> A | AU36: ='STUDENT RECORD BY SD'!C34 -> 4771 | AV36: ='STUDENT RECORD BY SD'!D34 -> 2019-07-25 | AW36: ='STUDENT RECORD BY SD'!E34 -> RANI33 | AX36: ='STUDENT RECORD BY SD'!F34 -> 0 | AY36: ='STUDENT RECORD BY SD'!G34 -> king33 | AZ36: ='STUDENT RECORD BY SD'!H34 -> queen33 | BA36: ='STUDENT RECORD BY SD'!I34 -> F | BB36: ='STUDENT RECORD BY SD'!J34 -> 2013-10-15 | BC36: ='STUDENT RECORD BY SD'!K34 -> 0 | BD36: ='STUDENT RECORD BY SD'!L34 -> 0 | BE36: ='STUDENT RECORD BY SD'!M34 -> 0 | BF36: ='STUDENT RECORD BY SD'!N34 -> 0 | BG36: ='STUDENT RECORD BY SD'!O34 -> OBC | BH36: ='STUDENT RECORD BY SD'!P34 -> Hindu | BI36: ='STUDENT RECORD BY SD'!Q34 -> 0 | BJ36: ='STUDENT RECORD BY SD'!R34 -> GOVT. SENIOR SECONDARY SCHOOL ALNIYAWAS (219445) | BK36: ='STUDENT RECORD BY SD'!S34 -> 8140200308 | BL36: ='STUDENT RECORD BY SD'!T34 -> 0 | BM36: ='STUDENT RECORD BY SD'!U34 -> vpxbpxh | BN36: ='STUDENT RECORD BY SD'!V34 -> 9828120729 | BO36: ='STUDENT RECORD BY SD'!W34 -> VP-ALNIYAWAS | BP36: ='STUDENT RECORD BY SD'!X34 -> 60000 | BQ36: ='STUDENT RECORD BY SD'!Y34 -> N | BR36: ='STUDENT RECORD BY SD'!Z34 -> N | BS36: ='STUDENT RECORD BY SD'!AA34 -> No | BT36: ='STUDENT RECORD BY SD'!AB34 -> 8 | BU36: ='STUDENT RECORD BY SD'!AC34 -> None | BV36: ='STUDENT RECORD BY SD'!AD34 -> 5 | BW36: 3 | BX36: A
A37: =IF(B37="","",ROWS($A$5:A37)) -> 33 | B37: ='STUDENT RECORD BY SD'!A34 -> 3 | C37: ='STUDENT RECORD BY SD'!B34 -> A | E37: ='STUDENT RECORD BY SD'!C34 -> 4771 | F37: ='STUDENT RECORD BY SD'!D34 -> 2019-07-25 | G37: ='STUDENT RECORD BY SD'!E34 -> RANI33 | H37: ='STUDENT RECORD BY SD'!G34 -> king33 | I37: ='STUDENT RECORD BY SD'!H34 -> queen33 | J37: ='STUDENT RECORD BY SD'!I34 -> F | K37: ='STUDENT RECORD BY SD'!J34 -> 2013-10-15 | L37: ='STUDENT RECORD BY SD'!O34 -> OBC | M37: N | T37: =IF(B37<9,"",VLOOKUP(B37,MASTER!$B$10:$R$17,16,0)) ->  | V37: 0 | AA37: 2019-07-25 | AB37: 2019 | AE37: =IF(B36<9,"",IF(MASTER!$R$23="YES",100)) ->  | AK37: =VLOOKUP(B37:B832,MASTER!$B$10:$R$17,16,0) ->  | AL37: 3 | AM37: A | AS37: ='STUDENT RECORD BY SD'!A35 -> 3 | AT37: ='STUDENT RECORD BY SD'!B35 -> A | AU37: ='STUDENT RECORD BY SD'!C35 -> 4728 | AV37: ='STUDENT RECORD BY SD'!D35 -> 2019-07-13 | AW37: ='STUDENT RECORD BY SD'!E35 -> RANI34 | AX37: ='STUDENT RECORD BY SD'!F35 -> 0 | AY37: ='STUDENT RECORD BY SD'!G35 -> king34 | AZ37: ='STUDENT RECORD BY SD'!H35 -> queen34 | BA37: ='STUDENT RECORD BY SD'!I35 -> M | BB37: ='STUDENT RECORD BY SD'!J35 -> 2014-02-08 | BC37: ='STUDENT RECORD BY SD'!K35 -> 0 | BD37: ='STUDENT RECORD BY SD'!L35 -> 0 | BE37: ='STUDENT RECORD BY SD'!M35 -> 0 | BF37: ='STUDENT RECORD BY SD'!N35 -> 0 | BG37: ='STUDENT RECORD BY SD'!O35 -> OBC | BH37: ='STUDENT RECORD BY SD'!P35 -> Hindu | BI37: ='STUDENT RECORD BY SD'!Q35 -> 0 | BJ37: ='STUDENT RECORD BY SD'!R35 -> GOVT. SENIOR SECONDARY SCHOOL ALNIYAWAS (219445) | BK37: ='STUDENT RECORD BY SD'!S35 -> 8140200308 | BL37: ='STUDENT RECORD BY SD'!T35 -> XXXX1233 | BM37: ='STUDENT RECORD BY SD'!U35 -> ymuicow | BN37: ='STUDENT RECORD BY SD'!V35 -> 9828120730 | BO37: ='STUDENT RECORD BY SD'!W35 -> VP-ALNIYAWAS | BP37: ='STUDENT RECORD BY SD'!X35 -> 50000 | BQ37: ='STUDENT RECORD BY SD'!Y35 -> N | BR37: ='STUDENT RECORD BY SD'!Z35 -> N | BS37: ='STUDENT RECORD BY SD'!AA35 -> No | BT37: ='STUDENT RECORD BY SD'!AB35 -> 7 | BU37: ='STUDENT RECORD BY SD'!AC35 -> None | BV37: ='STUDENT RECORD BY SD'!AD35 -> 0 | BW37: 3 | BX37: A
A38: =IF(B38="","",ROWS($A$5:A38)) -> 34 | B38: ='STUDENT RECORD BY SD'!A35 -> 3 | C38: ='STUDENT RECORD BY SD'!B35 -> A | E38: ='STUDENT RECORD BY SD'!C35 -> 4728 | F38: ='STUDENT RECORD BY SD'!D35 -> 2019-07-13 | G38: ='STUDENT RECORD BY SD'!E35 -> RANI34 | H38: ='STUDENT RECORD BY SD'!G35 -> king34 | I38: ='STUDENT RECORD BY SD'!H35 -> queen34 | J38: ='STUDENT RECORD BY SD'!I35 -> M | K38: ='STUDENT RECORD BY SD'!J35 -> 2014-02-08 | L38: ='STUDENT RECORD BY SD'!O35 -> OBC | M38: N | T38: =IF(B38<9,"",VLOOKUP(B38,MASTER!$B$10:$R$17,16,0)) ->  | V38: 0 | AA38: 2019-07-13 | AB38: 2019 | AE38: =IF(B37<9,"",IF(MASTER!$R$23="YES",100)) ->  | AK38: =VLOOKUP(B38:B833,MASTER!$B$10:$R$17,16,0) ->  | AL38: 3 | AM38: A | AS38: ='STUDENT RECORD BY SD'!A36 -> 3 | AT38: ='STUDENT RECORD BY SD'!B36 -> A | AU38: ='STUDENT RECORD BY SD'!C36 -> 4695 | AV38: ='STUDENT RECORD BY SD'!D36 -> 2019-07-10 | AW38: ='STUDENT RECORD BY SD'!E36 -> RANI35 | AX38: ='STUDENT RECORD BY SD'!F36 -> 0 | AY38: ='STUDENT RECORD BY SD'!G36 -> king35 | AZ38: ='STUDENT RECORD BY SD'!H36 -> queen35 | BA38: ='STUDENT RECORD BY SD'!I36 -> M | BB38: ='STUDENT RECORD BY SD'!J36 -> 2014-04-16 | BC38: ='STUDENT RECORD BY SD'!K36 -> 0 | BD38: ='STUDENT RECORD BY SD'!L36 -> 0 | BE38: ='STUDENT RECORD BY SD'!M36 -> 0 | BF38: ='STUDENT RECORD BY SD'!N36 -> 0 | BG38: ='STUDENT RECORD BY SD'!O36 -> OBC | BH38: ='STUDENT RECORD BY SD'!P36 -> Muslim | BI38: ='STUDENT RECORD BY SD'!Q36 -> 0 | BJ38: ='STUDENT RECORD BY SD'!R36 -> GOVT. SENIOR SECONDARY SCHOOL ALNIYAWAS (219445) | BK38: ='STUDENT RECORD BY SD'!S36 -> 8140200308 | BL38: ='STUDENT RECORD BY SD'!T36 -> 0 | BM38: ='STUDENT RECORD BY SD'!U36 -> 0 | BN38: ='STUDENT RECORD BY SD'!V36 -> 9828120731 | BO38: ='STUDENT RECORD BY SD'!W36 -> VP-ALNIYAWAS | BP38: ='STUDENT RECORD BY SD'!X36 -> 60000 | BQ38: ='STUDENT RECORD BY SD'!Y36 -> N | BR38: ='STUDENT RECORD BY SD'!Z36 -> N | BS38: ='STUDENT RECORD BY SD'!AA36 -> Yes | BT38: ='STUDENT RECORD BY SD'!AB36 -> 7 | BU38: ='STUDENT RECORD BY SD'!AC36 -> None | BV38: ='STUDENT RECORD BY SD'!AD36 -> 0 | BW38: 3 | BX38: A
A39: =IF(B39="","",ROWS($A$5:A39)) -> 35 | B39: ='STUDENT RECORD BY SD'!A36 -> 3 | C39: ='STUDENT RECORD BY SD'!B36 -> A | E39: ='STUDENT RECORD BY SD'!C36 -> 4695 | F39: ='STUDENT RECORD BY SD'!D36 -> 2019-07-10 | G39: ='STUDENT RECORD BY SD'!E36 -> RANI35 | H39: ='STUDENT RECORD BY SD'!G36 -> king35 | I39: ='STUDENT RECORD BY SD'!H36 -> queen35 | J39: ='STUDENT RECORD BY SD'!I36 -> M | K39: ='STUDENT RECORD BY SD'!J36 -> 2014-04-16 | L39: ='STUDENT RECORD BY SD'!O36 -> OBC | M39: N | T39: =IF(B39<9,"",VLOOKUP(B39,MASTER!$B$10:$R$17,16,0)) ->  | V39: 0 | AA39: 2019-07-10 | AB39: 2019 | AE39: =IF(B38<9,"",IF(MASTER!$R$23="YES",100)) ->  | AK39: =VLOOKUP(B39:B834,MASTER!$B$10:$R$17,16,0) ->  | AL39: 3 | AM39: A | AS39: ='STUDENT RECORD BY SD'!A37 -> 3 | AT39: ='STUDENT RECORD BY SD'!B37 -> A | AU39: ='STUDENT RECORD BY SD'!C37 -> 4627 | AV39: ='STUDENT RECORD BY SD'!D37 -> 2019-05-08 | AW39: ='STUDENT RECORD BY SD'!E37 -> RANI36 | AX39: ='STUDENT RECORD BY SD'!F37 -> 0 | AY39: ='STUDENT RECORD BY SD'!G37 -> king36 | AZ39: ='STUDENT RECORD BY SD'!H37 -> queen36 | BA39: ='STUDENT RECORD BY SD'!I37 -> F | BB39: ='STUDENT RECORD BY SD'!J37 -> 2014-03-09 | BC39: ='STUDENT RECORD BY SD'!K37 -> 0 | BD39: ='STUDENT RECORD BY SD'!L37 -> 0 | BE39: ='STUDENT RECORD BY SD'!M37 -> 0 | BF39: ='STUDENT RECORD BY SD'!N37 -> 0 | BG39: ='STUDENT RECORD BY SD'!O37 -> OBC | BH39: ='STUDENT RECORD BY SD'!P37 -> Hindu | BI39: ='STUDENT RECORD BY SD'!Q37 -> 0 | BJ39: ='STUDENT RECORD BY SD'!R37 -> GOVT. SENIOR SECONDARY SCHOOL ALNIYAWAS (219445) | BK39: ='STUDENT RECORD BY SD'!S37 -> 8140200308 | BL39: ='STUDENT RECORD BY SD'!T37 -> 0 | BM39: ='STUDENT RECORD BY SD'!U37 -> 0 | BN39: ='STUDENT RECORD BY SD'!V37 -> 9828120732 | BO39: ='STUDENT RECORD BY SD'!W37 -> VP-ALNIYAWAS | BP39: ='STUDENT RECORD BY SD'!X37 -> 60000 | BQ39: ='STUDENT RECORD BY SD'!Y37 -> N | BR39: ='STUDENT RECORD BY SD'!Z37 -> N | BS39: ='STUDENT RECORD BY SD'!AA37 -> No | BT39: ='STUDENT RECORD BY SD'!AB37 -> 7 | BU39: ='STUDENT RECORD BY SD'!AC37 -> None | BV39: ='STUDENT RECORD BY SD'!AD37 -> 0 | BW39: 3 | BX39: A
A40: =IF(B40="","",ROWS($A$5:A40)) -> 36 | B40: ='STUDENT RECORD BY SD'!A37 -> 3 | C40: ='STUDENT RECORD BY SD'!B37 -> A | E40: ='STUDENT RECORD BY SD'!C37 -> 4627 | F40: ='STUDENT RECORD BY SD'!D37 -> 2019-05-08 | G40: ='STUDENT RECORD BY SD'!E37 -> RANI36 | H40: ='STUDENT RECORD BY SD'!G37 -> king36 | I40: ='STUDENT RECORD BY SD'!H37 -> queen36 | J40: ='STUDENT RECORD BY SD'!I37 -> F | K40: ='STUDENT RECORD BY SD'!J37 -> 2014-03-09 | L40: ='STUDENT RECORD BY SD'!O37 -> OBC | M40: N | T40: =IF(B40<9,"",VLOOKUP(B40,MASTER!$B$10:$R$17,16,0)) ->  | V40: 0 | AA40: 2019-05-08 | AB40: 2019 | AE40: =IF(B39<9,"",IF(MASTER!$R$23="YES",100)) ->  | AK40: =VLOOKUP(B40:B835,MASTER!$B$10:$R$17,16,0) ->  | AL40: 3 | AM40: A | AS40: ='STUDENT RECORD BY SD'!A38 -> 3 | AT40: ='STUDENT RECORD BY SD'!B38 -> A | AU40: ='STUDENT RECORD BY SD'!C38 -> 4711 | AV40: ='STUDENT RECORD BY SD'!D38 -> 2019-07-11 | AW40: ='STUDENT RECORD BY SD'!E38 -> RANI37 | AX40: ='STUDENT RECORD BY SD'!F38 -> 0 | AY40: ='STUDENT RECORD BY SD'!G38 -> king37 | AZ40: ='STUDENT RECORD BY SD'!H38 -> queen37 | BA40: ='STUDENT RECORD BY SD'!I38 -> F | BB40: ='STUDENT RECORD BY SD'!J38 -> 2012-05-14 | BC40: ='STUDENT RECORD BY SD'!K38 -> 0 | BD40: ='STUDENT RECORD BY SD'!L38 -> 0 | BE40: ='STUDENT RECORD BY SD'!M38 -> 0 | BF40: ='STUDENT RECORD BY SD'!N38 -> 0 | BG40: ='STUDENT RECORD BY SD'!O38 -> SC | BH40: ='STUDENT RECORD BY SD'!P38 -> Hindu | BI40: ='STUDENT RECORD BY SD'!Q38 -> 0 | BJ40: ='STUDENT RECORD BY SD'!R38 -> GOVT. SENIOR SECONDARY SCHOOL ALNIYAWAS (219445) | BK40: ='STUDENT RECORD BY SD'!S38 -> 8140200308 | BL40: ='STUDENT RECORD BY SD'!T38 -> 0 | BM40: ='STUDENT RECORD BY SD'!U38 -> 0 | BN40: ='STUDENT RECORD BY SD'!V38 -> 9828120733 | BO40: ='STUDENT RECORD BY SD'!W38 -> VP-ALNIYAWAS | BP40: ='STUDENT RECORD BY SD'!X38 -> 200000 | BQ40: ='STUDENT RECORD BY SD'!Y38 -> N | BR40: ='STUDENT RECORD BY SD'!Z38 -> N | BS40: ='STUDENT RECORD BY SD'!AA38 -> No | BT40: ='STUDENT RECORD BY SD'!AB38 -> 9 | BU40: ='STUDENT RECORD BY SD'!AC38 -> None | BV40: ='STUDENT RECORD BY SD'!AD38 -> 1 | BW40: 3 | BX40: A
A41: =IF(B41="","",ROWS($A$5:A41)) -> 37 | B41: ='STUDENT RECORD BY SD'!A38 -> 3 | C41: ='STUDENT RECORD BY SD'!B38 -> A | E41: ='STUDENT RECORD BY SD'!C38 -> 4711 | F41: ='STUDENT RECORD BY SD'!D38 -> 2019-07-11 | G41: ='STUDENT RECORD BY SD'!E38 -> RANI37 | H41: ='STUDENT RECORD BY SD'!G38 -> king37 | I41: ='STUDENT RECORD BY SD'!H38 -> queen37 | J41: ='STUDENT RECORD BY SD'!I38 -> F | K41: ='STUDENT RECORD BY SD'!J38 -> 2012-05-14 | L41: ='STUDENT RECORD BY SD'!O38 -> SC | M41: N | T41: =IF(B41<9,"",VLOOKUP(B41,MASTER!$B$10:$R$17,16,0)) ->  | V41: 0 | AA41: 2019-07-11 | AB41: 2019 | AE41: =IF(B40<9,"",IF(MASTER!$R$23="YES",100)) ->  | AK41: =VLOOKUP(B41:B836,MASTER!$B$10:$R$17,16,0) ->  | AL41: 3 | AM41: A | AS41: ='STUDENT RECORD BY SD'!A39 -> 3 | AT41: ='STUDENT RECORD BY SD'!B39 -> A | AU41: ='STUDENT RECORD BY SD'!C39 -> 4787 | AV41: ='STUDENT RECORD BY SD'!D39 -> 00:00:00 | AW41: ='STUDENT RECORD BY SD'!E39 -> RANI38 | AX41: ='STUDENT RECORD BY SD'!F39 -> 0 | AY41: ='STUDENT RECORD BY SD'!G39 -> king38 | AZ41: ='STUDENT RECORD BY SD'!H39 -> queen38 | BA41: ='STUDENT RECORD BY SD'!I39 -> F | BB41: ='STUDENT RECORD BY SD'!J39 -> 2012-12-03 | BC41: ='STUDENT RECORD BY SD'!K39 -> 0 | BD41: ='STUDENT RECORD BY SD'!L39 -> 0 | BE41: ='STUDENT RECORD BY SD'!M39 -> 0 | BF41: ='STUDENT RECORD BY SD'!N39 -> 0 | BG41: ='STUDENT RECORD BY SD'!O39 -> SC | BH41: ='STUDENT RECORD BY SD'!P39 -> 0 | BI41: ='STUDENT RECORD BY SD'!Q39 -> 0 | BJ41: ='STUDENT RECORD BY SD'!R39 -> GOVT. SENIOR SECONDARY SCHOOL ALNIYAWAS (219445) | BK41: ='STUDENT RECORD BY SD'!S39 -> 8140200308 | BL41: ='STUDENT RECORD BY SD'!T39 -> 0 | BM41: ='STUDENT RECORD BY SD'!U39 -> 0 | BN41: ='STUDENT RECORD BY SD'!V39 -> 9828120734 | BO41: ='STUDENT RECORD BY SD'!W39 -> VP-ALNIYAWAS | BP41: ='STUDENT RECORD BY SD'!X39 -> 0 | BQ41: ='STUDENT RECORD BY SD'!Y39 -> N | BR41: ='STUDENT RECORD BY SD'!Z39 -> Y | BS41: ='STUDENT RECORD BY SD'!AA39 -> 0 | BT41: ='STUDENT RECORD BY SD'!AB39 -> 9 | BU41: ='STUDENT RECORD BY SD'!AC39 -> 0 | BV41: ='STUDENT RECORD BY SD'!AD39 -> 1 | BW41: 3 | BX41: A
A42: =IF(B42="","",ROWS($A$5:A42)) -> 38 | B42: ='STUDENT RECORD BY SD'!A39 -> 3 | C42: ='STUDENT RECORD BY SD'!B39 -> A | E42: ='STUDENT RECORD BY SD'!C39 -> 4787 | F42: ='STUDENT RECORD BY SD'!D39 -> 00:00:00 | G42: ='STUDENT RECORD BY SD'!E39 -> RANI38 | H42: ='STUDENT RECORD BY SD'!G39 -> king38 | I42: ='STUDENT RECORD BY SD'!H39 -> queen38 | J42: ='STUDENT RECORD BY SD'!I39 -> F | K42: ='STUDENT RECORD BY SD'!J39 -> 2012-12-03 | L42: ='STUDENT RECORD BY SD'!O39 -> SC | M42: N | T42: =IF(B42<9,"",VLOOKUP(B42,MASTER!$B$10:$R$17,16,0)) ->  | V42: 0 | AA42: 00:00:00 | AB42: 1900 | AE42: =IF(B41<9,"",IF(MASTER!$R$23="YES",100)) ->  | AK42: =VLOOKUP(B42:B837,MASTER!$B$10:$R$17,16,0) ->  | AL42: 3 | AM42: A | AS42: ='STUDENT RECORD BY SD'!A40 -> 3 | AT42: ='STUDENT RECORD BY SD'!B40 -> A | AU42: ='STUDENT RECORD BY SD'!C40 -> 4642 | AV42: ='STUDENT RECORD BY SD'!D40 -> 2019-07-04 | AW42: ='STUDENT RECORD BY SD'!E40 -> RANI39 | AX42: ='STUDENT RECORD BY SD'!F40 -> 0 | AY42: ='STUDENT RECORD BY SD'!G40 -> king39 | AZ42: ='STUDENT RECORD BY SD'!H40 -> queen39 | BA42: ='STUDENT RECORD BY SD'!I40 -> F | BB42: ='STUDENT RECORD BY SD'!J40 -> 2015-01-01 | BC42: ='STUDENT RECORD BY SD'!K40 -> 0 | BD42: ='STUDENT RECORD BY SD'!L40 -> 0 | BE42: ='STUDENT RECORD BY SD'!M40 -> 0 | BF42: ='STUDENT RECORD BY SD'!N40 -> 0 | BG42: ='STUDENT RECORD BY SD'!O40 -> OBC | BH42: ='STUDENT RECORD BY SD'!P40 -> Muslim | BI42: ='STUDENT RECORD BY SD'!Q40 -> 0 | BJ42: ='STUDENT RECORD BY SD'!R40 -> GOVT. SENIOR SECONDARY SCHOOL ALNIYAWAS (219445) | BK42: ='STUDENT RECORD BY SD'!S40 -> 8140200308 | BL42: ='STUDENT RECORD BY SD'!T40 -> 0 | BM42: ='STUDENT RECORD BY SD'!U40 -> vvxsxhr | BN42: ='STUDENT RECORD BY SD'!V40 -> 9828120735 | BO42: ='STUDENT RECORD BY SD'!W40 -> VP-ALNIYAWAS | BP42: ='STUDENT RECORD BY SD'!X40 -> 60000 | BQ42: ='STUDENT RECORD BY SD'!Y40 -> N | BR42: ='STUDENT RECORD BY SD'!Z40 -> N | BS42: ='STUDENT RECORD BY SD'!AA40 -> Yes | BT42: ='STUDENT RECORD BY SD'!AB40 -> 6 | BU42: ='STUDENT RECORD BY SD'!AC40 -> None | BV42: ='STUDENT RECORD BY SD'!AD40 -> 0 | BW42: 3 | BX42: A
A43: =IF(B43="","",ROWS($A$5:A43)) -> 39 | B43: ='STUDENT RECORD BY SD'!A40 -> 3 | C43: ='STUDENT RECORD BY SD'!B40 -> A | E43: ='STUDENT RECORD BY SD'!C40 -> 4642 | F43: ='STUDENT RECORD BY SD'!D40 -> 2019-07-04 | G43: ='STUDENT RECORD BY SD'!E40 -> RANI39 | H43: ='STUDENT RECORD BY SD'!G40 -> king39 | I43: ='STUDENT RECORD BY SD'!H40 -> queen39 | J43: ='STUDENT RECORD BY SD'!I40 -> F | K43: ='STUDENT RECORD BY SD'!J40 -> 2015-01-01 | L43: ='STUDENT RECORD BY SD'!O40 -> OBC | M43: N | T43: =IF(B43<9,"",VLOOKUP(B43,MASTER!$B$10:$R$17,16,0)) ->  | V43: 0 | AA43: 2019-07-04 | AB43: 2019 | AE43: =IF(B42<9,"",IF(MASTER!$R$23="YES",100)) ->  | AK43: =VLOOKUP(B43:B838,MASTER!$B$10:$R$17,16,0) ->  | AL43: 3 | AM43: A | AS43: ='STUDENT RECORD BY SD'!A41 -> 3 | AT43: ='STUDENT RECORD BY SD'!B41 -> A | AU43: ='STUDENT RECORD BY SD'!C41 -> 4738 | AV43: ='STUDENT RECORD BY SD'!D41 -> 2019-07-15 | AW43: ='STUDENT RECORD BY SD'!E41 -> RANI40 | AX43: ='STUDENT RECORD BY SD'!F41 -> 0 | AY43: ='STUDENT RECORD BY SD'!G41 -> king40 | AZ43: ='STUDENT RECORD BY SD'!H41 -> queen40 | BA43: ='STUDENT RECORD BY SD'!I41 -> F | BB43: ='STUDENT RECORD BY SD'!J41 -> 2013-05-05 | BC43: ='STUDENT RECORD BY SD'!K41 -> 0 | BD43: ='STUDENT RECORD BY SD'!L41 -> 0 | BE43: ='STUDENT RECORD BY SD'!M41 -> 0 | BF43: ='STUDENT RECORD BY SD'!N41 -> 0 | BG43: ='STUDENT RECORD BY SD'!O41 -> SC | BH43: ='STUDENT RECORD BY SD'!P41 -> Hindu | BI43: ='STUDENT RECORD BY SD'!Q41 -> 0 | BJ43: ='STUDENT RECORD BY SD'!R41 -> GOVT. SENIOR SECONDARY SCHOOL ALNIYAWAS (219445) | BK43: ='STUDENT RECORD BY SD'!S41 -> 8140200308 | BL43: ='STUDENT RECORD BY SD'!T41 -> 0 | BM43: ='STUDENT RECORD BY SD'!U41 -> yobayib | BN43: ='STUDENT RECORD BY SD'!V41 -> 9828120736 | BO43: ='STUDENT RECORD BY SD'!W41 -> VP-ALNIYAWAS | BP43: ='STUDENT RECORD BY SD'!X41 -> 50000 | BQ43: ='STUDENT RECORD BY SD'!Y41 -> N | BR43: ='STUDENT RECORD BY SD'!Z41 -> N | BS43: ='STUDENT RECORD BY SD'!AA41 -> No | BT43: ='STUDENT RECORD BY SD'!AB41 -> 8 | BU43: ='STUDENT RECORD BY SD'!AC41 -> None | BV43: ='STUDENT RECORD BY SD'!AD41 -> 0 | BW43: 3 | BX43: A
A44: =IF(B44="","",ROWS($A$5:A44)) -> 40 | B44: ='STUDENT RECORD BY SD'!A41 -> 3 | C44: ='STUDENT RECORD BY SD'!B41 -> A | E44: ='STUDENT RECORD BY SD'!C41 -> 4738 | F44: ='STUDENT RECORD BY SD'!D41 -> 2019-07-15 | G44: ='STUDENT RECORD BY SD'!E41 -> RANI40 | H44: ='STUDENT RECORD BY SD'!G41 -> king40 | I44: ='STUDENT RECORD BY SD'!H41 -> queen40 | J44: ='STUDENT RECORD BY SD'!I41 -> F | K44: ='STUDENT RECORD BY SD'!J41 -> 2013-05-05 | L44: ='STUDENT RECORD BY SD'!O41 -> SC | M44: N | T44: =IF(B44<9,"",VLOOKUP(B44,MASTER!$B$10:$R$17,16,0)) ->  | V44: 0 | AA44: 2019-07-15 | AB44: 2019 | AE44: =IF(B43<9,"",IF(MASTER!$R$23="YES",100)) ->  | AK44: =VLOOKUP(B44:B839,MASTER!$B$10:$R$17,16,0) ->  | AL44: 3 | AM44: A | AS44: ='STUDENT RECORD BY SD'!A42 -> 3 | AT44: ='STUDENT RECORD BY SD'!B42 -> A | AU44: ='STUDENT RECORD BY SD'!C42 -> 4690 | AV44: ='STUDENT RECORD BY SD'!D42 -> 2019-07-09 | AW44: ='STUDENT RECORD BY SD'!E42 -> RANI41 | AX44: ='STUDENT RECORD BY SD'!F42 -> 0 | AY44: ='STUDENT RECORD BY SD'!G42 -> king41 | AZ44: ='STUDENT RECORD BY SD'!H42 -> queen41 | BA44: ='STUDENT RECORD BY SD'!I42 -> M | BB44: ='STUDENT RECORD BY SD'!J42 -> 2014-01-21 | BC44: ='STUDENT RECORD BY SD'!K42 -> 0 | BD44: ='STUDENT RECORD BY SD'!L42 -> 0 | BE44: ='STUDENT RECORD BY SD'!M42 -> 0 | BF44: ='STUDENT RECORD BY SD'!N42 -> 0 | BG44: ='STUDENT RECORD BY SD'!O42 -> SC | BH44: ='STUDENT RECORD BY SD'!P42 -> Hindu | BI44: ='STUDENT RECORD BY SD'!Q42 -> 0 | BJ44: ='STUDENT RECORD BY SD'!R42 -> GOVT. SENIOR SECONDARY SCHOOL ALNIYAWAS (219445) | BK44: ='STUDENT RECORD BY SD'!S42 -> 8140200308 | BL44: ='STUDENT RECORD BY SD'!T42 -> 0 | BM44: ='STUDENT RECORD BY SD'!U42 -> 0 | BN44: ='STUDENT RECORD BY SD'!V42 -> 9828120737 | BO44: ='STUDENT RECORD BY SD'!W42 -> VP-ALNIYAWAS | BP44: ='STUDENT RECORD BY SD'!X42 -> 60000 | BQ44: ='STUDENT RECORD BY SD'!Y42 -> N | BR44: ='STUDENT RECORD BY SD'!Z42 -> N | BS44: ='STUDENT RECORD BY SD'!AA42 -> No | BT44: ='STUDENT RECORD BY SD'!AB42 -> 7 | BU44: ='STUDENT RECORD BY SD'!AC42 -> None | BV44: ='STUDENT RECORD BY SD'!AD42 -> 0 | BW44: 3 | BX44: A
A45: =IF(B45="","",ROWS($A$5:A45)) -> 41 | B45: ='STUDENT RECORD BY SD'!A42 -> 3 | C45: ='STUDENT RECORD BY SD'!B42 -> A | E45: ='STUDENT RECORD BY SD'!C42 -> 4690 | F45: ='STUDENT RECORD BY SD'!D42 -> 2019-07-09 | G45: ='STUDENT RECORD BY SD'!E42 -> RANI41 | H45: ='STUDENT RECORD BY SD'!G42 -> king41 | I45: ='STUDENT RECORD BY SD'!H42 -> queen41 | J45: ='STUDENT RECORD BY SD'!I42 -> M | K45: ='STUDENT RECORD BY SD'!J42 -> 2014-01-21 | L45: ='STUDENT RECORD BY SD'!O42 -> SC | M45: N | T45: =IF(B45<9,"",VLOOKUP(B45,MASTER!$B$10:$R$17,16,0)) ->  | V45: 0 | AA45: 2019-07-09 | AB45: 2019 | AE45: =IF(B44<9,"",IF(MASTER!$R$23="YES",100)) ->  | AK45: =VLOOKUP(B45:B840,MASTER!$B$10:$R$17,16,0) ->  | AL45: 3 | AM45: A | AS45: ='STUDENT RECORD BY SD'!A43 -> 3 | AT45: ='STUDENT RECORD BY SD'!B43 -> A | AU45: ='STUDENT RECORD BY SD'!C43 -> 4873 | AV45: ='STUDENT RECORD BY SD'!D43 -> 00:00:00 | AW45: ='STUDENT RECORD BY SD'!E43 -> RANI42 | AX45: ='STUDENT RECORD BY SD'!F43 -> 0 | AY45: ='STUDENT RECORD BY SD'!G43 -> king42 | AZ45: ='STUDENT RECORD BY SD'!H43 -> queen42 | BA45: ='STUDENT RECORD BY SD'!I43 -> M | BB45: ='STUDENT RECORD BY SD'!J43 -> 2014-09-25 | BC45: ='STUDENT RECORD BY SD'!K43 -> 0 | BD45: ='STUDENT RECORD BY SD'!L43 -> 0 | BE45: ='STUDENT RECORD BY SD'!M43 -> 0 | BF45: ='STUDENT RECORD BY SD'!N43 -> 0 | BG45: ='STUDENT RECORD BY SD'!O43 -> OBC | BH45: ='STUDENT RECORD BY SD'!P43 -> 0 | BI45: ='STUDENT RECORD BY SD'!Q43 -> 0 | BJ45: ='STUDENT RECORD BY SD'!R43 -> GOVT. SENIOR SECONDARY SCHOOL ALNIYAWAS (219445) | BK45: ='STUDENT RECORD BY SD'!S43 -> 8140200308 | BL45: ='STUDENT RECORD BY SD'!T43 -> 0 | BM45: ='STUDENT RECORD BY SD'!U43 -> 0 | BN45: ='STUDENT RECORD BY SD'!V43 -> 9828120738 | BO45: ='STUDENT RECORD BY SD'!W43 -> VP-ALNIYAWAS | BP45: ='STUDENT RECORD BY SD'!X43 -> 0 | BQ45: ='STUDENT RECORD BY SD'!Y43 -> N | BR45: ='STUDENT RECORD BY SD'!Z43 -> Y | BS45: ='STUDENT RECORD BY SD'!AA43 -> 0 | BT45: ='STUDENT RECORD BY SD'!AB43 -> 7 | BU45: ='STUDENT RECORD BY SD'!AC43 -> 0 | BV45: ='STUDENT RECORD BY SD'!AD43 -> 1 | BW45: 3 | BX45: A
A46: =IF(B46="","",ROWS($A$5:A46)) -> 42 | B46: ='STUDENT RECORD BY SD'!A43 -> 3 | C46: ='STUDENT RECORD BY SD'!B43 -> A | E46: ='STUDENT RECORD BY SD'!C43 -> 4873 | F46: ='STUDENT RECORD BY SD'!D43 -> 00:00:00 | G46: ='STUDENT RECORD BY SD'!E43 -> RANI42 | H46: ='STUDENT RECORD BY SD'!G43 -> king42 | I46: ='STUDENT RECORD BY SD'!H43 -> queen42 | J46: ='STUDENT RECORD BY SD'!I43 -> M | K46: ='STUDENT RECORD BY SD'!J43 -> 2014-09-25 | L46: ='STUDENT RECORD BY SD'!O43 -> OBC | M46: N | T46: =IF(B46<9,"",VLOOKUP(B46,MASTER!$B$10:$R$17,16,0)) ->  | V46: 0 | AA46: 00:00:00 | AB46: 1900 | AE46: =IF(B45<9,"",IF(MASTER!$R$23="YES",100)) ->  | AK46: =VLOOKUP(B46:B841,MASTER!$B$10:$R$17,16,0) ->  | AL46: 3 | AM46: A | AS46: ='STUDENT RECORD BY SD'!A44 -> 3 | AT46: ='STUDENT RECORD BY SD'!B44 -> A | AU46: ='STUDENT RECORD BY SD'!C44 -> 4626 | AV46: ='STUDENT RECORD BY SD'!D44 -> 2019-05-08 | AW46: ='STUDENT RECORD BY SD'!E44 -> RANI43 | AX46: ='STUDENT RECORD BY SD'!F44 -> 0 | AY46: ='STUDENT RECORD BY SD'!G44 -> king43 | AZ46: ='STUDENT RECORD BY SD'!H44 -> queen43 | BA46: ='STUDENT RECORD BY SD'!I44 -> F | BB46: ='STUDENT RECORD BY SD'!J44 -> 2014-02-01 | BC46: ='STUDENT RECORD BY SD'!K44 -> 0 | BD46: ='STUDENT RECORD BY SD'!L44 -> 0 | BE46: ='STUDENT RECORD BY SD'!M44 -> 0 | BF46: ='STUDENT RECORD BY SD'!N44 -> 0 | BG46: ='STUDENT RECORD BY SD'!O44 -> OBC | BH46: ='STUDENT RECORD BY SD'!P44 -> Muslim | BI46: ='STUDENT RECORD BY SD'!Q44 -> 0 | BJ46: ='STUDENT RECORD BY SD'!R44 -> GOVT. SENIOR SECONDARY SCHOOL ALNIYAWAS (219445) | BK46: ='STUDENT RECORD BY SD'!S44 -> 8140200308 | BL46: ='STUDENT RECORD BY SD'!T44 -> XXXX4865 | BM46: ='STUDENT RECORD BY SD'!U44 -> 0 | BN46: ='STUDENT RECORD BY SD'!V44 -> 9828120739 | BO46: ='STUDENT RECORD BY SD'!W44 -> VP-ALNIYAWAS | BP46: ='STUDENT RECORD BY SD'!X44 -> 60000 | BQ46: ='STUDENT RECORD BY SD'!Y44 -> N | BR46: ='STUDENT RECORD BY SD'!Z44 -> N | BS46: ='STUDENT RECORD BY SD'!AA44 -> Yes | BT46: ='STUDENT RECORD BY SD'!AB44 -> 7 | BU46: ='STUDENT RECORD BY SD'!AC44 -> None | BV46: ='STUDENT RECORD BY SD'!AD44 -> 0 | BW46: 3 | BX46: A
A47: =IF(B47="","",ROWS($A$5:A47)) -> 43 | B47: ='STUDENT RECORD BY SD'!A44 -> 3 | C47: ='STUDENT RECORD BY SD'!B44 -> A | E47: ='STUDENT RECORD BY SD'!C44 -> 4626 | F47: ='STUDENT RECORD BY SD'!D44 -> 2019-05-08 | G47: ='STUDENT RECORD BY SD'!E44 -> RANI43 | H47: ='STUDENT RECORD BY SD'!G44 -> king43 | I47: ='STUDENT RECORD BY SD'!H44 -> queen43 | J47: ='STUDENT RECORD BY SD'!I44 -> F | K47: ='STUDENT RECORD BY SD'!J44 -> 2014-02-01 | L47: ='STUDENT RECORD BY SD'!O44 -> OBC | M47: N | T47: =IF(B47<9,"",VLOOKUP(B47,MASTER!$B$10:$R$17,16,0)) ->  | V47: 0 | AA47: 2019-05-08 | AB47: 2019 | AE47: =IF(B46<9,"",IF(MASTER!$R$23="YES",100)) ->  | AK47: =VLOOKUP(B47:B842,MASTER!$B$10:$R$17,16,0) ->  | AL47: 3 | AM47: A | AS47: ='STUDENT RECORD BY SD'!A45 -> 3 | AT47: ='STUDENT RECORD BY SD'!B45 -> A | AU47: ='STUDENT RECORD BY SD'!C45 -> 4698 | AV47: ='STUDENT RECORD BY SD'!D45 -> 2019-07-10 | AW47: ='STUDENT RECORD BY SD'!E45 -> RANI44 | AX47: ='STUDENT RECORD BY SD'!F45 -> 0 | AY47: ='STUDENT RECORD BY SD'!G45 -> king44 | AZ47: ='STUDENT RECORD BY SD'!H45 -> queen44 | BA47: ='STUDENT RECORD BY SD'!I45 -> M | BB47: ='STUDENT RECORD BY SD'!J45 -> 2012-07-09 | BC47: ='STUDENT RECORD BY SD'!K45 -> 0 | BD47: ='STUDENT RECORD BY SD'!L45 -> 0 | BE47: ='STUDENT RECORD BY SD'!M45 -> 0 | BF47: ='STUDENT RECORD BY SD'!N45 -> 0 | BG47: ='STUDENT RECORD BY SD'!O45 -> OBC | BH47: ='STUDENT RECORD BY SD'!P45 -> Muslim | BI47: ='STUDENT RECORD BY SD'!Q45 -> 0 | BJ47: ='STUDENT RECORD BY SD'!R45 -> GOVT. SENIOR SECONDARY SCHOOL ALNIYAWAS (219445) | BK47: ='STUDENT RECORD BY SD'!S45 -> 8140200308 | BL47: ='STUDENT RECORD BY SD'!T45 -> 0 | BM47: ='STUDENT RECORD BY SD'!U45 -> 0 | BN47: ='STUDENT RECORD BY SD'!V45 -> 9828120740 | BO47: ='STUDENT RECORD BY SD'!W45 -> VP-ALNIYAWAS | BP47: ='STUDENT RECORD BY SD'!X45 -> 50000 | BQ47: ='STUDENT RECORD BY SD'!Y45 -> N | BR47: ='STUDENT RECORD BY SD'!Z45 -> N | BS47: ='STUDENT RECORD BY SD'!AA45 -> Yes | BT47: ='STUDENT RECORD BY SD'!AB45 -> 9 | BU47: ='STUDENT RECORD BY SD'!AC45 -> None | BV47: ='STUDENT RECORD BY SD'!AD45 -> 1 | BW47: 3 | BX47: A
A48: =IF(B48="","",ROWS($A$5:A48)) -> 44 | B48: ='STUDENT RECORD BY SD'!A45 -> 3 | C48: ='STUDENT RECORD BY SD'!B45 -> A | E48: ='STUDENT RECORD BY SD'!C45 -> 4698 | F48: ='STUDENT RECORD BY SD'!D45 -> 2019-07-10 | G48: ='STUDENT RECORD BY SD'!E45 -> RANI44 | H48: ='STUDENT RECORD BY SD'!G45 -> king44 | I48: ='STUDENT RECORD BY SD'!H45 -> queen44 | J48: ='STUDENT RECORD BY SD'!I45 -> M | K48: ='STUDENT RECORD BY SD'!J45 -> 2012-07-09 | L48: ='STUDENT RECORD BY SD'!O45 -> OBC | M48: N | T48: =IF(B48<9,"",VLOOKUP(B48,MASTER!$B$10:$R$17,16,0)) ->  | V48: 0 | AA48: 2019-07-10 | AB48: 2019 | AE48: =IF(B47<9,"",IF(MASTER!$R$23="YES",100)) ->  | AK48: =VLOOKUP(B48:B843,MASTER!$B$10:$R$17,16,0) ->  | AL48: 3 | AM48: A | AS48: ='STUDENT RECORD BY SD'!A46 -> 3 | AT48: ='STUDENT RECORD BY SD'!B46 -> A | AU48: ='STUDENT RECORD BY SD'!C46 -> 4633 | AV48: ='STUDENT RECORD BY SD'!D46 -> 2019-07-03 | AW48: ='STUDENT RECORD BY SD'!E46 -> RANI45 | AX48: ='STUDENT RECORD BY SD'!F46 -> 0 | AY48: ='STUDENT RECORD BY SD'!G46 -> king45 | AZ48: ='STUDENT RECORD BY SD'!H46 -> queen45 | BA48: ='STUDENT RECORD BY SD'!I46 -> F | BB48: ='STUDENT RECORD BY SD'!J46 -> 2012-11-02 | BC48: ='STUDENT RECORD BY SD'!K46 -> 0 | BD48: ='STUDENT RECORD BY SD'!L46 -> 0 | BE48: ='STUDENT RECORD BY SD'!M46 -> 0 | BF48: ='STUDENT RECORD BY SD'!N46 -> 0 | BG48: ='STUDENT RECORD BY SD'!O46 -> GEN | BH48: ='STUDENT RECORD BY SD'!P46 -> Muslim | BI48: ='STUDENT RECORD BY SD'!Q46 -> 0 | BJ48: ='STUDENT RECORD BY SD'!R46 -> GOVT. SENIOR SECONDARY SCHOOL ALNIYAWAS (219445) | BK48: ='STUDENT RECORD BY SD'!S46 -> 8140200308 | BL48: ='STUDENT RECORD BY SD'!T46 -> XXXX0826 | BM48: ='STUDENT RECORD BY SD'!U46 -> tmsuucc | BN48: ='STUDENT RECORD BY SD'!V46 -> 9828120741 | BO48: ='STUDENT RECORD BY SD'!W46 -> VP-ALNIYAWAS | BP48: ='STUDENT RECORD BY SD'!X46 -> 60000 | BQ48: ='STUDENT RECORD BY SD'!Y46 -> N | BR48: ='STUDENT RECORD BY SD'!Z46 -> N | BS48: ='STUDENT RECORD BY SD'!AA46 -> Yes | BT48: ='STUDENT RECORD BY SD'!AB46 -> 9 | BU48: ='STUDENT RECORD BY SD'!AC46 -> None | BV48: ='STUDENT RECORD BY SD'!AD46 -> 0 | BW48: 3 | BX48: A
A49: =IF(B49="","",ROWS($A$5:A49)) -> 45 | B49: ='STUDENT RECORD BY SD'!A46 -> 3 | C49: ='STUDENT RECORD BY SD'!B46 -> A | E49: ='STUDENT RECORD BY SD'!C46 -> 4633 | F49: ='STUDENT RECORD BY SD'!D46 -> 2019-07-03 | G49: ='STUDENT RECORD BY SD'!E46 -> RANI45 | H49: ='STUDENT RECORD BY SD'!G46 -> king45 | I49: ='STUDENT RECORD BY SD'!H46 -> queen45 | J49: ='STUDENT RECORD BY SD'!I46 -> F | K49: ='STUDENT RECORD BY SD'!J46 -> 2012-11-02 | L49: ='STUDENT RECORD BY SD'!O46 -> GEN | M49: N | T49: =IF(B49<9,"",VLOOKUP(B49,MASTER!$B$10:$R$17,16,0)) ->  | V49: 0 | AA49: 2019-07-03 | AB49: 2019 | AE49: =IF(B48<9,"",IF(MASTER!$R$23="YES",100)) ->  | AK49: =VLOOKUP(B49:B844,MASTER!$B$10:$R$17,16,0) ->  | AL49: 3 | AM49: A | AS49: ='STUDENT RECORD BY SD'!A47 -> 3 | AT49: ='STUDENT RECORD BY SD'!B47 -> A | AU49: ='STUDENT RECORD BY SD'!C47 -> 4780 | AV49: ='STUDENT RECORD BY SD'!D47 -> 2019-08-03 | AW49: ='STUDENT RECORD BY SD'!E47 -> RANI46 | AX49: ='STUDENT RECORD BY SD'!F47 -> 0 | AY49: ='STUDENT RECORD BY SD'!G47 -> king46 | AZ49: ='STUDENT RECORD BY SD'!H47 -> queen46 | BA49: ='STUDENT RECORD BY SD'!I47 -> F | BB49: ='STUDENT RECORD BY SD'!J47 -> 2014-06-23 | BC49: ='STUDENT RECORD BY SD'!K47 -> 0 | BD49: ='STUDENT RECORD BY SD'!L47 -> 0 | BE49: ='STUDENT RECORD BY SD'!M47 -> 0 | BF49: ='STUDENT RECORD BY SD'!N47 -> 0 | BG49: ='STUDENT RECORD BY SD'!O47 -> OBC | BH49: ='STUDENT RECORD BY SD'!P47 -> Muslim | BI49: ='STUDENT RECORD BY SD'!Q47 -> 0 | BJ49: ='STUDENT RECORD BY SD'!R47 -> GOVT. SENIOR SECONDARY SCHOOL ALNIYAWAS (219445) | BK49: ='STUDENT RECORD BY SD'!S47 -> 8140200308 | BL49: ='STUDENT RECORD BY SD'!T47 -> 0 | BM49: ='STUDENT RECORD BY SD'!U47 -> ysqcywo | BN49: ='STUDENT RECORD BY SD'!V47 -> 9828120742 | BO49: ='STUDENT RECORD BY SD'!W47 -> VP-ALNIYAWAS | BP49: ='STUDENT RECORD BY SD'!X47 -> 60000 | BQ49: ='STUDENT RECORD BY SD'!Y47 -> N | BR49: ='STUDENT RECORD BY SD'!Z47 -> N | BS49: ='STUDENT RECORD BY SD'!AA47 -> Yes | BT49: ='STUDENT RECORD BY SD'!AB47 -> 7 | BU49: ='STUDENT RECORD BY SD'!AC47 -> None | BV49: ='STUDENT RECORD BY SD'!AD47 -> 0 | BW49: 3 | BX49: A
A50: =IF(B50="","",ROWS($A$5:A50)) -> 46 | B50: ='STUDENT RECORD BY SD'!A47 -> 3 | C50: ='STUDENT RECORD BY SD'!B47 -> A | E50: ='STUDENT RECORD BY SD'!C47 -> 4780 | F50: ='STUDENT RECORD BY SD'!D47 -> 2019-08-03 | G50: ='STUDENT RECORD BY SD'!E47 -> RANI46 | H50: ='STUDENT RECORD BY SD'!G47 -> king46 | I50: ='STUDENT RECORD BY SD'!H47 -> queen46 | J50: ='STUDENT RECORD BY SD'!I47 -> F | K50: ='STUDENT RECORD BY SD'!J47 -> 2014-06-23 | L50: ='STUDENT RECORD BY SD'!O47 -> OBC | M50: N | T50: =IF(B50<9,"",VLOOKUP(B50,MASTER!$B$10:$R$17,16,0)) ->  | V50: 0 | AA50: 2019-08-03 | AB50: 2019 | AE50: =IF(B49<9,"",IF(MASTER!$R$23="YES",100)) ->  | AK50: =VLOOKUP(B50:B845,MASTER!$B$10:$R$17,16,0) ->  | AL50: 3 | AM50: A | AS50: ='STUDENT RECORD BY SD'!A48 -> 4 | AT50: ='STUDENT RECORD BY SD'!B48 -> A | AU50: ='STUDENT RECORD BY SD'!C48 -> 4522 | AV50: ='STUDENT RECORD BY SD'!D48 -> 2018-07-07 | AW50: ='STUDENT RECORD BY SD'!E48 -> RANI47 | AX50: ='STUDENT RECORD BY SD'!F48 -> 0 | AY50: ='STUDENT RECORD BY SD'!G48 -> king47 | AZ50: ='STUDENT RECORD BY SD'!H48 -> queen47 | BA50: ='STUDENT RECORD BY SD'!I48 -> F | BB50: ='STUDENT RECORD BY SD'!J48 -> 2012-12-31 | BC50: ='STUDENT RECORD BY SD'!K48 -> 0 | BD50: ='STUDENT RECORD BY SD'!L48 -> 0 | BE50: ='STUDENT RECORD BY SD'!M48 -> 0 | BF50: ='STUDENT RECORD BY SD'!N48 -> 0 | BG50: ='STUDENT RECORD BY SD'!O48 -> OBC | BH50: ='STUDENT RECORD BY SD'!P48 -> Muslim | BI50: ='STUDENT RECORD BY SD'!Q48 -> 0 | BJ50: ='STUDENT RECORD BY SD'!R48 -> GOVT. SENIOR SECONDARY SCHOOL ALNIYAWAS (219445) | BK50: ='STUDENT RECORD BY SD'!S48 -> 8140200308 | BL50: ='STUDENT RECORD BY SD'!T48 -> XXXX8462 | BM50: ='STUDENT RECORD BY SD'!U48 -> VXKBNTN | BN50: ='STUDENT RECORD BY SD'!V48 -> 9828120743 | BO50: ='STUDENT RECORD BY SD'!W48 -> VP-ALNIYAWAS | BP50: ='STUDENT RECORD BY SD'!X48 -> 40000 | BQ50: ='STUDENT RECORD BY SD'!Y48 -> N | BR50: ='STUDENT RECORD BY SD'!Z48 -> N | BS50: ='STUDENT RECORD BY SD'!AA48 -> Yes | BT50: ='STUDENT RECORD BY SD'!AB48 -> 9 | BU50: ='STUDENT RECORD BY SD'!AC48 -> None | BV50: ='STUDENT RECORD BY SD'!AD48 -> 1 | BW50: 4 | BX50: A
A51: =IF(B51="","",ROWS($A$5:A51)) -> 47 | B51: ='STUDENT RECORD BY SD'!A48 -> 4 | C51: ='STUDENT RECORD BY SD'!B48 -> A | E51: ='STUDENT RECORD BY SD'!C48 -> 4522 | F51: ='STUDENT RECORD BY SD'!D48 -> 2018-07-07 | G51: ='STUDENT RECORD BY SD'!E48 -> RANI47 | H51: ='STUDENT RECORD BY SD'!G48 -> king47 | I51: ='STUDENT RECORD BY SD'!H48 -> queen47 | J51: ='STUDENT RECORD BY SD'!I48 -> F | K51: ='STUDENT RECORD BY SD'!J48 -> 2012-12-31 | L51: ='STUDENT RECORD BY SD'!O48 -> OBC | M51: N | T51: =IF(B51<9,"",VLOOKUP(B51,MASTER!$B$10:$R$17,16,0)) ->  | V51: 0 | AA51: 2018-07-07 | AB51: 2018 | AE51: =IF(B50<9,"",IF(MASTER!$R$23="YES",100)) ->  | AK51: =VLOOKUP(B51:B846,MASTER!$B$10:$R$17,16,0) ->  | AL51: 4 | AM51: A | AS51: ='STUDENT RECORD BY SD'!A49 -> 4 | AT51: ='STUDENT RECORD BY SD'!B49 -> A | AU51: ='STUDENT RECORD BY SD'!C49 -> 4582 | AV51: ='STUDENT RECORD BY SD'!D49 -> 2018-07-18 | AW51: ='STUDENT RECORD BY SD'!E49 -> RANI48 | AX51: ='STUDENT RECORD BY SD'!F49 -> 0 | AY51: ='STUDENT RECORD BY SD'!G49 -> king48 | AZ51: ='STUDENT RECORD BY SD'!H49 -> queen48 | BA51: ='STUDENT RECORD BY SD'!I49 -> F | BB51: ='STUDENT RECORD BY SD'!J49 -> 2012-12-07 | BC51: ='STUDENT RECORD BY SD'!K49 -> 0 | BD51: ='STUDENT RECORD BY SD'!L49 -> 0 | BE51: ='STUDENT RECORD BY SD'!M49 -> 0 | BF51: ='STUDENT RECORD BY SD'!N49 -> 0 | BG51: ='STUDENT RECORD BY SD'!O49 -> OBC | BH51: ='STUDENT RECORD BY SD'!P49 -> Muslim | BI51: ='STUDENT RECORD BY SD'!Q49 -> 0 | BJ51: ='STUDENT RECORD BY SD'!R49 -> GOVT. SENIOR SECONDARY SCHOOL ALNIYAWAS (219445) | BK51: ='STUDENT RECORD BY SD'!S49 -> 8140200308 | BL51: ='STUDENT RECORD BY SD'!T49 -> 0 | BM51: ='STUDENT RECORD BY SD'!U49 -> 0 | BN51: ='STUDENT RECORD BY SD'!V49 -> 9828120744 | BO51: ='STUDENT RECORD BY SD'!W49 -> VP-ALNIYAWAS | BP51: ='STUDENT RECORD BY SD'!X49 -> 40000 | BQ51: ='STUDENT RECORD BY SD'!Y49 -> N | BR51: ='STUDENT RECORD BY SD'!Z49 -> N | BS51: ='STUDENT RECORD BY SD'!AA49 -> Yes | BT51: ='STUDENT RECORD BY SD'!AB49 -> 9 | BU51: ='STUDENT RECORD BY SD'!AC49 -> None | BV51: ='STUDENT RECORD BY SD'!AD49 -> 0 | BW51: 4 | BX51: A
A52: =IF(B52="","",ROWS($A$5:A52)) -> 48 | B52: ='STUDENT RECORD BY SD'!A49 -> 4 | C52: ='STUDENT RECORD BY SD'!B49 -> A | E52: ='STUDENT RECORD BY SD'!C49 -> 4582 | F52: ='STUDENT RECORD BY SD'!D49 -> 2018-07-18 | G52: ='STUDENT RECORD BY SD'!E49 -> RANI48 | H52: ='STUDENT RECORD BY SD'!G49 -> king48 | I52: ='STUDENT RECORD BY SD'!H49 -> queen48 | J52: ='STUDENT RECORD BY SD'!I49 -> F | K52: ='STUDENT RECORD BY SD'!J49 -> 2012-12-07 | L52: ='STUDENT RECORD BY SD'!O49 -> OBC | M52: N | T52: =IF(B52<9,"",VLOOKUP(B52,MASTER!$B$10:$R$17,16,0)) ->  | V52: 0 | AA52: 2018-07-18 | AB52: 2018 | AE52: =IF(B51<9,"",IF(MASTER!$R$23="YES",100)) ->  | AK52: =VLOOKUP(B52:B847,MASTER!$B$10:$R$17,16,0) ->  | AL52: 4 | AM52: A | AS52: ='STUDENT RECORD BY SD'!A50 -> 4 | AT52: ='STUDENT RECORD BY SD'!B50 -> A | AU52: ='STUDENT RECORD BY SD'!C50 -> 4620 | AV52: ='STUDENT RECORD BY SD'!D50 -> 2018-09-24 | AW52: ='STUDENT RECORD BY SD'!E50 -> RANI49 | AX52: ='STUDENT RECORD BY SD'!F50 -> 0 | AY52: ='STUDENT RECORD BY SD'!G50 -> king49 | AZ52: ='STUDENT RECORD BY SD'!H50 -> queen49 | BA52: ='STUDENT RECORD BY SD'!I50 -> M | BB52: ='STUDENT RECORD BY SD'!J50 -> 2012-02-04 | BC52: ='STUDENT RECORD BY SD'!K50 -> 0 | BD52: ='STUDENT RECORD BY SD'!L50 -> 0 | BE52: ='STUDENT RECORD BY SD'!M50 -> 0 | BF52: ='STUDENT RECORD BY SD'!N50 -> 0 | BG52: ='STUDENT RECORD BY SD'!O50 -> OBC | BH52: ='STUDENT RECORD BY SD'!P50 -> Muslim | BI52: ='STUDENT RECORD BY SD'!Q50 -> 0 | BJ52: ='STUDENT RECORD BY SD'!R50 -> GOVT. SENIOR SECONDARY SCHOOL ALNIYAWAS (219445) | BK52: ='STUDENT RECORD BY SD'!S50 -> 8140200308 | BL52: ='STUDENT RECORD BY SD'!T50 -> XXXX0705 | BM52: ='STUDENT RECORD BY SD'!U50 -> YQQGUEG | BN52: ='STUDENT RECORD BY SD'!V50 -> 9828120745 | BO52: ='STUDENT RECORD BY SD'!W50 -> VP-ALNIYAWAS | BP52: ='STUDENT RECORD BY SD'!X50 -> 40000 | BQ52: ='STUDENT RECORD BY SD'!Y50 -> N | BR52: ='STUDENT RECORD BY SD'!Z50 -> N | BS52: ='STUDENT RECORD BY SD'!AA50 -> Yes | BT52: ='STUDENT RECORD BY SD'!AB50 -> 9 | BU52: ='STUDENT RECORD BY SD'!AC50 -> None | BV52: ='STUDENT RECORD BY SD'!AD50 -> 0 | BW52: 4 | BX52: A
A53: =IF(B53="","",ROWS($A$5:A53)) -> 49 | B53: ='STUDENT RECORD BY SD'!A50 -> 4 | C53: ='STUDENT RECORD BY SD'!B50 -> A | E53: ='STUDENT RECORD BY SD'!C50 -> 4620 | F53: ='STUDENT RECORD BY SD'!D50 -> 2018-09-24 | G53: ='STUDENT RECORD BY SD'!E50 -> RANI49 | H53: ='STUDENT RECORD BY SD'!G50 -> king49 | I53: ='STUDENT RECORD BY SD'!H50 -> queen49 | J53: ='STUDENT RECORD BY SD'!I50 -> M | K53: ='STUDENT RECORD BY SD'!J50 -> 2012-02-04 | L53: ='STUDENT RECORD BY SD'!O50 -> OBC | M53: N | T53: =IF(B53<9,"",VLOOKUP(B53,MASTER!$B$10:$R$17,16,0)) ->  | V53: 0 | AA53: 2018-09-24 | AB53: 2018 | AE53: =IF(B52<9,"",IF(MASTER!$R$23="YES",100)) ->  | AK53: =VLOOKUP(B53:B848,MASTER!$B$10:$R$17,16,0) ->  | AL53: 4 | AM53: A | AS53: ='STUDENT RECORD BY SD'!A51 -> 4 | AT53: ='STUDENT RECORD BY SD'!B51 -> A | AU53: ='STUDENT RECORD BY SD'!C51 -> 4581 | AV53: ='STUDENT RECORD BY SD'!D51 -> 2018-07-18 | AW53: ='STUDENT RECORD BY SD'!E51 -> RANI50 | AX53: ='STUDENT RECORD BY SD'!F51 -> 0 | AY53: ='STUDENT RECORD BY SD'!G51 -> king50 | AZ53: ='STUDENT RECORD BY SD'!H51 -> queen50 | BA53: ='STUDENT RECORD BY SD'!I51 -> M | BB53: ='STUDENT RECORD BY SD'!J51 -> 2012-04-15 | BC53: ='STUDENT RECORD BY SD'!K51 -> 0 | BD53: ='STUDENT RECORD BY SD'!L51 -> 0 | BE53: ='STUDENT RECORD BY SD'!M51 -> 0 | BF53: ='STUDENT RECORD BY SD'!N51 -> 0 | BG53: ='STUDENT RECORD BY SD'!O51 -> OBC | BH53: ='STUDENT RECORD BY SD'!P51 -> Hindu | BI53: ='STUDENT RECORD BY SD'!Q51 -> 0 | BJ53: ='STUDENT RECORD BY SD'!R51 -> GOVT. SENIOR SECONDARY SCHOOL ALNIYAWAS (219445) | BK53: ='STUDENT RECORD BY SD'!S51 -> 8140200308 | BL53: ='STUDENT RECORD BY SD'!T51 -> XXXX0449 | BM53: ='STUDENT RECORD BY SD'!U51 -> VPWJVGR | BN53: ='STUDENT RECORD BY SD'!V51 -> 9828120746 | BO53: ='STUDENT RECORD BY SD'!W51 -> VP-ALNIYAWAS | BP53: ='STUDENT RECORD BY SD'!X51 -> 36000 | BQ53: ='STUDENT RECORD BY SD'!Y51 -> N | BR53: ='STUDENT RECORD BY SD'!Z51 -> N | BS53: ='STUDENT RECORD BY SD'!AA51 -> No | BT53: ='STUDENT RECORD BY SD'!AB51 -> 9 | BU53: ='STUDENT RECORD BY SD'!AC51 -> None | BV53: ='STUDENT RECORD BY SD'!AD51 -> 1 | BW53: 4 | BX53: A
A54: =IF(B54="","",ROWS($A$5:A54)) -> 50 | B54: ='STUDENT RECORD BY SD'!A51 -> 4 | C54: ='STUDENT RECORD BY SD'!B51 -> A | E54: ='STUDENT RECORD BY SD'!C51 -> 4581 | F54: ='STUDENT RECORD BY SD'!D51 -> 2018-07-18 | G54: ='STUDENT RECORD BY SD'!E51 -> RANI50 | H54: ='STUDENT RECORD BY SD'!G51 -> king50 | I54: ='STUDENT RECORD BY SD'!H51 -> queen50 | J54: ='STUDENT RECORD BY SD'!I51 -> M | K54: ='STUDENT RECORD BY SD'!J51 -> 2012-04-15 | L54: ='STUDENT RECORD BY SD'!O51 -> OBC | M54: N | T54: =IF(B54<9,"",VLOOKUP(B54,MASTER!$B$10:$R$17,16,0)) ->  | V54: 0 | AA54: 2018-07-18 | AB54: 2018 | AE54: =IF(B53<9,"",IF(MASTER!$R$23="YES",100)) ->  | AK54: =VLOOKUP(B54:B849,MASTER!$B$10:$R$17,16,0) ->  | AL54: 4 | AM54: A | AS54: ='STUDENT RECORD BY SD'!A52 -> 4 | AT54: ='STUDENT RECORD BY SD'!B52 -> A | AU54: ='STUDENT RECORD BY SD'!C52 -> 4855 | AV54: ='STUDENT RECORD BY SD'!D52 -> 00:00:00 | AW54: ='STUDENT RECORD BY SD'!E52 -> RANI51 | AX54: ='STUDENT RECORD BY SD'!F52 -> 0 | AY54: ='STUDENT RECORD BY SD'!G52 -> king51 | AZ54: ='STUDENT RECORD BY SD'!H52 -> queen51 | BA54: ='STUDENT RECORD BY SD'!I52 -> F | BB54: ='STUDENT RECORD BY SD'!J52 -> 2012-10-10 | BC54: ='STUDENT RECORD BY SD'!K52 -> 0 | BD54: ='STUDENT RECORD BY SD'!L52 -> 0 | BE54: ='STUDENT RECORD BY SD'!M52 -> 0 | BF54: ='STUDENT RECORD BY SD'!N52 -> 0 | BG54: ='STUDENT RECORD BY SD'!O52 -> SBC | BH54: ='STUDENT RECORD BY SD'!P52 -> 0 | BI54: ='STUDENT RECORD BY SD'!Q52 -> 0 | BJ54: ='STUDENT RECORD BY SD'!R52 -> GOVT. SENIOR SECONDARY SCHOOL ALNIYAWAS (219445) | BK54: ='STUDENT RECORD BY SD'!S52 -> 8140200308 | BL54: ='STUDENT RECORD BY SD'!T52 -> 0 | BM54: ='STUDENT RECORD BY SD'!U52 -> 0 | BN54: ='STUDENT RECORD BY SD'!V52 -> 9828120747 | BO54: ='STUDENT RECORD BY SD'!W52 -> VP-ALNIYAWAS | BP54: ='STUDENT RECORD BY SD'!X52 -> 0 | BQ54: ='STUDENT RECORD BY SD'!Y52 -> N | BR54: ='STUDENT RECORD BY SD'!Z52 -> Y | BS54: ='STUDENT RECORD BY SD'!AA52 -> 0 | BT54: ='STUDENT RECORD BY SD'!AB52 -> 9 | BU54: ='STUDENT RECORD BY SD'!AC52 -> 0 | BV54: ='STUDENT RECORD BY SD'!AD52 -> 1 | BW54: 4 | BX54: A
A55: =IF(B55="","",ROWS($A$5:A55)) -> 51 | B55: ='STUDENT RECORD BY SD'!A52 -> 4 | C55: ='STUDENT RECORD BY SD'!B52 -> A | E55: ='STUDENT RECORD BY SD'!C52 -> 4855 | F55: ='STUDENT RECORD BY SD'!D52 -> 00:00:00 | G55: ='STUDENT RECORD BY SD'!E52 -> RANI51 | H55: ='STUDENT RECORD BY SD'!G52 -> king51 | I55: ='STUDENT RECORD BY SD'!H52 -> queen51 | J55: ='STUDENT RECORD BY SD'!I52 -> F | K55: ='STUDENT RECORD BY SD'!J52 -> 2012-10-10 | L55: ='STUDENT RECORD BY SD'!O52 -> SBC | M55: N | T55: =IF(B55<9,"",VLOOKUP(B55,MASTER!$B$10:$R$17,16,0)) ->  | V55: 0 | AA55: 00:00:00 | AB55: 1900 | AE55: =IF(B54<9,"",IF(MASTER!$R$23="YES",100)) ->  | AK55: =VLOOKUP(B55:B850,MASTER!$B$10:$R$17,16,0) ->  | AL55: 4 | AM55: A | AS55: ='STUDENT RECORD BY SD'!A53 -> 4 | AT55: ='STUDENT RECORD BY SD'!B53 -> A | AU55: ='STUDENT RECORD BY SD'!C53 -> 4526 | AV55: ='STUDENT RECORD BY SD'!D53 -> 2018-07-07 | AW55: ='STUDENT RECORD BY SD'!E53 -> RANI52 | AX55: ='STUDENT RECORD BY SD'!F53 -> 0 | AY55: ='STUDENT RECORD BY SD'!G53 -> king52 | AZ55: ='STUDENT RECORD BY SD'!H53 -> queen52 | BA55: ='STUDENT RECORD BY SD'!I53 -> F | BB55: ='STUDENT RECORD BY SD'!J53 -> 2012-12-11 | BC55: ='STUDENT RECORD BY SD'!K53 -> 0 | BD55: ='STUDENT RECORD BY SD'!L53 -> 0 | BE55: ='STUDENT RECORD BY SD'!M53 -> 0 | BF55: ='STUDENT RECORD BY SD'!N53 -> 0 | BG55: ='STUDENT RECORD BY SD'!O53 -> OBC | BH55: ='STUDENT RECORD BY SD'!P53 -> Muslim | BI55: ='STUDENT RECORD BY SD'!Q53 -> 0 | BJ55: ='STUDENT RECORD BY SD'!R53 -> GOVT. SENIOR SECONDARY SCHOOL ALNIYAWAS (219445) | BK55: ='STUDENT RECORD BY SD'!S53 -> 8140200308 | BL55: ='STUDENT RECORD BY SD'!T53 -> XXXX8261 | BM55: ='STUDENT RECORD BY SD'!U53 -> 0 | BN55: ='STUDENT RECORD BY SD'!V53 -> 9828120748 | BO55: ='STUDENT RECORD BY SD'!W53 -> VP-ALNIYAWAS | BP55: ='STUDENT RECORD BY SD'!X53 -> 40000 | BQ55: ='STUDENT RECORD BY SD'!Y53 -> N | BR55: ='STUDENT RECORD BY SD'!Z53 -> N | BS55: ='STUDENT RECORD BY SD'!AA53 -> Yes | BT55: ='STUDENT RECORD BY SD'!AB53 -> 9 | BU55: ='STUDENT RECORD BY SD'!AC53 -> None | BV55: ='STUDENT RECORD BY SD'!AD53 -> 0 | BW55: 4 | BX55: A
A56: =IF(B56="","",ROWS($A$5:A56)) -> 52 | B56: ='STUDENT RECORD BY SD'!A53 -> 4 | C56: ='STUDENT RECORD BY SD'!B53 -> A | E56: ='STUDENT RECORD BY SD'!C53 -> 4526 | F56: ='STUDENT RECORD BY SD'!D53 -> 2018-07-07 | G56: ='STUDENT RECORD BY SD'!E53 -> RANI52 | H56: ='STUDENT RECORD BY SD'!G53 -> king52 | I56: ='STUDENT RECORD BY SD'!H53 -> queen52 | J56: ='STUDENT RECORD BY SD'!I53 -> F | K56: ='STUDENT RECORD BY SD'!J53 -> 2012-12-11 | L56: ='STUDENT RECORD BY SD'!O53 -> OBC | M56: N | T56: =IF(B56<9,"",VLOOKUP(B56,MASTER!$B$10:$R$17,16,0)) ->  | V56: 0 | AA56: 2018-07-07 | AB56: 2018 | AE56: =IF(B55<9,"",IF(MASTER!$R$23="YES",100)) ->  | AK56: =VLOOKUP(B56:B851,MASTER!$B$10:$R$17,16,0) ->  | AL56: 4 | AM56: A | AS56: ='STUDENT RECORD BY SD'!A54 -> 4 | AT56: ='STUDENT RECORD BY SD'!B54 -> A | AU56: ='STUDENT RECORD BY SD'!C54 -> 4610 | AV56: ='STUDENT RECORD BY SD'!D54 -> 2018-08-02 | AW56: ='STUDENT RECORD BY SD'!E54 -> RANI53 | AX56: ='STUDENT RECORD BY SD'!F54 -> 0 | AY56: ='STUDENT RECORD BY SD'!G54 -> king53 | AZ56: ='STUDENT RECORD BY SD'!H54 -> queen53 | BA56: ='STUDENT RECORD BY SD'!I54 -> F | BB56: ='STUDENT RECORD BY SD'!J54 -> 2013-06-28 | BC56: ='STUDENT RECORD BY SD'!K54 -> 0 | BD56: ='STUDENT RECORD BY SD'!L54 -> 0 | BE56: ='STUDENT RECORD BY SD'!M54 -> 0 | BF56: ='STUDENT RECORD BY SD'!N54 -> 0 | BG56: ='STUDENT RECORD BY SD'!O54 -> OBC | BH56: ='STUDENT RECORD BY SD'!P54 -> Muslim | BI56: ='STUDENT RECORD BY SD'!Q54 -> 0 | BJ56: ='STUDENT RECORD BY SD'!R54 -> GOVT. SENIOR SECONDARY SCHOOL ALNIYAWAS (219445) | BK56: ='STUDENT RECORD BY SD'!S54 -> 8140200308 | BL56: ='STUDENT RECORD BY SD'!T54 -> XXXX7614 | BM56: ='STUDENT RECORD BY SD'!U54 -> 0 | BN56: ='STUDENT RECORD BY SD'!V54 -> 9828120749 | BO56: ='STUDENT RECORD BY SD'!W54 -> VP-ALNIYAWAS | BP56: ='STUDENT RECORD BY SD'!X54 -> 40000 | BQ56: ='STUDENT RECORD BY SD'!Y54 -> N | BR56: ='STUDENT RECORD BY SD'!Z54 -> N | BS56: ='STUDENT RECORD BY SD'!AA54 -> Yes | BT56: ='STUDENT RECORD BY SD'!AB54 -> 8 | BU56: ='STUDENT RECORD BY SD'!AC54 -> None | BV56: ='STUDENT RECORD BY SD'!AD54 -> 0 | BW56: 4 | BX56: A
A57: =IF(B57="","",ROWS($A$5:A57)) -> 53 | B57: ='STUDENT RECORD BY SD'!A54 -> 4 | C57: ='STUDENT RECORD BY SD'!B54 -> A | E57: ='STUDENT RECORD BY SD'!C54 -> 4610 | F57: ='STUDENT RECORD BY SD'!D54 -> 2018-08-02 | G57: ='STUDENT RECORD BY SD'!E54 -> RANI53 | H57: ='STUDENT RECORD BY SD'!G54 -> king53 | I57: ='STUDENT RECORD BY SD'!H54 -> queen53 | J57: ='STUDENT RECORD BY SD'!I54 -> F | K57: ='STUDENT RECORD BY SD'!J54 -> 2013-06-28 | L57: ='STUDENT RECORD BY SD'!O54 -> OBC | M57: N | T57: =IF(B57<9,"",VLOOKUP(B57,MASTER!$B$10:$R$17,16,0)) ->  | V57: 0 | AA57: 2018-08-02 | AB57: 2018 | AE57: =IF(B56<9,"",IF(MASTER!$R$23="YES",100)) ->  | AK57: =VLOOKUP(B57:B852,MASTER!$B$10:$R$17,16,0) ->  | AL57: 4 | AM57: A | AS57: ='STUDENT RECORD BY SD'!A55 -> 4 | AT57: ='STUDENT RECORD BY SD'!B55 -> A | AU57: ='STUDENT RECORD BY SD'!C55 -> 4591 | AV57: ='STUDENT RECORD BY SD'!D55 -> 2018-07-21 | AW57: ='STUDENT RECORD BY SD'!E55 -> RANI54 | AX57: ='STUDENT RECORD BY SD'!F55 -> 0 | AY57: ='STUDENT RECORD BY SD'!G55 -> king54 | AZ57: ='STUDENT RECORD BY SD'!H55 -> queen54 | BA57: ='STUDENT RECORD BY SD'!I55 -> F | BB57: ='STUDENT RECORD BY SD'!J55 -> 2013-02-21 | BC57: ='STUDENT RECORD BY SD'!K55 -> 0 | BD57: ='STUDENT RECORD BY SD'!L55 -> 0 | BE57: ='STUDENT RECORD BY SD'!M55 -> 0 | BF57: ='STUDENT RECORD BY SD'!N55 -> 0 | BG57: ='STUDENT RECORD BY SD'!O55 -> OBC | BH57: ='STUDENT RECORD BY SD'!P55 -> Muslim | BI57: ='STUDENT RECORD BY SD'!Q55 -> 0 | BJ57: ='STUDENT RECORD BY SD'!R55 -> GOVT. SENIOR SECONDARY SCHOOL ALNIYAWAS (219445) | BK57: ='STUDENT RECORD BY SD'!S55 -> 8140200308 | BL57: ='STUDENT RECORD BY SD'!T55 -> 0 | BM57: ='STUDENT RECORD BY SD'!U55 -> 0 | BN57: ='STUDENT RECORD BY SD'!V55 -> 9828120750 | BO57: ='STUDENT RECORD BY SD'!W55 -> VP-ALNIYAWAS | BP57: ='STUDENT RECORD BY SD'!X55 -> 40000 | BQ57: ='STUDENT RECORD BY SD'!Y55 -> N | BR57: ='STUDENT RECORD BY SD'!Z55 -> N | BS57: ='STUDENT RECORD BY SD'!AA55 -> Yes | BT57: ='STUDENT RECORD BY SD'!AB55 -> 8 | BU57: ='STUDENT RECORD BY SD'!AC55 -> None | BV57: ='STUDENT RECORD BY SD'!AD55 -> 0 | BW57: 4 | BX57: A
A58: =IF(B58="","",ROWS($A$5:A58)) -> 54 | B58: ='STUDENT RECORD BY SD'!A55 -> 4 | C58: ='STUDENT RECORD BY SD'!B55 -> A | E58: ='STUDENT RECORD BY SD'!C55 -> 4591 | F58: ='STUDENT RECORD BY SD'!D55 -> 2018-07-21 | G58: ='STUDENT RECORD BY SD'!E55 -> RANI54 | H58: ='STUDENT RECORD BY SD'!G55 -> king54 | I58: ='STUDENT RECORD BY SD'!H55 -> queen54 | J58: ='STUDENT RECORD BY SD'!I55 -> F | K58: ='STUDENT RECORD BY SD'!J55 -> 2013-02-21 | L58: ='STUDENT RECORD BY SD'!O55 -> OBC | M58: N | T58: =IF(B58<9,"",VLOOKUP(B58,MASTER!$B$10:$R$17,16,0)) ->  | V58: 0 | AA58: 2018-07-21 | AB58: 2018 | AE58: =IF(B57<9,"",IF(MASTER!$R$23="YES",100)) ->  | AK58: =VLOOKUP(B58:B853,MASTER!$B$10:$R$17,16,0) ->  | AL58: 4 | AM58: A | AS58: ='STUDENT RECORD BY SD'!A56 -> 4 | AT58: ='STUDENT RECORD BY SD'!B56 -> A | AU58: ='STUDENT RECORD BY SD'!C56 -> 4520 | AV58: ='STUDENT RECORD BY SD'!D56 -> 2018-07-07 | AW58: ='STUDENT RECORD BY SD'!E56 -> RANI55 | AX58: ='STUDENT RECORD BY SD'!F56 -> 0 | AY58: ='STUDENT RECORD BY SD'!G56 -> king55 | AZ58: ='STUDENT RECORD BY SD'!H56 -> queen55 | BA58: ='STUDENT RECORD BY SD'!I56 -> F | BB58: ='STUDENT RECORD BY SD'!J56 -> 2013-10-01 | BC58: ='STUDENT RECORD BY SD'!K56 -> 0 | BD58: ='STUDENT RECORD BY SD'!L56 -> 0 | BE58: ='STUDENT RECORD BY SD'!M56 -> 0 | BF58: ='STUDENT RECORD BY SD'!N56 -> 0 | BG58: ='STUDENT RECORD BY SD'!O56 -> OBC | BH58: ='STUDENT RECORD BY SD'!P56 -> Muslim | BI58: ='STUDENT RECORD BY SD'!Q56 -> 0 | BJ58: ='STUDENT RECORD BY SD'!R56 -> GOVT. SENIOR SECONDARY SCHOOL ALNIYAWAS (219445) | BK58: ='STUDENT RECORD BY SD'!S56 -> 8140200308 | BL58: ='STUDENT RECORD BY SD'!T56 -> XXXX9420 | BM58: ='STUDENT RECORD BY SD'!U56 -> VONSWJT | BN58: ='STUDENT RECORD BY SD'!V56 -> 9828120751 | BO58: ='STUDENT RECORD BY SD'!W56 -> VP-ALNIYAWAS | BP58: ='STUDENT RECORD BY SD'!X56 -> 40000 | BQ58: ='STUDENT RECORD BY SD'!Y56 -> N | BR58: ='STUDENT RECORD BY SD'!Z56 -> N | BS58: ='STUDENT RECORD BY SD'!AA56 -> Yes | BT58: ='STUDENT RECORD BY SD'!AB56 -> 8 | BU58: ='STUDENT RECORD BY SD'!AC56 -> None | BV58: ='STUDENT RECORD BY SD'!AD56 -> 0 | BW58: 4 | BX58: A
A59: =IF(B59="","",ROWS($A$5:A59)) -> 55 | B59: ='STUDENT RECORD BY SD'!A56 -> 4 | C59: ='STUDENT RECORD BY SD'!B56 -> A | E59: ='STUDENT RECORD BY SD'!C56 -> 4520 | F59: ='STUDENT RECORD BY SD'!D56 -> 2018-07-07 | G59: ='STUDENT RECORD BY SD'!E56 -> RANI55 | H59: ='STUDENT RECORD BY SD'!G56 -> king55 | I59: ='STUDENT RECORD BY SD'!H56 -> queen55 | J59: ='STUDENT RECORD BY SD'!I56 -> F | K59: ='STUDENT RECORD BY SD'!J56 -> 2013-10-01 | L59: ='STUDENT RECORD BY SD'!O56 -> OBC | M59: N | T59: =IF(B59<9,"",VLOOKUP(B59,MASTER!$B$10:$R$17,16,0)) ->  | V59: 0 | AA59: 2018-07-07 | AB59: 2018 | AE59: =IF(B58<9,"",IF(MASTER!$R$23="YES",100)) ->  | AK59: =VLOOKUP(B59:B854,MASTER!$B$10:$R$17,16,0) ->  | AL59: 4 | AM59: A | AS59: ='STUDENT RECORD BY SD'!A57 -> 4 | AT59: ='STUDENT RECORD BY SD'!B57 -> A | AU59: ='STUDENT RECORD BY SD'!C57 -> 4480 | AV59: ='STUDENT RECORD BY SD'!D57 -> 2018-07-04 | AW59: ='STUDENT RECORD BY SD'!E57 -> RANI56 | AX59: ='STUDENT RECORD BY SD'!F57 -> 0 | AY59: ='STUDENT RECORD BY SD'!G57 -> king56 | AZ59: ='STUDENT RECORD BY SD'!H57 -> queen56 | BA59: ='STUDENT RECORD BY SD'!I57 -> F | BB59: ='STUDENT RECORD BY SD'!J57 -> 2012-11-03 | BC59: ='STUDENT RECORD BY SD'!K57 -> 0 | BD59: ='STUDENT RECORD BY SD'!L57 -> 0 | BE59: ='STUDENT RECORD BY SD'!M57 -> 0 | BF59: ='STUDENT RECORD BY SD'!N57 -> 0 | BG59: ='STUDENT RECORD BY SD'!O57 -> SC | BH59: ='STUDENT RECORD BY SD'!P57 -> Hindu | BI59: ='STUDENT RECORD BY SD'!Q57 -> 0 | BJ59: ='STUDENT RECORD BY SD'!R57 -> GOVT. SENIOR SECONDARY SCHOOL ALNIYAWAS (219445) | BK59: ='STUDENT RECORD BY SD'!S57 -> 8140200308 | BL59: ='STUDENT RECORD BY SD'!T57 -> 0 | BM59: ='STUDENT RECORD BY SD'!U57 -> 0 | BN59: ='STUDENT RECORD BY SD'!V57 -> 9828120752 | BO59: ='STUDENT RECORD BY SD'!W57 -> VP-ALNIYAWAS | BP59: ='STUDENT RECORD BY SD'!X57 -> 40000 | BQ59: ='STUDENT RECORD BY SD'!Y57 -> N | BR59: ='STUDENT RECORD BY SD'!Z57 -> N | BS59: ='STUDENT RECORD BY SD'!AA57 -> No | BT59: ='STUDENT RECORD BY SD'!AB57 -> 9 | BU59: ='STUDENT RECORD BY SD'!AC57 -> None | BV59: ='STUDENT RECORD BY SD'!AD57 -> 1 | BW59: 4 | BX59: A
A60: =IF(B60="","",ROWS($A$5:A60)) -> 56 | B60: ='STUDENT RECORD BY SD'!A57 -> 4 | C60: ='STUDENT RECORD BY SD'!B57 -> A | E60: ='STUDENT RECORD BY SD'!C57 -> 4480 | F60: ='STUDENT RECORD BY SD'!D57 -> 2018-07-04 | G60: ='STUDENT RECORD BY SD'!E57 -> RANI56 | H60: ='STUDENT RECORD BY SD'!G57 -> king56 | I60: ='STUDENT RECORD BY SD'!H57 -> queen56 | J60: ='STUDENT RECORD BY SD'!I57 -> F | K60: ='STUDENT RECORD BY SD'!J57 -> 2012-11-03 | L60: ='STUDENT RECORD BY SD'!O57 -> SC | M60: N | T60: =IF(B60<9,"",VLOOKUP(B60,MASTER!$B$10:$R$17,16,0)) ->  | V60: 0 | AA60: 2018-07-04 | AB60: 2018 | AE60: =IF(B59<9,"",IF(MASTER!$R$23="YES",100)) ->  | AK60: =VLOOKUP(B60:B855,MASTER!$B$10:$R$17,16,0) ->  | AL60: 4 | AM60: A | AS60: ='STUDENT RECORD BY SD'!A58 -> 4 | AT60: ='STUDENT RECORD BY SD'!B58 -> A | AU60: ='STUDENT RECORD BY SD'!C58 -> 4856 | AV60: ='STUDENT RECORD BY SD'!D58 -> 00:00:00 | AW60: ='STUDENT RECORD BY SD'!E58 -> RANI57 | AX60: ='STUDENT RECORD BY SD'!F58 -> 0 | AY60: ='STUDENT RECORD BY SD'!G58 -> king57 | AZ60: ='STUDENT RECORD BY SD'!H58 -> queen57 | BA60: ='STUDENT RECORD BY SD'!I58 -> M | BB60: ='STUDENT RECORD BY SD'!J58 -> 2010-07-03 | BC60: ='STUDENT RECORD BY SD'!K58 -> 0 | BD60: ='STUDENT RECORD BY SD'!L58 -> 0 | BE60: ='STUDENT RECORD BY SD'!M58 -> 0 | BF60: ='STUDENT RECORD BY SD'!N58 -> 0 | BG60: ='STUDENT RECORD BY SD'!O58 -> GEN | BH60: ='STUDENT RECORD BY SD'!P58 -> 0 | BI60: ='STUDENT RECORD BY SD'!Q58 -> 0 | BJ60: ='STUDENT RECORD BY SD'!R58 -> GOVT. SENIOR SECONDARY SCHOOL ALNIYAWAS (219445) | BK60: ='STUDENT RECORD BY SD'!S58 -> 8140200308 | BL60: ='STUDENT RECORD BY SD'!T58 -> 0 | BM60: ='STUDENT RECORD BY SD'!U58 -> 0 | BN60: ='STUDENT RECORD BY SD'!V58 -> 9828120753 | BO60: ='STUDENT RECORD BY SD'!W58 -> VP-ALNIYAWAS | BP60: ='STUDENT RECORD BY SD'!X58 -> 0 | BQ60: ='STUDENT RECORD BY SD'!Y58 -> N | BR60: ='STUDENT RECORD BY SD'!Z58 -> Y | BS60: ='STUDENT RECORD BY SD'!AA58 -> 0 | BT60: ='STUDENT RECORD BY SD'!AB58 -> 11 | BU60: ='STUDENT RECORD BY SD'!AC58 -> 0 | BV60: ='STUDENT RECORD BY SD'!AD58 -> 1 | BW60: 4 | BX60: A
A61: =IF(B61="","",ROWS($A$5:A61)) -> 57 | B61: ='STUDENT RECORD BY SD'!A58 -> 4 | C61: ='STUDENT RECORD BY SD'!B58 -> A | E61: ='STUDENT RECORD BY SD'!C58 -> 4856 | F61: ='STUDENT RECORD BY SD'!D58 -> 00:00:00 | G61: ='STUDENT RECORD BY SD'!E58 -> RANI57 | H61: ='STUDENT RECORD BY SD'!G58 -> king57 | I61: ='STUDENT RECORD BY SD'!H58 -> queen57 | J61: ='STUDENT RECORD BY SD'!I58 -> M | K61: ='STUDENT RECORD BY SD'!J58 -> 2010-07-03 | L61: ='STUDENT RECORD BY SD'!O58 -> GEN | M61: N | T61: =IF(B61<9,"",VLOOKUP(B61,MASTER!$B$10:$R$17,16,0)) ->  | V61: 0 | AA61: 00:00:00 | AB61: 1900 | AE61: =IF(B60<9,"",IF(MASTER!$R$23="YES",100)) ->  | AK61: =VLOOKUP(B61:B856,MASTER!$B$10:$R$17,16,0) ->  | AL61: 4 | AM61: A | AS61: ='STUDENT RECORD BY SD'!A59 -> 4 | AT61: ='STUDENT RECORD BY SD'!B59 -> A | AU61: ='STUDENT RECORD BY SD'!C59 -> 4499 | AV61: ='STUDENT RECORD BY SD'!D59 -> 2018-07-05 | AW61: ='STUDENT RECORD BY SD'!E59 -> RANI58 | AX61: ='STUDENT RECORD BY SD'!F59 -> 0 | AY61: ='STUDENT RECORD BY SD'!G59 -> king58 | AZ61: ='STUDENT RECORD BY SD'!H59 -> queen58 | BA61: ='STUDENT RECORD BY SD'!I59 -> M | BB61: ='STUDENT RECORD BY SD'!J59 -> 2010-12-11 | BC61: ='STUDENT RECORD BY SD'!K59 -> 0 | BD61: ='STUDENT RECORD BY SD'!L59 -> 0 | BE61: ='STUDENT RECORD BY SD'!M59 -> 0 | BF61: ='STUDENT RECORD BY SD'!N59 -> 0 | BG61: ='STUDENT RECORD BY SD'!O59 -> OBC | BH61: ='STUDENT RECORD BY SD'!P59 -> Muslim | BI61: ='STUDENT RECORD BY SD'!Q59 -> 0 | BJ61: ='STUDENT RECORD BY SD'!R59 -> GOVT. SENIOR SECONDARY SCHOOL ALNIYAWAS (219445) | BK61: ='STUDENT RECORD BY SD'!S59 -> 8140200308 | BL61: ='STUDENT RECORD BY SD'!T59 -> XXXX0260 | BM61: ='STUDENT RECORD BY SD'!U59 -> 0 | BN61: ='STUDENT RECORD BY SD'!V59 -> 9828120754 | BO61: ='STUDENT RECORD BY SD'!W59 -> VP-ALNIYAWAS | BP61: ='STUDENT RECORD BY SD'!X59 -> 40000 | BQ61: ='STUDENT RECORD BY SD'!Y59 -> N | BR61: ='STUDENT RECORD BY SD'!Z59 -> N | BS61: ='STUDENT RECORD BY SD'!AA59 -> Yes | BT61: ='STUDENT RECORD BY SD'!AB59 -> 11 | BU61: ='STUDENT RECORD BY SD'!AC59 -> None | BV61: ='STUDENT RECORD BY SD'!AD59 -> 1 | BW61: 4 | BX61: A
A62: =IF(B62="","",ROWS($A$5:A62)) -> 58 | B62: ='STUDENT RECORD BY SD'!A59 -> 4 | C62: ='STUDENT RECORD BY SD'!B59 -> A | E62: ='STUDENT RECORD BY SD'!C59 -> 4499 | F62: ='STUDENT RECORD BY SD'!D59 -> 2018-07-05 | G62: ='STUDENT RECORD BY SD'!E59 -> RANI58 | H62: ='STUDENT RECORD BY SD'!G59 -> king58 | I62: ='STUDENT RECORD BY SD'!H59 -> queen58 | J62: ='STUDENT RECORD BY SD'!I59 -> M | K62: ='STUDENT RECORD BY SD'!J59 -> 2010-12-11 | L62: ='STUDENT RECORD BY SD'!O59 -> OBC | M62: N | T62: =IF(B62<9,"",VLOOKUP(B62,MASTER!$B$10:$R$17,16,0)) ->  | V62: 0 | AA62: 2018-07-05 | AB62: 2018 | AE62: =IF(B61<9,"",IF(MASTER!$R$23="YES",100)) ->  | AK62: =VLOOKUP(B62:B857,MASTER!$B$10:$R$17,16,0) ->  | AL62: 4 | AM62: A | AS62: ='STUDENT RECORD BY SD'!A60 -> 4 | AT62: ='STUDENT RECORD BY SD'!B60 -> A | AU62: ='STUDENT RECORD BY SD'!C60 -> 4622 | AV62: ='STUDENT RECORD BY SD'!D60 -> 2018-09-24 | AW62: ='STUDENT RECORD BY SD'!E60 -> RANI59 | AX62: ='STUDENT RECORD BY SD'!F60 -> 0 | AY62: ='STUDENT RECORD BY SD'!G60 -> king59 | AZ62: ='STUDENT RECORD BY SD'!H60 -> queen59 | BA62: ='STUDENT RECORD BY SD'!I60 -> M | BB62: ='STUDENT RECORD BY SD'!J60 -> 2012-01-07 | BC62: ='STUDENT RECORD BY SD'!K60 -> 0 | BD62: ='STUDENT RECORD BY SD'!L60 -> 0 | BE62: ='STUDENT RECORD BY SD'!M60 -> 0 | BF62: ='STUDENT RECORD BY SD'!N60 -> 0 | BG62: ='STUDENT RECORD BY SD'!O60 -> OBC | BH62: ='STUDENT RECORD BY SD'!P60 -> Muslim | BI62: ='STUDENT RECORD BY SD'!Q60 -> 0 | BJ62: ='STUDENT RECORD BY SD'!R60 -> GOVT. SENIOR SECONDARY SCHOOL ALNIYAWAS (219445) | BK62: ='STUDENT RECORD BY SD'!S60 -> 8140200308 | BL62: ='STUDENT RECORD BY SD'!T60 -> XXXX9555 | BM62: ='STUDENT RECORD BY SD'!U60 -> yqqmbcw | BN62: ='STUDENT RECORD BY SD'!V60 -> 9828120755 | BO62: ='STUDENT RECORD BY SD'!W60 -> VP-ALNIYAWAS | BP62: ='STUDENT RECORD BY SD'!X60 -> 36000 | BQ62: ='STUDENT RECORD BY SD'!Y60 -> N | BR62: ='STUDENT RECORD BY SD'!Z60 -> N | BS62: ='STUDENT RECORD BY SD'!AA60 -> Yes | BT62: ='STUDENT RECORD BY SD'!AB60 -> 9 | BU62: ='STUDENT RECORD BY SD'!AC60 -> None | BV62: ='STUDENT RECORD BY SD'!AD60 -> 0 | BW62: 4 | BX62: A
A63: =IF(B63="","",ROWS($A$5:A63)) -> 59 | B63: ='STUDENT RECORD BY SD'!A60 -> 4 | C63: ='STUDENT RECORD BY SD'!B60 -> A | E63: ='STUDENT RECORD BY SD'!C60 -> 4622 | F63: ='STUDENT RECORD BY SD'!D60 -> 2018-09-24 | G63: ='STUDENT RECORD BY SD'!E60 -> RANI59 | H63: ='STUDENT RECORD BY SD'!G60 -> king59 | I63: ='STUDENT RECORD BY SD'!H60 -> queen59 | J63: ='STUDENT RECORD BY SD'!I60 -> M | K63: ='STUDENT RECORD BY SD'!J60 -> 2012-01-07 | L63: ='STUDENT RECORD BY SD'!O60 -> OBC | M63: N | T63: =IF(B63<9,"",VLOOKUP(B63,MASTER!$B$10:$R$17,16,0)) ->  | V63: 0 | AA63: 2018-09-24 | AB63: 2018 | AE63: =IF(B62<9,"",IF(MASTER!$R$23="YES",100)) ->  | AK63: =VLOOKUP(B63:B858,MASTER!$B$10:$R$17,16,0) ->  | AL63: 4 | AM63: A | AS63: ='STUDENT RECORD BY SD'!A61 -> 4 | AT63: ='STUDENT RECORD BY SD'!B61 -> A | AU63: ='STUDENT RECORD BY SD'!C61 -> 4537 | AV63: ='STUDENT RECORD BY SD'!D61 -> 2018-07-10 | AW63: ='STUDENT RECORD BY SD'!E61 -> RANI60 | AX63: ='STUDENT RECORD BY SD'!F61 -> 0 | AY63: ='STUDENT RECORD BY SD'!G61 -> king60 | AZ63: ='STUDENT RECORD BY SD'!H61 -> queen60 | BA63: ='STUDENT RECORD BY SD'!I61 -> M | BB63: ='STUDENT RECORD BY SD'!J61 -> 2013-06-14 | BC63: ='STUDENT RECORD BY SD'!K61 -> 0 | BD63: ='STUDENT RECORD BY SD'!L61 -> 0 | BE63: ='STUDENT RECORD BY SD'!M61 -> 0 | BF63: ='STUDENT RECORD BY SD'!N61 -> 0 | BG63: ='STUDENT RECORD BY SD'!O61 -> OBC | BH63: ='STUDENT RECORD BY SD'!P61 -> Hindu | BI63: ='STUDENT RECORD BY SD'!Q61 -> 0 | BJ63: ='STUDENT RECORD BY SD'!R61 -> GOVT. SENIOR SECONDARY SCHOOL ALNIYAWAS (219445) | BK63: ='STUDENT RECORD BY SD'!S61 -> 8140200308 | BL63: ='STUDENT RECORD BY SD'!T61 -> XXXX6106 | BM63: ='STUDENT RECORD BY SD'!U61 -> 0 | BN63: ='STUDENT RECORD BY SD'!V61 -> 9828120756 | BO63: ='STUDENT RECORD BY SD'!W61 -> VP-ALNIYAWAS | BP63: ='STUDENT RECORD BY SD'!X61 -> 36000 | BQ63: ='STUDENT RECORD BY SD'!Y61 -> N | BR63: ='STUDENT RECORD BY SD'!Z61 -> N | BS63: ='STUDENT RECORD BY SD'!AA61 -> No | BT63: ='STUDENT RECORD BY SD'!AB61 -> 8 | BU63: ='STUDENT RECORD BY SD'!AC61 -> None | BV63: ='STUDENT RECORD BY SD'!AD61 -> 1 | BW63: 4 | BX63: A
A64: =IF(B64="","",ROWS($A$5:A64)) -> 60 | B64: ='STUDENT RECORD BY SD'!A61 -> 4 | C64: ='STUDENT RECORD BY SD'!B61 -> A | E64: ='STUDENT RECORD BY SD'!C61 -> 4537 | F64: ='STUDENT RECORD BY SD'!D61 -> 2018-07-10 | G64: ='STUDENT RECORD BY SD'!E61 -> RANI60 | H64: ='STUDENT RECORD BY SD'!G61 -> king60 | I64: ='STUDENT RECORD BY SD'!H61 -> queen60 | J64: ='STUDENT RECORD BY SD'!I61 -> M | K64: ='STUDENT RECORD BY SD'!J61 -> 2013-06-14 | L64: ='STUDENT RECORD BY SD'!O61 -> OBC | M64: N | T64: =IF(B64<9,"",VLOOKUP(B64,MASTER!$B$10:$R$17,16,0)) ->  | V64: 0 | AA64: 2018-07-10 | AB64: 2018 | AE64: =IF(B63<9,"",IF(MASTER!$R$23="YES",100)) ->  | AK64: =VLOOKUP(B64:B859,MASTER!$B$10:$R$17,16,0) ->  | AL64: 4 | AM64: A | AS64: ='STUDENT RECORD BY SD'!A62 -> 4 | AT64: ='STUDENT RECORD BY SD'!B62 -> A | AU64: ='STUDENT RECORD BY SD'!C62 -> 4565 | AV64: ='STUDENT RECORD BY SD'!D62 -> 2018-07-14 | AW64: ='STUDENT RECORD BY SD'!E62 -> RANI61 | AX64: ='STUDENT RECORD BY SD'!F62 -> 0 | AY64: ='STUDENT RECORD BY SD'!G62 -> king61 | AZ64: ='STUDENT RECORD BY SD'!H62 -> queen61 | BA64: ='STUDENT RECORD BY SD'!I62 -> M | BB64: ='STUDENT RECORD BY SD'!J62 -> 2012-09-28 | BC64: ='STUDENT RECORD BY SD'!K62 -> 0 | BD64: ='STUDENT RECORD BY SD'!L62 -> 0 | BE64: ='STUDENT RECORD BY SD'!M62 -> 0 | BF64: ='STUDENT RECORD BY SD'!N62 -> 0 | BG64: ='STUDENT RECORD BY SD'!O62 -> SC | BH64: ='STUDENT RECORD BY SD'!P62 -> Hindu | BI64: ='STUDENT RECORD BY SD'!Q62 -> 0 | BJ64: ='STUDENT RECORD BY SD'!R62 -> GOVT. SENIOR SECONDARY SCHOOL ALNIYAWAS (219445) | BK64: ='STUDENT RECORD BY SD'!S62 -> 8140200308 | BL64: ='STUDENT RECORD BY SD'!T62 -> 0 | BM64: ='STUDENT RECORD BY SD'!U62 -> 0 | BN64: ='STUDENT RECORD BY SD'!V62 -> 9828120757 | BO64: ='STUDENT RECORD BY SD'!W62 -> VP-ALNIYAWAS | BP64: ='STUDENT RECORD BY SD'!X62 -> 36000 | BQ64: ='STUDENT RECORD BY SD'!Y62 -> N | BR64: ='STUDENT RECORD BY SD'!Z62 -> N | BS64: ='STUDENT RECORD BY SD'!AA62 -> No | BT64: ='STUDENT RECORD BY SD'!AB62 -> 9 | BU64: ='STUDENT RECORD BY SD'!AC62 -> None | BV64: ='STUDENT RECORD BY SD'!AD62 -> 1 | BW64: 4 | BX64: A
A65: =IF(B65="","",ROWS($A$5:A65)) -> 61 | B65: ='STUDENT RECORD BY SD'!A62 -> 4 | C65: ='STUDENT RECORD BY SD'!B62 -> A | E65: ='STUDENT RECORD BY SD'!C62 -> 4565 | F65: ='STUDENT RECORD BY SD'!D62 -> 2018-07-14 | G65: ='STUDENT RECORD BY SD'!E62 -> RANI61 | H65: ='STUDENT RECORD BY SD'!G62 -> king61 | I65: ='STUDENT RECORD BY SD'!H62 -> queen61 | J65: ='STUDENT RECORD BY SD'!I62 -> M | K65: ='STUDENT RECORD BY SD'!J62 -> 2012-09-28 | L65: ='STUDENT RECORD BY SD'!O62 -> SC | M65: N | T65: =IF(B65<9,"",VLOOKUP(B65,MASTER!$B$10:$R$17,16,0)) ->  | V65: 0 | AA65: 2018-07-14 | AB65: 2018 | AE65: =IF(B64<9,"",IF(MASTER!$R$23="YES",100)) ->  | AK65: =VLOOKUP(B65:B860,MASTER!$B$10:$R$17,16,0) ->  | AL65: 4 | AM65: A | AS65: ='STUDENT RECORD BY SD'!A63 -> 4 | AT65: ='STUDENT RECORD BY SD'!B63 -> A | AU65: ='STUDENT RECORD BY SD'!C63 -> 4474 | AV65: ='STUDENT RECORD BY SD'!D63 -> 2018-07-04 | AW65: ='STUDENT RECORD BY SD'!E63 -> RANI62 | AX65: ='STUDENT RECORD BY SD'!F63 -> 0 | AY65: ='STUDENT RECORD BY SD'!G63 -> king62 | AZ65: ='STUDENT RECORD BY SD'!H63 -> queen62 | BA65: ='STUDENT RECORD BY SD'!I63 -> F | BB65: ='STUDENT RECORD BY SD'!J63 -> 2013-04-26 | BC65: ='STUDENT RECORD BY SD'!K63 -> 0 | BD65: ='STUDENT RECORD BY SD'!L63 -> 0 | BE65: ='STUDENT RECORD BY SD'!M63 -> 0 | BF65: ='STUDENT RECORD BY SD'!N63 -> 0 | BG65: ='STUDENT RECORD BY SD'!O63 -> OBC | BH65: ='STUDENT RECORD BY SD'!P63 -> Muslim | BI65: ='STUDENT RECORD BY SD'!Q63 -> 0 | BJ65: ='STUDENT RECORD BY SD'!R63 -> GOVT. SENIOR SECONDARY SCHOOL ALNIYAWAS (219445) | BK65: ='STUDENT RECORD BY SD'!S63 -> 8140200308 | BL65: ='STUDENT RECORD BY SD'!T63 -> XXXX2246 | BM65: ='STUDENT RECORD BY SD'!U63 -> 0 | BN65: ='STUDENT RECORD BY SD'!V63 -> 9828120758 | BO65: ='STUDENT RECORD BY SD'!W63 -> VP-ALNIYAWAS | BP65: ='STUDENT RECORD BY SD'!X63 -> 30000 | BQ65: ='STUDENT RECORD BY SD'!Y63 -> N | BR65: ='STUDENT RECORD BY SD'!Z63 -> N | BS65: ='STUDENT RECORD BY SD'!AA63 -> Yes | BT65: ='STUDENT RECORD BY SD'!AB63 -> 8 | BU65: ='STUDENT RECORD BY SD'!AC63 -> None | BV65: ='STUDENT RECORD BY SD'!AD63 -> 0 | BW65: 4 | BX65: A
A66: =IF(B66="","",ROWS($A$5:A66)) -> 62 | B66: ='STUDENT RECORD BY SD'!A63 -> 4 | C66: ='STUDENT RECORD BY SD'!B63 -> A | E66: ='STUDENT RECORD BY SD'!C63 -> 4474 | F66: ='STUDENT RECORD BY SD'!D63 -> 2018-07-04 | G66: ='STUDENT RECORD BY SD'!E63 -> RANI62 | H66: ='STUDENT RECORD BY SD'!G63 -> king62 | I66: ='STUDENT RECORD BY SD'!H63 -> queen62 | J66: ='STUDENT RECORD BY SD'!I63 -> F | K66: ='STUDENT RECORD BY SD'!J63 -> 2013-04-26 | L66: ='STUDENT RECORD BY SD'!O63 -> OBC | M66: N | T66: =IF(B66<9,"",VLOOKUP(B66,MASTER!$B$10:$R$17,16,0)) ->  | V66: 0 | AA66: 2018-07-04 | AB66: 2018 | AE66: =IF(B65<9,"",IF(MASTER!$R$23="YES",100)) ->  | AK66: =VLOOKUP(B66:B861,MASTER!$B$10:$R$17,16,0) ->  | AL66: 4 | AM66: A | AS66: ='STUDENT RECORD BY SD'!A64 -> 4 | AT66: ='STUDENT RECORD BY SD'!B64 -> A | AU66: ='STUDENT RECORD BY SD'!C64 -> 4478 | AV66: ='STUDENT RECORD BY SD'!D64 -> 2018-07-04 | AW66: ='STUDENT RECORD BY SD'!E64 -> RANI63 | AX66: ='STUDENT RECORD BY SD'!F64 -> 0 | AY66: ='STUDENT RECORD BY SD'!G64 -> king63 | AZ66: ='STUDENT RECORD BY SD'!H64 -> queen63 | BA66: ='STUDENT RECORD BY SD'!I64 -> F | BB66: ='STUDENT RECORD BY SD'!J64 -> 2012-09-06 | BC66: ='STUDENT RECORD BY SD'!K64 -> 0 | BD66: ='STUDENT RECORD BY SD'!L64 -> 0 | BE66: ='STUDENT RECORD BY SD'!M64 -> 0 | BF66: ='STUDENT RECORD BY SD'!N64 -> 0 | BG66: ='STUDENT RECORD BY SD'!O64 -> OBC | BH66: ='STUDENT RECORD BY SD'!P64 -> Hindu | BI66: ='STUDENT RECORD BY SD'!Q64 -> 0 | BJ66: ='STUDENT RECORD BY SD'!R64 -> GOVT. SENIOR SECONDARY SCHOOL ALNIYAWAS (219445) | BK66: ='STUDENT RECORD BY SD'!S64 -> 8140200308 | BL66: ='STUDENT RECORD BY SD'!T64 -> XXXX0646 | BM66: ='STUDENT RECORD BY SD'!U64 -> vxkbntn | BN66: ='STUDENT RECORD BY SD'!V64 -> 9828120759 | BO66: ='STUDENT RECORD BY SD'!W64 -> VP-ALNIYAWAS | BP66: ='STUDENT RECORD BY SD'!X64 -> 50000 | BQ66: ='STUDENT RECORD BY SD'!Y64 -> N | BR66: ='STUDENT RECORD BY SD'!Z64 -> N | BS66: ='STUDENT RECORD BY SD'!AA64 -> No | BT66: ='STUDENT RECORD BY SD'!AB64 -> 9 | BU66: ='STUDENT RECORD BY SD'!AC64 -> None | BV66: ='STUDENT RECORD BY SD'!AD64 -> 0 | BW66: 4 | BX66: A
A67: =IF(B67="","",ROWS($A$5:A67)) -> 63 | B67: ='STUDENT RECORD BY SD'!A64 -> 4 | C67: ='STUDENT RECORD BY SD'!B64 -> A | E67: ='STUDENT RECORD BY SD'!C64 -> 4478 | F67: ='STUDENT RECORD BY SD'!D64 -> 2018-07-04 | G67: ='STUDENT RECORD BY SD'!E64 -> RANI63 | H67: ='STUDENT RECORD BY SD'!G64 -> king63 | I67: ='STUDENT RECORD BY SD'!H64 -> queen63 | J67: ='STUDENT RECORD BY SD'!I64 -> F | K67: ='STUDENT RECORD BY SD'!J64 -> 2012-09-06 | L67: ='STUDENT RECORD BY SD'!O64 -> OBC | M67: N | T67: =IF(B67<9,"",VLOOKUP(B67,MASTER!$B$10:$R$17,16,0)) ->  | V67: 0 | AA67: 2018-07-04 | AB67: 2018 | AE67: =IF(B66<9,"",IF(MASTER!$R$23="YES",100)) ->  | AK67: =VLOOKUP(B67:B862,MASTER!$B$10:$R$17,16,0) ->  | AL67: 4 | AM67: A | AS67: ='STUDENT RECORD BY SD'!A65 -> 4 | AT67: ='STUDENT RECORD BY SD'!B65 -> A | AU67: ='STUDENT RECORD BY SD'!C65 -> 4727 | AV67: ='STUDENT RECORD BY SD'!D65 -> 2019-07-13 | AW67: ='STUDENT RECORD BY SD'!E65 -> RANI64 | AX67: ='STUDENT RECORD BY SD'!F65 -> 0 | AY67: ='STUDENT RECORD BY SD'!G65 -> king64 | AZ67: ='STUDENT RECORD BY SD'!H65 -> queen64 | BA67: ='STUDENT RECORD BY SD'!I65 -> F | BB67: ='STUDENT RECORD BY SD'!J65 -> 2013-01-07 | BC67: ='STUDENT RECORD BY SD'!K65 -> 0 | BD67: ='STUDENT RECORD BY SD'!L65 -> 0 | BE67: ='STUDENT RECORD BY SD'!M65 -> 0 | BF67: ='STUDENT RECORD BY SD'!N65 -> 0 | BG67: ='STUDENT RECORD BY SD'!O65 -> OBC | BH67: ='STUDENT RECORD BY SD'!P65 -> Hindu | BI67: ='STUDENT RECORD BY SD'!Q65 -> 0 | BJ67: ='STUDENT RECORD BY SD'!R65 -> GOVT. SENIOR SECONDARY SCHOOL ALNIYAWAS (219445) | BK67: ='STUDENT RECORD BY SD'!S65 -> 8140200308 | BL67: ='STUDENT RECORD BY SD'!T65 -> 0 | BM67: ='STUDENT RECORD BY SD'!U65 -> 0 | BN67: ='STUDENT RECORD BY SD'!V65 -> 9828120760 | BO67: ='STUDENT RECORD BY SD'!W65 -> VP-ALNIYAWAS | BP67: ='STUDENT RECORD BY SD'!X65 -> 60000 | BQ67: ='STUDENT RECORD BY SD'!Y65 -> N | BR67: ='STUDENT RECORD BY SD'!Z65 -> N | BS67: ='STUDENT RECORD BY SD'!AA65 -> No | BT67: ='STUDENT RECORD BY SD'!AB65 -> 8 | BU67: ='STUDENT RECORD BY SD'!AC65 -> None | BV67: ='STUDENT RECORD BY SD'!AD65 -> 0 | BW67: 4 | BX67: A
A68: =IF(B68="","",ROWS($A$5:A68)) -> 64 | B68: ='STUDENT RECORD BY SD'!A65 -> 4 | C68: ='STUDENT RECORD BY SD'!B65 -> A | E68: ='STUDENT RECORD BY SD'!C65 -> 4727 | F68: ='STUDENT RECORD BY SD'!D65 -> 2019-07-13 | G68: ='STUDENT RECORD BY SD'!E65 -> RANI64 | H68: ='STUDENT RECORD BY SD'!G65 -> king64 | I68: ='STUDENT RECORD BY SD'!H65 -> queen64 | J68: ='STUDENT RECORD BY SD'!I65 -> F | K68: ='STUDENT RECORD BY SD'!J65 -> 2013-01-07 | L68: ='STUDENT RECORD BY SD'!O65 -> OBC | M68: N | T68: =IF(B68<9,"",VLOOKUP(B68,MASTER!$B$10:$R$17,16,0)) ->  | V68: 0 | AA68: 2019-07-13 | AB68: 2019 | AE68: =IF(B67<9,"",IF(MASTER!$R$23="YES",100)) ->  | AK68: =VLOOKUP(B68:B863,MASTER!$B$10:$R$17,16,0) ->  | AL68: 4 | AM68: A | AS68: ='STUDENT RECORD BY SD'!A66 -> 4 | AT68: ='STUDENT RECORD BY SD'!B66 -> A | AU68: ='STUDENT RECORD BY SD'!C66 -> 4601 | AV68: ='STUDENT RECORD BY SD'!D66 -> 2018-07-26 | AW68: ='STUDENT RECORD BY SD'!E66 -> RANI65 | AX68: ='STUDENT RECORD BY SD'!F66 -> 0 | AY68: ='STUDENT RECORD BY SD'!G66 -> king65 | AZ68: ='STUDENT RECORD BY SD'!H66 -> queen65 | BA68: ='STUDENT RECORD BY SD'!I66 -> F | BB68: ='STUDENT RECORD BY SD'!J66 -> 2012-06-05 | BC68: ='STUDENT RECORD BY SD'!K66 -> 0 | BD68: ='STUDENT RECORD BY SD'!L66 -> 0 | BE68: ='STUDENT RECORD BY SD'!M66 -> 0 | BF68: ='STUDENT RECORD BY SD'!N66 -> 0 | BG68: ='STUDENT RECORD BY SD'!O66 -> OBC | BH68: ='STUDENT RECORD BY SD'!P66 -> Hindu | BI68: ='STUDENT RECORD BY SD'!Q66 -> 0 | BJ68: ='STUDENT RECORD BY SD'!R66 -> GOVT. SENIOR SECONDARY SCHOOL ALNIYAWAS (219445) | BK68: ='STUDENT RECORD BY SD'!S66 -> 8140200308 | BL68: ='STUDENT RECORD BY SD'!T66 -> 0 | BM68: ='STUDENT RECORD BY SD'!U66 -> 0 | BN68: ='STUDENT RECORD BY SD'!V66 -> 9828120761 | BO68: ='STUDENT RECORD BY SD'!W66 -> VP-ALNIYAWAS | BP68: ='STUDENT RECORD BY SD'!X66 -> 36000 | BQ68: ='STUDENT RECORD BY SD'!Y66 -> N | BR68: ='STUDENT RECORD BY SD'!Z66 -> N | BS68: ='STUDENT RECORD BY SD'!AA66 -> No | BT68: ='STUDENT RECORD BY SD'!AB66 -> 9 | BU68: ='STUDENT RECORD BY SD'!AC66 -> None | BV68: ='STUDENT RECORD BY SD'!AD66 -> 0 | BW68: 4 | BX68: A
A69: =IF(B69="","",ROWS($A$5:A69)) -> 65 | B69: ='STUDENT RECORD BY SD'!A66 -> 4 | C69: ='STUDENT RECORD BY SD'!B66 -> A | E69: ='STUDENT RECORD BY SD'!C66 -> 4601 | F69: ='STUDENT RECORD BY SD'!D66 -> 2018-07-26 | G69: ='STUDENT RECORD BY SD'!E66 -> RANI65 | H69: ='STUDENT RECORD BY SD'!G66 -> king65 | I69: ='STUDENT RECORD BY SD'!H66 -> queen65 | J69: ='STUDENT RECORD BY SD'!I66 -> F | K69: ='STUDENT RECORD BY SD'!J66 -> 2012-06-05 | L69: ='STUDENT RECORD BY SD'!O66 -> OBC | M69: N | T69: =IF(B69<9,"",VLOOKUP(B69,MASTER!$B$10:$R$17,16,0)) ->  | V69: =SUM(N69:T69) -> 0 | AA69: =F69 -> 2018-07-26 | AB69: 2018 | AE69: =IF(B68<9,"",IF(MASTER!$R$23="YES",100)) ->  | AF69: =IF(AND(B69>=11,C69="b"),AE69," ") ->  | AK69: =VLOOKUP(B69:B864,MASTER!$B$10:$R$17,16,0) ->  | AL69: 4 | AM69: A | AS69: ='STUDENT RECORD BY SD'!A67 -> 4 | AT69: ='STUDENT RECORD BY SD'!B67 -> A | AU69: ='STUDENT RECORD BY SD'!C67 -> 4521 | AV69: ='STUDENT RECORD BY SD'!D67 -> 2018-07-07 | AW69: ='STUDENT RECORD BY SD'!E67 -> RANI66 | AX69: ='STUDENT RECORD BY SD'!F67 -> 0 | AY69: ='STUDENT RECORD BY SD'!G67 -> king66 | AZ69: ='STUDENT RECORD BY SD'!H67 -> queen66 | BA69: ='STUDENT RECORD BY SD'!I67 -> M | BB69: ='STUDENT RECORD BY SD'!J67 -> 2013-05-29 | BC69: ='STUDENT RECORD BY SD'!K67 -> 0 | BD69: ='STUDENT RECORD BY SD'!L67 -> 0 | BE69: ='STUDENT RECORD BY SD'!M67 -> 0 | BF69: ='STUDENT RECORD BY SD'!N67 -> 0 | BG69: ='STUDENT RECORD BY SD'!O67 -> OBC | BH69: ='STUDENT RECORD BY SD'!P67 -> Muslim | BI69: ='STUDENT RECORD BY SD'!Q67 -> 0 | BJ69: ='STUDENT RECORD BY SD'!R67 -> GOVT. SENIOR SECONDARY SCHOOL ALNIYAWAS (219445) | BK69: ='STUDENT RECORD BY SD'!S67 -> 8140200308 | BL69: ='STUDENT RECORD BY SD'!T67 -> XXXX1195 | BM69: ='STUDENT RECORD BY SD'!U67 -> YQGYEBS | BN69: ='STUDENT RECORD BY SD'!V67 -> 9828120762 | BO69: ='STUDENT RECORD BY SD'!W67 -> VP-ALNIYAWAS | BP69: ='STUDENT RECORD BY SD'!X67 -> 40000 | BQ69: ='STUDENT RECORD BY SD'!Y67 -> N | BR69: ='STUDENT RECORD BY SD'!Z67 -> N | BS69: ='STUDENT RECORD BY SD'!AA67 -> Yes | BT69: ='STUDENT RECORD BY SD'!AB67 -> 8 | BU69: ='STUDENT RECORD BY SD'!AC67 -> None | BV69: ='STUDENT RECORD BY SD'!AD67 -> 0 | BW69: =AS69 -> 4 | BX69: =AT69 -> A
A70: =IF(B70="","",ROWS($A$5:A70)) -> 66 | B70: ='STUDENT RECORD BY SD'!A67 -> 4 | C70: ='STUDENT RECORD BY SD'!B67 -> A | E70: ='STUDENT RECORD BY SD'!C67 -> 4521 | F70: ='STUDENT RECORD BY SD'!D67 -> 2018-07-07 | G70: ='STUDENT RECORD BY SD'!E67 -> RANI66 | H70: ='STUDENT RECORD BY SD'!G67 -> king66 | I70: ='STUDENT RECORD BY SD'!H67 -> queen66 | J70: ='STUDENT RECORD BY SD'!I67 -> M | K70: ='STUDENT RECORD BY SD'!J67 -> 2013-05-29 | L70: ='STUDENT RECORD BY SD'!O67 -> OBC | M70: =IF(F70<1-7-2020,"Y","N") -> N | N70: =IF(AB70>=2021,10,"") ->  | O70: =IF(L70="GEN",AG70,AH70) ->  | P70: =IF(B70>8,IF(J70="M",10,IF(J70="F",5))," ") ->  | Q70: =IF(B70=9,50,IF(B70=10,50,"")) ->  | R70: =AF70 ->  | S70: =IF(B70>8,IF(J70="m",10,IF(J70="F",5)),"") ->  | T70: =IF(B70<9,"",VLOOKUP(B70,MASTER!$B$10:$R$17,16,0)) ->  | V70: 0 | AA70: 2018-07-07 | AB70: =YEAR(AA70) -> 2018 | AE70: =IF(B69<9,"",IF(MASTER!$R$23="YES",100)) ->  | AG70: =IF(B70=9,200,IF(B70=10,200,IF(B70=11,300,IF(B70=12,300,"")))) ->  | AH70: =IF(AG70="","",AG70/2) ->  | AK70: =VLOOKUP(B70:B865,MASTER!$B$10:$R$17,16,0) ->  | AL70: =B70 -> 4 | AM70: =C70 -> A | AS70: ='STUDENT RECORD BY SD'!A68 -> 4 | AT70: ='STUDENT RECORD BY SD'!B68 -> A | AU70: ='STUDENT RECORD BY SD'!C68 -> 4473 | AV70: ='STUDENT RECORD BY SD'!D68 -> 2018-07-04 | AW70: ='STUDENT RECORD BY SD'!E68 -> RANI67 | AX70: ='STUDENT RECORD BY SD'!F68 -> 0 | AY70: ='STUDENT RECORD BY SD'!G68 -> king67 | AZ70: ='STUDENT RECORD BY SD'!H68 -> queen67 | BA70: ='STUDENT RECORD BY SD'!I68 -> M | BB70: ='STUDENT RECORD BY SD'!J68 -> 2012-01-01 | BC70: ='STUDENT RECORD BY SD'!K68 -> 0 | BD70: ='STUDENT RECORD BY SD'!L68 -> 0 | BE70: ='STUDENT RECORD BY SD'!M68 -> 0 | BF70: ='STUDENT RECORD BY SD'!N68 -> 0 | BG70: ='STUDENT RECORD BY SD'!O68 -> OBC | BH70: ='STUDENT RECORD BY SD'!P68 -> Muslim | BI70: ='STUDENT RECORD BY SD'!Q68 -> 0 | BJ70: ='STUDENT RECORD BY SD'!R68 -> GOVT. SENIOR SECONDARY SCHOOL ALNIYAWAS (219445) | BK70: ='STUDENT RECORD BY SD'!S68 -> 8140200308 | BL70: ='STUDENT RECORD BY SD'!T68 -> 0 | BM70: ='STUDENT RECORD BY SD'!U68 -> VWSPONV | BN70: ='STUDENT RECORD BY SD'!V68 -> 9828120763 | BO70: ='STUDENT RECORD BY SD'!W68 -> VP-ALNIYAWAS | BP70: ='STUDENT RECORD BY SD'!X68 -> 40000 | BQ70: ='STUDENT RECORD BY SD'!Y68 -> N | BR70: ='STUDENT RECORD BY SD'!Z68 -> N | BS70: ='STUDENT RECORD BY SD'!AA68 -> Yes | BT70: ='STUDENT RECORD BY SD'!AB68 -> 9 | BU70: ='STUDENT RECORD BY SD'!AC68 -> None | BV70: ='STUDENT RECORD BY SD'!AD68 -> 1 | BW70: 4 | BX70: A
A71: =IF(B71="","",ROWS($A$5:A71)) -> 67 | B71: ='STUDENT RECORD BY SD'!A68 -> 4 | C71: ='STUDENT RECORD BY SD'!B68 -> A | E71: ='STUDENT RECORD BY SD'!C68 -> 4473 | F71: ='STUDENT RECORD BY SD'!D68 -> 2018-07-04 | G71: ='STUDENT RECORD BY SD'!E68 -> RANI67 | H71: ='STUDENT RECORD BY SD'!G68 -> king67 | I71: ='STUDENT RECORD BY SD'!H68 -> queen67 | J71: ='STUDENT RECORD BY SD'!I68 -> M | K71: ='STUDENT RECORD BY SD'!J68 -> 2012-01-01 | L71: ='STUDENT RECORD BY SD'!O68 -> OBC | M71: N | T71: =IF(B71<9,"",VLOOKUP(B71,MASTER!$B$10:$R$17,16,0)) ->  | V71: 0 | AA71: 2018-07-04 | AB71: 2018 | AE71: =IF(B70<9,"",IF(MASTER!$R$23="YES",100)) ->  | AK71: =VLOOKUP(B71:B866,MASTER!$B$10:$R$17,16,0) ->  | AL71: 4 | AM71: A | AS71: ='STUDENT RECORD BY SD'!A69 -> 4 | AT71: ='STUDENT RECORD BY SD'!B69 -> A | AU71: ='STUDENT RECORD BY SD'!C69 -> 4475 | AV71: ='STUDENT RECORD BY SD'!D69 -> 2018-07-04 | AW71: ='STUDENT RECORD BY SD'!E69 -> RANI68 | AX71: ='STUDENT RECORD BY SD'!F69 -> 0 | AY71: ='STUDENT RECORD BY SD'!G69 -> king68 | AZ71: ='STUDENT RECORD BY SD'!H69 -> queen68 | BA71: ='STUDENT RECORD BY SD'!I69 -> F | BB71: ='STUDENT RECORD BY SD'!J69 -> 2012-11-10 | BC71: ='STUDENT RECORD BY SD'!K69 -> 0 | BD71: ='STUDENT RECORD BY SD'!L69 -> 0 | BE71: ='STUDENT RECORD BY SD'!M69 -> 0 | BF71: ='STUDENT RECORD BY SD'!N69 -> 0 | BG71: ='STUDENT RECORD BY SD'!O69 -> OBC | BH71: ='STUDENT RECORD BY SD'!P69 -> Muslim | BI71: ='STUDENT RECORD BY SD'!Q69 -> 0 | BJ71: ='STUDENT RECORD BY SD'!R69 -> GOVT. SENIOR SECONDARY SCHOOL ALNIYAWAS (219445) | BK71: ='STUDENT RECORD BY SD'!S69 -> 8140200308 | BL71: ='STUDENT RECORD BY SD'!T69 -> 0 | BM71: ='STUDENT RECORD BY SD'!U69 -> 0 | BN71: ='STUDENT RECORD BY SD'!V69 -> 9828120764 | BO71: ='STUDENT RECORD BY SD'!W69 -> VP-ALNIYAWAS | BP71: ='STUDENT RECORD BY SD'!X69 -> 40000 | BQ71: ='STUDENT RECORD BY SD'!Y69 -> N | BR71: ='STUDENT RECORD BY SD'!Z69 -> N | BS71: ='STUDENT RECORD BY SD'!AA69 -> Yes | BT71: ='STUDENT RECORD BY SD'!AB69 -> 9 | BU71: ='STUDENT RECORD BY SD'!AC69 -> None | BV71: ='STUDENT RECORD BY SD'!AD69 -> 0 | BW71: 4 | BX71: A
A72: =IF(B72="","",ROWS($A$5:A72)) -> 68 | B72: ='STUDENT RECORD BY SD'!A69 -> 4 | C72: ='STUDENT RECORD BY SD'!B69 -> A | E72: ='STUDENT RECORD BY SD'!C69 -> 4475 | F72: ='STUDENT RECORD BY SD'!D69 -> 2018-07-04 | G72: ='STUDENT RECORD BY SD'!E69 -> RANI68 | H72: ='STUDENT RECORD BY SD'!G69 -> king68 | I72: ='STUDENT RECORD BY SD'!H69 -> queen68 | J72: ='STUDENT RECORD BY SD'!I69 -> F | K72: ='STUDENT RECORD BY SD'!J69 -> 2012-11-10 | L72: ='STUDENT RECORD BY SD'!O69 -> OBC | M72: N | T72: =IF(B72<9,"",VLOOKUP(B72,MASTER!$B$10:$R$17,16,0)) ->  | V72: 0 | AA72: 2018-07-04 | AB72: 2018 | AE72: =IF(B71<9,"",IF(MASTER!$R$23="YES",100)) ->  | AK72: =VLOOKUP(B72:B867,MASTER!$B$10:$R$17,16,0) ->  | AL72: 4 | AM72: A | AS72: ='STUDENT RECORD BY SD'!A70 -> 4 | AT72: ='STUDENT RECORD BY SD'!B70 -> A | AU72: ='STUDENT RECORD BY SD'!C70 -> 4611 | AV72: ='STUDENT RECORD BY SD'!D70 -> 2018-08-07 | AW72: ='STUDENT RECORD BY SD'!E70 -> RANI69 | AX72: ='STUDENT RECORD BY SD'!F70 -> 0 | AY72: ='STUDENT RECORD BY SD'!G70 -> king69 | AZ72: ='STUDENT RECORD BY SD'!H70 -> queen69 | BA72: ='STUDENT RECORD BY SD'!I70 -> F | BB72: ='STUDENT RECORD BY SD'!J70 -> 2012-07-07 | BC72: ='STUDENT RECORD BY SD'!K70 -> 0 | BD72: ='STUDENT RECORD BY SD'!L70 -> 0 | BE72: ='STUDENT RECORD BY SD'!M70 -> 0 | BF72: ='STUDENT RECORD BY SD'!N70 -> 0 | BG72: ='STUDENT RECORD BY SD'!O70 -> OBC | BH72: ='STUDENT RECORD BY SD'!P70 -> Muslim | BI72: ='STUDENT RECORD BY SD'!Q70 -> 0 | BJ72: ='STUDENT RECORD BY SD'!R70 -> GOVT. SENIOR SECONDARY SCHOOL ALNIYAWAS (219445) | BK72: ='STUDENT RECORD BY SD'!S70 -> 8140200308 | BL72: ='STUDENT RECORD BY SD'!T70 -> XXXX3442 | BM72: ='STUDENT RECORD BY SD'!U70 -> YMKQMYO | BN72: ='STUDENT RECORD BY SD'!V70 -> 9828120765 | BO72: ='STUDENT RECORD BY SD'!W70 -> VP-ALNIYAWAS | BP72: ='STUDENT RECORD BY SD'!X70 -> 40000 | BQ72: ='STUDENT RECORD BY SD'!Y70 -> N | BR72: ='STUDENT RECORD BY SD'!Z70 -> N | BS72: ='STUDENT RECORD BY SD'!AA70 -> Yes | BT72: ='STUDENT RECORD BY SD'!AB70 -> 9 | BU72: ='STUDENT RECORD BY SD'!AC70 -> None | BV72: ='STUDENT RECORD BY SD'!AD70 -> 0 | BW72: 4 | BX72: A
A73: =IF(B73="","",ROWS($A$5:A73)) -> 69 | B73: ='STUDENT RECORD BY SD'!A70 -> 4 | C73: ='STUDENT RECORD BY SD'!B70 -> A | E73: ='STUDENT RECORD BY SD'!C70 -> 4611 | F73: ='STUDENT RECORD BY SD'!D70 -> 2018-08-07 | G73: ='STUDENT RECORD BY SD'!E70 -> RANI69 | H73: ='STUDENT RECORD BY SD'!G70 -> king69 | I73: ='STUDENT RECORD BY SD'!H70 -> queen69 | J73: ='STUDENT RECORD BY SD'!I70 -> F | K73: ='STUDENT RECORD BY SD'!J70 -> 2012-07-07 | L73: ='STUDENT RECORD BY SD'!O70 -> OBC | M73: N | T73: =IF(B73<9,"",VLOOKUP(B73,MASTER!$B$10:$R$17,16,0)) ->  | V73: 0 | AA73: 2018-08-07 | AB73: 2018 | AE73: =IF(B72<9,"",IF(MASTER!$R$23="YES",100)) ->  | AK73: =VLOOKUP(B73:B868,MASTER!$B$10:$R$17,16,0) ->  | AL73: 4 | AM73: A | AS73: ='STUDENT RECORD BY SD'!A71 -> 4 | AT73: ='STUDENT RECORD BY SD'!B71 -> A | AU73: ='STUDENT RECORD BY SD'!C71 -> 4694 | AV73: ='STUDENT RECORD BY SD'!D71 -> 2019-07-10 | AW73: ='STUDENT RECORD BY SD'!E71 -> RANI70 | AX73: ='STUDENT RECORD BY SD'!F71 -> 0 | AY73: ='STUDENT RECORD BY SD'!G71 -> king70 | AZ73: ='STUDENT RECORD BY SD'!H71 -> queen70 | BA73: ='STUDENT RECORD BY SD'!I71 -> M | BB73: ='STUDENT RECORD BY SD'!J71 -> 2010-06-07 | BC73: ='STUDENT RECORD BY SD'!K71 -> 0 | BD73: ='STUDENT RECORD BY SD'!L71 -> 0 | BE73: ='STUDENT RECORD BY SD'!M71 -> 0 | BF73: ='STUDENT RECORD BY SD'!N71 -> 0 | BG73: ='STUDENT RECORD BY SD'!O71 -> OBC | BH73: ='STUDENT RECORD BY SD'!P71 -> Muslim | BI73: ='STUDENT RECORD BY SD'!Q71 -> 0 | BJ73: ='STUDENT RECORD BY SD'!R71 -> GOVT. SENIOR SECONDARY SCHOOL ALNIYAWAS (219445) | BK73: ='STUDENT RECORD BY SD'!S71 -> 8140200308 | BL73: ='STUDENT RECORD BY SD'!T71 -> 0 | BM73: ='STUDENT RECORD BY SD'!U71 -> 0 | BN73: ='STUDENT RECORD BY SD'!V71 -> 9828120766 | BO73: ='STUDENT RECORD BY SD'!W71 -> VP-ALNIYAWAS | BP73: ='STUDENT RECORD BY SD'!X71 -> 60000 | BQ73: ='STUDENT RECORD BY SD'!Y71 -> N | BR73: ='STUDENT RECORD BY SD'!Z71 -> N | BS73: ='STUDENT RECORD BY SD'!AA71 -> Yes | BT73: ='STUDENT RECORD BY SD'!AB71 -> 11 | BU73: ='STUDENT RECORD BY SD'!AC71 -> None | BV73: ='STUDENT RECORD BY SD'!AD71 -> 0 | BW73: 4 | BX73: A
A74: =IF(B74="","",ROWS($A$5:A74)) -> 70 | B74: ='STUDENT RECORD BY SD'!A71 -> 4 | C74: ='STUDENT RECORD BY SD'!B71 -> A | E74: ='STUDENT RECORD BY SD'!C71 -> 4694 | F74: ='STUDENT RECORD BY SD'!D71 -> 2019-07-10 | G74: ='STUDENT RECORD BY SD'!E71 -> RANI70 | H74: ='STUDENT RECORD BY SD'!G71 -> king70 | I74: ='STUDENT RECORD BY SD'!H71 -> queen70 | J74: ='STUDENT RECORD BY SD'!I71 -> M | K74: ='STUDENT RECORD BY SD'!J71 -> 2010-06-07 | L74: ='STUDENT RECORD BY SD'!O71 -> OBC | M74: N | T74: =IF(B74<9,"",VLOOKUP(B74,MASTER!$B$10:$R$17,16,0)) ->  | V74: 0 | AA74: 2019-07-10 | AB74: 2019 | AE74: =IF(B73<9,"",IF(MASTER!$R$23="YES",100)) ->  | AK74: =VLOOKUP(B74:B869,MASTER!$B$10:$R$17,16,0) ->  | AL74: 4 | AM74: A | AS74: ='STUDENT RECORD BY SD'!A72 -> 4 | AT74: ='STUDENT RECORD BY SD'!B72 -> A | AU74: ='STUDENT RECORD BY SD'!C72 -> 4527 | AV74: ='STUDENT RECORD BY SD'!D72 -> 2018-07-07 | AW74: ='STUDENT RECORD BY SD'!E72 -> RANI71 | AX74: ='STUDENT RECORD BY SD'!F72 -> 0 | AY74: ='STUDENT RECORD BY SD'!G72 -> king71 | AZ74: ='STUDENT RECORD BY SD'!H72 -> queen71 | BA74: ='STUDENT RECORD BY SD'!I72 -> M | BB74: ='STUDENT RECORD BY SD'!J72 -> 2013-06-28 | BC74: ='STUDENT RECORD BY SD'!K72 -> 0 | BD74: ='STUDENT RECORD BY SD'!L72 -> 0 | BE74: ='STUDENT RECORD BY SD'!M72 -> 0 | BF74: ='STUDENT RECORD BY SD'!N72 -> 0 | BG74: ='STUDENT RECORD BY SD'!O72 -> OBC | BH74: ='STUDENT RECORD BY SD'!P72 -> Muslim | BI74: ='STUDENT RECORD BY SD'!Q72 -> 0 | BJ74: ='STUDENT RECORD BY SD'!R72 -> GOVT. SENIOR SECONDARY SCHOOL ALNIYAWAS (219445) | BK74: ='STUDENT RECORD BY SD'!S72 -> 8140200308 | BL74: ='STUDENT RECORD BY SD'!T72 -> 0 | BM74: ='STUDENT RECORD BY SD'!U72 -> VPGZNOJ | BN74: ='STUDENT RECORD BY SD'!V72 -> 9828120767 | BO74: ='STUDENT RECORD BY SD'!W72 -> VP-ALNIYAWAS | BP74: ='STUDENT RECORD BY SD'!X72 -> 40000 | BQ74: ='STUDENT RECORD BY SD'!Y72 -> N | BR74: ='STUDENT RECORD BY SD'!Z72 -> N | BS74: ='STUDENT RECORD BY SD'!AA72 -> Yes | BT74: ='STUDENT RECORD BY SD'!AB72 -> 8 | BU74: ='STUDENT RECORD BY SD'!AC72 -> None | BV74: ='STUDENT RECORD BY SD'!AD72 -> 0 | BW74: 4 | BX74: A
A75: =IF(B75="","",ROWS($A$5:A75)) -> 71 | B75: ='STUDENT RECORD BY SD'!A72 -> 4 | C75: ='STUDENT RECORD BY SD'!B72 -> A | E75: ='STUDENT RECORD BY SD'!C72 -> 4527 | F75: ='STUDENT RECORD BY SD'!D72 -> 2018-07-07 | G75: ='STUDENT RECORD BY SD'!E72 -> RANI71 | H75: ='STUDENT RECORD BY SD'!G72 -> king71 | I75: ='STUDENT RECORD BY SD'!H72 -> queen71 | J75: ='STUDENT RECORD BY SD'!I72 -> M | K75: ='STUDENT RECORD BY SD'!J72 -> 2013-06-28 | L75: ='STUDENT RECORD BY SD'!O72 -> OBC | M75: N | T75: =IF(B75<9,"",VLOOKUP(B75,MASTER!$B$10:$R$17,16,0)) ->  | V75: 0 | AA75: 2018-07-07 | AB75: 2018 | AE75: =IF(B74<9,"",IF(MASTER!$R$23="YES",100)) ->  | AK75: =VLOOKUP(B75:B870,MASTER!$B$10:$R$17,16,0) ->  | AL75: 4 | AM75: A | AS75: ='STUDENT RECORD BY SD'!A73 -> 4 | AT75: ='STUDENT RECORD BY SD'!B73 -> A | AU75: ='STUDENT RECORD BY SD'!C73 -> 4538 | AV75: ='STUDENT RECORD BY SD'!D73 -> 2018-07-10 | AW75: ='STUDENT RECORD BY SD'!E73 -> RANI72 | AX75: ='STUDENT RECORD BY SD'!F73 -> 0 | AY75: ='STUDENT RECORD BY SD'!G73 -> king72 | AZ75: ='STUDENT RECORD BY SD'!H73 -> queen72 | BA75: ='STUDENT RECORD BY SD'!I73 -> M | BB75: ='STUDENT RECORD BY SD'!J73 -> 2013-01-01 | BC75: ='STUDENT RECORD BY SD'!K73 -> 0 | BD75: ='STUDENT RECORD BY SD'!L73 -> 0 | BE75: ='STUDENT RECORD BY SD'!M73 -> 0 | BF75: ='STUDENT RECORD BY SD'!N73 -> 0 | BG75: ='STUDENT RECORD BY SD'!O73 -> OBC | BH75: ='STUDENT RECORD BY SD'!P73 -> Hindu | BI75: ='STUDENT RECORD BY SD'!Q73 -> 0 | BJ75: ='STUDENT RECORD BY SD'!R73 -> GOVT. SENIOR SECONDARY SCHOOL ALNIYAWAS (219445) | BK75: ='STUDENT RECORD BY SD'!S73 -> 8140200308 | BL75: ='STUDENT RECORD BY SD'!T73 -> XXXX4404 | BM75: ='STUDENT RECORD BY SD'!U73 -> 0 | BN75: ='STUDENT RECORD BY SD'!V73 -> 9828120768 | BO75: ='STUDENT RECORD BY SD'!W73 -> VP-ALNIYAWAS | BP75: ='STUDENT RECORD BY SD'!X73 -> 40000 | BQ75: ='STUDENT RECORD BY SD'!Y73 -> N | BR75: ='STUDENT RECORD BY SD'!Z73 -> N | BS75: ='STUDENT RECORD BY SD'!AA73 -> No | BT75: ='STUDENT RECORD BY SD'!AB73 -> 8 | BU75: ='STUDENT RECORD BY SD'!AC73 -> None | BV75: ='STUDENT RECORD BY SD'!AD73 -> 2 | BW75: 4 | BX75: A
A76: =IF(B76="","",ROWS($A$5:A76)) -> 72 | B76: ='STUDENT RECORD BY SD'!A73 -> 4 | C76: ='STUDENT RECORD BY SD'!B73 -> A | E76: ='STUDENT RECORD BY SD'!C73 -> 4538 | F76: ='STUDENT RECORD BY SD'!D73 -> 2018-07-10 | G76: ='STUDENT RECORD BY SD'!E73 -> RANI72 | H76: ='STUDENT RECORD BY SD'!G73 -> king72 | I76: ='STUDENT RECORD BY SD'!H73 -> queen72 | J76: ='STUDENT RECORD BY SD'!I73 -> M | K76: ='STUDENT RECORD BY SD'!J73 -> 2013-01-01 | L76: ='STUDENT RECORD BY SD'!O73 -> OBC | M76: N | T76: =IF(B76<9,"",VLOOKUP(B76,MASTER!$B$10:$R$17,16,0)) ->  | V76: 0 | AA76: 2018-07-10 | AB76: 2018 | AE76: =IF(B75<9,"",IF(MASTER!$R$23="YES",100)) ->  | AK76: =VLOOKUP(B76:B871,MASTER!$B$10:$R$17,16,0) ->  | AL76: 4 | AM76: A | AS76: ='STUDENT RECORD BY SD'!A74 -> 4 | AT76: ='STUDENT RECORD BY SD'!B74 -> A | AU76: ='STUDENT RECORD BY SD'!C74 -> 4497 | AV76: ='STUDENT RECORD BY SD'!D74 -> 2018-07-05 | AW76: ='STUDENT RECORD BY SD'!E74 -> RANI73 | AX76: ='STUDENT RECORD BY SD'!F74 -> 0 | AY76: ='STUDENT RECORD BY SD'!G74 -> king73 | AZ76: ='STUDENT RECORD BY SD'!H74 -> queen73 | BA76: ='STUDENT RECORD BY SD'!I74 -> F | BB76: ='STUDENT RECORD BY SD'!J74 -> 2012-05-07 | BC76: ='STUDENT RECORD BY SD'!K74 -> 0 | BD76: ='STUDENT RECORD BY SD'!L74 -> 0 | BE76: ='STUDENT RECORD BY SD'!M74 -> 0 | BF76: ='STUDENT RECORD BY SD'!N74 -> 0 | BG76: ='STUDENT RECORD BY SD'!O74 -> SC | BH76: ='STUDENT RECORD BY SD'!P74 -> Muslim | BI76: ='STUDENT RECORD BY SD'!Q74 -> 0 | BJ76: ='STUDENT RECORD BY SD'!R74 -> GOVT. SENIOR SECONDARY SCHOOL ALNIYAWAS (219445) | BK76: ='STUDENT RECORD BY SD'!S74 -> 8140200308 | BL76: ='STUDENT RECORD BY SD'!T74 -> XXXX3195 | BM76: ='STUDENT RECORD BY SD'!U74 -> VBGRPSH | BN76: ='STUDENT RECORD BY SD'!V74 -> 9828120769 | BO76: ='STUDENT RECORD BY SD'!W74 -> VP-ALNIYAWAS | BP76: ='STUDENT RECORD BY SD'!X74 -> 36000 | BQ76: ='STUDENT RECORD BY SD'!Y74 -> N | BR76: ='STUDENT RECORD BY SD'!Z74 -> N | BS76: ='STUDENT RECORD BY SD'!AA74 -> Yes | BT76: ='STUDENT RECORD BY SD'!AB74 -> 9 | BU76: ='STUDENT RECORD BY SD'!AC74 -> None | BV76: ='STUDENT RECORD BY SD'!AD74 -> 1 | BW76: 4 | BX76: A
A77: =IF(B77="","",ROWS($A$5:A77)) -> 73 | B77: ='STUDENT RECORD BY SD'!A74 -> 4 | C77: ='STUDENT RECORD BY SD'!B74 -> A | E77: ='STUDENT RECORD BY SD'!C74 -> 4497 | F77: ='STUDENT RECORD BY SD'!D74 -> 2018-07-05 | G77: ='STUDENT RECORD BY SD'!E74 -> RANI73 | H77: ='STUDENT RECORD BY SD'!G74 -> king73 | I77: ='STUDENT RECORD BY SD'!H74 -> queen73 | J77: ='STUDENT RECORD BY SD'!I74 -> F | K77: ='STUDENT RECORD BY SD'!J74 -> 2012-05-07 | L77: ='STUDENT RECORD BY SD'!O74 -> SC | M77: N | T77: =IF(B77<9,"",VLOOKUP(B77,MASTER!$B$10:$R$17,16,0)) ->  | V77: 0 | AA77: 2018-07-05 | AB77: 2018 | AE77: =IF(B76<9,"",IF(MASTER!$R$23="YES",100)) ->  | AK77: =VLOOKUP(B77:B872,MASTER!$B$10:$R$17,16,0) ->  | AL77: 4 | AM77: A | AS77: ='STUDENT RECORD BY SD'!A75 -> 4 | AT77: ='STUDENT RECORD BY SD'!B75 -> A | AU77: ='STUDENT RECORD BY SD'!C75 -> 4700 | AV77: ='STUDENT RECORD BY SD'!D75 -> 2019-07-10 | AW77: ='STUDENT RECORD BY SD'!E75 -> RANI74 | AX77: ='STUDENT RECORD BY SD'!F75 -> 0 | AY77: ='STUDENT RECORD BY SD'!G75 -> king74 | AZ77: ='STUDENT RECORD BY SD'!H75 -> queen74 | BA77: ='STUDENT RECORD BY SD'!I75 -> M | BB77: ='STUDENT RECORD BY SD'!J75 -> 2012-05-08 | BC77: ='STUDENT RECORD BY SD'!K75 -> 0 | BD77: ='STUDENT RECORD BY SD'!L75 -> 0 | BE77: ='STUDENT RECORD BY SD'!M75 -> 0 | BF77: ='STUDENT RECORD BY SD'!N75 -> 0 | BG77: ='STUDENT RECORD BY SD'!O75 -> SC | BH77: ='STUDENT RECORD BY SD'!P75 -> Hindu | BI77: ='STUDENT RECORD BY SD'!Q75 -> 0 | BJ77: ='STUDENT RECORD BY SD'!R75 -> GOVT. SENIOR SECONDARY SCHOOL ALNIYAWAS (219445) | BK77: ='STUDENT RECORD BY SD'!S75 -> 8140200308 | BL77: ='STUDENT RECORD BY SD'!T75 -> 0 | BM77: ='STUDENT RECORD BY SD'!U75 -> 0 | BN77: ='STUDENT RECORD BY SD'!V75 -> 9828120770 | BO77: ='STUDENT RECORD BY SD'!W75 -> VP-ALNIYAWAS | BP77: ='STUDENT RECORD BY SD'!X75 -> 60000 | BQ77: ='STUDENT RECORD BY SD'!Y75 -> N | BR77: ='STUDENT RECORD BY SD'!Z75 -> N | BS77: ='STUDENT RECORD BY SD'!AA75 -> No | BT77: ='STUDENT RECORD BY SD'!AB75 -> 9 | BU77: ='STUDENT RECORD BY SD'!AC75 -> None | BV77: ='STUDENT RECORD BY SD'!AD75 -> 0 | BW77: 4 | BX77: A
A78: =IF(B78="","",ROWS($A$5:A78)) -> 74 | B78: ='STUDENT RECORD BY SD'!A75 -> 4 | C78: ='STUDENT RECORD BY SD'!B75 -> A | E78: ='STUDENT RECORD BY SD'!C75 -> 4700 | F78: ='STUDENT RECORD BY SD'!D75 -> 2019-07-10 | G78: ='STUDENT RECORD BY SD'!E75 -> RANI74 | H78: ='STUDENT RECORD BY SD'!G75 -> king74 | I78: ='STUDENT RECORD BY SD'!H75 -> queen74 | J78: ='STUDENT RECORD BY SD'!I75 -> M | K78: ='STUDENT RECORD BY SD'!J75 -> 2012-05-08 | L78: ='STUDENT RECORD BY SD'!O75 -> SC | M78: N | T78: =IF(B78<9,"",VLOOKUP(B78,MASTER!$B$10:$R$17,16,0)) ->  | V78: 0 | AA78: 2019-07-10 | AB78: 2019 | AE78: =IF(B77<9,"",IF(MASTER!$R$23="YES",100)) ->  | AK78: =VLOOKUP(B78:B873,MASTER!$B$10:$R$17,16,0) ->  | AL78: 4 | AM78: A | AS78: ='STUDENT RECORD BY SD'!A76 -> 4 | AT78: ='STUDENT RECORD BY SD'!B76 -> A | AU78: ='STUDENT RECORD BY SD'!C76 -> 4691 | AV78: ='STUDENT RECORD BY SD'!D76 -> 2019-07-09 | AW78: ='STUDENT RECORD BY SD'!E76 -> RANI75 | AX78: ='STUDENT RECORD BY SD'!F76 -> 0 | AY78: ='STUDENT RECORD BY SD'!G76 -> king75 | AZ78: ='STUDENT RECORD BY SD'!H76 -> queen75 | BA78: ='STUDENT RECORD BY SD'!I76 -> F | BB78: ='STUDENT RECORD BY SD'!J76 -> 2013-01-21 | BC78: ='STUDENT RECORD BY SD'!K76 -> 0 | BD78: ='STUDENT RECORD BY SD'!L76 -> 0 | BE78: ='STUDENT RECORD BY SD'!M76 -> 0 | BF78: ='STUDENT RECORD BY SD'!N76 -> 0 | BG78: ='STUDENT RECORD BY SD'!O76 -> SC | BH78: ='STUDENT RECORD BY SD'!P76 -> Hindu | BI78: ='STUDENT RECORD BY SD'!Q76 -> 0 | BJ78: ='STUDENT RECORD BY SD'!R76 -> GOVT. SENIOR SECONDARY SCHOOL ALNIYAWAS (219445) | BK78: ='STUDENT RECORD BY SD'!S76 -> 8140200308 | BL78: ='STUDENT RECORD BY SD'!T76 -> 0 | BM78: ='STUDENT RECORD BY SD'!U76 -> 0 | BN78: ='STUDENT RECORD BY SD'!V76 -> 9828120771 | BO78: ='STUDENT RECORD BY SD'!W76 -> VP-ALNIYAWAS | BP78: ='STUDENT RECORD BY SD'!X76 -> 60000 | BQ78: ='STUDENT RECORD BY SD'!Y76 -> N | BR78: ='STUDENT RECORD BY SD'!Z76 -> N | BS78: ='STUDENT RECORD BY SD'!AA76 -> No | BT78: ='STUDENT RECORD BY SD'!AB76 -> 8 | BU78: ='STUDENT RECORD BY SD'!AC76 -> None | BV78: ='STUDENT RECORD BY SD'!AD76 -> 1 | BW78: 4 | BX78: A
A79: =IF(B79="","",ROWS($A$5:A79)) -> 75 | B79: ='STUDENT RECORD BY SD'!A76 -> 4 | C79: ='STUDENT RECORD BY SD'!B76 -> A | E79: ='STUDENT RECORD BY SD'!C76 -> 4691 | F79: ='STUDENT RECORD BY SD'!D76 -> 2019-07-09 | G79: ='STUDENT RECORD BY SD'!E76 -> RANI75 | H79: ='STUDENT RECORD BY SD'!G76 -> king75 | I79: ='STUDENT RECORD BY SD'!H76 -> queen75 | J79: ='STUDENT RECORD BY SD'!I76 -> F | K79: ='STUDENT RECORD BY SD'!J76 -> 2013-01-21 | L79: ='STUDENT RECORD BY SD'!O76 -> SC | M79: N | T79: =IF(B79<9,"",VLOOKUP(B79,MASTER!$B$10:$R$17,16,0)) ->  | V79: 0 | AA79: 2019-07-09 | AB79: 2019 | AE79: =IF(B78<9,"",IF(MASTER!$R$23="YES",100)) ->  | AK79: =VLOOKUP(B79:B874,MASTER!$B$10:$R$17,16,0) ->  | AL79: 4 | AM79: A | AS79: ='STUDENT RECORD BY SD'!A77 -> 4 | AT79: ='STUDENT RECORD BY SD'!B77 -> A | AU79: ='STUDENT RECORD BY SD'!C77 -> 4621 | AV79: ='STUDENT RECORD BY SD'!D77 -> 2018-09-24 | AW79: ='STUDENT RECORD BY SD'!E77 -> RANI76 | AX79: ='STUDENT RECORD BY SD'!F77 -> 0 | AY79: ='STUDENT RECORD BY SD'!G77 -> king76 | AZ79: ='STUDENT RECORD BY SD'!H77 -> queen76 | BA79: ='STUDENT RECORD BY SD'!I77 -> F | BB79: ='STUDENT RECORD BY SD'!J77 -> 2012-03-02 | BC79: ='STUDENT RECORD BY SD'!K77 -> 0 | BD79: ='STUDENT RECORD BY SD'!L77 -> 0 | BE79: ='STUDENT RECORD BY SD'!M77 -> 0 | BF79: ='STUDENT RECORD BY SD'!N77 -> 0 | BG79: ='STUDENT RECORD BY SD'!O77 -> OBC | BH79: ='STUDENT RECORD BY SD'!P77 -> Muslim | BI79: ='STUDENT RECORD BY SD'!Q77 -> 0 | BJ79: ='STUDENT RECORD BY SD'!R77 -> GOVT. SENIOR SECONDARY SCHOOL ALNIYAWAS (219445) | BK79: ='STUDENT RECORD BY SD'!S77 -> 8140200308 | BL79: ='STUDENT RECORD BY SD'!T77 -> 0 | BM79: ='STUDENT RECORD BY SD'!U77 -> YIEUBQF | BN79: ='STUDENT RECORD BY SD'!V77 -> 9828120772 | BO79: ='STUDENT RECORD BY SD'!W77 -> VP-ALNIYAWAS | BP79: ='STUDENT RECORD BY SD'!X77 -> 40000 | BQ79: ='STUDENT RECORD BY SD'!Y77 -> N | BR79: ='STUDENT RECORD BY SD'!Z77 -> N | BS79: ='STUDENT RECORD BY SD'!AA77 -> Yes | BT79: ='STUDENT RECORD BY SD'!AB77 -> 9 | BU79: ='STUDENT RECORD BY SD'!AC77 -> None | BV79: ='STUDENT RECORD BY SD'!AD77 -> 0 | BW79: 4 | BX79: A
A80: =IF(B80="","",ROWS($A$5:A80)) -> 76 | B80: ='STUDENT RECORD BY SD'!A77 -> 4 | C80: ='STUDENT RECORD BY SD'!B77 -> A | E80: ='STUDENT RECORD BY SD'!C77 -> 4621 | F80: ='STUDENT RECORD BY SD'!D77 -> 2018-09-24 | G80: ='STUDENT RECORD BY SD'!E77 -> RANI76 | H80: ='STUDENT RECORD BY SD'!G77 -> king76 | I80: ='STUDENT RECORD BY SD'!H77 -> queen76 | J80: ='STUDENT RECORD BY SD'!I77 -> F | K80: ='STUDENT RECORD BY SD'!J77 -> 2012-03-02 | L80: ='STUDENT RECORD BY SD'!O77 -> OBC | M80: N | T80: =IF(B80<9,"",VLOOKUP(B80,MASTER!$B$10:$R$17,16,0)) ->  | V80: 0 | AA80: 2018-09-24 | AB80: 2018 | AE80: =IF(B79<9,"",IF(MASTER!$R$23="YES",100)) ->  | AK80: =VLOOKUP(B80:B875,MASTER!$B$10:$R$17,16,0) ->  | AL80: 4 | AM80: A | AS80: ='STUDENT RECORD BY SD'!A78 -> 4 | AT80: ='STUDENT RECORD BY SD'!B78 -> A | AU80: ='STUDENT RECORD BY SD'!C78 -> 4750 | AV80: ='STUDENT RECORD BY SD'!D78 -> 2019-07-17 | AW80: ='STUDENT RECORD BY SD'!E78 -> RANI77 | AX80: ='STUDENT RECORD BY SD'!F78 -> 0 | AY80: ='STUDENT RECORD BY SD'!G78 -> king77 | AZ80: ='STUDENT RECORD BY SD'!H78 -> queen77 | BA80: ='STUDENT RECORD BY SD'!I78 -> M | BB80: ='STUDENT RECORD BY SD'!J78 -> 2011-11-07 | BC80: ='STUDENT RECORD BY SD'!K78 -> 0 | BD80: ='STUDENT RECORD BY SD'!L78 -> 0 | BE80: ='STUDENT RECORD BY SD'!M78 -> 0 | BF80: ='STUDENT RECORD BY SD'!N78 -> 0 | BG80: ='STUDENT RECORD BY SD'!O78 -> SC | BH80: ='STUDENT RECORD BY SD'!P78 -> Hindu | BI80: ='STUDENT RECORD BY SD'!Q78 -> 0 | BJ80: ='STUDENT RECORD BY SD'!R78 -> GOVT. SENIOR SECONDARY SCHOOL ALNIYAWAS (219445) | BK80: ='STUDENT RECORD BY SD'!S78 -> 8140200308 | BL80: ='STUDENT RECORD BY SD'!T78 -> XXXX9540 | BM80: ='STUDENT RECORD BY SD'!U78 -> 0 | BN80: ='STUDENT RECORD BY SD'!V78 -> 9828120773 | BO80: ='STUDENT RECORD BY SD'!W78 -> VP-ALNIYAWAS | BP80: ='STUDENT RECORD BY SD'!X78 -> 60000 | BQ80: ='STUDENT RECORD BY SD'!Y78 -> N | BR80: ='STUDENT RECORD BY SD'!Z78 -> N | BS80: ='STUDENT RECORD BY SD'!AA78 -> No | BT80: ='STUDENT RECORD BY SD'!AB78 -> 10 | BU80: ='STUDENT RECORD BY SD'!AC78 -> None | BV80: ='STUDENT RECORD BY SD'!AD78 -> 0 | BW80: 4 | BX80: A
A81: =IF(B81="","",ROWS($A$5:A81)) -> 77 | B81: ='STUDENT RECORD BY SD'!A78 -> 4 | C81: ='STUDENT RECORD BY SD'!B78 -> A | E81: ='STUDENT RECORD BY SD'!C78 -> 4750 | F81: ='STUDENT RECORD BY SD'!D78 -> 2019-07-17 | G81: ='STUDENT RECORD BY SD'!E78 -> RANI77 | H81: ='STUDENT RECORD BY SD'!G78 -> king77 | I81: ='STUDENT RECORD BY SD'!H78 -> queen77 | J81: ='STUDENT RECORD BY SD'!I78 -> M | K81: ='STUDENT RECORD BY SD'!J78 -> 2011-11-07 | L81: ='STUDENT RECORD BY SD'!O78 -> SC | M81: N | T81: =IF(B81<9,"",VLOOKUP(B81,MASTER!$B$10:$R$17,16,0)) ->  | V81: 0 | AA81: 2019-07-17 | AB81: 2019 | AE81: =IF(B80<9,"",IF(MASTER!$R$23="YES",100)) ->  | AK81: =VLOOKUP(B81:B876,MASTER!$B$10:$R$17,16,0) ->  | AL81: 4 | AM81: A | AS81: ='STUDENT RECORD BY SD'!A79 -> 4 | AT81: ='STUDENT RECORD BY SD'!B79 -> A | AU81: ='STUDENT RECORD BY SD'!C79 -> 4477 | AV81: ='STUDENT RECORD BY SD'!D79 -> 2018-07-04 | AW81: ='STUDENT RECORD BY SD'!E79 -> RANI78 | AX81: ='STUDENT RECORD BY SD'!F79 -> 0 | AY81: ='STUDENT RECORD BY SD'!G79 -> king78 | AZ81: ='STUDENT RECORD BY SD'!H79 -> queen78 | BA81: ='STUDENT RECORD BY SD'!I79 -> M | BB81: ='STUDENT RECORD BY SD'!J79 -> 2012-11-15 | BC81: ='STUDENT RECORD BY SD'!K79 -> 0 | BD81: ='STUDENT RECORD BY SD'!L79 -> 0 | BE81: ='STUDENT RECORD BY SD'!M79 -> 0 | BF81: ='STUDENT RECORD BY SD'!N79 -> 0 | BG81: ='STUDENT RECORD BY SD'!O79 -> SC | BH81: ='STUDENT RECORD BY SD'!P79 -> Hindu | BI81: ='STUDENT RECORD BY SD'!Q79 -> 0 | BJ81: ='STUDENT RECORD BY SD'!R79 -> GOVT. SENIOR SECONDARY SCHOOL ALNIYAWAS (219445) | BK81: ='STUDENT RECORD BY SD'!S79 -> 8140200308 | BL81: ='STUDENT RECORD BY SD'!T79 -> XXXX5557 | BM81: ='STUDENT RECORD BY SD'!U79 -> YBCQKQK | BN81: ='STUDENT RECORD BY SD'!V79 -> 9828120774 | BO81: ='STUDENT RECORD BY SD'!W79 -> VP-ALNIYAWAS | BP81: ='STUDENT RECORD BY SD'!X79 -> 40000 | BQ81: ='STUDENT RECORD BY SD'!Y79 -> N | BR81: ='STUDENT RECORD BY SD'!Z79 -> N | BS81: ='STUDENT RECORD BY SD'!AA79 -> No | BT81: ='STUDENT RECORD BY SD'!AB79 -> 9 | BU81: ='STUDENT RECORD BY SD'!AC79 -> None | BV81: ='STUDENT RECORD BY SD'!AD79 -> 1 | BW81: 4 | BX81: A
A82: =IF(B82="","",ROWS($A$5:A82)) -> 78 | B82: ='STUDENT RECORD BY SD'!A79 -> 4 | C82: ='STUDENT RECORD BY SD'!B79 -> A | E82: ='STUDENT RECORD BY SD'!C79 -> 4477 | F82: ='STUDENT RECORD BY SD'!D79 -> 2018-07-04 | G82: ='STUDENT RECORD BY SD'!E79 -> RANI78 | H82: ='STUDENT RECORD BY SD'!G79 -> king78 | I82: ='STUDENT RECORD BY SD'!H79 -> queen78 | J82: ='STUDENT RECORD BY SD'!I79 -> M | K82: ='STUDENT RECORD BY SD'!J79 -> 2012-11-15 | L82: ='STUDENT RECORD BY SD'!O79 -> SC | M82: N | T82: =IF(B82<9,"",VLOOKUP(B82,MASTER!$B$10:$R$17,16,0)) ->  | V82: 0 | AA82: 2018-07-04 | AB82: 2018 | AE82: =IF(B81<9,"",IF(MASTER!$R$23="YES",100)) ->  | AK82: =VLOOKUP(B82:B877,MASTER!$B$10:$R$17,16,0) ->  | AL82: 4 | AM82: A | AS82: ='STUDENT RECORD BY SD'!A80 -> 5 | AT82: ='STUDENT RECORD BY SD'!B80 -> A | AU82: ='STUDENT RECORD BY SD'!C80 -> 4367 | AV82: ='STUDENT RECORD BY SD'!D80 -> 2017-07-10 | AW82: ='STUDENT RECORD BY SD'!E80 -> RANI79 | AX82: ='STUDENT RECORD BY SD'!F80 -> 0 | AY82: ='STUDENT RECORD BY SD'!G80 -> king79 | AZ82: ='STUDENT RECORD BY SD'!H80 -> queen79 | BA82: ='STUDENT RECORD BY SD'!I80 -> F | BB82: ='STUDENT RECORD BY SD'!J80 -> 2012-04-09 | BC82: ='STUDENT RECORD BY SD'!K80 -> 0 | BD82: ='STUDENT RECORD BY SD'!L80 -> 0 | BE82: ='STUDENT RECORD BY SD'!M80 -> 0 | BF82: ='STUDENT RECORD BY SD'!N80 -> 0 | BG82: ='STUDENT RECORD BY SD'!O80 -> OBC | BH82: ='STUDENT RECORD BY SD'!P80 -> Muslim | BI82: ='STUDENT RECORD BY SD'!Q80 -> 0 | BJ82: ='STUDENT RECORD BY SD'!R80 -> GOVT. SENIOR SECONDARY SCHOOL ALNIYAWAS (219445) | BK82: ='STUDENT RECORD BY SD'!S80 -> 8140200308 | BL82: ='STUDENT RECORD BY SD'!T80 -> XXXX4827 | BM82: ='STUDENT RECORD BY SD'!U80 -> 0 | BN82: ='STUDENT RECORD BY SD'!V80 -> 9828120775 | BO82: ='STUDENT RECORD BY SD'!W80 -> VP-ALNIYAWAS | BP82: ='STUDENT RECORD BY SD'!X80 -> 35000 | BQ82: ='STUDENT RECORD BY SD'!Y80 -> N | BR82: ='STUDENT RECORD BY SD'!Z80 -> N | BS82: ='STUDENT RECORD BY SD'!AA80 -> Yes | BT82: ='STUDENT RECORD BY SD'!AB80 -> 9 | BU82: ='STUDENT RECORD BY SD'!AC80 -> None | BV82: ='STUDENT RECORD BY SD'!AD80 -> 1 | BW82: 5 | BX82: A
A83: =IF(B83="","",ROWS($A$5:A83)) -> 79 | B83: ='STUDENT RECORD BY SD'!A80 -> 5 | C83: ='STUDENT RECORD BY SD'!B80 -> A | E83: ='STUDENT RECORD BY SD'!C80 -> 4367 | F83: ='STUDENT RECORD BY SD'!D80 -> 2017-07-10 | G83: ='STUDENT RECORD BY SD'!E80 -> RANI79 | H83: ='STUDENT RECORD BY SD'!G80 -> king79 | I83: ='STUDENT RECORD BY SD'!H80 -> queen79 | J83: ='STUDENT RECORD BY SD'!I80 -> F | K83: ='STUDENT RECORD BY SD'!J80 -> 2012-04-09 | L83: ='STUDENT RECORD BY SD'!O80 -> OBC | M83: N | T83: =IF(B83<9,"",VLOOKUP(B83,MASTER!$B$10:$R$17,16,0)) ->  | V83: 0 | AA83: 2017-07-10 | AB83: 2017 | AE83: =IF(B82<9,"",IF(MASTER!$R$23="YES",100)) ->  | AK83: =VLOOKUP(B83:B878,MASTER!$B$10:$R$17,16,0) ->  | AL83: 5 | AM83: A | AS83: ='STUDENT RECORD BY SD'!A81 -> 5 | AT83: ='STUDENT RECORD BY SD'!B81 -> A | AU83: ='STUDENT RECORD BY SD'!C81 -> 4277 | AV83: ='STUDENT RECORD BY SD'!D81 -> 2017-06-29 | AW83: ='STUDENT RECORD BY SD'!E81 -> RANI80 | AX83: ='STUDENT RECORD BY SD'!F81 -> 0 | AY83: ='STUDENT RECORD BY SD'!G81 -> king80 | AZ83: ='STUDENT RECORD BY SD'!H81 -> queen80 | BA83: ='STUDENT RECORD BY SD'!I81 -> F | BB83: ='STUDENT RECORD BY SD'!J81 -> 2010-12-08 | BC83: ='STUDENT RECORD BY SD'!K81 -> 0 | BD83: ='STUDENT RECORD BY SD'!L81 -> 0 | BE83: ='STUDENT RECORD BY SD'!M81 -> 0 | BF83: ='STUDENT RECORD BY SD'!N81 -> 0 | BG83: ='STUDENT RECORD BY SD'!O81 -> OBC | BH83: ='STUDENT RECORD BY SD'!P81 -> 0 | BI83: ='STUDENT RECORD BY SD'!Q81 -> 0 | BJ83: ='STUDENT RECORD BY SD'!R81 -> GOVT. SENIOR SECONDARY SCHOOL ALNIYAWAS (219445) | BK83: ='STUDENT RECORD BY SD'!S81 -> 8140200308 | BL83: ='STUDENT RECORD BY SD'!T81 -> XXXX3992 | BM83: ='STUDENT RECORD BY SD'!U81 -> 0 | BN83: ='STUDENT RECORD BY SD'!V81 -> 9828120776 | BO83: ='STUDENT RECORD BY SD'!W81 -> VP-ALNIYAWAS | BP83: ='STUDENT RECORD BY SD'!X81 -> 48000 | BQ83: ='STUDENT RECORD BY SD'!Y81 -> N | BR83: ='STUDENT RECORD BY SD'!Z81 -> N | BS83: ='STUDENT RECORD BY SD'!AA81 -> 0 | BT83: ='STUDENT RECORD BY SD'!AB81 -> 11 | BU83: ='STUDENT RECORD BY SD'!AC81 -> None | BV83: ='STUDENT RECORD BY SD'!AD81 -> 1 | BW83: 5 | BX83: A
A84: =IF(B84="","",ROWS($A$5:A84)) -> 80 | B84: ='STUDENT RECORD BY SD'!A81 -> 5 | C84: ='STUDENT RECORD BY SD'!B81 -> A | E84: ='STUDENT RECORD BY SD'!C81 -> 4277 | F84: ='STUDENT RECORD BY SD'!D81 -> 2017-06-29 | G84: ='STUDENT RECORD BY SD'!E81 -> RANI80 | H84: ='STUDENT RECORD BY SD'!G81 -> king80 | I84: ='STUDENT RECORD BY SD'!H81 -> queen80 | J84: ='STUDENT RECORD BY SD'!I81 -> F | K84: ='STUDENT RECORD BY SD'!J81 -> 2010-12-08 | L84: ='STUDENT RECORD BY SD'!O81 -> OBC | M84: N | T84: =IF(B84<9,"",VLOOKUP(B84,MASTER!$B$10:$R$17,16,0)) ->  | V84: 0 | AA84: 2017-06-29 | AB84: 2017 | AE84: =IF(B83<9,"",IF(MASTER!$R$23="YES",100)) ->  | AK84: =VLOOKUP(B84:B879,MASTER!$B$10:$R$17,16,0) ->  | AL84: 5 | AM84: A | AS84: ='STUDENT RECORD BY SD'!A82 -> 5 | AT84: ='STUDENT RECORD BY SD'!B82 -> A | AU84: ='STUDENT RECORD BY SD'!C82 -> 4370 | AV84: ='STUDENT RECORD BY SD'!D82 -> 2017-07-10 | AW84: ='STUDENT RECORD BY SD'!E82 -> RANI81 | AX84: ='STUDENT RECORD BY SD'!F82 -> 0 | AY84: ='STUDENT RECORD BY SD'!G82 -> king81 | AZ84: ='STUDENT RECORD BY SD'!H82 -> queen81 | BA84: ='STUDENT RECORD BY SD'!I82 -> M | BB84: ='STUDENT RECORD BY SD'!J82 -> 2011-06-03 | BC84: ='STUDENT RECORD BY SD'!K82 -> 0 | BD84: ='STUDENT RECORD BY SD'!L82 -> 0 | BE84: ='STUDENT RECORD BY SD'!M82 -> 0 | BF84: ='STUDENT RECORD BY SD'!N82 -> 0 | BG84: ='STUDENT RECORD BY SD'!O82 -> OBC | BH84: ='STUDENT RECORD BY SD'!P82 -> Muslim | BI84: ='STUDENT RECORD BY SD'!Q82 -> 0 | BJ84: ='STUDENT RECORD BY SD'!R82 -> GOVT. SENIOR SECONDARY SCHOOL ALNIYAWAS (219445) | BK84: ='STUDENT RECORD BY SD'!S82 -> 8140200308 | BL84: ='STUDENT RECORD BY SD'!T82 -> XXXX8044 | BM84: ='STUDENT RECORD BY SD'!U82 -> 0 | BN84: ='STUDENT RECORD BY SD'!V82 -> 9828120777 | BO84: ='STUDENT RECORD BY SD'!W82 -> VP-ALNIYAWAS | BP84: ='STUDENT RECORD BY SD'!X82 -> 40000 | BQ84: ='STUDENT RECORD BY SD'!Y82 -> N | BR84: ='STUDENT RECORD BY SD'!Z82 -> N | BS84: ='STUDENT RECORD BY SD'!AA82 -> Yes | BT84: ='STUDENT RECORD BY SD'!AB82 -> 10 | BU84: ='STUDENT RECORD BY SD'!AC82 -> None | BV84: ='STUDENT RECORD BY SD'!AD82 -> 1 | BW84: 5 | BX84: A
A85: =IF(B85="","",ROWS($A$5:A85)) -> 81 | B85: ='STUDENT RECORD BY SD'!A82 -> 5 | C85: ='STUDENT RECORD BY SD'!B82 -> A | E85: ='STUDENT RECORD BY SD'!C82 -> 4370 | F85: ='STUDENT RECORD BY SD'!D82 -> 2017-07-10 | G85: ='STUDENT RECORD BY SD'!E82 -> RANI81 | H85: ='STUDENT RECORD BY SD'!G82 -> king81 | I85: ='STUDENT RECORD BY SD'!H82 -> queen81 | J85: ='STUDENT RECORD BY SD'!I82 -> M | K85: ='STUDENT RECORD BY SD'!J82 -> 2011-06-03 | L85: ='STUDENT RECORD BY SD'!O82 -> OBC | M85: N | T85: =IF(B85<9,"",VLOOKUP(B85,MASTER!$B$10:$R$17,16,0)) ->  | V85: 0 | AA85: 2017-07-10 | AB85: 2017 | AE85: =IF(B84<9,"",IF(MASTER!$R$23="YES",100)) ->  | AK85: =VLOOKUP(B85:B880,MASTER!$B$10:$R$17,16,0) ->  | AL85: 5 | AM85: A | AS85: ='STUDENT RECORD BY SD'!A83 -> 5 | AT85: ='STUDENT RECORD BY SD'!B83 -> A | AU85: ='STUDENT RECORD BY SD'!C83 -> 4673 | AV85: ='STUDENT RECORD BY SD'!D83 -> 2019-07-08 | AW85: ='STUDENT RECORD BY SD'!E83 -> RANI82 | AX85: ='STUDENT RECORD BY SD'!F83 -> 0 | AY85: ='STUDENT RECORD BY SD'!G83 -> king82 | AZ85: ='STUDENT RECORD BY SD'!H83 -> queen82 | BA85: ='STUDENT RECORD BY SD'!I83 -> M | BB85: ='STUDENT RECORD BY SD'!J83 -> 2010-05-06 | BC85: ='STUDENT RECORD BY SD'!K83 -> 0 | BD85: ='STUDENT RECORD BY SD'!L83 -> 0 | BE85: ='STUDENT RECORD BY SD'!M83 -> 0 | BF85: ='STUDENT RECORD BY SD'!N83 -> 0 | BG85: ='STUDENT RECORD BY SD'!O83 -> OBC | BH85: ='STUDENT RECORD BY SD'!P83 -> Muslim | BI85: ='STUDENT RECORD BY SD'!Q83 -> 0 | BJ85: ='STUDENT RECORD BY SD'!R83 -> GOVT. SENIOR SECONDARY SCHOOL ALNIYAWAS (219445) | BK85: ='STUDENT RECORD BY SD'!S83 -> 8140200308 | BL85: ='STUDENT RECORD BY SD'!T83 -> XXXX7051 | BM85: ='STUDENT RECORD BY SD'!U83 -> ymwegoc | BN85: ='STUDENT RECORD BY SD'!V83 -> 9828120778 | BO85: ='STUDENT RECORD BY SD'!W83 -> VP-ALNIYAWAS | BP85: ='STUDENT RECORD BY SD'!X83 -> 60000 | BQ85: ='STUDENT RECORD BY SD'!Y83 -> Y | BR85: ='STUDENT RECORD BY SD'!Z83 -> N | BS85: ='STUDENT RECORD BY SD'!AA83 -> Yes | BT85: ='STUDENT RECORD BY SD'!AB83 -> 11 | BU85: ='STUDENT RECORD BY SD'!AC83 -> None | BV85: ='STUDENT RECORD BY SD'!AD83 -> 0 | BW85: 5 | BX85: A
A86: =IF(B86="","",ROWS($A$5:A86)) -> 82 | B86: ='STUDENT RECORD BY SD'!A83 -> 5 | C86: ='STUDENT RECORD BY SD'!B83 -> A | E86: ='STUDENT RECORD BY SD'!C83 -> 4673 | F86: ='STUDENT RECORD BY SD'!D83 -> 2019-07-08 | G86: ='STUDENT RECORD BY SD'!E83 -> RANI82 | H86: ='STUDENT RECORD BY SD'!G83 -> king82 | I86: ='STUDENT RECORD BY SD'!H83 -> queen82 | J86: ='STUDENT RECORD BY SD'!I83 -> M | K86: ='STUDENT RECORD BY SD'!J83 -> 2010-05-06 | L86: ='STUDENT RECORD BY SD'!O83 -> OBC | M86: N | T86: =IF(B86<9,"",VLOOKUP(B86,MASTER!$B$10:$R$17,16,0)) ->  | V86: 0 | AA86: 2019-07-08 | AB86: 2019 | AE86: =IF(B85<9,"",IF(MASTER!$R$23="YES",100)) ->  | AK86: =VLOOKUP(B86:B881,MASTER!$B$10:$R$17,16,0) ->  | AL86: 5 | AM86: A | AS86: ='STUDENT RECORD BY SD'!A84 -> 5 | AT86: ='STUDENT RECORD BY SD'!B84 -> A | AU86: ='STUDENT RECORD BY SD'!C84 -> 4431 | AV86: ='STUDENT RECORD BY SD'!D84 -> 2017-08-25 | AW86: ='STUDENT RECORD BY SD'!E84 -> RANI83 | AX86: ='STUDENT RECORD BY SD'!F84 -> 0 | AY86: ='STUDENT RECORD BY SD'!G84 -> king83 | AZ86: ='STUDENT RECORD BY SD'!H84 -> queen83 | BA86: ='STUDENT RECORD BY SD'!I84 -> F | BB86: ='STUDENT RECORD BY SD'!J84 -> 2012-08-03 | BC86: ='STUDENT RECORD BY SD'!K84 -> 0 | BD86: ='STUDENT RECORD BY SD'!L84 -> 0 | BE86: ='STUDENT RECORD BY SD'!M84 -> 0 | BF86: ='STUDENT RECORD BY SD'!N84 -> 0 | BG86: ='STUDENT RECORD BY SD'!O84 -> OBC | BH86: ='STUDENT RECORD BY SD'!P84 -> Muslim | BI86: ='STUDENT RECORD BY SD'!Q84 -> 0 | BJ86: ='STUDENT RECORD BY SD'!R84 -> GOVT. SENIOR SECONDARY SCHOOL ALNIYAWAS (219445) | BK86: ='STUDENT RECORD BY SD'!S84 -> 8140200308 | BL86: ='STUDENT RECORD BY SD'!T84 -> XXXX1922 | BM86: ='STUDENT RECORD BY SD'!U84 -> 0 | BN86: ='STUDENT RECORD BY SD'!V84 -> 9828120779 | BO86: ='STUDENT RECORD BY SD'!W84 -> VP-ALNIYAWAS | BP86: ='STUDENT RECORD BY SD'!X84 -> 30000 | BQ86: ='STUDENT RECORD BY SD'!Y84 -> N | BR86: ='STUDENT RECORD BY SD'!Z84 -> N | BS86: ='STUDENT RECORD BY SD'!AA84 -> Yes | BT86: ='STUDENT RECORD BY SD'!AB84 -> 9 | BU86: ='STUDENT RECORD BY SD'!AC84 -> None | BV86: ='STUDENT RECORD BY SD'!AD84 -> 1 | BW86: 5 | BX86: A
A87: =IF(B87="","",ROWS($A$5:A87)) -> 83 | B87: ='STUDENT RECORD BY SD'!A84 -> 5 | C87: ='STUDENT RECORD BY SD'!B84 -> A | E87: ='STUDENT RECORD BY SD'!C84 -> 4431 | F87: ='STUDENT RECORD BY SD'!D84 -> 2017-08-25 | G87: ='STUDENT RECORD BY SD'!E84 -> RANI83 | H87: ='STUDENT RECORD BY SD'!G84 -> king83 | I87: ='STUDENT RECORD BY SD'!H84 -> queen83 | J87: ='STUDENT RECORD BY SD'!I84 -> F | K87: ='STUDENT RECORD BY SD'!J84 -> 2012-08-03 | L87: ='STUDENT RECORD BY SD'!O84 -> OBC | M87: N | T87: =IF(B87<9,"",VLOOKUP(B87,MASTER!$B$10:$R$17,16,0)) ->  | V87: 0 | AA87: 2017-08-25 | AB87: 2017 | AE87: =IF(B86<9,"",IF(MASTER!$R$23="YES",100)) ->  | AK87: =VLOOKUP(B87:B882,MASTER!$B$10:$R$17,16,0) ->  | AL87: 5 | AM87: A | AS87: ='STUDENT RECORD BY SD'!A85 -> 5 | AT87: ='STUDENT RECORD BY SD'!B85 -> A | AU87: ='STUDENT RECORD BY SD'!C85 -> 4433 | AV87: ='STUDENT RECORD BY SD'!D85 -> 2017-08-25 | AW87: ='STUDENT RECORD BY SD'!E85 -> RANI84 | AX87: ='STUDENT RECORD BY SD'!F85 -> 0 | AY87: ='STUDENT RECORD BY SD'!G85 -> king84 | AZ87: ='STUDENT RECORD BY SD'!H85 -> queen84 | BA87: ='STUDENT RECORD BY SD'!I85 -> M | BB87: ='STUDENT RECORD BY SD'!J85 -> 2012-03-04 | BC87: ='STUDENT RECORD BY SD'!K85 -> 0 | BD87: ='STUDENT RECORD BY SD'!L85 -> 0 | BE87: ='STUDENT RECORD BY SD'!M85 -> 0 | BF87: ='STUDENT RECORD BY SD'!N85 -> 0 | BG87: ='STUDENT RECORD BY SD'!O85 -> OBC | BH87: ='STUDENT RECORD BY SD'!P85 -> Hindu | BI87: ='STUDENT RECORD BY SD'!Q85 -> 0 | BJ87: ='STUDENT RECORD BY SD'!R85 -> GOVT. SENIOR SECONDARY SCHOOL ALNIYAWAS (219445) | BK87: ='STUDENT RECORD BY SD'!S85 -> 8140200308 | BL87: ='STUDENT RECORD BY SD'!T85 -> 0 | BM87: ='STUDENT RECORD BY SD'!U85 -> 0 | BN87: ='STUDENT RECORD BY SD'!V85 -> 9828120780 | BO87: ='STUDENT RECORD BY SD'!W85 -> VP-ALNIYAWAS | BP87: ='STUDENT RECORD BY SD'!X85 -> 50000 | BQ87: ='STUDENT RECORD BY SD'!Y85 -> N | BR87: ='STUDENT RECORD BY SD'!Z85 -> N | BS87: ='STUDENT RECORD BY SD'!AA85 -> No | BT87: ='STUDENT RECORD BY SD'!AB85 -> 9 | BU87: ='STUDENT RECORD BY SD'!AC85 -> None | BV87: ='STUDENT RECORD BY SD'!AD85 -> 1 | BW87: 5 | BX87: A
A88: =IF(B88="","",ROWS($A$5:A88)) -> 84 | B88: ='STUDENT RECORD BY SD'!A85 -> 5 | C88: ='STUDENT RECORD BY SD'!B85 -> A | E88: ='STUDENT RECORD BY SD'!C85 -> 4433 | F88: ='STUDENT RECORD BY SD'!D85 -> 2017-08-25 | G88: ='STUDENT RECORD BY SD'!E85 -> RANI84 | H88: ='STUDENT RECORD BY SD'!G85 -> king84 | I88: ='STUDENT RECORD BY SD'!H85 -> queen84 | J88: ='STUDENT RECORD BY SD'!I85 -> M | K88: ='STUDENT RECORD BY SD'!J85 -> 2012-03-04 | L88: ='STUDENT RECORD BY SD'!O85 -> OBC | M88: N | T88: =IF(B88<9,"",VLOOKUP(B88,MASTER!$B$10:$R$17,16,0)) ->  | V88: 0 | AA88: 2017-08-25 | AB88: 2017 | AE88: =IF(B87<9,"",IF(MASTER!$R$23="YES",100)) ->  | AK88: =VLOOKUP(B88:B883,MASTER!$B$10:$R$17,16,0) ->  | AL88: 5 | AM88: A | AS88: ='STUDENT RECORD BY SD'!A86 -> 5 | AT88: ='STUDENT RECORD BY SD'!B86 -> A | AU88: ='STUDENT RECORD BY SD'!C86 -> 4337 | AV88: ='STUDENT RECORD BY SD'!D86 -> 2017-07-04 | AW88: ='STUDENT RECORD BY SD'!E86 -> RANI85 | AX88: ='STUDENT RECORD BY SD'!F86 -> 0 | AY88: ='STUDENT RECORD BY SD'!G86 -> king85 | AZ88: ='STUDENT RECORD BY SD'!H86 -> queen85 | BA88: ='STUDENT RECORD BY SD'!I86 -> F | BB88: ='STUDENT RECORD BY SD'!J86 -> 2010-07-10 | BC88: ='STUDENT RECORD BY SD'!K86 -> 0 | BD88: ='STUDENT RECORD BY SD'!L86 -> 0 | BE88: ='STUDENT RECORD BY SD'!M86 -> 0 | BF88: ='STUDENT RECORD BY SD'!N86 -> 0 | BG88: ='STUDENT RECORD BY SD'!O86 -> OBC | BH88: ='STUDENT RECORD BY SD'!P86 -> Muslim | BI88: ='STUDENT RECORD BY SD'!Q86 -> 0 | BJ88: ='STUDENT RECORD BY SD'!R86 -> GOVT. SENIOR SECONDARY SCHOOL ALNIYAWAS (219445) | BK88: ='STUDENT RECORD BY SD'!S86 -> 8140200308 | BL88: ='STUDENT RECORD BY SD'!T86 -> XXXX5784 | BM88: ='STUDENT RECORD BY SD'!U86 -> 0 | BN88: ='STUDENT RECORD BY SD'!V86 -> 9828120781 | BO88: ='STUDENT RECORD BY SD'!W86 -> VP-ALNIYAWAS | BP88: ='STUDENT RECORD BY SD'!X86 -> 0 | BQ88: ='STUDENT RECORD BY SD'!Y86 -> N | BR88: ='STUDENT RECORD BY SD'!Z86 -> N | BS88: ='STUDENT RECORD BY SD'!AA86 -> Yes | BT88: ='STUDENT RECORD BY SD'!AB86 -> 11 | BU88: ='STUDENT RECORD BY SD'!AC86 -> None | BV88: ='STUDENT RECORD BY SD'!AD86 -> 1 | BW88: 5 | BX88: A
A89: =IF(B89="","",ROWS($A$5:A89)) -> 85 | B89: ='STUDENT RECORD BY SD'!A86 -> 5 | C89: ='STUDENT RECORD BY SD'!B86 -> A | E89: ='STUDENT RECORD BY SD'!C86 -> 4337 | F89: ='STUDENT RECORD BY SD'!D86 -> 2017-07-04 | G89: ='STUDENT RECORD BY SD'!E86 -> RANI85 | H89: ='STUDENT RECORD BY SD'!G86 -> king85 | I89: ='STUDENT RECORD BY SD'!H86 -> queen85 | J89: ='STUDENT RECORD BY SD'!I86 -> F | K89: ='STUDENT RECORD BY SD'!J86 -> 2010-07-10 | L89: ='STUDENT RECORD BY SD'!O86 -> OBC | M89: N | T89: =IF(B89<9,"",VLOOKUP(B89,MASTER!$B$10:$R$17,16,0)) ->  | V89: 0 | AA89: 2017-07-04 | AB89: 2017 | AE89: =IF(B88<9,"",IF(MASTER!$R$23="YES",100)) ->  | AK89: =VLOOKUP(B89:B884,MASTER!$B$10:$R$17,16,0) ->  | AL89: 5 | AM89: A | AS89: ='STUDENT RECORD BY SD'!A87 -> 5 | AT89: ='STUDENT RECORD BY SD'!B87 -> A | AU89: ='STUDENT RECORD BY SD'!C87 -> 4438 | AV89: ='STUDENT RECORD BY SD'!D87 -> 2017-09-05 | AW89: ='STUDENT RECORD BY SD'!E87 -> RANI86 | AX89: ='STUDENT RECORD BY SD'!F87 -> 0 | AY89: ='STUDENT RECORD BY SD'!G87 -> king86 | AZ89: ='STUDENT RECORD BY SD'!H87 -> queen86 | BA89: ='STUDENT RECORD BY SD'!I87 -> M | BB89: ='STUDENT RECORD BY SD'!J87 -> 2007-01-01 | BC89: ='STUDENT RECORD BY SD'!K87 -> 0 | BD89: ='STUDENT RECORD BY SD'!L87 -> 0 | BE89: ='STUDENT RECORD BY SD'!M87 -> 0 | BF89: ='STUDENT RECORD BY SD'!N87 -> 0 | BG89: ='STUDENT RECORD BY SD'!O87 -> SC | BH89: ='STUDENT RECORD BY SD'!P87 -> Hindu | BI89: ='STUDENT RECORD BY SD'!Q87 -> 0 | BJ89: ='STUDENT RECORD BY SD'!R87 -> GOVT. SENIOR SECONDARY SCHOOL ALNIYAWAS (219445) | BK89: ='STUDENT RECORD BY SD'!S87 -> 8140200308 | BL89: ='STUDENT RECORD BY SD'!T87 -> XXXX1370 | BM89: ='STUDENT RECORD BY SD'!U87 -> 0 | BN89: ='STUDENT RECORD BY SD'!V87 -> 9828120782 | BO89: ='STUDENT RECORD BY SD'!W87 -> VP-ALNIYAWAS | BP89: ='STUDENT RECORD BY SD'!X87 -> 0 | BQ89: ='STUDENT RECORD BY SD'!Y87 -> N | BR89: ='STUDENT RECORD BY SD'!Z87 -> N | BS89: ='STUDENT RECORD BY SD'!AA87 -> No | BT89: ='STUDENT RECORD BY SD'!AB87 -> 14 | BU89: ='STUDENT RECORD BY SD'!AC87 -> None | BV89: ='STUDENT RECORD BY SD'!AD87 -> 1 | BW89: 5 | BX89: A
A90: =IF(B90="","",ROWS($A$5:A90)) -> 86 | B90: ='STUDENT RECORD BY SD'!A87 -> 5 | C90: ='STUDENT RECORD BY SD'!B87 -> A | E90: ='STUDENT RECORD BY SD'!C87 -> 4438 | F90: ='STUDENT RECORD BY SD'!D87 -> 2017-09-05 | G90: ='STUDENT RECORD BY SD'!E87 -> RANI86 | H90: ='STUDENT RECORD BY SD'!G87 -> king86 | I90: ='STUDENT RECORD BY SD'!H87 -> queen86 | J90: ='STUDENT RECORD BY SD'!I87 -> M | K90: ='STUDENT RECORD BY SD'!J87 -> 2007-01-01 | L90: ='STUDENT RECORD BY SD'!O87 -> SC | M90: N | T90: =IF(B90<9,"",VLOOKUP(B90,MASTER!$B$10:$R$17,16,0)) ->  | V90: 0 | AA90: 2017-09-05 | AB90: 2017 | AE90: =IF(B89<9,"",IF(MASTER!$R$23="YES",100)) ->  | AK90: =VLOOKUP(B90:B885,MASTER!$B$10:$R$17,16,0) ->  | AL90: 5 | AM90: A | AS90: ='STUDENT RECORD BY SD'!A88 -> 5 | AT90: ='STUDENT RECORD BY SD'!B88 -> A | AU90: ='STUDENT RECORD BY SD'!C88 -> 4500 | AV90: ='STUDENT RECORD BY SD'!D88 -> 2018-07-05 | AW90: ='STUDENT RECORD BY SD'!E88 -> RANI87 | AX90: ='STUDENT RECORD BY SD'!F88 -> 0 | AY90: ='STUDENT RECORD BY SD'!G88 -> king87 | AZ90: ='STUDENT RECORD BY SD'!H88 -> queen87 | BA90: ='STUDENT RECORD BY SD'!I88 -> F | BB90: ='STUDENT RECORD BY SD'!J88 -> 2011-04-04 | BC90: ='STUDENT RECORD BY SD'!K88 -> 0 | BD90: ='STUDENT RECORD BY SD'!L88 -> 0 | BE90: ='STUDENT RECORD BY SD'!M88 -> 0 | BF90: ='STUDENT RECORD BY SD'!N88 -> 0 | BG90: ='STUDENT RECORD BY SD'!O88 -> OBC | BH90: ='STUDENT RECORD BY SD'!P88 -> Hindu | BI90: ='STUDENT RECORD BY SD'!Q88 -> 0 | BJ90: ='STUDENT RECORD BY SD'!R88 -> GOVT. SENIOR SECONDARY SCHOOL ALNIYAWAS (219445) | BK90: ='STUDENT RECORD BY SD'!S88 -> 8140200308 | BL90: ='STUDENT RECORD BY SD'!T88 -> XXXX5702 | BM90: ='STUDENT RECORD BY SD'!U88 -> 0 | BN90: ='STUDENT RECORD BY SD'!V88 -> 9828120783 | BO90: ='STUDENT RECORD BY SD'!W88 -> VP-ALNIYAWAS | BP90: ='STUDENT RECORD BY SD'!X88 -> 40000 | BQ90: ='STUDENT RECORD BY SD'!Y88 -> N | BR90: ='STUDENT RECORD BY SD'!Z88 -> N | BS90: ='STUDENT RECORD BY SD'!AA88 -> No | BT90: ='STUDENT RECORD BY SD'!AB88 -> 10 | BU90: ='STUDENT RECORD BY SD'!AC88 -> None | BV90: ='STUDENT RECORD BY SD'!AD88 -> 3 | BW90: 5 | BX90: A
A91: =IF(B91="","",ROWS($A$5:A91)) -> 87 | B91: ='STUDENT RECORD BY SD'!A88 -> 5 | C91: ='STUDENT RECORD BY SD'!B88 -> A | E91: ='STUDENT RECORD BY SD'!C88 -> 4500 | F91: ='STUDENT RECORD BY SD'!D88 -> 2018-07-05 | G91: ='STUDENT RECORD BY SD'!E88 -> RANI87 | H91: ='STUDENT RECORD BY SD'!G88 -> king87 | I91: ='STUDENT RECORD BY SD'!H88 -> queen87 | J91: ='STUDENT RECORD BY SD'!I88 -> F | K91: ='STUDENT RECORD BY SD'!J88 -> 2011-04-04 | L91: ='STUDENT RECORD BY SD'!O88 -> OBC | M91: N | T91: =IF(B91<9,"",VLOOKUP(B91,MASTER!$B$10:$R$17,16,0)) ->  | V91: 0 | AA91: 2018-07-05 | AB91: 2018 | AE91: =IF(B90<9,"",IF(MASTER!$R$23="YES",100)) ->  | AK91: =VLOOKUP(B91:B886,MASTER!$B$10:$R$17,16,0) ->  | AL91: 5 | AM91: A | AS91: ='STUDENT RECORD BY SD'!A89 -> 5 | AT91: ='STUDENT RECORD BY SD'!B89 -> A | AU91: ='STUDENT RECORD BY SD'!C89 -> 4439 | AV91: ='STUDENT RECORD BY SD'!D89 -> 2017-11-28 | AW91: ='STUDENT RECORD BY SD'!E89 -> RANI88 | AX91: ='STUDENT RECORD BY SD'!F89 -> 0 | AY91: ='STUDENT RECORD BY SD'!G89 -> king88 | AZ91: ='STUDENT RECORD BY SD'!H89 -> queen88 | BA91: ='STUDENT RECORD BY SD'!I89 -> F | BB91: ='STUDENT RECORD BY SD'!J89 -> 2011-07-07 | BC91: ='STUDENT RECORD BY SD'!K89 -> 0 | BD91: ='STUDENT RECORD BY SD'!L89 -> 0 | BE91: ='STUDENT RECORD BY SD'!M89 -> 0 | BF91: ='STUDENT RECORD BY SD'!N89 -> 0 | BG91: ='STUDENT RECORD BY SD'!O89 -> SC | BH91: ='STUDENT RECORD BY SD'!P89 -> Hindu | BI91: ='STUDENT RECORD BY SD'!Q89 -> 0 | BJ91: ='STUDENT RECORD BY SD'!R89 -> GOVT. SENIOR SECONDARY SCHOOL ALNIYAWAS (219445) | BK91: ='STUDENT RECORD BY SD'!S89 -> 8140200308 | BL91: ='STUDENT RECORD BY SD'!T89 -> XXXX4151 | BM91: ='STUDENT RECORD BY SD'!U89 -> 0 | BN91: ='STUDENT RECORD BY SD'!V89 -> 9828120784 | BO91: ='STUDENT RECORD BY SD'!W89 -> VP-ALNIYAWAS | BP91: ='STUDENT RECORD BY SD'!X89 -> 400000 | BQ91: ='STUDENT RECORD BY SD'!Y89 -> N | BR91: ='STUDENT RECORD BY SD'!Z89 -> N | BS91: ='STUDENT RECORD BY SD'!AA89 -> No | BT91: ='STUDENT RECORD BY SD'!AB89 -> 10 | BU91: ='STUDENT RECORD BY SD'!AC89 -> None | BV91: ='STUDENT RECORD BY SD'!AD89 -> 1 | BW91: 5 | BX91: A
A92: =IF(B92="","",ROWS($A$5:A92)) -> 88 | B92: ='STUDENT RECORD BY SD'!A89 -> 5 | C92: ='STUDENT RECORD BY SD'!B89 -> A | E92: ='STUDENT RECORD BY SD'!C89 -> 4439 | F92: ='STUDENT RECORD BY SD'!D89 -> 2017-11-28 | G92: ='STUDENT RECORD BY SD'!E89 -> RANI88 | H92: ='STUDENT RECORD BY SD'!G89 -> king88 | I92: ='STUDENT RECORD BY SD'!H89 -> queen88 | J92: ='STUDENT RECORD BY SD'!I89 -> F | K92: ='STUDENT RECORD BY SD'!J89 -> 2011-07-07 | L92: ='STUDENT RECORD BY SD'!O89 -> SC | M92: N | T92: =IF(B92<9,"",VLOOKUP(B92,MASTER!$B$10:$R$17,16,0)) ->  | V92: 0 | AA92: 2017-11-28 | AB92: 2017 | AE92: =IF(B91<9,"",IF(MASTER!$R$23="YES",100)) ->  | AK92: =VLOOKUP(B92:B887,MASTER!$B$10:$R$17,16,0) ->  | AL92: 5 | AM92: A | AS92: ='STUDENT RECORD BY SD'!A90 -> 5 | AT92: ='STUDENT RECORD BY SD'!B90 -> A | AU92: ='STUDENT RECORD BY SD'!C90 -> 4368 | AV92: ='STUDENT RECORD BY SD'!D90 -> 2017-07-10 | AW92: ='STUDENT RECORD BY SD'!E90 -> RANI89 | AX92: ='STUDENT RECORD BY SD'!F90 -> 0 | AY92: ='STUDENT RECORD BY SD'!G90 -> king89 | AZ92: ='STUDENT RECORD BY SD'!H90 -> queen89 | BA92: ='STUDENT RECORD BY SD'!I90 -> F | BB92: ='STUDENT RECORD BY SD'!J90 -> 2012-05-03 | BC92: ='STUDENT RECORD BY SD'!K90 -> 0 | BD92: ='STUDENT RECORD BY SD'!L90 -> 0 | BE92: ='STUDENT RECORD BY SD'!M90 -> 0 | BF92: ='STUDENT RECORD BY SD'!N90 -> 0 | BG92: ='STUDENT RECORD BY SD'!O90 -> OBC | BH92: ='STUDENT RECORD BY SD'!P90 -> Muslim | BI92: ='STUDENT RECORD BY SD'!Q90 -> 0 | BJ92: ='STUDENT RECORD BY SD'!R90 -> GOVT. SENIOR SECONDARY SCHOOL ALNIYAWAS (219445) | BK92: ='STUDENT RECORD BY SD'!S90 -> 8140200308 | BL92: ='STUDENT RECORD BY SD'!T90 -> XXXX4896 | BM92: ='STUDENT RECORD BY SD'!U90 -> 0 | BN92: ='STUDENT RECORD BY SD'!V90 -> 9828120785 | BO92: ='STUDENT RECORD BY SD'!W90 -> VP-ALNIYAWAS | BP92: ='STUDENT RECORD BY SD'!X90 -> 35000 | BQ92: ='STUDENT RECORD BY SD'!Y90 -> Y | BR92: ='STUDENT RECORD BY SD'!Z90 -> N | BS92: ='STUDENT RECORD BY SD'!AA90 -> Yes | BT92: ='STUDENT RECORD BY SD'!AB90 -> 9 | BU92: ='STUDENT RECORD BY SD'!AC90 -> None | BV92: ='STUDENT RECORD BY SD'!AD90 -> 1 | BW92: 5 | BX92: A
A93: =IF(B93="","",ROWS($A$5:A93)) -> 89 | B93: ='STUDENT RECORD BY SD'!A90 -> 5 | C93: ='STUDENT RECORD BY SD'!B90 -> A | E93: ='STUDENT RECORD BY SD'!C90 -> 4368 | F93: ='STUDENT RECORD BY SD'!D90 -> 2017-07-10 | G93: ='STUDENT RECORD BY SD'!E90 -> RANI89 | H93: ='STUDENT RECORD BY SD'!G90 -> king89 | I93: ='STUDENT RECORD BY SD'!H90 -> queen89 | J93: ='STUDENT RECORD BY SD'!I90 -> F | K93: ='STUDENT RECORD BY SD'!J90 -> 2012-05-03 | L93: ='STUDENT RECORD BY SD'!O90 -> OBC | M93: N | T93: =IF(B93<9,"",VLOOKUP(B93,MASTER!$B$10:$R$17,16,0)) ->  | V93: 0 | AA93: 2017-07-10 | AB93: 2017 | AE93: =IF(B92<9,"",IF(MASTER!$R$23="YES",100)) ->  | AK93: =VLOOKUP(B93:B888,MASTER!$B$10:$R$17,16,0) ->  | AL93: 5 | AM93: A | AS93: ='STUDENT RECORD BY SD'!A91 -> 5 | AT93: ='STUDENT RECORD BY SD'!B91 -> A | AU93: ='STUDENT RECORD BY SD'!C91 -> 4335 | AV93: ='STUDENT RECORD BY SD'!D91 -> 2017-07-04 | AW93: ='STUDENT RECORD BY SD'!E91 -> RANI90 | AX93: ='STUDENT RECORD BY SD'!F91 -> 0 | AY93: ='STUDENT RECORD BY SD'!G91 -> king90 | AZ93: ='STUDENT RECORD BY SD'!H91 -> queen90 | BA93: ='STUDENT RECORD BY SD'!I91 -> F | BB93: ='STUDENT RECORD BY SD'!J91 -> 2008-01-15 | BC93: ='STUDENT RECORD BY SD'!K91 -> 0 | BD93: ='STUDENT RECORD BY SD'!L91 -> 0 | BE93: ='STUDENT RECORD BY SD'!M91 -> 0 | BF93: ='STUDENT RECORD BY SD'!N91 -> 0 | BG93: ='STUDENT RECORD BY SD'!O91 -> OBC | BH93: ='STUDENT RECORD BY SD'!P91 -> Muslim | BI93: ='STUDENT RECORD BY SD'!Q91 -> 0 | BJ93: ='STUDENT RECORD BY SD'!R91 -> GOVT. SENIOR SECONDARY SCHOOL ALNIYAWAS (219445) | BK93: ='STUDENT RECORD BY SD'!S91 -> 8140200308 | BL93: ='STUDENT RECORD BY SD'!T91 -> 0 | BM93: ='STUDENT RECORD BY SD'!U91 -> 0 | BN93: ='STUDENT RECORD BY SD'!V91 -> 9828120786 | BO93: ='STUDENT RECORD BY SD'!W91 -> VP-ALNIYAWAS | BP93: ='STUDENT RECORD BY SD'!X91 -> 0 | BQ93: ='STUDENT RECORD BY SD'!Y91 -> N | BR93: ='STUDENT RECORD BY SD'!Z91 -> N | BS93: ='STUDENT RECORD BY SD'!AA91 -> Yes | BT93: ='STUDENT RECORD BY SD'!AB91 -> 13 | BU93: ='STUDENT RECORD BY SD'!AC91 -> None | BV93: ='STUDENT RECORD BY SD'!AD91 -> 1 | BW93: 5 | BX93: A
A94: =IF(B94="","",ROWS($A$5:A94)) -> 90 | B94: ='STUDENT RECORD BY SD'!A91 -> 5 | C94: ='STUDENT RECORD BY SD'!B91 -> A | E94: ='STUDENT RECORD BY SD'!C91 -> 4335 | F94: ='STUDENT RECORD BY SD'!D91 -> 2017-07-04 | G94: ='STUDENT RECORD BY SD'!E91 -> RANI90 | H94: ='STUDENT RECORD BY SD'!G91 -> king90 | I94: ='STUDENT RECORD BY SD'!H91 -> queen90 | J94: ='STUDENT RECORD BY SD'!I91 -> F | K94: ='STUDENT RECORD BY SD'!J91 -> 2008-01-15 | L94: ='STUDENT RECORD BY SD'!O91 -> OBC | M94: N | T94: =IF(B94<9,"",VLOOKUP(B94,MASTER!$B$10:$R$17,16,0)) ->  | V94: 0 | AA94: 2017-07-04 | AB94: 2017 | AE94: =IF(B93<9,"",IF(MASTER!$R$23="YES",100)) ->  | AK94: =VLOOKUP(B94:B889,MASTER!$B$10:$R$17,16,0) ->  | AL94: 5 | AM94: A | AS94: ='STUDENT RECORD BY SD'!A92 -> 5 | AT94: ='STUDENT RECORD BY SD'!B92 -> A | AU94: ='STUDENT RECORD BY SD'!C92 -> 4333 | AV94: ='STUDENT RECORD BY SD'!D92 -> 2017-07-04 | AW94: ='STUDENT RECORD BY SD'!E92 -> RANI91 | AX94: ='STUDENT RECORD BY SD'!F92 -> 0 | AY94: ='STUDENT RECORD BY SD'!G92 -> king91 | AZ94: ='STUDENT RECORD BY SD'!H92 -> queen91 | BA94: ='STUDENT RECORD BY SD'!I92 -> F | BB94: ='STUDENT RECORD BY SD'!J92 -> 2012-05-15 | BC94: ='STUDENT RECORD BY SD'!K92 -> 0 | BD94: ='STUDENT RECORD BY SD'!L92 -> 0 | BE94: ='STUDENT RECORD BY SD'!M92 -> 0 | BF94: ='STUDENT RECORD BY SD'!N92 -> 0 | BG94: ='STUDENT RECORD BY SD'!O92 -> OBC | BH94: ='STUDENT RECORD BY SD'!P92 -> Hindu | BI94: ='STUDENT RECORD BY SD'!Q92 -> 0 | BJ94: ='STUDENT RECORD BY SD'!R92 -> GOVT. SENIOR SECONDARY SCHOOL ALNIYAWAS (219445) | BK94: ='STUDENT RECORD BY SD'!S92 -> 8140200308 | BL94: ='STUDENT RECORD BY SD'!T92 -> 0 | BM94: ='STUDENT RECORD BY SD'!U92 -> 0 | BN94: ='STUDENT RECORD BY SD'!V92 -> 9828120787 | BO94: ='STUDENT RECORD BY SD'!W92 -> VP-ALNIYAWAS | BP94: ='STUDENT RECORD BY SD'!X92 -> 0 | BQ94: ='STUDENT RECORD BY SD'!Y92 -> N | BR94: ='STUDENT RECORD BY SD'!Z92 -> N | BS94: ='STUDENT RECORD BY SD'!AA92 -> No | BT94: ='STUDENT RECORD BY SD'!AB92 -> 9 | BU94: ='STUDENT RECORD BY SD'!AC92 -> None | BV94: ='STUDENT RECORD BY SD'!AD92 -> 1 | BW94: 5 | BX94: A
A95: =IF(B95="","",ROWS($A$5:A95)) -> 91 | B95: ='STUDENT RECORD BY SD'!A92 -> 5 | C95: ='STUDENT RECORD BY SD'!B92 -> A | E95: ='STUDENT RECORD BY SD'!C92 -> 4333 | F95: ='STUDENT RECORD BY SD'!D92 -> 2017-07-04 | G95: ='STUDENT RECORD BY SD'!E92 -> RANI91 | H95: ='STUDENT RECORD BY SD'!G92 -> king91 | I95: ='STUDENT RECORD BY SD'!H92 -> queen91 | J95: ='STUDENT RECORD BY SD'!I92 -> F | K95: ='STUDENT RECORD BY SD'!J92 -> 2012-05-15 | L95: ='STUDENT RECORD BY SD'!O92 -> OBC | M95: N | T95: =IF(B95<9,"",VLOOKUP(B95,MASTER!$B$10:$R$17,16,0)) ->  | V95: 0 | AA95: 2017-07-04 | AB95: 2017 | AE95: =IF(B94<9,"",IF(MASTER!$R$23="YES",100)) ->  | AK95: =VLOOKUP(B95:B890,MASTER!$B$10:$R$17,16,0) ->  | AL95: 5 | AM95: A | AS95: ='STUDENT RECORD BY SD'!A93 -> 5 | AT95: ='STUDENT RECORD BY SD'!B93 -> A | AU95: ='STUDENT RECORD BY SD'!C93 -> 4371 | AV95: ='STUDENT RECORD BY SD'!D93 -> 2017-07-10 | AW95: ='STUDENT RECORD BY SD'!E93 -> RANI92 | AX95: ='STUDENT RECORD BY SD'!F93 -> 0 | AY95: ='STUDENT RECORD BY SD'!G93 -> king92 | AZ95: ='STUDENT RECORD BY SD'!H93 -> queen92 | BA95: ='STUDENT RECORD BY SD'!I93 -> F | BB95: ='STUDENT RECORD BY SD'!J93 -> 2011-05-02 | BC95: ='STUDENT RECORD BY SD'!K93 -> 0 | BD95: ='STUDENT RECORD BY SD'!L93 -> 0 | BE95: ='STUDENT RECORD BY SD'!M93 -> 0 | BF95: ='STUDENT RECORD BY SD'!N93 -> 0 | BG95: ='STUDENT RECORD BY SD'!O93 -> OBC | BH95: ='STUDENT RECORD BY SD'!P93 -> Hindu | BI95: ='STUDENT RECORD BY SD'!Q93 -> 0 | BJ95: ='STUDENT RECORD BY SD'!R93 -> GOVT. SENIOR SECONDARY SCHOOL ALNIYAWAS (219445) | BK95: ='STUDENT RECORD BY SD'!S93 -> 8140200308 | BL95: ='STUDENT RECORD BY SD'!T93 -> XXXX3157 | BM95: ='STUDENT RECORD BY SD'!U93 -> 0 | BN95: ='STUDENT RECORD BY SD'!V93 -> 9828120788 | BO95: ='STUDENT RECORD BY SD'!W93 -> VP-ALNIYAWAS | BP95: ='STUDENT RECORD BY SD'!X93 -> 35000 | BQ95: ='STUDENT RECORD BY SD'!Y93 -> N | BR95: ='STUDENT RECORD BY SD'!Z93 -> N | BS95: ='STUDENT RECORD BY SD'!AA93 -> No | BT95: ='STUDENT RECORD BY SD'!AB93 -> 10 | BU95: ='STUDENT RECORD BY SD'!AC93 -> None | BV95: ='STUDENT RECORD BY SD'!AD93 -> 1 | BW95: 5 | BX95: A
A96: =IF(B96="","",ROWS($A$5:A96)) -> 92 | B96: ='STUDENT RECORD BY SD'!A93 -> 5 | C96: ='STUDENT RECORD BY SD'!B93 -> A | E96: ='STUDENT RECORD BY SD'!C93 -> 4371 | F96: ='STUDENT RECORD BY SD'!D93 -> 2017-07-10 | G96: ='STUDENT RECORD BY SD'!E93 -> RANI92 | H96: ='STUDENT RECORD BY SD'!G93 -> king92 | I96: ='STUDENT RECORD BY SD'!H93 -> queen92 | J96: ='STUDENT RECORD BY SD'!I93 -> F | K96: ='STUDENT RECORD BY SD'!J93 -> 2011-05-02 | L96: ='STUDENT RECORD BY SD'!O93 -> OBC | M96: N | T96: =IF(B96<9,"",VLOOKUP(B96,MASTER!$B$10:$R$17,16,0)) ->  | V96: 0 | AA96: 2017-07-10 | AB96: 2017 | AE96: =IF(B95<9,"",IF(MASTER!$R$23="YES",100)) ->  | AK96: =VLOOKUP(B96:B891,MASTER!$B$10:$R$17,16,0) ->  | AL96: 5 | AM96: A | AS96: ='STUDENT RECORD BY SD'!A94 -> 5 | AT96: ='STUDENT RECORD BY SD'!B94 -> A | AU96: ='STUDENT RECORD BY SD'!C94 -> 4857 | AV96: ='STUDENT RECORD BY SD'!D94 -> 00:00:00 | AW96: ='STUDENT RECORD BY SD'!E94 -> RANI93 | AX96: ='STUDENT RECORD BY SD'!F94 -> 0 | AY96: ='STUDENT RECORD BY SD'!G94 -> king93 | AZ96: ='STUDENT RECORD BY SD'!H94 -> queen93 | BA96: ='STUDENT RECORD BY SD'!I94 -> F | BB96: ='STUDENT RECORD BY SD'!J94 -> 2013-01-01 | BC96: ='STUDENT RECORD BY SD'!K94 -> 0 | BD96: ='STUDENT RECORD BY SD'!L94 -> 0 | BE96: ='STUDENT RECORD BY SD'!M94 -> 0 | BF96: ='STUDENT RECORD BY SD'!N94 -> 0 | BG96: ='STUDENT RECORD BY SD'!O94 -> OBC | BH96: ='STUDENT RECORD BY SD'!P94 -> 0 | BI96: ='STUDENT RECORD BY SD'!Q94 -> 0 | BJ96: ='STUDENT RECORD BY SD'!R94 -> GOVT. SENIOR SECONDARY SCHOOL ALNIYAWAS (219445) | BK96: ='STUDENT RECORD BY SD'!S94 -> 8140200308 | BL96: ='STUDENT RECORD BY SD'!T94 -> 0 | BM96: ='STUDENT RECORD BY SD'!U94 -> 0 | BN96: ='STUDENT RECORD BY SD'!V94 -> 9828120789 | BO96: ='STUDENT RECORD BY SD'!W94 -> VP-ALNIYAWAS | BP96: ='STUDENT RECORD BY SD'!X94 -> 0 | BQ96: ='STUDENT RECORD BY SD'!Y94 -> N | BR96: ='STUDENT RECORD BY SD'!Z94 -> Y | BS96: ='STUDENT RECORD BY SD'!AA94 -> 0 | BT96: ='STUDENT RECORD BY SD'!AB94 -> 8 | BU96: ='STUDENT RECORD BY SD'!AC94 -> 0 | BV96: ='STUDENT RECORD BY SD'!AD94 -> 1 | BW96: 5 | BX96: A
A97: =IF(B97="","",ROWS($A$5:A97)) -> 93 | B97: ='STUDENT RECORD BY SD'!A94 -> 5 | C97: ='STUDENT RECORD BY SD'!B94 -> A | E97: ='STUDENT RECORD BY SD'!C94 -> 4857 | F97: ='STUDENT RECORD BY SD'!D94 -> 00:00:00 | G97: ='STUDENT RECORD BY SD'!E94 -> RANI93 | H97: ='STUDENT RECORD BY SD'!G94 -> king93 | I97: ='STUDENT RECORD BY SD'!H94 -> queen93 | J97: ='STUDENT RECORD BY SD'!I94 -> F | K97: ='STUDENT RECORD BY SD'!J94 -> 2013-01-01 | L97: ='STUDENT RECORD BY SD'!O94 -> OBC | M97: N | T97: =IF(B97<9,"",VLOOKUP(B97,MASTER!$B$10:$R$17,16,0)) ->  | V97: 0 | AA97: 00:00:00 | AB97: 1900 | AE97: =IF(B96<9,"",IF(MASTER!$R$23="YES",100)) ->  | AK97: =VLOOKUP(B97:B892,MASTER!$B$10:$R$17,16,0) ->  | AL97: 5 | AM97: A | AS97: ='STUDENT RECORD BY SD'!A95 -> 5 | AT97: ='STUDENT RECORD BY SD'!B95 -> A | AU97: ='STUDENT RECORD BY SD'!C95 -> 4283 | AV97: ='STUDENT RECORD BY SD'!D95 -> 2017-06-29 | AW97: ='STUDENT RECORD BY SD'!E95 -> RANI94 | AX97: ='STUDENT RECORD BY SD'!F95 -> 0 | AY97: ='STUDENT RECORD BY SD'!G95 -> king94 | AZ97: ='STUDENT RECORD BY SD'!H95 -> queen94 | BA97: ='STUDENT RECORD BY SD'!I95 -> F | BB97: ='STUDENT RECORD BY SD'!J95 -> 2012-07-09 | BC97: ='STUDENT RECORD BY SD'!K95 -> 0 | BD97: ='STUDENT RECORD BY SD'!L95 -> 0 | BE97: ='STUDENT RECORD BY SD'!M95 -> 0 | BF97: ='STUDENT RECORD BY SD'!N95 -> 0 | BG97: ='STUDENT RECORD BY SD'!O95 -> OBC | BH97: ='STUDENT RECORD BY SD'!P95 -> Hindu | BI97: ='STUDENT RECORD BY SD'!Q95 -> 0 | BJ97: ='STUDENT RECORD BY SD'!R95 -> GOVT. SENIOR SECONDARY SCHOOL ALNIYAWAS (219445) | BK97: ='STUDENT RECORD BY SD'!S95 -> 8140200308 | BL97: ='STUDENT RECORD BY SD'!T95 -> XXXX9015 | BM97: ='STUDENT RECORD BY SD'!U95 -> 0 | BN97: ='STUDENT RECORD BY SD'!V95 -> 9828120790 | BO97: ='STUDENT RECORD BY SD'!W95 -> VP-ALNIYAWAS | BP97: ='STUDENT RECORD BY SD'!X95 -> 48000 | BQ97: ='STUDENT RECORD BY SD'!Y95 -> N | BR97: ='STUDENT RECORD BY SD'!Z95 -> N | BS97: ='STUDENT RECORD BY SD'!AA95 -> No | BT97: ='STUDENT RECORD BY SD'!AB95 -> 9 | BU97: ='STUDENT RECORD BY SD'!AC95 -> None | BV97: ='STUDENT RECORD BY SD'!AD95 -> 1 | BW97: 5 | BX97: A
A98: =IF(B98="","",ROWS($A$5:A98)) -> 94 | B98: ='STUDENT RECORD BY SD'!A95 -> 5 | C98: ='STUDENT RECORD BY SD'!B95 -> A | E98: ='STUDENT RECORD BY SD'!C95 -> 4283 | F98: ='STUDENT RECORD BY SD'!D95 -> 2017-06-29 | G98: ='STUDENT RECORD BY SD'!E95 -> RANI94 | H98: ='STUDENT RECORD BY SD'!G95 -> king94 | I98: ='STUDENT RECORD BY SD'!H95 -> queen94 | J98: ='STUDENT RECORD BY SD'!I95 -> F | K98: ='STUDENT RECORD BY SD'!J95 -> 2012-07-09 | L98: ='STUDENT RECORD BY SD'!O95 -> OBC | M98: N | T98: =IF(B98<9,"",VLOOKUP(B98,MASTER!$B$10:$R$17,16,0)) ->  | V98: 0 | AA98: 2017-06-29 | AB98: 2017 | AE98: =IF(B97<9,"",IF(MASTER!$R$23="YES",100)) ->  | AK98: =VLOOKUP(B98:B893,MASTER!$B$10:$R$17,16,0) ->  | AL98: 5 | AM98: A | AS98: ='STUDENT RECORD BY SD'!A96 -> 5 | AT98: ='STUDENT RECORD BY SD'!B96 -> A | AU98: ='STUDENT RECORD BY SD'!C96 -> 4326 | AV98: ='STUDENT RECORD BY SD'!D96 -> 2017-07-04 | AW98: ='STUDENT RECORD BY SD'!E96 -> RANI95 | AX98: ='STUDENT RECORD BY SD'!F96 -> 0 | AY98: ='STUDENT RECORD BY SD'!G96 -> king95 | AZ98: ='STUDENT RECORD BY SD'!H96 -> queen95 | BA98: ='STUDENT RECORD BY SD'!I96 -> M | BB98: ='STUDENT RECORD BY SD'!J96 -> 2012-06-10 | BC98: ='STUDENT RECORD BY SD'!K96 -> 0 | BD98: ='STUDENT RECORD BY SD'!L96 -> 0 | BE98: ='STUDENT RECORD BY SD'!M96 -> 0 | BF98: ='STUDENT RECORD BY SD'!N96 -> 0 | BG98: ='STUDENT RECORD BY SD'!O96 -> OBC | BH98: ='STUDENT RECORD BY SD'!P96 -> 0 | BI98: ='STUDENT RECORD BY SD'!Q96 -> 0 | BJ98: ='STUDENT RECORD BY SD'!R96 -> GOVT. SENIOR SECONDARY SCHOOL ALNIYAWAS (219445) | BK98: ='STUDENT RECORD BY SD'!S96 -> 8140200308 | BL98: ='STUDENT RECORD BY SD'!T96 -> XXXX7339 | BM98: ='STUDENT RECORD BY SD'!U96 -> 0 | BN98: ='STUDENT RECORD BY SD'!V96 -> 9828120791 | BO98: ='STUDENT RECORD BY SD'!W96 -> VP-ALNIYAWAS | BP98: ='STUDENT RECORD BY SD'!X96 -> 0 | BQ98: ='STUDENT RECORD BY SD'!Y96 -> N | BR98: ='STUDENT RECORD BY SD'!Z96 -> N | BS98: ='STUDENT RECORD BY SD'!AA96 -> 0 | BT98: ='STUDENT RECORD BY SD'!AB96 -> 9 | BU98: ='STUDENT RECORD BY SD'!AC96 -> None | BV98: ='STUDENT RECORD BY SD'!AD96 -> 1 | BW98: 5 | BX98: A
A99: =IF(B99="","",ROWS($A$5:A99)) -> 95 | B99: ='STUDENT RECORD BY SD'!A96 -> 5 | C99: ='STUDENT RECORD BY SD'!B96 -> A | E99: ='STUDENT RECORD BY SD'!C96 -> 4326 | F99: ='STUDENT RECORD BY SD'!D96 -> 2017-07-04 | G99: ='STUDENT RECORD BY SD'!E96 -> RANI95 | H99: ='STUDENT RECORD BY SD'!G96 -> king95 | I99: ='STUDENT RECORD BY SD'!H96 -> queen95 | J99: ='STUDENT RECORD BY SD'!I96 -> M | K99: ='STUDENT RECORD BY SD'!J96 -> 2012-06-10 | L99: ='STUDENT RECORD BY SD'!O96 -> OBC | M99: N | T99: =IF(B99<9,"",VLOOKUP(B99,MASTER!$B$10:$R$17,16,0)) ->  | V99: 0 | AA99: 2017-07-04 | AB99: 2017 | AE99: =IF(B98<9,"",IF(MASTER!$R$23="YES",100)) ->  | AK99: =VLOOKUP(B99:B894,MASTER!$B$10:$R$17,16,0) ->  | AL99: 5 | AM99: A | AS99: ='STUDENT RECORD BY SD'!A97 -> 5 | AT99: ='STUDENT RECORD BY SD'!B97 -> A | AU99: ='STUDENT RECORD BY SD'!C97 -> 4699 | AV99: ='STUDENT RECORD BY SD'!D97 -> 2019-07-10 | AW99: ='STUDENT RECORD BY SD'!E97 -> RANI96 | AX99: ='STUDENT RECORD BY SD'!F97 -> 0 | AY99: ='STUDENT RECORD BY SD'!G97 -> king96 | AZ99: ='STUDENT RECORD BY SD'!H97 -> queen96 | BA99: ='STUDENT RECORD BY SD'!I97 -> M | BB99: ='STUDENT RECORD BY SD'!J97 -> 2010-07-07 | BC99: ='STUDENT RECORD BY SD'!K97 -> 0 | BD99: ='STUDENT RECORD BY SD'!L97 -> 0 | BE99: ='STUDENT RECORD BY SD'!M97 -> 0 | BF99: ='STUDENT RECORD BY SD'!N97 -> 0 | BG99: ='STUDENT RECORD BY SD'!O97 -> SC | BH99: ='STUDENT RECORD BY SD'!P97 -> Hindu | BI99: ='STUDENT RECORD BY SD'!Q97 -> 0 | BJ99: ='STUDENT RECORD BY SD'!R97 -> GOVT. SENIOR SECONDARY SCHOOL ALNIYAWAS (219445) | BK99: ='STUDENT RECORD BY SD'!S97 -> 8140200308 | BL99: ='STUDENT RECORD BY SD'!T97 -> 0 | BM99: ='STUDENT RECORD BY SD'!U97 -> 0 | BN99: ='STUDENT RECORD BY SD'!V97 -> 9828120792 | BO99: ='STUDENT RECORD BY SD'!W97 -> VP-ALNIYAWAS | BP99: ='STUDENT RECORD BY SD'!X97 -> 60000 | BQ99: ='STUDENT RECORD BY SD'!Y97 -> N | BR99: ='STUDENT RECORD BY SD'!Z97 -> N | BS99: ='STUDENT RECORD BY SD'!AA97 -> No | BT99: ='STUDENT RECORD BY SD'!AB97 -> 11 | BU99: ='STUDENT RECORD BY SD'!AC97 -> None | BV99: ='STUDENT RECORD BY SD'!AD97 -> 0 | BW99: 5 | BX99: A
A100: =IF(B100="","",ROWS($A$5:A100)) -> 96 | B100: ='STUDENT RECORD BY SD'!A97 -> 5 | C100: ='STUDENT RECORD BY SD'!B97 -> A | E100: ='STUDENT RECORD BY SD'!C97 -> 4699 | F100: ='STUDENT RECORD BY SD'!D97 -> 2019-07-10 | G100: ='STUDENT RECORD BY SD'!E97 -> RANI96 | H100: ='STUDENT RECORD BY SD'!G97 -> king96 | I100: ='STUDENT RECORD BY SD'!H97 -> queen96 | J100: ='STUDENT RECORD BY SD'!I97 -> M | K100: ='STUDENT RECORD BY SD'!J97 -> 2010-07-07 | L100: ='STUDENT RECORD BY SD'!O97 -> SC | M100: N | T100: =IF(B100<9,"",VLOOKUP(B100,MASTER!$B$10:$R$17,16,0)) ->  | V100: 0 | AA100: 2019-07-10 | AB100: 2019 | AE100: =IF(B99<9,"",IF(MASTER!$R$23="YES",100)) ->  | AK100: =VLOOKUP(B100:B895,MASTER!$B$10:$R$17,16,0) ->  | AL100: 5 | AM100: A | AS100: ='STUDENT RECORD BY SD'!A98 -> 5 | AT100: ='STUDENT RECORD BY SD'!B98 -> A | AU100: ='STUDENT RECORD BY SD'!C98 -> 4336 | AV100: ='STUDENT RECORD BY SD'!D98 -> 2017-07-04 | AW100: ='STUDENT RECORD BY SD'!E98 -> RANI97 | AX100: ='STUDENT RECORD BY SD'!F98 -> 0 | AY100: ='STUDENT RECORD BY SD'!G98 -> king97 | AZ100: ='STUDENT RECORD BY SD'!H98 -> queen97 | BA100: ='STUDENT RECORD BY SD'!I98 -> F | BB100: ='STUDENT RECORD BY SD'!J98 -> 2009-03-10 | BC100: ='STUDENT RECORD BY SD'!K98 -> 0 | BD100: ='STUDENT RECORD BY SD'!L98 -> 0 | BE100: ='STUDENT RECORD BY SD'!M98 -> 0 | BF100: ='STUDENT RECORD BY SD'!N98 -> 0 | BG100: ='STUDENT RECORD BY SD'!O98 -> OBC | BH100: ='STUDENT RECORD BY SD'!P98 -> Muslim | BI100: ='STUDENT RECORD BY SD'!Q98 -> 0 | BJ100: ='STUDENT RECORD BY SD'!R98 -> GOVT. SENIOR SECONDARY SCHOOL ALNIYAWAS (219445) | BK100: ='STUDENT RECORD BY SD'!S98 -> 8140200308 | BL100: ='STUDENT RECORD BY SD'!T98 -> XXXX0687 | BM100: ='STUDENT RECORD BY SD'!U98 -> 0 | BN100: ='STUDENT RECORD BY SD'!V98 -> 9828120793 | BO100: ='STUDENT RECORD BY SD'!W98 -> VP-ALNIYAWAS | BP100: ='STUDENT RECORD BY SD'!X98 -> 0 | BQ100: ='STUDENT RECORD BY SD'!Y98 -> N | BR100: ='STUDENT RECORD BY SD'!Z98 -> N | BS100: ='STUDENT RECORD BY SD'!AA98 -> Yes | BT100: ='STUDENT RECORD BY SD'!AB98 -> 12 | BU100: ='STUDENT RECORD BY SD'!AC98 -> None | BV100: ='STUDENT RECORD BY SD'!AD98 -> 1 | BW100: 5 | BX100: A
A101: =IF(B101="","",ROWS($A$5:A101)) -> 97 | B101: ='STUDENT RECORD BY SD'!A98 -> 5 | C101: ='STUDENT RECORD BY SD'!B98 -> A | E101: ='STUDENT RECORD BY SD'!C98 -> 4336 | F101: ='STUDENT RECORD BY SD'!D98 -> 2017-07-04 | G101: ='STUDENT RECORD BY SD'!E98 -> RANI97 | H101: ='STUDENT RECORD BY SD'!G98 -> king97 | I101: ='STUDENT RECORD BY SD'!H98 -> queen97 | J101: ='STUDENT RECORD BY SD'!I98 -> F | K101: ='STUDENT RECORD BY SD'!J98 -> 2009-03-10 | L101: ='STUDENT RECORD BY SD'!O98 -> OBC | M101: N | T101: =IF(B101<9,"",VLOOKUP(B101,MASTER!$B$10:$R$17,16,0)) ->  | V101: 0 | AA101: 2017-07-04 | AB101: 2017 | AE101: =IF(B100<9,"",IF(MASTER!$R$23="YES",100)) ->  | AK101: =VLOOKUP(B101:B896,MASTER!$B$10:$R$17,16,0) ->  | AL101: 5 | AM101: A | AS101: ='STUDENT RECORD BY SD'!A99 -> 5 | AT101: ='STUDENT RECORD BY SD'!B99 -> A | AU101: ='STUDENT RECORD BY SD'!C99 -> 4276 | AV101: ='STUDENT RECORD BY SD'!D99 -> 1900-05-29 | AW101: ='STUDENT RECORD BY SD'!E99 -> RANI98 | AX101: ='STUDENT RECORD BY SD'!F99 -> 0 | AY101: ='STUDENT RECORD BY SD'!G99 -> king98 | AZ101: ='STUDENT RECORD BY SD'!H99 -> queen98 | BA101: ='STUDENT RECORD BY SD'!I99 -> M | BB101: ='STUDENT RECORD BY SD'!J99 -> 2012-02-15 | BC101: ='STUDENT RECORD BY SD'!K99 -> 0 | BD101: ='STUDENT RECORD BY SD'!L99 -> 0 | BE101: ='STUDENT RECORD BY SD'!M99 -> 0 | BF101: ='STUDENT RECORD BY SD'!N99 -> 0 | BG101: ='STUDENT RECORD BY SD'!O99 -> SC | BH101: ='STUDENT RECORD BY SD'!P99 -> Hindu | BI101: ='STUDENT RECORD BY SD'!Q99 -> 0 | BJ101: ='STUDENT RECORD BY SD'!R99 -> GOVT. SENIOR SECONDARY SCHOOL ALNIYAWAS (219445) | BK101: ='STUDENT RECORD BY SD'!S99 -> 8140200308 | BL101: ='STUDENT RECORD BY SD'!T99 -> XXXX3171 | BM101: ='STUDENT RECORD BY SD'!U99 -> 0 | BN101: ='STUDENT RECORD BY SD'!V99 -> 9828120794 | BO101: ='STUDENT RECORD BY SD'!W99 -> VP-ALNIYAWAS | BP101: ='STUDENT RECORD BY SD'!X99 -> 35000 | BQ101: ='STUDENT RECORD BY SD'!Y99 -> N | BR101: ='STUDENT RECORD BY SD'!Z99 -> N | BS101: ='STUDENT RECORD BY SD'!AA99 -> No | BT101: ='STUDENT RECORD BY SD'!AB99 -> 9 | BU101: ='STUDENT RECORD BY SD'!AC99 -> None | BV101: ='STUDENT RECORD BY SD'!AD99 -> 1 | BW101: 5 | BX101: A
A102: =IF(B102="","",ROWS($A$5:A102)) -> 98 | B102: ='STUDENT RECORD BY SD'!A99 -> 5 | C102: ='STUDENT RECORD BY SD'!B99 -> A | E102: ='STUDENT RECORD BY SD'!C99 -> 4276 | F102: ='STUDENT RECORD BY SD'!D99 -> 1900-05-29 | G102: ='STUDENT RECORD BY SD'!E99 -> RANI98 | H102: ='STUDENT RECORD BY SD'!G99 -> king98 | I102: ='STUDENT RECORD BY SD'!H99 -> queen98 | J102: ='STUDENT RECORD BY SD'!I99 -> M | K102: ='STUDENT RECORD BY SD'!J99 -> 2012-02-15 | L102: ='STUDENT RECORD BY SD'!O99 -> SC | M102: N | T102: =IF(B102<9,"",VLOOKUP(B102,MASTER!$B$10:$R$17,16,0)) ->  | V102: 0 | AA102: 1900-05-29 | AB102: 1900 | AE102: =IF(B101<9,"",IF(MASTER!$R$23="YES",100)) ->  | AK102: =VLOOKUP(B102:B897,MASTER!$B$10:$R$17,16,0) ->  | AL102: 5 | AM102: A | AS102: ='STUDENT RECORD BY SD'!A100 -> 5 | AT102: ='STUDENT RECORD BY SD'!B100 -> A | AU102: ='STUDENT RECORD BY SD'!C100 -> 4324 | AV102: ='STUDENT RECORD BY SD'!D100 -> 2017-07-04 | AW102: ='STUDENT RECORD BY SD'!E100 -> RANI99 | AX102: ='STUDENT RECORD BY SD'!F100 -> 0 | AY102: ='STUDENT RECORD BY SD'!G100 -> king99 | AZ102: ='STUDENT RECORD BY SD'!H100 -> queen99 | BA102: ='STUDENT RECORD BY SD'!I100 -> F | BB102: ='STUDENT RECORD BY SD'!J100 -> 2011-06-02 | BC102: ='STUDENT RECORD BY SD'!K100 -> 0 | BD102: ='STUDENT RECORD BY SD'!L100 -> 0 | BE102: ='STUDENT RECORD BY SD'!M100 -> 0 | BF102: ='STUDENT RECORD BY SD'!N100 -> 0 | BG102: ='STUDENT RECORD BY SD'!O100 -> OBC | BH102: ='STUDENT RECORD BY SD'!P100 -> Muslim | BI102: ='STUDENT RECORD BY SD'!Q100 -> 0 | BJ102: ='STUDENT RECORD BY SD'!R100 -> GOVT. SENIOR SECONDARY SCHOOL ALNIYAWAS (219445) | BK102: ='STUDENT RECORD BY SD'!S100 -> 8140200308 | BL102: ='STUDENT RECORD BY SD'!T100 -> XXXX7296 | BM102: ='STUDENT RECORD BY SD'!U100 -> 0 | BN102: ='STUDENT RECORD BY SD'!V100 -> 9828120795 | BO102: ='STUDENT RECORD BY SD'!W100 -> VP-ALNIYAWAS | BP102: ='STUDENT RECORD BY SD'!X100 -> 0 | BQ102: ='STUDENT RECORD BY SD'!Y100 -> N | BR102: ='STUDENT RECORD BY SD'!Z100 -> N | BS102: ='STUDENT RECORD BY SD'!AA100 -> Yes | BT102: ='STUDENT RECORD BY SD'!AB100 -> 10 | BU102: ='STUDENT RECORD BY SD'!AC100 -> None | BV102: ='STUDENT RECORD BY SD'!AD100 -> 1 | BW102: 5 | BX102: A
